Workbook

Sheet Total
B1: NOVEMBER, 2021 MONTH REPORT ABSTRACT
B2: ADDRESS OF THE HCFS | C2: NO.OF HCFs | D2: NO.OF BEDS | E2: YELLOW | F2: RED | G2: BLUE | H2: WHITE | I2: TOTAL
E3: Values are in Kilograms
B4: NIZAMABAD | C4: ='Area Wise Total'!D12 -> 316 | D4: =Nizamabad!E331 -> 5,087 | E4: =Nizamabad!DZ331 -> 9,591 | F4: =Nizamabad!EA331 -> 9,349 | G4: =Nizamabad!EB331 -> 250 | H4: =Nizamabad!EC331 -> 80 | I4: =SUM(E4:H4) -> 19,270
B5: KAMAREDDY | C5: ='Area Wise Total'!D19 -> 163 | D5: =Kamareddy!E173 -> 1,817 | E5: =Kamareddy!DZ173 -> 1,220 | F5: =Kamareddy!EA173 -> 2,586 | G5: =Kamareddy!EB173 -> 224 | H5: =Kamareddy!EC173 -> 18 | I5: =SUM(E5:H5) -> 4,048
B6: NIRMAL | C6: ='Area Wise Total'!D24 -> 84 | D6: =Nirmal!E92 -> 1,364 | E6: =Nirmal!DZ92 -> 1,262 | F6: =Nirmal!EA92 -> 684 | G6: =Nirmal!EB92 -> 125 | H6: =Nirmal!EC92 -> 0 | I6: =SUM(E6:H6) -> 2,071
B7: ADILABAD | C7: ='Area Wise Total'!D26 -> 82 | D7: =Adilabad!E87 -> 1,176 | E7: =Adilabad!DZ87 -> 1,835 | F7: =Adilabad!EA87 -> 552 | G7: =Adilabad!EB87 -> 141 | H7: =Adilabad!EC87 -> 3 | I7: =SUM(E7:H7) -> 2,531
B8: ASIFABAD | C8: ='Area Wise Total'!D28 -> 26 | D8: =Asifabad!E30 -> 525 | E8: =Asifabad!DZ30 -> 312 | F8: =Asifabad!EA30 -> 270 | G8: =Asifabad!EB30 -> 0 | H8: =Asifabad!EC30 -> 0 | I8: =SUM(E8:H8) -> 582
B9: TOTAL | C9: =SUM(C4:C8) -> 671 | D9: =SUM(D4:D8) -> 9,969 | E9: 14,220 | F9: 13,441 | G9: 740 | H9: =SUM(H4:H8) -> 101 | I9: 28,502
B11: DETAILS OF COLOURS
B12: YELLOW | C12: INCENERABLE WASTE
B13: RED | C13: AUTOCLAVE WASTE
B14: BLUE | C14: BROKEN GLASS, METALIC BODY IMPLANTS
B15: WHITE | C15: SHARPENS, NEEDLES, BLADES, SCALPELS, NAILS, LANCETS

Sheet Area Wise Total
B2: STATEMENT SHOWING AREA WISE RECEIVED BIO - MEDICAL WASTE
B3: NOVEMBER MONTH
B4: District | C4: Areas | D4: HCF's | E4: Beds | F4: Yellow | G4: Red | H4: Blue | I4: White
B6: Nizamabad | C6: Nizamabad | D6: =COUNTIF(Nizamabad!A4:A8,">0")+COUNTIF(Nizamabad!A12:A231,">0") -> 221 | E6: =SUM(Nizamabad!E4:E8)+SUM(Nizamabad!E12:E231) -> 3872 | F6: =SUM(Nizamabad!DZ4:DZ8)+SUM(Nizamabad!DZ12:DZ231) -> 8810 | G6: =SUM(Nizamabad!EA4:EA8)+SUM(Nizamabad!EA12:EA231) -> 8862 | H6: =SUM(Nizamabad!EB4:EB8)+SUM(Nizamabad!EB12:EB231) -> 54 | I6: =SUM(Nizamabad!EC4:EC8)+SUM(Nizamabad!EC12:EC231) -> 47
C7: Armoor | D7: =COUNTIF(Nizamabad!A233:A276,">0") -> 44 | E7: =SUM(Nizamabad!E233:E276) -> 583 | F7: =SUM(Nizamabad!DZ233:DZ276) -> 735 | G7: =SUM(Nizamabad!EA233:EA276) -> 250 | H7: =SUM(Nizamabad!EB233:EB276) -> 1 | I7: =SUM(Nizamabad!EC233:EC276) -> 0
C8: Bodhan | D8: =COUNTIF(Nizamabad!A278:A318, ">0")+COUNTIF(Nizamabad!A9,">0") -> 42 | E8: =Nizamabad!E9+SUM(Nizamabad!E278:E318) -> 478 | F8: =Nizamabad!DZ9+SUM(Nizamabad!DZ278:DZ318) -> 410 | G8: =Nizamabad!EA9+SUM(Nizamabad!EA278:EA318) -> 752 | H8: =Nizamabad!EB9+SUM(Nizamabad!EB278:EB318) -> 137 | I8: =Nizamabad!EC9+SUM(Nizamabad!EC278:EC318) -> 29
C9: Dichpally | D9: =COUNTIF(Nizamabad!A320:A323, ">0") -> 4 | E9: =SUM(Nizamabad!E320:E323) -> 80 | F9: =SUM(Nizamabad!DZ320:DZ323) -> 182 | G9: =SUM(Nizamabad!EA320:EA323) -> 161 | H9: =SUM(Nizamabad!EB320:EB323) -> 50 | I9: =SUM(Nizamabad!EC320:EC323) -> 0
C10: Varni | D10: =COUNTIF(Nizamabad!A325:A326, ">0") -> 2 | E10: =SUM(Nizamabad!E325:E326) -> 31 | F10: =SUM(Nizamabad!DZ325:DZ326) -> 143 | G10: =SUM(Nizamabad!EA325:EA326) -> 13 | H10: =SUM(Nizamabad!EB325:EB326) -> 8 | I10: =SUM(Nizamabad!EC325:EC326) -> 3
C11: Navipet | D11: =COUNTIF(Nizamabad!A328:A330,">0") -> 3 | E11: =SUM(Nizamabad!E328:E330) -> 43 | F11: =SUM(Nizamabad!DZ328:DZ330) -> 32 | G11: =SUM(Nizamabad!EA328:EA330) -> 51 | H11: =SUM(Nizamabad!EB328:EB330) -> 1 | I11: =SUM(Nizamabad!EC328:EC330) -> 0
C12: Total: | D12: =SUM(D6:D11) -> 316 | E12: 5087 | F12: 10312 | G12: 10089 | H12: 251 | I12: 79
B14: Kamareddy | C14: Kamareddy | D14: =COUNTIF(Kamareddy!A4:A5, ">0")+COUNTIF(Kamareddy!A9:A136, ">0") -> 130 | E14: =SUM(Kamareddy!E4:E5)+SUM(Kamareddy!E9:E136) -> 1292 | F14: =SUM(Kamareddy!DZ4:DZ5)+SUM(Kamareddy!DZ9:DZ136) -> 794 | G14: =SUM(Kamareddy!EA4:EA5)+SUM(Kamareddy!EA9:EA136) -> 1868 | H14: =SUM(Kamareddy!EB4:EB5)+SUM(Kamareddy!EB9:EB136) -> 149 | I14: =SUM(Kamareddy!EC4:EC5)+SUM(Kamareddy!EC9:EC136) -> 2
C15: Banswada | D15: =COUNTIF(Kamareddy!A6,">0")+COUNTIF(Kamareddy!A138:A157, ">0") -> 21 | E15: =Kamareddy!E6+SUM(Kamareddy!E138:E157) -> 278 | F15: =Kamareddy!DZ6+SUM(Kamareddy!DZ138:DZ157) -> 164 | G15: =Kamareddy!EA6+SUM(Kamareddy!EA138:EA157) -> 482 | H15: =Kamareddy!EB6+SUM(Kamareddy!EB138:EB157) -> 42 | I15: =Kamareddy!EC6+SUM(Kamareddy!EC138:EC157) -> 16
C16: Bichkunda | D16: =COUNTIF(Kamareddy!A159:A160, ">0") -> 2 | E16: =SUM(Kamareddy!E159:E160) -> 12 | F16: =SUM(Kamareddy!DZ159:DZ160) -> 2 | G16: =SUM(Kamareddy!EA159:EA160) -> 47 | H16: =SUM(Kamareddy!EB159:EB160) -> 4 | I16: =SUM(Kamareddy!EC159:EC160) -> 0
C17: Pitlam | D17: =COUNTIF(Kamareddy!A162:A165, ">0") -> 4 | E17: =SUM(Kamareddy!E162:E165) -> 40 | F17: =SUM(Kamareddy!DZ162:DZ165) -> 4 | G17: =SUM(Kamareddy!EA162:EA165) -> 100 | H17: =SUM(Kamareddy!EB162:EB165) -> 8 | I17: =SUM(Kamareddy!EC162:EC165) -> 0
C18: Yellareddy | D18: =COUNTIF(Kamareddy!A167:A172,">0") -> 6 | E18: =SUM(Kamareddy!E167:E172) -> 195 | F18: =SUM(Kamareddy!DZ167:DZ172) -> 256 | G18: =SUM(Kamareddy!EA167:EA172) -> 89 | H18: =SUM(Kamareddy!EB167:EB172) -> 21 | I18: =SUM(Kamareddy!EC167:EC172) -> 0
C19: Total: | D19: =SUM(D14:D18) -> 163 | E19: 1817 | F19: 1220 | G19: 2586 | H19: 224 | I19: 18
B21: Nirmal | C21: Nirmal | D21: =COUNTIF(Nirmal!A4,">0")+COUNTIF(Nirmal!A8:A66,">0") -> 60 | E21: =Nirmal!E4+SUM(Nirmal!E8:E66) -> 919 | F21: =Nirmal!DZ4+SUM(Nirmal!DZ8:DZ66) -> 748 | G21: =Nirmal!EA4+SUM(Nirmal!EA8:EA66) -> 471 | H21: =Nirmal!EB4+SUM(Nirmal!EB8:EB66) -> 50 | I21: =Nirmal!EC4+SUM(Nirmal!EC8:EC66) -> 0
C22: Bhainsa | D22: =COUNTIF(Nirmal!A5,">0")+COUNTIF(Nirmal!A68:A86,">0") -> 20 | E22: =Nirmal!E5+SUM(Nirmal!E68:E86) -> 374 | F22: =Nirmal!DZ5+SUM(Nirmal!DZ68:DZ86) -> 456 | G22: =Nirmal!EA5+SUM(Nirmal!EA68:EA86) -> 191 | H22: =Nirmal!EB5+SUM(Nirmal!EB68:EB86) -> 71 | I22: =Nirmal!EC5+SUM(Nirmal!EC68:EC86) -> 0
C23: Mudhole | D23: =COUNTIF(Nirmal!A88:A91, ">0") -> 4 | E23: =SUM(Nirmal!E88:E91) -> 71 | F23: =SUM(Nirmal!DZ88:DZ91) -> 58 | G23: =SUM(Nirmal!EA88:EA91) -> 22 | H23: =SUM(Nirmal!EB88:EB91) -> 4 | I23: =SUM(Nirmal!EC88:EC91) -> 0
C24: Total: | D24: =SUM(D21:D23) -> 84 | E24: 1364 | F24: 1262 | G24: 684 | H24: 125 | I24: 0
B26: Adilabad | D26: =COUNTIF(Adilabad!A4:A86,">0") -> 82 | E26: =SUM(Adilabad!E4:E86) -> 1176 | F26: =SUM(Adilabad!DZ4:DZ86) -> 1835 | G26: =SUM(Adilabad!EA4:EA86) -> 552 | H26: =SUM(Adilabad!EB4:EB86) -> 145 | I26: =SUM(Adilabad!EC4:EC86) -> 3
B28: Asifabad | D28: =COUNTIF(Asifabad!A4:A29, ">0") -> 26 | E28: =SUM(Asifabad!E4:E29) -> 525 | F28: =SUM(Asifabad!DZ4:DZ29) -> 312 | G28: =SUM(Asifabad!EA4:EA29) -> 270 | H28: =SUM(Asifabad!EB4:EB29) -> 0 | I28: =SUM(Asifabad!EC4:EC29) -> 0
B30: Grand Total | D30: =D12+D19+D24+D26+D28 -> 671 | E30: =E12+E19+E24+E26+E28 -> 9969 | F30: 14941 | G30: 14181 | H30: 745 | I30: 100

Sheet Nizamabad
A1: NOVEMBER MONTH REPORT | F1: 2021-11-01 | J1: 2021-11-02 | N1: 2021-11-03 | R1: 2021-11-04 | V1: 2021-11-05 | Z1: 2021-11-06 | AD1: 2021-11-07 | AH1: 2021-11-08 | AL1: 2021-11-09 | AP1: 2021-11-10 | AT1: 2021-11-11 | AX1: 2021-11-12 | BB1: 2021-11-13 | BF1: 2021-11-14 | BJ1: 2021-11-15 | BN1: 2021-11-16 | BR1: 2021-11-17 | BV1: 2021-11-18 | BZ1: 2021-11-19 | CD1: 2021-11-20 | CH1: 2021-11-21 | CL1: 2021-11-22 | CP1: 2021-11-23 | CT1: 2021-11-24 | CX1: 2021-11-25 | DB1: 2021-11-26 | DF1: 2021-11-27 | DJ1: 2021-11-28 | DN1: 2021-11-29 | DR1: 2021-11-30 | DV1: 2021-12-01 | DZ1: TOTAL
A2: SNO | B2: HCF ID | C2: NAME OF THE HCF | D2: ADDRESS OF THE HCFS | E2: NO.OF BEDS | F2: Yellow | G2: Red | H2: Blue | I2: White | J2: Yellow | K2: Red | L2: Blue | M2: White | N2: Yellow | O2: Red | P2: Blue | Q2: White | R2: Yellow | S2: Red | T2: Blue | U2: White | V2: Yellow | W2: Red | X2: Blue | Y2: White | Z2: Yellow | AA2: Red | AB2: Blue | AC2: White | AD2: Yellow | AE2: Red | AF2: Blue | AG2: White | AH2: Yellow | AI2: Red | AJ2: Blue | AK2: White | AL2: Yellow | AM2: Red | AN2: Blue | AO2: White | AP2: Yellow | AQ2: Red | AR2: Blue | AS2: White | AT2: Yellow | AU2: Red | AV2: Blue | AW2: White | AX2: Yellow | AY2: Red | AZ2: Blue | BA2: White | BB2: Yellow | BC2: Red | BD2: Blue | BE2: White | BF2: Yellow | BG2: Red | BH2: Blue | BI2: White | BJ2: Yellow | BK2: Red | BL2: Blue | BM2: White | BN2: Yellow | BO2: Red | BP2: Blue | BQ2: White | BR2: Yellow | BS2: Red | BT2: Blue | BU2: White | BV2: Yellow | BW2: Red | BX2: Blue | BY2: White | BZ2: Yellow | CA2: Red | CB2: Blue | CC2: White | CD2: Yellow | CE2: Red | CF2: Blue | CG2: White | CH2: Yellow | CI2: Red | CJ2: Blue | CK2: White | CL2: Yellow | CM2: Red | CN2: Blue | CO2: White | CP2: Yellow | CQ2: Red | CR2: Blue | CS2: White | CT2: Yellow | CU2: Red | CV2: Blue | CW2: White | CX2: Yellow | CY2: Red | CZ2: Blue | DA2: White | DB2: Yellow | DC2: Red | DD2: Blue | DE2: White | DF2: Yellow | DG2: Red | DH2: Blue | DI2: White | DJ2: Yellow | DK2: Red | DL2: Blue | DM2: White | DN2: Yellow | DO2: Red | DP2: Blue | DQ2: White | DR2: Yellow | DS2: Red | DT2: Blue | DU2: White | DV2: Yellow | DW2: Red | DX2: Blue | DY2: White | DZ2: Yellow | EA2: Red | EB2: Blue | EC2: White
A3: 100 AND ABOVE BEDS HCFs
A4: 1 | B4: GOVER503001TSBH00988 | C4: GOVT. DIST. HOSPITAL | D4: BESIDE NIZAMABAD BUS STATION, NIZAMABAD | E4: 500 | F4: 20 | G4: 20 | J4: 20 | K4: 20 | N4: 20 | O4: 20 | Z4: 20 | AA4: 20 | AD4: 10 | AE4: 12 | AH4: 20 | AI4: 20 | AL4: 18 | AM4: 20 | AP4: 17 | AQ4: 18 | AT4: 15 | AU4: 18 | AW4: 5 | AX4: 16 | AY4: 17 | BA4: 5 | BB4: 15 | BC4: 17 | BE4: 6 | BF4: 12 | BG4: 15 | BI4: 4 | BJ4: 16 | BK4: 18 | BN4: 16 | BO4: 18 | BR4: 15 | BS4: 17 | BV4: 14 | BW4: 17 | BZ4: 16 | CA4: 18 | CD4: 18 | CE4: 20 | CH4: 12 | CI4: 15 | CL4: 17 | CM4: 18 | CP4: 18 | CQ4: 20 | CT4: 16 | CU4: 10 | CX4: 17 | CY4: 10 | DB4: 12 | DC4: 9 | DF4: 18 | DG4: 7 | DJ4: 15 | DK4: 5 | DN4: 8 | DO4: 6 | DR4: 14 | DS4: 7 | DZ4: =F4+J4+N4+R4+V4+Z4+AD4+AH4+AL4+AP4+AT4+AX4+BB4+BF4+BJ4+BN4+BR4+BV4+BZ4+CD4+CH4+CL4+CP4+CT4+CX4+DB4+DF4+DJ4+DN4+DR4+DV4 -> 445 | EA4: =G4+K4+O4+S4+W4+AA4+AE4+AI4+AM4+AQ4+AU4+AY4+BC4+BG4+BK4+BO4+BS4+BW4+CA4+CE4+CI4+CM4+CQ4+CU4+CY4+DC4+DG4+DK4+DO4+DS4+DW4 -> 432 | EB4: =H4+L4+P4+T4+X4+AB4+AF4+AJ4+AN4+AR4+AV4+AZ4+BD4+BH4+BL4+BP4+BT4+BX4+CB4+CF4+CJ4+CN4+CR4+CV4+CZ4+DD4+DH4+DL4+DP4+DT4 -> 0 | EC4: =I4+M4+Q4+U4+Y4+AC4+AG4+AK4+AO4+AS4+AW4+BA4+BE4+BI4+BM4+BQ4+BU4+BY4+CC4+CG4+CK4+CO4+CS4+CW4+DA4+DE4+DI4+DM4+DQ4+DU4 -> 20
A5: 2 | B5: MEGHN503003TSBH00905 | C5: MEGHANA INSTITUTE OF DENTAL SCIENCE | D5: MALLARAM VILLAGE,NIZAMABAD | E5: 200 | G5: 10 | K5: 10 | O5: 20 | AA5: 20 | AE5: 10 | AI5: 20 | AM5: 8 | AQ5: 7 | AU5: 5 | AY5: 6 | BC5: 7 | BG5: 5 | BK5: 5 | BO5: 6 | BS5: 6 | BW5: 5 | CI5: 4 | DK5: 4 | DZ5: =F5+J5+N5+R5+V5+Z5+AD5+AH5+AL5+AP5+AT5+AX5+BB5+BF5+BJ5+BN5+BR5+BV5+BZ5+CD5+CH5+CL5+CP5+CT5+CX5+DB5+DF5+DJ5+DN5+DR5+DV5 -> 0 | EA5: =G5+K5+O5+S5+W5+AA5+AE5+AI5+AM5+AQ5+AU5+AY5+BC5+BG5+BK5+BO5+BS5+BW5+CA5+CE5+CI5+CM5+CQ5+CU5+CY5+DC5+DG5+DK5+DO5+DS5+DW5 -> 158 | EB5: =H5+L5+P5+T5+X5+AB5+AF5+AJ5+AN5+AR5+AV5+AZ5+BD5+BH5+BL5+BP5+BT5+BX5+CB5+CF5+CJ5+CN5+CR5+CV5+CZ5+DD5+DH5+DL5+DP5+DT5 -> 0 | EC5: =I5+M5+Q5+U5+Y5+AC5+AG5+AK5+AO5+AS5+AW5+BA5+BE5+BI5+BM5+BQ5+BU5+BY5+CC5+CG5+CK5+CO5+CS5+CW5+DA5+DE5+DI5+DM5+DQ5+DU5 -> 0
A6: 3 | B6: PRAGA503001TSBH06142 | C6: PRAGATHI HOSPITAL | D6: Dr. BHOOPATHI REDDY,HYD. ROAD, PRAGATHI NAGAR, NIZAMABAD | E6: 150 | F6: 20 | G6: 20 | J6: 20 | L6: 10 | N6: 20 | O6: 20 | V6: 20 | W6: 20 | Z6: 20 | AA6: 10 | AD6: 10 | AE6: 5 | AH6: 20 | AI6: 20 | AL6: 12 | AM6: 16 | AO6: 5 | AP6: 12 | AQ6: 16 | AT6: 10 | AU6: 12 | AX6: 18 | AY6: 12 | BB6: 10 | BC6: 13 | BF6: 8 | BG6: 10 | BJ6: 12 | BK6: 15 | BM6: 5 | BN6: 10 | BO6: 14 | BQ6: 4 | BR6: 14 | BS6: 15 | BU6: 4 | BV6: 12 | BW6: 14 | BY6: 4 | BZ6: 12 | CA6: 15 | CD6: 13 | CE6: 15 | CH6: 8 | CI6: 10 | CL6: 13 | CM6: 15 | CP6: 14 | CQ6: 15 | CT6: 9 | CU6: 14 | CX6: 13 | CY6: 5 | DB6: 11 | DC6: 7 | DF6: 16 | DG6: 5 | DJ6: 12 | DK6: 7 | DN6: 7 | DO6: 14 | DR6: 7 | DS6: 10 | DU6: 1 | DZ6: 383 | EA6: 364 | EB6: 10 | EC6: 23
A7: 4 | B7: MEDIC503001TSBH09849 | C7: MEDICOVER HOSPITAL | D7: Dr. K.V BHASKAR REDDY,YELLAMMA GUTTA X ROAD, HYD. ROAD, NIZAMABAD | E7: 100 | J7: 20 | K7: 20 | V7: 10 | W7: 20 | Z7: 20 | AA7: 20 | AD7: 10 | AE7: 10 | AH7: 20 | AI7: 20 | AL7: 14 | AM7: 15 | AP7: 12 | AQ7: 14 | AT7: 14 | AU7: 16 | AY7: 17 | BB7: 14 | BC7: 16 | BF7: 10 | BG7: 13 | BJ7: 14 | BK7: 16 | BN7: 13 | BO7: 15 | BR7: 14 | BS7: 16 | BV7: 14 | BW7: 16 | BZ7: 14 | CA7: 15 | CD7: 14 | CE7: 16 | CH7: 10 | CI7: 8 | CL7: 14 | CM7: 16 | CP7: 14 | CQ7: 16 | CT7: 10 | CU7: 10 | CX7: 10 | CY7: 9 | DB7: 7 | DC7: 9 | DF7: 10 | DG7: 10 | DJ7: 6 | DK7: 8 | DN7: 9 | DR7: 9 | DS7: 9 | DZ7: 326 | EA7: 370 | EB7: 0 | EC7: 0
A8: 5 | B8: THIRU503001TSBH09850 | C8: THIRUMALA SUPER SPECIALITY HOSPITAL, NIZAMABAD | D8: DR. S. PARAMESHWAR REDDY, NEAR BUS STAND, STATION (RP) ROAD, NIZAMABAD | E8: 100 | J8: 10 | K8: 5 | V8: 3 | W8: 3 | Z8: 10 | AA8: 10 | AD8: 5 | AE8: 5 | AH8: 20 | AI8: 20 | AL8: 4 | AM8: 5 | AP8: 3 | AQ8: 4 | AT8: 3 | AU8: 4 | AX8: 4 | AY8: 4 | BB8: 4 | BC8: 4 | BF8: 3 | BG8: 3 | BJ8: 3 | BK8: 4 | BN8: 3 | BO8: 3 | BR8: 3 | BS8: 3 | BV8: 3 | BW8: 4 | BZ8: 3 | CD8: 4 | CH8: 2 | CI8: 3 | CL8: 3 | CP8: 3 | CX8: 3 | DB8: 3 | DF8: 3 | DJ8: 2 | DN8: 3 | DR8: 3 | DZ8: 113 | EA8: 84 | EB8: 0 | EC8: 0
A9: 6 | B9: DISTR503185TSBH08531 | C9: AREA HOSPITAL, BODHAN | D9: NEAR AMBEDKAR CHOWRASTA, BODHAN | E9: 100 | G9: 6 | K9: 6 | O9: 6 | W9: 5 | AA9: 6 | AE9: 5 | AI9: 5 | AM9: 6 | AQ9: 5 | AU9: 5 | AY9: 6 | BC9: 6 | BG9: 5 | BK9: 5 | BO9: 6 | BS9: 5 | BW9: 5 | CE9: 5 | CI9: 4 | CM9: 5 | CQ9: 6 | CU9: 5 | DC9: 6 | DG9: 6 | DK9: 5 | DO9: 6 | DZ9: 0 | EA9: 141 | EB9: 0 | EC9: 0
A10: 80 TO 50 BEDS HCFs
A11: NIZAMABAD
A12: 1 | B12: PRATI503001TSBH00889 | C12: PRATHIBHA SUPER SPECIALITY HOSPITAL | D12: Dr.MOTHI LAL JADAV,HYDERABAD ROAD,NIZAMABAD | E12: 80 | J12: 20 | K12: 20 | N12: 20 | O12: 20 | V12: 30 | W12: 2 | Z12: 20 | AA12: 20 | AD12: 10 | AE12: 8 | AH12: 20 | AI12: 20 | AL12: 18 | AM12: 20 | AP12: 15 | AQ12: 18 | AT12: 15 | AU12: 18 | AX12: 14 | AY12: 15 | BB12: 15 | BC12: 17 | BF12: 12 | BG12: 13 | BJ12: 15 | BK12: 17 | BN12: 14 | BO12: 16 | BR12: 14 | BS12: 15 | BV12: 13 | BW12: 14 | BZ12: 14 | CA12: 16 | CD12: 14 | CE12: 16 | CH12: 10 | CI12: 11 | CL12: 14 | CM12: 18 | CP12: 14 | CQ12: 17 | CT12: 9 | CU12: 11 | CX12: 7 | CY12: 9 | DB12: 7 | DC12: 9 | DF12: 9 | DG12: 10 | DJ12: 5 | DK12: 7 | DN12: 7 | DO12: 9 | DR12: 9 | DS12: 9 | DZ12: 384 | EA12: 395 | EB12: 0 | EC12: 0
A13: 2 | B13: SHIVA503001TSBH00427 | C13: SHIVA SAI EMERGENCY AND MULTI SPECIALITY HOSPITAL | D13: Dr. C. VINODA,OPP: DECCAN GRAMEENA BANK, KHALEEL WADI, NIZAMABAD | E13: 53 | F13: 10 | J13: 5 | K13: 10 | N13: 5 | O13: 5 | Z13: 5 | AA13: 3 | AD13: 5 | AE13: 3 | AT13: 3 | AU13: 4 | AX13: 4 | AY13: 5 | BB13: 5 | BC13: 5 | BF13: 4 | BG13: 4 | BJ13: 3 | BK13: 4 | BN13: 4 | BO13: 5 | BR13: 4 | BS13: 5 | BV13: 5 | BW13: 5 | BZ13: 4 | CA13: 5 | CD13: 5 | CE13: 6 | CH13: 3 | CI13: 4 | CL13: 4 | CM13: 5 | CP13: 3 | CQ13: 4 | CT13: 5 | CU13: 7 | CX13: 5 | CY13: 5 | DB13: 5 | DC13: 6 | DF13: 5 | DG13: 5 | DJ13: 4 | DK13: 3 | DN13: 4 | DO13: 6 | DR13: 4 | DS13: 5 | DZ13: 113 | EA13: 119 | EB13: 0 | EC13: 0
A14: 3 | B14: BOMBA503001TSBH00885 | C14: BOMBAY NURISNG HOME | D14: Dr. T NARENDRA,YELLAMMA GUTTA X ROAD, HYD. ROAD, NIZAMABAD | E14: 50 | G14: 5 | K14: 5 | V14: 5 | Z14: 5 | AD14: 5 | AL14: 6 | AM14: 8 | AP14: 4 | AQ14: 4 | AT14: 5 | AU14: 6 | AX14: 4 | AY14: 5 | BB14: 3 | BC14: 3 | BF14: 2 | BG14: 2 | BJ14: 4 | BK14: 4 | BN14: 3 | BO14: 4 | BR14: 3 | BS14: 4 | BV14: 3 | BW14: 4 | BZ14: 3 | CA14: 4 | CD14: 3 | CE14: 4 | CH14: 3 | CI14: 3 | CL14: 3 | CM14: 4 | CP14: 4 | CQ14: 5 | CT14: 4 | CU14: 5 | CX14: 4 | CY14: 5 | DB14: 4 | DC14: 5 | DF14: 4 | DG14: 5 | DJ14: 4 | DK14: 4 | DN14: 4 | DO14: 5 | DR14: 3 | DS14: 5 | DZ14: 95 | EA14: 108 | EB14: 0 | EC14: 0
A15: 4 | B15: BRIND503001TSBH00922 | C15: BRINDAVAN HOSPITAL | D15: Dr.B.NAVEEN BHASKER, HYD ROAD,NZB | E15: 50 | F15: 10 | G15: 5 | J15: 20 | K15: 5 | N15: 20 | O15: 20 | V15: 20 | W15: 25 | Z15: 20 | AA15: 20 | AD15: 8 | AE15: 7 | AH15: 20 | AI15: 20 | AL15: 12 | AM15: 14 | AP15: 10 | AQ15: 14 | AT15: 12 | AU15: 14 | AX15: 10 | AY15: 12 | BB15: 10 | BC15: 14 | BF15: 8 | BG15: 9 | BJ15: 9 | BK15: 12 | BN15: 10 | BO15: 11 | BR15: 8 | BS15: 10 | BV15: 8 | BW15: 10 | BZ15: 8 | CA15: 10 | CD15: 8 | CE15: 10 | CH15: 7 | CI15: 8 | CL15: 8 | CM15: 10 | CP15: 8 | CQ15: 11 | CT15: 8 | CU15: 10 | CX15: 7 | CY15: 9 | DB15: 7 | DC15: 8 | DF15: 7 | DG15: 9 | DJ15: 5 | DK15: 4 | DN15: 7 | DO15: 8 | DR15: 7 | DS15: 8 | DZ15: 302 | EA15: 327 | EB15: 0 | EC15: 0
A16: 5 | B16: DREAM503001TSBH06107 | C16: DREAMLAND HOPE HOSPITAL | D16: Dr.B.KISHOR REDDY, OPP.OLD JJ HOSPITALNZB | E16: 50 | F16: 15 | G16: 15 | J16: 15 | K16: 15 | N16: 20 | O16: 20 | V16: 15 | W16: 15 | Z16: 15 | AA16: 15 | AD16: 5 | AE16: 5 | AH16: 20 | AI16: 20 | AL16: 10 | AM16: 12 | AP16: 10 | AQ16: 13 | AT16: 10 | AU16: 11 | AX16: 10 | AY16: 11 | BB16: 10 | BC16: 11 | BF16: 8 | BG16: 5 | BJ16: 8 | BK16: 10 | BN16: 9 | BO16: 10 | BR16: 11 | BS16: 12 | BV16: 8 | BW16: 10 | BZ16: 10 | CA16: 11 | CD16: 8 | CE16: 11 | CH16: 8 | CI16: 8 | CL16: 8 | CM16: 10 | CP16: 8 | CQ16: 11 | CT16: 8 | CU16: 7 | CX16: 8 | CY16: 9 | DB16: 7 | DC16: 9 | DF16: 7 | DG16: 8 | DJ16: 5 | DK16: 6 | DN16: 8 | DO16: 8 | DR16: 7 | DS16: 9 | DZ16: 291 | EA16: 317 | EB16: 0 | EC16: 0
A17: 6 | B17: GSBVM503001TSBH07045 | C17: GSBV MEMORIAL MULTI SPECIALTY HOSPITAL | D17: Dr. G MADHUSUDHAN,OPP. RAJEEVE GANDHI AUDITORUM, KHALEELWADI, NIZAMABAD | E17: 50 | F17: 15 | G17: 15 | J17: 20 | K17: 20 | N17: 20 | O17: 15 | V17: 15 | Z17: 20 | AA17: 20 | AD17: 6 | AE17: 5 | AH17: 20 | AI17: 20 | AL17: 13 | AM17: 15 | AP17: 10 | AQ17: 12 | AT17: 10 | AU17: 12 | AX17: 8 | AY17: 10 | BB17: 12 | BC17: 13 | BF17: 7 | BG17: 10 | BJ17: 18 | BK17: 11 | BN17: 10 | BO17: 12 | BR17: 11 | BS17: 12 | BV17: 8 | BW17: 10 | BZ17: 12 | CA17: 14 | CD17: 11 | CE17: 12 | CH17: 7 | CI17: 6 | CL17: 9 | CM17: 12 | CP17: 10 | CQ17: 12 | CT17: 15 | CU17: 5 | CX17: 6 | CY17: 8 | DB17: 7 | DC17: 8 | DF17: 13 | DG17: 7 | DJ17: 8 | DK17: 9 | DN17: 7 | DO17: 9 | DR17: 16 | DS17: 5 | DZ17: 344 | EA17: 319 | EB17: 0 | EC17: 0
A18: 7 | B18: HEERA503001TSBH00919 | C18: HEERA ORTHOPAEDIC NURSING HOME | D18: Dr.G.KAULAIAH, HYD ROAD, NIZAMABAD | E18: 50 | Z18: 3 | AA18: 10 | AD18: 3 | AE18: 5 | AI18: 5 | BV18: 4 | BW18: 4 | BZ18: 3 | CA18: 4 | CD18: 3 | CE18: 4 | CH18: 2 | CI18: 2 | CL18: 3 | CM18: 4 | CP18: 3 | CT18: 4 | CU18: 4 | CX18: 4 | CY18: 4 | DB18: 4 | DC18: 4 | DF18: 4 | DG18: 4 | DJ18: 4 | DK18: 4 | DN18: 3 | DO18: 4 | DR18: 4 | DS18: 4 | DZ18: 51 | EA18: 66 | EB18: 0 | EC18: 0
A19: 8 | B19: INDUR503001TSBH09851 | C19: INDUR CANCER HOSPITAL | D19: MADHAVA NAGAR, HYD ROAD, NIZAMABAD | E19: 50 | DC19: 4 | DG19: 4 | DK19: 4 | DO19: 4 | DS19: 4 | DZ19: 0 | EA19: 20 | EB19: 0 | EC19: 0
A20: 9 | B20: INDUS503001TSBH08523 | C20: INDUS SUPER SPECIALITY HOSPITAL | D20: H.NO. 5-6-192/194, SARASWATHI NAGAR, HYDERABAD ROAD, NIZAMABAD | E20: 50 | Z20: 5 | AA20: 5 | AD20: 5 | AE20: 5 | AH20: 6 | BV20: 4 | BW20: 5 | BZ20: 4 | CA20: 5 | CD20: 4 | CE20: 4 | CH20: 3 | CI20: 3 | CL20: 4 | CM20: 4 | CP20: 4 | CQ20: 4 | CT20: 3 | CU20: 5 | CX20: 5 | CY20: 5 | DB20: 5 | DC20: 5 | DF20: 5 | DG20: 5 | DJ20: 4 | DK20: 4 | DN20: 4 | DO20: 4 | DR20: 5 | DS20: 5 | DZ20: 70 | EA20: 68 | EB20: 0 | EC20: 0
A21: 10 | B21: JAYAH503001TSBH09852 | C21: JAYA HOSPITAL | D21: Dr.PREMANANDAM, KHALEEL WADA, NZB | E21: 50 | V21: 5 | W21: 10 | DZ21: 5 | EA21: 10 | EB21: 0 | EC21: 0
A22: 11 | B22: MANOR503001TSBH01042 | C22: MANORAMA SUPER SPECIALITY HOSPITAL | D22: Dr.CHANDRA SHEKAR RAO, OPP. BUSTAND, KHALEELWADI, NIZAMABAD | E22: 50 | AH22: 10 | CT22: 5 | CU22: 6 | CX22: 4 | CY22: 7 | DB22: 5 | DC22: 5 | DF22: 5 | DG22: 5 | DJ22: 4 | DK22: 3 | DN22: 4 | DO22: 4 | DR22: 4 | DS22: 5 | DZ22: 41 | EA22: 35 | EB22: 0 | EC22: 0
A23: 12 | B23: NOVAL503001TSBH08513 | C23: NOVALIFE HOSPITAL | D23: HNO:5-6-293, SARASWATHI NAGAR, NIZAMABAD. | E23: 50 | AH23: 10 | AI23: 5 | CT23: 7 | CU23: 9 | CX23: 6 | CY23: 8 | DB23: 6 | DC23: 7 | DF23: 7 | DG23: 9 | DJ23: 5 | DK23: 6 | DN23: 7 | DO23: 9 | DR23: 6 | DS23: 7 | DZ23: 54 | EA23: 60 | EB23: 0 | EC23: 0
A24: 13 | B24: RRLIF503001TSBH00887 | C24: R R LIFE LINE HOSPITAL NIZAMABAD | D24: Dr. K. RAMESH, HNO: 5-6-766/1, OPP.RED CROSS BLOOD BANK, KHALEEL WADI, NIZAMABAD | E24: 50 | G24: 5 | J24: 5 | K24: 5 | N24: 5 | O24: 5 | V24: 5 | W24: 5 | AA24: 6 | AE24: 3 | AI24: 3 | AL24: 3 | AM24: 4 | AP24: 3 | AQ24: 4 | AT24: 4 | AU24: 4 | AX24: 4 | AY24: 4 | BB24: 4 | BC24: 4 | BF24: 4 | BG24: 4 | BJ24: 4 | BK24: 4 | BN24: 4 | BO24: 4 | BR24: 4 | BS24: 4 | BV24: 4 | BW24: 4 | BZ24: 4 | CA24: 5 | CD24: 4 | CE24: 5 | CH24: 5 | CI24: 5 | CL24: 4 | CM24: 4 | CP24: 4 | CQ24: 4 | CT24: 5 | CU24: 5 | CX24: 4 | CY24: 6 | DB24: 5 | DC24: 5 | DF24: 4 | DG24: 5 | DJ24: 6 | DK24: 5 | DN24: 4 | DO24: 5 | DR24: 4 | DS24: 4 | DZ24: 106 | EA24: 130 | EB24: 0 | EC24: 0
A25: 14 | B25: SVRMU503001TSBH08033 | C25: S V R MULTI SPECIALITY HOSPITAL | D25: Dr. E. SANADHYA RANI, KHALEELWADI, NIZAMABAD | E25: 50 | F25: 6 | G25: 6 | K25: 5 | N25: 5 | O25: 5 | V25: 5 | W25: 5 | Z25: 3 | AA25: 10 | AD25: 3 | AE25: 5 | AL25: 3 | AM25: 3 | AP25: 3 | AQ25: 4 | AT25: 3 | AU25: 3 | AX25: 3 | AY25: 4 | BB25: 3 | BC25: 4 | BF25: 3 | BG25: 4 | BJ25: 3 | BK25: 3 | BN25: 3 | BO25: 4 | BR25: 3 | BS25: 3 | BV25: 3 | BW25: 3 | BZ25: 3 | CA25: 4 | CD25: 3 | CE25: 4 | CH25: 4 | CI25: 4 | CL25: 3 | CM25: 3 | CP25: 3 | CQ25: 3 | CT25: 3 | CU25: 3 | CX25: 3 | CY25: 3 | DB25: 3 | DC25: 4 | DF25: 3 | DG25: 4 | DJ25: 4 | DK25: 4 | DN25: 3 | DO25: 4 | DR25: 3 | DS25: 3 | DZ25: 90 | EA25: 114 | EB25: 0 | EC25: 0
A26: 15 | B26: SRIGU503001TSBH06796 | C26: SRI GURU RAGHAVENDRA SUNRISE HOSPITAL | D26: HNO:5-793 & 5-7-94, OPP:MUNCIPAL COMPLEX, NIZAMABAD. | E26: 50 | F26: 10 | G26: 10 | J26: 15 | K26: 10 | N26: 20 | O26: 20 | W26: 10 | Z26: 20 | AA26: 10 | AD26: 5 | AE26: 5 | AL26: 5 | AM26: 6 | AP26: 8 | AQ26: 10 | AT26: 8 | AU26: 10 | AX26: 8 | AY26: 9 | BB26: 8 | BC26: 10 | BF26: 5 | BG26: 8 | BJ26: 8 | BK26: 10 | BN26: 7 | BO26: 10 | BR26: 8 | BS26: 10 | BV26: 6 | BW26: 10 | BZ26: 8 | CA26: 10 | CD26: 8 | CE26: 11 | CH26: 7 | CI26: 5 | CL26: 8 | CM26: 11 | CP26: 9 | CQ26: 11 | CT26: 8 | CU26: 9 | CX26: 8 | CY26: 9 | DB26: 6 | DC26: 7 | DF26: 8 | DG26: 8 | DJ26: 5 | DK26: 3 | DN26: 7 | DO26: 8 | DR26: 8 | DS26: 8 | DZ26: 231 | EA26: 258 | EB26: 0 | EC26: 0
A27: 16 | B27: SRIKR503001TSBH09853 | C27: SRI KRISHNA NEURO & MULTI SPECIALITY HOSPITAL | D27: Dr. K. BALA KRISHNA REDDY, 5-6-385 & 386, YELLAMMA GUTTA X ROAD, HYD. ROAD, NIZAMABAD | E27: 50 | V27: 15 | W27: 10 | DZ27: 15 | EA27: 10 | EB27: 0 | EC27: 0
A28: 17 | B28: SRIMA503001TSBH00974 | C28: SRI MAHALAXMI CHILDRENS HOSPITAL | D28: Dr. G. HARI KRISHNA, HNO:5-7-7/1 , BESIDE NALANDA WOMENS DEGREE COLLEGE, NIZAMABAD | E28: 50 | AL28: 4 | AM28: 5 | AP28: 4 | AQ28: 4 | AT28: 3 | AU28: 4 | AX28: 3 | AY28: 4 | BB28: 4 | BC28: 4 | BF28: 4 | BG28: 4 | BJ28: 3 | BK28: 4 | BN28: 5 | BO28: 5 | BR28: 5 | BS28: 5 | BV28: 5 | BW28: 5 | BZ28: 4 | CA28: 5 | CD28: 4 | CE28: 6 | CH28: 3 | CI28: 4 | CL28: 4 | CM28: 5 | CP28: 4 | CQ28: 5 | CT28: 4 | CU28: 5 | CX28: 5 | CY28: 5 | DB28: 4 | DC28: 5 | DF28: 6 | DG28: 6 | DJ28: 5 | DK28: 5 | DN28: 5 | DO28: 5 | DR28: 4 | DS28: 6 | DZ28: 92 | EA28: 106 | EB28: 0 | EC28: 0
A29: 18 | B29: SRIVI503001TSBH06146 | C29: SRI VISHNU HOSPITAL | D29: ABOVE KOTAK MAHINDRA BANK, OPP: CENTRAL LIBRARY,NIZAMABAD | E29: 50 | N29: 15 | AA29: 10 | AE29: 5 | AL29: 10 | AM29: 12 | AP29: 10 | AQ29: 13 | AT29: 12 | AU29: 13 | AX29: 13 | AY29: 14 | BB29: 12 | BC29: 14 | BF29: 10 | BG29: 10 | BJ29: 12 | BK29: 14 | BN29: 10 | BO29: 12 | BR29: 12 | BS29: 14 | BV29: 10 | BW29: 12 | BZ29: 12 | CA29: 14 | CD29: 12 | CE29: 14 | CH29: 8 | CI29: 9 | CL29: 12 | CM29: 14 | CP29: 12 | CQ29: 14 | CT29: 10 | CU29: 11 | CX29: 8 | CY29: 9 | DB29: 8 | DC29: 9 | DF29: 8 | DG29: 9 | DJ29: 6 | DK29: 5 | DN29: 8 | DO29: 9 | DR29: 7 | DS29: 9 | DZ29: 237 | EA29: 269 | EB29: 0 | EC29: 0
A30: 19 | B30: SRINI503001TSBH06147 | C30: SRINIVAS GASTRO & LIVER CARE HOSPITAL | D30: Dr. K . CHARAN RAJ,BESIDE MRO OFFICE, OPP: DEO OFFICE AND CENTRAL LIBRARY , KHALEELWADI, NIZAMABAD | E30: 50 | F30: 5 | J30: 5 | CT30: 5 | CU30: 7 | CX30: 4 | CY30: 6 | DB30: 6 | DC30: 6 | DF30: 4 | DG30: 6 | DJ30: 7 | DK30: 3 | DN30: 8 | DO30: 8 | DR30: 4 | DS30: 6 | DZ30: 48 | EA30: 42 | EB30: 0 | EC30: 0
A31: 20 | B31: SSKSU503001TSBH00896 | C31: SSK SUPER SPECIALITY HOSPITAL | D31: H.NO. 5-6-144,DEVI THEATER X ROAD, HYDERABAD ROAD, NIZAMABAD,Nizamabad,Nizamabad South,NIZAMABAD,503001 | E31: 50 | N31: 5 | O31: 5 | V31: 3 | W31: 5 | AM31: 2 | AQ31: 3 | BJ31: 4 | BK31: 4 | BN31: 4 | BO31: 4 | BR31: 3 | BS31: 4 | BV31: 3 | BW31: 4 | BZ31: 3 | CD31: 3 | CH31: 3 | CL31: 3 | CP31: 3 | DZ31: 37 | EA31: 31 | EB31: 0 | EC31: 0
A32: 21 | B32: VIJAY503001TSBH00903 | C32: VIJAYALAKSHMI HOSPITAL | D32: H.NO. 5-6-767, NEAR RAJIV GANDHI AUDITORIUM, OPP: RED CROSS BLOOD BANK, KHALEELWADI, NIZAMABAD | E32: 50 | AI32: 3 | BJ32: 6 | BN32: 5 | BR32: 5 | BV32: 5 | BW32: 4 | BZ32: 4 | CA32: 4 | CD32: 5 | CE32: 6 | CH32: 3 | CI32: 4 | CP32: 5 | CQ32: 5 | DZ32: 38 | EA32: 26 | EB32: 0 | EC32: 0
A33: 49 TO 20 BEDS HCFs
A34: 22 | B34: ADARS503001TSBH09854 | C34: ADARSH MATERNITY NURSING HOME | D34: Dr. ANNAPURNA, H.NO.5-7-624/12, KHALEELWADI, NIZAMABAD | E34: 35 | CT34: 4 | CU34: 4 | CX34: 4 | CY34: 4 | DB34: 4 | DC34: 4 | DF34: 4 | DG34: 4 | DJ34: 3 | DK34: 3 | DN34: 4 | DO34: 4 | DR34: 4 | DS34: 4 | DZ34: 27 | EA34: 27 | EB34: 0 | EC34: 0
A35: 23 | B35: VAISH503001TSBH06135 | C35: VAISHNAVI HOSPITAL | D35: Dr.V.AKHILESH, SARASWATHI NAGAR, NIZAMABAD | E35: 35 | AA35: 10 | AE35: 5 | BJ35: 4 | BK35: 5 | BN35: 5 | BO35: 5 | BR35: 5 | BS35: 5 | BV35: 5 | BW35: 5 | CH35: 2 | DZ35: 21 | EA35: 35 | EB35: 0 | EC35: 0
A36: 24 | B36: SILVE503001TSBH08526 | C36: SILVERLINE HOSPITALS | D36: OPP: DR BHARATHI RANI HOSPITAL, SARASWATHI NAGAR, KHALEELWADI, NIZAMABAD 503001 | E36: 31 | CI36: 3 | CT36: 4 | CU36: 4 | CX36: 4 | CY36: 4 | DB36: 3 | DC36: 4 | DF36: 3 | DG36: 4 | DJ36: 4 | DK36: 3 | DN36: 4 | DO36: 4 | DR36: 3 | DS36: 4 | DZ36: 25 | EA36: 30 | EB36: 0 | EC36: 0
A37: 25 | B37: LIONS503001TSBH01124 | C37: LIONS EYE HOSPITAL | D37: OPP.RAJEEV GANDHI AUDITORIUM, KHALEEL WADI, NIZAMABAD | E37: 25 | AH37: 6 | AI37: 6 | CH37: 2 | DG37: 2 | DK37: 2 | DZ37: 8 | EA37: 10 | EB37: 0 | EC37: 0
A38: 26 | B38: RITVI503002TSBH09855 | C38: RITVIK HOSPITAL | D38: Dr. N. LAVANYA, OPP. SHESHANK HOSPITAL, OPP: BUS STAND ROAD, KHALEELWADI, NIZAMABAD | E38: 25 | J38: 5 | V38: 5 | W38: 5 | DZ38: 10 | EA38: 5 | EB38: 0 | EC38: 0
A39: 27 | B39: SAIAS503001TSBH09856 | C39: SAI ASHWINI HOSPITAL | D39: Dr. D NARAYANA RAO, KHALEELWADI, NIZAMABAD | E39: 25 | J39: 5 | V39: 3 | CH39: 2 | DZ39: 10 | EA39: 0 | EB39: 0 | EC39: 0
A40: 28 | B40: VIKRA503001TSBH09857 | C40: VIKRAM HOSPITAL | D40: Dr. VIKRAM REDDY, NEAR R.D.O OFFICE, KHALEEL WADI, NIZAMABAD | E40: 25 | J40: 6 | V40: 3 | DZ40: 9 | EA40: 0 | EB40: 0 | EC40: 0
A41: 29 | B41: ANKAM503001TSBH01037 | C41: ANKAM HOSPITAL | D41: HNO:5-7-132, KHALEEL WADI,NIZAMABAD | E41: 24 | F41: 5 | J41: 10 | N41: 10 | O41: 10 | V41: 5 | W41: 10 | Z41: 10 | AA41: 15 | AD41: 5 | AE41: 5 | AL41: 6 | AM41: 8 | AP41: 4 | AQ41: 5 | AT41: 5 | AU41: 6 | AX41: 4 | AY41: 5 | BB41: 5 | BC41: 5 | BF41: 3 | BG41: 4 | BJ41: 5 | BK41: 5 | BN41: 4 | BO41: 5 | BR41: 4 | BS41: 4 | BV41: 4 | BW41: 4 | BZ41: 4 | CA41: 4 | CD41: 4 | CE41: 6 | CH41: 4 | CI41: 4 | CL41: 4 | CM41: 5 | CP41: 4 | CQ41: 5 | CT41: 6 | CX41: 6 | CY41: 6 | DC41: 5 | DF41: 5 | DJ41: 4 | DS41: 5 | DZ41: 130 | EA41: 131 | EB41: 0 | EC41: 0
A42: 30 | B42: GANGA503001TSBH06109 | C42: GANGA SARASWATHI CHILDRENS HOSPITAL | D42: DWARAKA NAGAR, NIZAMABAD,Nizamabad,Nizamabad South,NIZAMABAD,503001 | E42: 24 | F42: 5 | J42: 5 | DZ42: 10 | EA42: 0 | EB42: 0 | EC42: 0
A43: 31 | B43: MEENA503001TSBH02590 | C43: MEENAKSHI NURSING HOME NIZAMABAD | D43: Dr. D. MEENAKSHI,BACKSIDE PRAGATHI HOSPITAL, SARASWATHI NAGAR , NIZAMABAD | E43: 24 | AH43: 10 | AI43: 10 | DZ43: 10 | EA43: 10 | EB43: 0 | EC43: 0
A44: 32 | B44: SAIAY503001TSBH06137 | C44: SAI AYUSH CHILDRENS HOSPITAL | D44: BHARATHI RANI HOSPITAL LANE, BESIDE PRAGATHI HOSPITAL, SARASWATHI NAGAR, NIZAMABAD | E44: 22 | G44: 5 | J44: 3 | N44: 5 | V44: 5 | W44: 5 | AA44: 3 | AE44: 3 | AL44: 4 | AM44: 5 | AP44: 5 | AQ44: 6 | AT44: 4 | AU44: 4 | AX44: 4 | AY44: 5 | BB44: 4 | BC44: 4 | BF44: 3 | BG44: 4 | BJ44: 4 | BK44: 4 | BN44: 4 | BO44: 5 | BR44: 4 | BS44: 5 | BV44: 4 | BW44: 4 | BZ44: 4 | CA44: 5 | CD44: 4 | CE44: 6 | CH44: 4 | CI44: 4 | CL44: 4 | CM44: 4 | CP44: 4 | CQ44: 6 | CT44: 5 | CU44: 5 | CX44: 6 | CY44: 6 | DB44: 4 | DC44: 6 | DF44: 6 | DG44: 7 | DJ44: 5 | DK44: 4 | DN44: 4 | DO44: 6 | DR44: 4 | DS44: 5 | DZ44: 107 | EA44: 126 | EB44: 0 | EC44: 0
A45: 33 | B45: GAUTH503001TSBH06152 | C45: GAUTHAM NURSING HOME | D45: OLD JJ REDDY BUILDING , KHALEELWADI, NIZAMABAD,Nizamabad,Nizamabad South,NIZAMABAD,503001 | E45: 21 | CT45: 3 | CU45: 3 | CX45: 3 | CY45: 4 | DB45: 3 | DC45: 3 | DF45: 4 | DG45: 4 | DJ45: 5 | DK45: 5 | DN45: 3 | DO45: 3 | DR45: 3 | DS45: 3 | DZ45: 24 | EA45: 25 | EB45: 0 | EC45: 0
A46: 34 | B46: NAGAR503001TSBH07036 | C46: NAGARJUNA HOSPITAL | D46: RAGHAVENDRA HOSPITAL BUILDING,KHALEELWADI,NIZAMABAD | E46: 21 | AH46: 5 | DZ46: 5 | EA46: 0 | EB46: 0 | EC46: 0
A47: 35 | B47: NARAS503001TSBH06161 | C47: NARASIMHA METERNITY CHILDRENS HOSPITAL | D47: Dr A. ARAVIND REDDY,OLD J J BUILDING, KHALEEL WADI, NIZAMABAD | E47: 21 | AH47: 5 | DZ47: 5 | EA47: 0 | EB47: 0 | EC47: 0
A48: 36 | B48: SUJAT503001TSBH09858 | C48: SUJATHA NURSING HOME | D48: Dr. Y. SAMBASHIVA RAO, KHALEELWADI, NIZAMABAD | E48: 21 | J48: 5 | V48: 3 | DZ48: 8 | EA48: 0 | EB48: 0 | EC48: 0
A49: 37 | B49: ANSHU503001TSBH08519 | C49: ANSHUL HOSPITAL | D49: Dr. JALAGAM THIRUPATHI RAO,OPP. INDIAN BANK, KHALEELWADI, NIZAMABAD | E49: 20 | DZ49: 0 | EA49: 0 | EB49: 0 | EC49: 0
A50: 38 | B50: ANUPA503001TSBH09859 | C50: ANUPAMA HOSPITAL | D50: Dr. C SOMA SEKHARA PATIL,SARASWATHI NAGAR, ROAD NO.3, NIZAMABAD | E50: 20 | V50: 5 | W50: 5 | DZ50: 5 | EA50: 5 | EB50: 0 | EC50: 0
A51: 39 | B51: CHAND503001TSBH08472 | C51: CHANDRASHILA CHILD CARE HOME | D51: Dr. P ANAND,OPP. DECCAN GRAMEENA BANK, KHALEEL WADI, NIZAMABAD | E51: 20 | F51: 5 | J51: 10 | N51: 6 | O51: 6 | W51: 5 | Z51: 5 | AA51: 5 | AD51: 3 | AE51: 3 | AL51: 3 | AM51: 4 | AP51: 5 | AQ51: 5 | AT51: 4 | AU51: 5 | AX51: 5 | AY51: 5 | BB51: 5 | BC51: 5 | BF51: 4 | BG51: 3 | BJ51: 5 | BK51: 5 | BN51: 5 | BO51: 5 | BR51: 5 | BS51: 5 | BV51: 5 | BW51: 5 | BZ51: 5 | CA51: 5 | CD51: 5 | CE51: 5 | CH51: 2 | CI51: 3 | CL51: 5 | CM51: 5 | CP51: 5 | CQ51: 5 | CT51: 5 | CU51: 5 | CX51: 5 | CY51: 5 | DB51: 5 | DC51: 5 | DF51: 5 | DG51: 5 | DJ51: 4 | DK51: 4 | DN51: 5 | DO51: 5 | DR51: 5 | DS51: 5 | DZ51: 131 | EA51: 123 | EB51: 0 | EC51: 0
A52: 40 | B52: ESIHO503001TSBH09860 | C52: ESI HOSPITAL | D52: Dr.K.RANGA SWAMY,NEAR P F OFFICE, SEETHARAM NAGAR COLONY, ANAND NAGAR, NIZAMABAD | E52: 20 | W52: 4 | DZ52: 0 | EA52: 4 | EB52: 0 | EC52: 0
A53: 41 | B53: FLOWE503001TSBH10083 | C53: FLOWER HOSPITAL | D53: NEAR LIMRA GARDEN FUNCTION HALL, QUILLA ROAD, BODHAN ROAD, NIZAMABAD | E53: 20 | DB53: 2 | DF53: 2 | DJ53: 3 | DN53: 2 | DR53: 3 | DZ53: 12 | EA53: 0 | EB53: 0 | EC53: 0
A54: 42 | B54: HARIK503001TSBH00963 | C54: HARIKA HOSPITAL | D54: Dr. D L N SWAMY,BESIDE BALAJI LAB, KHALEEL WADI , NIZAMABAD | E54: 20 | Z54: 3 | AD54: 3 | AH54: 5 | BW54: 4 | CA54: 3 | CE54: 4 | CI54: 4 | CM54: 3 | CQ54: 4 | DZ54: 11 | EA54: 22 | EB54: 0 | EC54: 0
A55: 43 | B55: HARIT503001TSBH07066 | C55: HARITHA CHILDRENS HOSPITAL | D55: Dr. P RAM MOHAN,HNO:-5-6-11, DWARAJA NAGAR , NIZAMABAD | E55: 20 | AA55: 3 | AE55: 3 | AI55: 3 | BV55: 4 | BZ55: 4 | CD55: 4 | CH55: 4 | CL55: 4 | CP55: 4 | DZ55: 24 | EA55: 9 | EB55: 0 | EC55: 0
A56: 44 | B56: HARSH503001TSBH06141 | C56: HARSHA SAI EYE HOSPTIAL | D56: Dr. D KEERTHI KUMAR,BESIDE ILD J J REDDY HOSPITAL. DWARAKA NAGAR, NIZAMABAD | E56: 20 | Z56: 5 | AD56: 3 | AH56: 3 | BV56: 4 | BZ56: 4 | CD56: 4 | CH56: 4 | CL56: 4 | CP56: 4 | DZ56: 35 | EA56: 0 | EB56: 0 | EC56: 0
A57: 45 | B57: HAYAT503001TSBH08505 | C57: HAYATT HOSPITAL | D57: OPP.BUS STAND LANE,NIZAMABD | E57: 20 | Z57: 5 | AA57: 10 | AD57: 4 | AE57: 6 | AH57: 10 | AI57: 10 | BV57: 3 | BZ57: 3 | CD57: 3 | CH57: 3 | CL57: 4 | CP57: 3 | CT57: 4 | CX57: 4 | DB57: 4 | DF57: 4 | DJ57: 3 | DN57: 3 | DR57: 4 | DZ57: 64 | EA57: 26 | EB57: 0 | EC57: 0
A58: 46 | B58: INDUR503001TSBH01025 | C58: INDUR NURSING HOME | D58: Dr. P BHARATHI RANI,SARSWATHI NAGAR, KHALEEL WADI, NIZAMABAD | E58: 20 | CT58: 5 | CU58: 5 | CX58: 4 | CY58: 4 | DB58: 5 | DC58: 6 | DF58: 4 | DG58: 5 | DJ58: 3 | DK58: 4 | DN58: 4 | DO58: 4 | DR58: 4 | DS58: 4 | DZ58: 29 | EA58: 32 | EB58: 0 | EC58: 0
A59: 47 | B59: KEERT503001TSBH09861 | C59: KEERTHI SAI NURSING HOME | D59: Dr. P PREMALATHA,KHALEEL WADI , NIZAMABAD | E59: 20 | W59: 3 | DZ59: 0 | EA59: 3 | EB59: 0 | EC59: 0
A60: 48 | B60: LATHA503001TSBH08537 | C60: LATHA NURSING HOME | D60: Dr. LATHA,HNO: 5-7-160, KHALEEL WADI, NIZAMABAD(Dr.M.BHOOMA REDDY) | E60: 20 | AA60: 3 | AE60: 3 | AI60: 4 | BV60: 4 | BZ60: 3 | CD60: 3 | CH60: 3 | CL60: 3 | CP60: 3 | CT60: 4 | CU60: 4 | CX60: 3 | CY60: 4 | DB60: 3 | DC60: 3 | DF60: 4 | DG60: 4 | DJ60: 4 | DK60: 3 | DN60: 3 | DO60: 4 | DR60: 3 | DS60: 4 | DZ60: 43 | EA60: 36 | EB60: 0 | EC60: 0
A61: 49 | B61: MAAAR503001TSBH07088 | C61: MAA AROGYA HOSPITAL | D61: KHALEELWADI,NIZAMABAD | E61: 20 | AH61: 5 | DZ61: 5 | EA61: 0 | EB61: 0 | EC61: 0
A62: 50 | B62: MAHAL503001TSBH09862 | C62: MAHALAXMI NURSING HOME | D62: Dr. SHAKUNTHALA, H.NO:5-7-76, KHALEELWADI, NIZAMABAD. | E62: 20 | V62: 5 | W62: 3 | DZ62: 5 | EA62: 3 | EB62: 0 | EC62: 0
A63: 51 | B63: MAHES503001TSBH00981 | C63: MAHESHWARI MULTI SPECIALITY HOSPITAL | D63: KHALEEL WADI , NIZAMABAD | E63: 20 | AI63: 4 | DZ63: 0 | EA63: 4 | EB63: 0 | EC63: 0
A64: 52 | B64: SRICH503001TSBH07062 | C64: SRI CHINMAYEE SUPER SPECIALITY HOSPITAL | D64: INDUR CT SCAN LANE, OPP: MEESEVA, DR. NARSING RAO (ORTHO) BUILDING, KHALEELWADI, NIZAMABAD,Nizamabad,Nizamabad South,NIZAMABAD,503001 | E64: 20 | DZ64: 0 | EA64: 0 | EB64: 0 | EC64: 0
A65: 53 | B65: SREED503224TSCL08459 | C65: SRI DATTA POLYCLINIC DIABETIES SPECIALITY CENTER | D65: Dr. K. RAJESH,OPP: R D O OFFICE, NIZAMABAD | E65: 20 | F65: 10 | J65: 10 | N65: 5 | O65: 5 | V65: 5 | W65: 5 | Z65: 5 | AA65: 3 | AD65: 2 | AE65: 3 | AM65: 2 | AQ65: 3 | AT65: 2 | AU65: 2 | AX65: 2 | AY65: 3 | BB65: 2 | BC65: 3 | BF65: 2 | BG65: 3 | BJ65: 3 | BN65: 3 | BR65: 3 | BV65: 3 | CA65: 3 | CE65: 3 | CI65: 3 | CM65: 3 | CQ65: 3 | CT65: 3 | CX65: 3 | DB65: 3 | DF65: 3 | DJ65: 4 | DN65: 3 | DR65: 3 | DZ65: 79 | EA65: 47 | EB65: 0 | EC65: 0
A66: 54 | B66: SSBAL503001TSBH06119 | C66: SS BALAJI HOSPITAL | D66: Dr. D. INDIRA, HNO: 5-6-162, BEHIND SYNDICATE BANK, OPP. KAPILA HOTEL,HYD ROAD,NZB | E66: 20 | DZ66: 0 | EA66: 0 | EB66: 0 | EC66: 0
A67: 55 | B67: SUYOG503001TSBH00908 | C67: SUYOG CHILDRENS NEONATAL HOME | D67: Dr. SURESH JAJU, HYD ROAD,NIZAMABAD | E67: 20 | DZ67: 0 | EA67: 0 | EB67: 0 | EC67: 0
A68: 56 | B68: TAKSH503001TSBH09863 | C68: TAKSH MULTI SPECIALITY HOSPITAL | D68: In lane opposite Sunflower School weekly market, Nizamabad, Telangana 503001 | E68: 20 | J68: 5 | V68: 3 | W68: 3 | DZ68: 8 | EA68: 3 | EB68: 0 | EC68: 0
A69: 57 | B69: TIRUM503001TSBH07828 | C69: THIRUMALA NURSING HOME | D69: Dr. T. JEEVAN RAO, H.NO:5-7-99, DOCTOR'S LANE, KHALEELWADI, NIZAMABAD | E69: 20 | N69: 5 | O69: 5 | DZ69: =F69+J69+N69+R69+V69+Z69+AD69+AH69+AL69+AP69+AT69+AX69+BB69+BF69+BJ69+BN69+BR69+BV69+BZ69+CD69+CH69+CL69+CP69+CT69+CX69+DB69+DF69+DJ69+DN69+DR69+DV69 -> 5 | EA69: =G69+K69+O69+S69+W69+AA69+AE69+AI69+AM69+AQ69+AU69+AY69+BC69+BG69+BK69+BO69+BS69+BW69+CA69+CE69+CI69+CM69+CQ69+CU69+CY69+DC69+DG69+DK69+DO69+DS69+DW69 -> 5 | EB69: =H69+L69+P69+T69+X69+AB69+AF69+AJ69+AN69+AR69+AV69+AZ69+BD69+BH69+BL69+BP69+BT69+BX69+CB69+CF69+CJ69+CN69+CR69+CV69+CZ69+DD69+DH69+DL69+DP69+DT69 -> 0 | EC69: =I69+M69+Q69+U69+Y69+AC69+AG69+AK69+AO69+AS69+AW69+BA69+BE69+BI69+BM69+BQ69+BU69+BY69+CC69+CG69+CK69+CO69+CS69+CW69+DA69+DE69+DI69+DM69+DQ69+DU69 -> 0
A70: 58 | B70: VASAV503001TSBH00977 | C70: VASAVI EYE HOSPITAL | D70: Dr. D. DWARAKANATH, H.NO.5-7-17, KHALELWADI, NIZAMABAD. | E70: 20 | DZ70: 0 | EA70: 0 | EB70: 0 | EC70: 0
A71: 59 | B71: VEDAN503001TSBH09864 | C71: VEDANSH HOSPITAL | D71: Behind Pragathi Hospital, Saraswathi Nagar, Nizamabad | E71: 20 | J71: 5 | V71: 5 | W71: 5 | DZ71: 10 | EA71: 5 | EB71: 0 | EC71: 0
A72: 19 TO 1 BEDS HCFs
A73: 60 | B73: SRISA503001TSBH01186 | C73: SRI SAI VENKATESHWARA HOSPITAL | D73: Dr. V. ARUNA, KHALEEL WADI , NIZAMABAD | E73: 18 | DZ73: 0 | EA73: 0 | EB73: 0 | EC73: 0
A74: 61 | B74: SWAMY503001TSBH08027 | C74: SWAMY CHILDREN'S HOSPITAL | D74: Dr. SATYAKUMAR SWAMY, HNO: 5-7-48, OPP. MODEM PUBLIC SCHOOL , KHALEELWADI, NIZAMABAD | E74: 16 | DZ74: 0 | EA74: 0 | EB74: 0 | EC74: 0
A75: 62 | B75: AASHI503001TSBH07081 | C75: AASHIRWAD HOSPITAL | D75: Dr.PRASHANT KURDUKAR, SARASWATHI NAGAR, NIZAMABAD. | E75: 15 | J75: 5 | N75: 5 | V75: 3 | W75: 3 | Z75: 3 | AA75: 3 | AD75: 3 | AE75: 3 | AL75: 5 | AM75: 5 | AP75: 4 | AQ75: 4 | AU75: 4 | AX75: 3 | AY75: 4 | BB75: 3 | BC75: 4 | BF75: 3 | BG75: 4 | BK75: 4 | BO75: 3 | BS75: 4 | BW75: 4 | DZ75: 37 | EA75: 49 | EB75: 0 | EC75: 0
A76: 63 | B76: CHAKR503001TSBH09866 | C76: CHAKRAPANI NEURO CARE HOSPITAL | D76: OPP:SANDHYA RANI HOSPITAL, BUS STAND LANE, KHALEELWADI, NIZAMABAD | E76: 15 | W76: 4 | DZ76: 0 | EA76: 4 | EB76: 0 | EC76: 0
A77: 64 | B77: CHAND503001TSBH00959 | C77: CHANDRASHEKAR ORTHOPAEDIC HOSPITAL | D77: Dr. M CHANDRA SHEKAR, OPP. BALAJI LAB, KHALEEL WADI, NIZAMABAD | E77: 15 | F77: 5 | J77: 10 | N77: 7 | O77: 6 | V77: 5 | Z77: 5 | AD77: 3 | AL77: 4 | AM77: 3 | AP77: 5 | AQ77: 6 | AT77: 4 | AU77: 5 | AX77: 5 | AY77: 5 | BB77: 5 | BC77: 5 | BF77: 3 | BG77: 4 | BJ77: 5 | BK77: 5 | BN77: 5 | BO77: 5 | BR77: 5 | BS77: 5 | BV77: 5 | BW77: 5 | BZ77: 5 | CA77: 5 | CD77: 5 | CE77: 5 | CH77: 4 | CI77: 4 | CL77: 5 | CM77: 5 | CP77: 5 | CQ77: 5 | CT77: 5 | CU77: 5 | CX77: 5 | CY77: 5 | DB77: 5 | DC77: 5 | DF77: 3 | DG77: 5 | DJ77: 4 | DK77: 4 | DN77: 5 | DO77: 5 | DR77: 5 | DS77: 5 | DZ77: 137 | EA77: 112 | EB77: 0 | EC77: 0
A78: 65 | B78: DWARA503001TSBH01041 | C78: DWARAKAMAI CHILDRENS HOSPITAL | D78: J.J.REDDY X ROAD, KHALEELWADI, NIZAMABAD. | E78: 15 | J78: 5 | N78: 6 | V78: 3 | W78: 3 | Z78: 3 | AD78: 3 | AM78: 4 | AQ78: 6 | AT78: 5 | AU78: 6 | AX78: 5 | AY78: 5 | BB78: 5 | BC78: 6 | BF78: 4 | BG78: 4 | BJ78: 5 | BK78: 5 | BN78: 4 | BO78: 6 | BR78: 5 | BS78: 5 | BV78: 5 | BW78: 5 | BZ78: 5 | CA78: 5 | CD78: 5 | CE78: 6 | CH78: 4 | CI78: 4 | CL78: 5 | CM78: 6 | CP78: 5 | CQ78: 6 | CT78: 5 | CU78: 6 | CX78: 6 | CY78: 7 | DB78: 6 | DC78: 7 | DF78: 6 | DG78: 6 | DJ78: 4 | DK78: 3 | DN78: 6 | DO78: 6 | DR78: 5 | DS78: 6 | DZ78: 120 | EA78: 123 | EB78: 0 | EC78: 0
A79: 66 | B79: KIWIS503001TSBH00969 | C79: KIWI SPECIALITY HOSPITAL | D79: Dr. D. PRATHIMA RAJ REDDY, BESIDE SYNDICATE BANK, KHALEELWADI, NIZAMABAD | E79: 15 | AA79: 5 | AE79: 2 | AI79: 5 | BV79: 4 | BW79: 5 | BZ79: 4 | CA79: 5 | CD79: 5 | CE79: 5 | CH79: 4 | CI79: 4 | CL79: 4 | CM79: 5 | CP79: 4 | CQ79: 5 | CT79: 5 | CU79: 6 | CX79: 5 | CY79: 6 | DB79: 5 | DC79: 5 | DF79: 5 | DG79: 6 | DJ79: 4 | DK79: 4 | DN79: 5 | DO79: 5 | DR79: 5 | DS79: 5 | DZ79: 59 | EA79: 78 | EB79: 0 | EC79: 0
A80: 67 | B80: M.N.R503001TSBH09867 | C80: M.N.R. HOSPITAL | D80: NEAR ARUNA HOSPITAL, KHALEELWADI, NIZAMABAD | E80: 15 | DZ80: 0 | EA80: 0 | EB80: 0 | EC80: 0
A81: 68 | B81: MANOR503001TSBH06133 | C81: MANORAMA HOSPITAL | D81: Dr. RAMA DEVI, OPP. BUSTAND, KHALEEL WADI, NIZAMABAD | E81: 15 | DZ81: 0 | EA81: 0 | EB81: 0 | EC81: 0
A82: 69 | B82: RUDRA503001TSBH10006 | C82: RUDRA SAI HOSPITAL | D82: Dr.DONTULA PRASHANTH, BESIDE DR JEEVAN RAO HOSPITAL, NEAR RAJIV GANDHI AUDITORIUM, KHALEELWADI, NIZAMABAD | E82: 15 | J82: 5 | V82: 5 | DZ82: 10 | EA82: 0 | EB82: 0 | EC82: 0
A83: 70 | B83: SAADH503001TSBH08525 | C83: SAADHYA MULTISPECIALITY HOSPITAL | D83: BEHIND BHARATHI RANI HOSPITAL, OPP: DWARAKA ENT HOSPITAL, KHALEELWADI, NIZAMABAD | E83: 15 | G83: 6 | K83: 3 | N83: 5 | O83: 5 | V83: 5 | W83: 5 | AA83: 3 | AE83: 3 | AL83: 4 | AM83: 4 | AP83: 4 | AQ83: 4 | AT83: 3 | AU83: 3 | AX83: 3 | AY83: 3 | BB83: 3 | BC83: 3 | BF83: 3 | BG83: 3 | BJ83: 3 | BK83: 4 | BN83: 3 | BO83: 4 | BR83: 3 | BS83: 4 | BV83: 3 | BW83: 3 | BZ83: 3 | CA83: 4 | CD83: 3 | CE83: 4 | CH83: 3 | CI83: 4 | CL83: 3 | CM83: 4 | CP83: 3 | CQ83: 4 | CT83: 4 | CU83: 4 | CX83: 4 | CY83: 5 | DB83: 4 | DC83: 4 | DF83: 3 | DG83: 4 | DJ83: 4 | DK83: 4 | DO83: 4 | DR83: 3 | DS83: 4 | DZ83: 79 | EA83: 109 | EB83: 0 | EC83: 0
A84: 71 | B84: SHASH503001TSBH00930 | C84: SHASHANK HOSPITAL | D84: Dr. K. MOTHILAL, OPP: BUSTAND LANE, KHALEELWADI, NIZAMABAD. | E84: 15 | F84: 10 | G84: 5 | J84: 5 | K84: 5 | N84: 5 | V84: 5 | Z84: 5 | AA84: 5 | AD84: 3 | AE84: 2 | AL84: 4 | AM84: 5 | AP84: 3 | AQ84: 4 | AT84: 3 | AU84: 4 | AX84: 3 | AY84: 4 | BB84: 3 | BC84: 4 | BF84: 3 | BG84: 4 | BJ84: 4 | BK84: 5 | BN84: 4 | BO84: 4 | BR84: 4 | BS84: 4 | BV84: 3 | BW84: 4 | BZ84: 3 | CA84: 3 | CD84: 4 | CE84: 4 | CH84: 4 | CI84: 4 | CL84: 4 | CM84: 3 | CP84: 4 | CQ84: 3 | CT84: 4 | CU84: 4 | CX84: 4 | CY84: 4 | DB84: 4 | DC84: 4 | DF84: 4 | DG84: 4 | DJ84: 4 | DK84: 4 | DN84: 4 | DO84: 4 | DR84: 4 | DS84: 4 | DZ84: 114 | EA84: 104 | EB84: 0 | EC84: 0
A85: 72 | B85: SRIHA503001TSBH00960 | C85: SRI HARSHA KIDNEY & URO CENTRE | D85: Dr. M. ANAND KUMAR, H.NO. 5-6-92, DWARAKA NAGAR, KHALEELWADI, NIZAMABAD | E85: 15 | F85: 5 | J85: 5 | N85: 5 | O85: 5 | V85: 5 | W85: 5 | Z85: 5 | AD85: 3 | AL85: 4 | AM85: 4 | AP85: 5 | AQ85: 6 | AT85: 4 | AU85: 5 | AX85: 5 | AY85: 5 | BB85: 4 | BC85: 5 | BF85: 4 | BG85: 4 | BJ85: 5 | BK85: 5 | BN85: 4 | BO85: 5 | BR85: 4 | BS85: 5 | BV85: 4 | BW85: 6 | BZ85: 4 | CA85: 5 | CD85: 5 | CE85: 5 | CH85: 3 | CI85: 4 | CL85: 3 | CM85: 4 | CP85: 5 | CQ85: 3 | CT85: 4 | CU85: 5 | CX85: 6 | CY85: 6 | DC85: 6 | DF85: 6 | DG85: 6 | DJ85: 4 | DK85: 5 | DN85: 3 | DO85: 5 | DS85: 5 | DZ85: 114 | EA85: 119 | EB85: 0 | EC85: 0
A86: 73 | B86: SRIRA503001TSBH00950 | C86: SRI RAKSHA HOSPITAL | D86: Dr. M. RAMDAS, PRAGATHI HOSPITAL BACKSIDE LANE, DWARAKA NAGAR, NIZAMABAD | E86: 15 | G86: 5 | K86: 5 | N86: 5 | Z86: 5 | AD86: 3 | AT86: 3 | AU86: 3 | AX86: 3 | AY86: 4 | BB86: 4 | BC86: 4 | BF86: 4 | BG86: 4 | BK86: 3 | BN86: 4 | BO86: 4 | BR86: 3 | BV86: 4 | BW86: 4 | CA86: 4 | CE86: 3 | CI86: 3 | CM86: 4 | CQ86: 3 | CU86: 4 | CY86: 5 | DC86: 5 | DG86: 4 | DK86: 4 | DO86: 3 | DS86: 4 | DZ86: 38 | EA86: 82 | EB86: 0 | EC86: 0
A87: 74 | B87: SRIVE503001TSBH09868 | C87: SRI VENKATESHWARA MATERNITY NURSING HOME | D87: Dr. SMT. K. PARVATHI, H.NO.9-6-795, NEAR RAJIV GANDHI AUDITORIUM, KHALEELWADI, NIZAMABAD | E87: 15 | J87: 5 | DZ87: 5 | EA87: 0 | EB87: 0 | EC87: 0
A88: 75 | B88: SWATH503001TSBH09869 | C88: SWATHI CHILDREN'S HOSPITAL | D88: Dr. M. PRABHAKAR, 5-6-241, Rd Number 1, Saraswathi Nagar, Tilak Gardens, NEAR RAJIV GANDHI AUDITORIUM, Khaleelwadi, Nizamabad. | E88: 15 | K88: 5 | W88: 3 | DZ88: 0 | EA88: 8 | EB88: 0 | EC88: 0
A89: 76 | B89: SWETH503001TSBH08530 | C89: SWETHA KIDNEY CENTRE & MATERNITY NURSING HOME | D89: Dr. K. SUJATHA, OPP: DESAI BEEDI GODOWN, HYDERABAD ROAD, NIZAMABAD | E89: 15 | F89: 6 | J89: 6 | DZ89: 12 | EA89: 0 | EB89: 0 | EC89: 0
A90: 77 | B90: VENKA503001TSBH00962 | C90: VENKAT CHILDREN'S HOSPITAL | D90: Dr .B. VENKAT, NEAR INDIAN BANK, KHALEEL WADI, NIZAMABAD | E90: 15 | BV90: 4 | BZ90: 4 | CD90: 4 | CH90: 4 | CL90: 5 | CP90: 3 | DZ90: 24 | EA90: 0 | EB90: 0 | EC90: 0
A91: 78 | B91: VENKA503001TSBH01918 | C91: VENKATA SAI NEW BORN CHILDRENS HOSPITAL | D91: ROAD NO. 3, OPP: R.D.O OFFICE, SARASWATHI NAGAR, NIZAMBAD | E91: 15 | DZ91: 0 | EA91: 0 | EB91: 0 | EC91: 0
A92: 79 | B92: PAVAN503001TSBH07053 | C92: PAVAN NEURO HOSPITAL | D92: H.NO. 5-6-92, J J REDDY HOSPITAL LINE, BESIDE TEJA HOSPITAL, DWARAKA NAGAR, KHALEELWADI, NIZAMABAD | E92: 13 | AH92: 4 | DZ92: 4 | EA92: 0 | EB92: 0 | EC92: 0
A93: 80 | B93: DEVIH503001TSBH09870 | C93: DEVI HOSPITAL | D93: H.No. 5-7-146, Near Maitri Hospital, Ganga Lab Lane, Khaleelwadi, Nizamabad | E93: 12 | AI93: 2 | BO93: 2 | DZ93: 0 | EA93: 4 | EB93: 0 | EC93: 0
A94: 81 | B94: RKLAX503001TSBH09882 | C94: RK LAXMI CHILDRENS HOSPITAL | D94: Dr.DEEPAK RATHOD,Building No N12A, Opposite Chakrapani Hospital, Bank Of India Road, Khaleelwadi, Nizamabad | E94: 12 | DZ94: 0 | EA94: 0 | EB94: 0 | EC94: 0
A95: 82 | B95: SRISU503001TSBH09871 | C95: SRI SURYA HOSPITAL | D95: Dr. RAMU KAMUTALA, BESIDE GOUTHAMI DEGREE COLLEGE, KHALEELWADI, NIZAMABAD | E95: 12 | J95: 3 | BO95: 3 | DZ95: 3 | EA95: 3 | EB95: 0 | EC95: 0
A96: 83 | B96: SUMAN503001TSBH09872 | C96: SUMANGALI HOSPITAL | D96: Dr. ARUN KUMAR,OPP. DIST. COURT, KHALEEL WADI , NIZAMABAD | E96: 12 | J96: 7 | V96: 3 | DZ96: 10 | EA96: 0 | EB96: 0 | EC96: 0
A97: 84 | B97: AAYUK503001TSBH09873 | C97: AAYUKSHA HOSPITAL | D97: ROAD NO.1, OPP: RDO OFFICE, DWARAKA NAGAR, KHALEELWADI, NIZAMABAD | E97: 10 | V97: 2 | DZ97: 2 | EA97: 0 | EB97: 0 | EC97: 0
A98: 85 | B98: APOOR503001TSBH07054 | C98: APOORVA NETHRALAYA & DIAGNOSTIC CENTER | D98: Dr. G. CHANDRA KANT, H.NO. 5-7-7/8, NEAR NALANDA WOMEN'S COLLEGE, KHALEELWADI, NIZAMABAD | E98: 10 | F98: 5 | J98: 5 | N98: 5 | O98: 4 | V98: 3 | AL98: 4 | AM98: 5 | AP98: 4 | AQ98: 4 | AT98: 4 | AU98: 4 | AX98: 4 | AY98: 4 | BB98: 4 | BC98: 4 | BF98: 4 | BG98: 4 | BJ98: 4 | BK98: 5 | BN98: 4 | BR98: 4 | BS98: 4 | BV98: 4 | DZ98: 58 | EA98: 38 | EB98: 0 | EC98: 0
A99: 86 | B99: DEEPA503001TSBH09874 | C99: DEEPA HOSPITAL | D99: Dr. L RAMULU, 5-4-36/16, beside BJP OffIce, BESIDE TEJA HOSPITAL ,DWARAKA NAGAR , NIZAMABAD | E99: 10 | DZ99: 0 | EA99: 0 | EB99: 0 | EC99: 0
A100: 87 | B100: GANGA503001TSBH09875 | C100: GANGA BHAVANI HOSPITAL | D100: Dr.D. GOVIND, ROAD No.1, SARASWATHI NAGAR,NIZAMABAD | E100: 10 | DZ100: 0 | EA100: 0 | EB100: 0 | EC100: 0
A101: 88 | B101: GAYAT503001TSBH00861 | C101: GAYATRI HOSPITAL | D101: Dr SUMALATHA HOSPITAL BUILDING, NEAR J.J. REDDY HOSPITAL, DWARAKA NAGAR, 1ST LANE, NIZAMABAD,Nizamabad,Nizamabad South,NIZAMABAD,503001 | E101: 10 | F101: 6 | J101: 6 | O101: 5 | BJ101: 4 | BN101: 4 | BR101: 4 | BV101: 4 | BZ101: 3 | CA101: 4 | CD101: 4 | CE101: 4 | CH101: 4 | CI101: 4 | CP101: 3 | CQ101: 4 | DZ101: 42 | EA101: 21 | EB101: 0 | EC101: 0
A102: 89 | B102: GOUTH503001TSBH01116 | C102: GOUTHAMI HOSPITAL | D102: Dr.B. JYOTHI RANI, KHALEELWADI, NIZAMABAD | E102: 10 | AL102: 3 | AM102: 3 | AP102: 4 | AQ102: 4 | AT102: 3 | AU102: 4 | AX102: 3 | AY102: 3 | BB102: 3 | BC102: 4 | BF102: 3 | BG102: 4 | BJ102: 3 | BK102: 4 | BN102: 3 | BO102: 4 | BR102: 3 | BS102: 3 | BV102: 3 | BW102: 4 | BZ102: 3 | CA102: 4 | CD102: 3 | CE102: 3 | CH102: 3 | CI102: 3 | CL102: 3 | CM102: 4 | CP102: 3 | CQ102: 4 | CT102: 4 | CU102: 4 | CX102: 4 | CY102: 5 | DB102: 4 | DC102: 4 | DF102: 4 | DG102: 4 | DJ102: 3 | DK102: 4 | DN102: 3 | DO102: 3 | DR102: 3 | DS102: 4 | DZ102: 71 | EA102: 83 | EB102: 0 | EC102: 0
A103: 90 | B103: INDUR503001TSBH07056 | C103: INDUR CHILDRENS HOSPITAL | D103: HNO:5-6-809, KHALEELWADI, NIZAMABAD | E103: 10 | Z103: 5 | AA103: 5 | AD103: 3 | AE103: 2 | AH103: 5 | AI103: 5 | BV103: 4 | BW103: 3 | BZ103: 3 | CA103: 4 | CD103: 4 | CE103: 4 | CH103: 4 | CI103: 4 | CL103: 4 | CM103: 3 | CP103: 4 | CQ103: 3 | CT103: 4 | CU103: 4 | CX103: 5 | CY103: 5 | DB103: 3 | DC103: 4 | DF103: 5 | DG103: 5 | DJ103: 4 | DK103: 4 | DN103: 4 | DO103: 4 | DR103: 4 | DS103: 4 | DZ103: 65 | EA103: 63 | EB103: 0 | EC103: 0
A104: 91 | B104: KGSCH503001TSBH09876 | C104: KGS CHILDRENS HOSPITAL | D104: Dr. K GOPAL SINGH, 5-7-204, BESIDE TIRUMALA HOSPITAL, Tilak Gardens, KHALLELWADI, NIZAMABAD | E104: 10 | DZ104: 0 | EA104: 0 | EB104: 0 | EC104: 0
A105: 92 | B105: KAVIT503001TSBH09877 | C105: KAVITHA CHILDRENS HOSPITAL | D105: Dr.N. RAMCHANDER, Rd No. 4, Opp: Dr. Bharathirani Hospital, Saraswathi Nagar, NIZAMABAD. | E105: 10 | DZ105: 0 | EA105: 0 | EB105: 0 | EC105: 0
A106: 93 | B106: KIDSC503001TSBH09878 | C106: KIDS CARE EMERGENCY CHILDRENS HOSPITAL | D106: Dr. J. RAMESH, OPP.TELANGANA GRAMEENA BANK, DWARAKANAGAR, KHALEELWADI, NIZAMABAD | E106: 10 | DZ106: 0 | EA106: 0 | EB106: 0 | EC106: 0
A107: 94 | B107: NEOLI503001TSBH00907 | C107: NEOLIFE CHILDREN'S HOSPITAL | D107: KHALEELWADI, NIZAMABAD | E107: 10 | AH107: 5 | DZ107: 5 | EA107: 0 | EB107: 0 | EC107: 0
A108: 95 | B108: NILOU503001TSBH08492 | C108: NILOUFER CHILD CARE HOSPITAL | D108: Dr. MOHD JUNED AHMED, J.J.REDDY X ROAD, KHALEELWADI, NIZAMABAD. | E108: 10 | AI108: 5 | DZ108: 0 | EA108: 5 | EB108: 0 | EC108: 0
A109: 96 | B109: NIZAM503001TSBH09879 | C109: NIZAMABAD NEURO SUPER SPECIALITY HOSPITAL | D109: Dr. V. CHANDRA SEKHAR REDDY, HNO: 5-7-35, KHALEELWADI, NIZAMABAD. | E109: 10 | DZ109: 0 | EA109: 0 | EB109: 0 | EC109: 0
A110: 97 | B110: PADMA503001TSBH01076 | C110: PADMAVATHI GASTRO HOSPITAL | D110: Dr. SURENDAR REDDY, HNO:5-6-806 & 807, OPP. RAJIVGANDHI AUDITORIUM, KHALEELWADI, NZB | E110: 10 | AH110: 4 | DZ110: 4 | EA110: 0 | EB110: 0 | EC110: 0
A111: 98 | B111: RAINB503001TSBH01029 | C111: RAINBOW CHILDRENS HOSPITAL | D111: Dr.G.SAI PRASAD,HNO:5-6-809,KHALEEL WADI, NIZAMABAD. | E111: 10 | F111: 5 | J111: 10 | N111: 5 | O111: 5 | W111: 5 | AL111: 3 | AM111: 4 | AP111: 4 | AQ111: 6 | AT111: 3 | AU111: 4 | AX111: 4 | AY111: 4 | BB111: 3 | BC111: 4 | BF111: 3 | BG111: 3 | BJ111: 3 | BK111: 4 | BN111: 3 | BO111: 3 | BR111: 3 | BS111: 4 | BV111: 4 | BW111: 4 | BZ111: 3 | CA111: 4 | CD111: 3 | CE111: 4 | CH111: 3 | CI111: 4 | CL111: 4 | CM111: 4 | CP111: 3 | CQ111: 3 | CT111: 3 | CU111: 4 | CY111: 4 | DB111: 5 | DC111: 5 | DF111: 4 | DG111: 5 | DJ111: 3 | DK111: 3 | DN111: 4 | DO111: 5 | DR111: 3 | DS111: 4 | DZ111: 91 | EA111: 99 | EB111: 0 | EC111: 0
A112: 99 | B112: REFRA503001TSBH00972 | C112: REFRACTO EYE HOSPITAL | D112: DR. PRADEEP KUMAR BODDU, BESIDE THRIMURTHY ENTERPRISE, VINAYAK NAGAR, NIZAMABAD | E112: 10 | G112: 5 | K112: 5 | N112: 5 | O112: 5 | V112: 3 | W112: 15 | AA112: 3 | AE112: 3 | AL112: 2 | AP112: 3 | BK112: 3 | BO112: 3 | BS112: 3 | BW112: 3 | BZ112: 3 | CD112: 3 | CH112: 3 | CL112: 3 | CP112: 3 | CT112: 3 | CX112: 3 | DB112: 3 | DF112: 3 | DJ112: 3 | DN112: 3 | DR112: 3 | DZ112: 49 | EA112: 48 | EB112: 0 | EC112: 0
A113: 100 | B113: RUKMI503001TSBH09880 | C113: RUKMINI HOSPITAL | D113: Dr B. GAVASKAR, BESIDE BHARATHI RANI HOSPITAL, KHALEEELWADI, NIZAMABAD | E113: 10 | J113: 5 | V113: 5 | DZ113: 10 | EA113: 0 | EB113: 0 | EC113: 0
A114: 101 | B114: SHYLA503001TSBH06134 | C114: SHYLAJA HOSPITAL | D114: DR. T SHYLAJA, BESIDE POCHAMMA TEMPLE, POCHAMMMAGALLI, NIZAMBAD | E114: 10 | F114: 12 | G114: 11 | J114: 5 | N114: 3 | O114: 3 | V114: 11 | W114: 5 | Z114: 5 | AD114: 3 | AL114: 3 | AM114: 4 | AP114: 4 | AQ114: 4 | AT114: 4 | AU114: 4 | AX114: 4 | AY114: 4 | BB114: 4 | BC114: 4 | BF114: 4 | BG114: 4 | BJ114: 4 | BK114: 4 | BN114: 4 | BO114: 4 | BR114: 4 | BS114: 4 | BV114: 4 | BW114: 4 | BZ114: 4 | CA114: 4 | CD114: 4 | CE114: 5 | CH114: 4 | CI114: 3 | CL114: 3 | CM114: 4 | CP114: 3 | CQ114: 4 | CT114: 5 | CU114: 5 | CX114: 4 | CY114: 4 | DC114: 4 | DF114: 6 | DJ114: 4 | DN114: 4 | DO114: 4 | DZ114: 119 | EA114: 96 | EB114: 0 | EC114: 0
A115: 102 | B115: SIDDI503001TSBH00928 | C115: SIDDIVINAYAKA HOSPITAL FOR CHILDREN | D115: Dr. AJJA SREENIVAS,POCHAMMA GALLI, BESIDE HOPE HOSPITAL LANE, NIZAMABAD | E115: 10 | F115: 6 | J115: 6 | N115: 5 | O115: 5 | W115: 5 | Z115: 5 | AD115: 3 | AL115: 5 | AM115: 6 | AP115: 3 | AQ115: 4 | AT115: 4 | AU115: 5 | AX115: 4 | AY115: 4 | BB115: 4 | BC115: 4 | BF115: 4 | BG115: 4 | BJ115: 4 | BK115: 4 | BN115: 4 | BO115: 5 | BR115: 4 | BS115: 5 | BV115: 4 | BW115: 4 | BZ115: 4 | CA115: 5 | CD115: 4 | CE115: 5 | CH115: 4 | CI115: 3 | CL115: 4 | CM115: 4 | CT115: 5 | CX115: 5 | DR115: 4 | DZ115: 95 | EA115: 72 | EB115: 0 | EC115: 0
A116: 103 | B116: SRIBA503001TSBH08029 | C116: SRI BALAJI HOSPITAL | D116: Dr. M. VENKATARAMANA,NEAR MEESEVA,KHALEEL WADI, NIZAMABAD | E116: 10 | F116: 5 | J116: 5 | N116: 5 | O116: 5 | W116: 3 | AL116: 3 | AM116: 3 | AO116: 1 | AP116: 3 | AQ116: 3 | AT116: 3 | AU116: 3 | AX116: 3 | AY116: 3 | BB116: 3 | BC116: 4 | BF116: 3 | BG116: 4 | BJ116: 3 | BK116: 3 | BN116: 3 | BO116: 4 | BR116: 3 | BS116: 4 | BV116: 3 | BW116: 3 | BZ116: 4 | CA116: 4 | CD116: 4 | CE116: 4 | CH116: 4 | CI116: 3 | CL116: 4 | CM116: 4 | CP116: 3 | CQ116: 5 | CT116: 3 | CU116: 4 | CY116: 3 | DB116: 3 | DC116: 3 | DN116: 3 | DO116: 4 | DR116: 4 | DS116: 3 | DZ116: 77 | EA116: 79 | EB116: 0 | EC116: 1
A117: 104 | B117: SRILA503001TSBH08470 | C117: SRI LAXMI CHILDRENS HOSPITAL | D117: Dr. CH. SRIKANTH, H.NO: 5-7-149. 1st FLOOR, OPP. PANJAB NATIONAL BANK, KHALEEL WADI, NIZAMABAD | E117: 10 | J117: 5 | N117: 5 | O117: 5 | V117: 3 | W117: 3 | Z117: 3 | AA117: 5 | AD117: 3 | AE117: 4 | AL117: 4 | AM117: 4 | AP117: 3 | AQ117: 4 | AT117: 3 | AU117: 3 | AX117: 4 | AY117: 4 | BB117: 4 | BC117: 4 | BF117: 4 | BG117: 4 | BJ117: 4 | BK117: 5 | BN117: 4 | BO117: 5 | BR117: 4 | BS117: 5 | BV117: 3 | BW117: 4 | BZ117: 4 | CA117: 4 | CD117: 4 | CE117: 5 | CH117: 4 | CI117: 2 | CL117: 4 | CM117: 5 | CP117: 6 | CQ117: 5 | CU117: 5 | CY117: 4 | DB117: 5 | DC117: 5 | DF117: 5 | DG117: 5 | DJ117: 4 | DK117: 5 | DN117: 5 | DO117: 6 | DR117: 4 | DS117: 4 | DZ117: 101 | EA117: 114 | EB117: 0 | EC117: 0
A118: 105 | B118: SRIMA503001TSBH07043 | C118: SRI MAITHRI HOSPITAL | D118: Dr. C HARI PRASAD RAO, KHALEEL WADI, NIZAMABAD | E118: 10 | F118: 4 | J118: 3 | N118: 5 | O118: 5 | V118: 3 | W118: 5 | AA118: 3 | AE118: 3 | AT118: 4 | AU118: 4 | AX118: 4 | AY118: 4 | BB118: 4 | BC118: 4 | BF118: 4 | BG118: 4 | BJ118: 6 | BK118: 6 | BN118: 4 | BO118: 4 | BR118: 3 | BS118: 4 | BV118: 3 | BW118: 4 | BZ118: 3 | CA118: 4 | CD118: 4 | CE118: 4 | CH118: 4 | CI118: 3 | CL118: 4 | CM118: 4 | CP118: 4 | CQ118: 4 | CT118: 4 | CU118: 5 | CX118: 4 | CY118: 4 | DB118: 3 | DC118: 4 | DF118: 4 | DG118: 4 | DJ118: 4 | DK118: 4 | DN118: 5 | DO118: 6 | DR118: 4 | DS118: 5 | DZ118: 94 | EA118: 101 | EB118: 0 | EC118: 0
A119: 106 | B119: SRIRA503001TSBH08527 | C119: SRI RAGHAVENDRA KIDNEY URO CARE CENTER | D119: Dr. A. RAGHAVENDER, D.NO:5-7-34, OPP. Dr. JAYANI NEHRU, BEHIND SSR JUNIOR COLLEGE, NIZAMABAD | E119: 10 | F119: 6 | J119: 5 | N119: 5 | O119: 5 | Z119: 5 | AA119: 3 | AD119: 4 | AE119: 3 | AL119: 4 | AM119: 4 | AP119: 4 | AQ119: 4 | AT119: 3 | AU119: 4 | AX119: 4 | AY119: 4 | BB119: 4 | BC119: 4 | BF119: 4 | BG119: 4 | BJ119: 3 | BK119: 4 | BN119: 4 | BO119: 4 | BR119: 4 | BS119: 4 | BV119: 4 | BW119: 4 | BZ119: 3 | CA119: 4 | CD119: 4 | CE119: 4 | CH119: 4 | CI119: 4 | CL119: 3 | CM119: 4 | CP119: 4 | CQ119: 4 | CT119: 3 | CU119: 5 | CY119: 6 | DB119: 5 | DC119: 5 | DF119: 4 | DG119: 4 | DJ119: 3 | DK119: 4 | DN119: 4 | DO119: 5 | DR119: 3 | DS119: 4 | DZ119: 103 | EA119: 104 | EB119: 0 | EC119: 0
A120: 107 | B120: SRIRA503001TSBH09883 | C120: SRI RAMA NETRA VAIDYASHALA | D120: P.B. KRISHNA MURTHY, Opp. Dr. Jhansi Bala Dawakhana, Tilak Gardens, Khaleelwadi, Nizamabad | E120: 10 | V120: 3 | DZ120: 3 | EA120: 0 | EB120: 0 | EC120: 0
A121: 108 | B121: SRISA503001TSBH09884 | C121: SRI SAI HOSPITAL | D121: Dr.KAVITHA REDDY, RAVINDER REDDY, WEEKLY MARKET, OPP: LANE TO SUNFLOWER HIGH SCHOOL, NIZAMABAD | E121: 10 | DZ121: 0 | EA121: 0 | EB121: 0 | EC121: 0
A122: 109 | B122: SRISA503001TSBH06121 | C122: SRI SAI VIMALA HOSPITAL | D122: OPP: KRISHNAMURTHY EYE HOSPITAL, KHALEELWADI, NIZAMABAD | E122: 10 | DZ122: 0 | EA122: 0 | EB122: 0 | EC122: 0
A123: 110 | B123: SRISA503001TSBH09885 | C123: SRI SATHYA SAI HOSPITAL | D123: Dr. R. VIDYA SAGAR, R. SHANTI SAGAR, HNo: 5-7-16, KHALEELWADI, NIZAMABAD. | E123: 10 | J123: 3 | DZ123: 3 | EA123: 0 | EB123: 0 | EC123: 0
A124: 111 | B124: SRIHI503001TSBH07052 | C124: SRIHITHA HOSPITAL | D124: DR. SUBHASH ENT BUILDING, OPP: DR. ARUNA HOSPITAL, KHALEELWADI, NIZAMABAD | E124: 10 | DZ124: 0 | EA124: 0 | EB124: 0 | EC124: 0
A125: 112 | B125: SUKHI503001TSBH09881 | C125: SUKHIBHAVA HOSPITAL | D125: ROAD No.1, Dwaraka Nagar, Pochammagalli, Khaleelwadi, Nizamabad | E125: 10 | J125: 2 | K125: 20 | W125: 10 | DZ125: 2 | EA125: 30 | EB125: 0 | EC125: 0
A126: 113 | B126: TEJAH503001TSBH08453 | C126: TEJA HOSPITAL | D126: Dr. K.N. MALLESHWARI, DWARAKA NAGAR, OPP. LANE TO AXIS BANK, KHALEELWADI, NIZAMABAD | E126: 10 | F126: 5 | J126: 5 | Z126: 4 | AD126: 2 | DZ126: 16 | EA126: 0 | EB126: 0 | EC126: 0
A127: 114 | B127: VIJAY503001TSBH07829 | C127: VIJAYA HOSPITAL & METERNITY HOME | D127: Dr. SURESH KUMAR VOJJELA,OPP. RAJEEV GANDHI AUDITORIUM, KHALEELWADI, NIZAMABAD | E127: 10 | AA127: 3 | AE127: 3 | DZ127: 0 | EA127: 6 | EB127: 0 | EC127: 0
A128: 115 | B128: CITIC503001TSBH09886 | C128: CITICARE CHILDREN'S HOSPITAL | D128: NEAR SBI BANK, QILLA ROAD, NIZAMABAD | E128: 10 | DC128: 2 | DG128: 1 | DK128: 1 | DO128: 1 | DS128: 1 | DZ128: 0 | EA128: 6 | EB128: 0 | EC128: 0
A129: 116 | B129: ESHWA503001TSBH09887 | C129: ESHWAR GASTRO & LIVER SUPERSPECIALITY HOSPITAL | D129: Dr. ESHWAR CHEGANTI, J P SHARMA BUILDING, BESIDE CORPORATION BANK, Near Mudiraj Hanuman Temple, Pochamagalli, Tilak Gardens, Khaleelwadi, NIZAMABAD | E129: 9 | DZ129: 0 | EA129: 0 | EB129: 0 | EC129: 0
A130: 117 | B130: KAMAL503001TSBH08476 | C130: KAMALA EYE HOSPITAL | D130: OLD DR. PG. KRISHNAMURTHY EYE HOSPITAL, UNSARI BUILDING, BESIDE GOUTHAMI DEGREE COLLEGE, KHALEELWADI, NIZAMABAD. | E130: 9 | O130: 3 | DZ130: 0 | EA130: 3 | EB130: 0 | EC130: 0
A131: 118 | B131: SURYA503001TSBH01039 | C131: SURYA NEURO - PSYCHIATRY CENTRE | D131: H.NO. 5-7-77 & 78, KHALEELWADI, NIZAMABAD | E131: 9 | BK131: 3 | BS131: 4 | BW131: 4 | CA131: 4 | CE131: 4 | CI131: 4 | CM131: 3 | CU131: 3 | CY131: 4 | DC131: 4 | DG131: 4 | DK131: 4 | DO131: 3 | DS131: 4 | DZ131: 0 | EA131: 52 | EB131: 0 | EC131: 0
A132: 119 | B132: BALVE503001TSBH08535 | C132: BALVEER HOSPITAL | D132: KRITI HOSPITAL,NIZAMABAD | E132: 8 | F132: 4 | J132: 3 | N132: 3 | O132: 3 | V132: 3 | Z132: 3 | AD132: 2 | AL132: 3 | AM132: 3 | AP132: 3 | AQ132: 3 | AT132: 3 | AU132: 3 | AX132: 3 | AY132: 3 | BB132: 3 | BC132: 3 | BF132: 3 | BG132: 3 | BJ132: 3 | BO132: 3 | BS132: 3 | BV132: 3 | CA132: 3 | CM132: 4 | CQ132: 3 | DZ132: 42 | EA132: 37 | EB132: 0 | EC132: 0
A133: 120 | B133: GOURI503001TSBH08460 | C133: GOURI HOSPITAL | D133: BESIDE POCHAMMA TEMPLE, NEAR HOPE HOSPITAL, DWARAKA NAGAR, NIZAMABAD | E133: 8 | AI133: 4 | BZ133: 4 | CA133: 4 | CD133: 4 | CH133: 4 | CL133: 4 | CM133: 3 | CP133: 4 | CQ133: 4 | DZ133: =F133+J133+N133+R133+V133+Z133+AD133+AH133+AL133+AP133+AT133+AX133+BB133+BF133+BJ133+BN133+BR133+BV133+BZ133+CD133+CH133+CL133+CP133+CT133+CX133+DB133+DF133+DJ133+DN133+DR133+DV133 -> 20 | EA133: =G133+K133+O133+S133+W133+AA133+AE133+AI133+AM133+AQ133+AU133+AY133+BC133+BG133+BK133+BO133+BS133+BW133+CA133+CE133+CI133+CM133+CQ133+CU133+CY133+DC133+DG133+DK133+DO133+DS133+DW133 -> 15 | EB133: =H133+L133+P133+T133+X133+AB133+AF133+AJ133+AN133+AR133+AV133+AZ133+BD133+BH133+BL133+BP133+BT133+BX133+CB133+CF133+CJ133+CN133+CR133+CV133+CZ133+DD133+DH133+DL133+DP133+DT133 -> 0 | EC133: =I133+M133+Q133+U133+Y133+AC133+AG133+AK133+AO133+AS133+AW133+BA133+BE133+BI133+BM133+BQ133+BU133+BY133+CC133+CG133+CK133+CO133+CS133+CW133+DA133+DE133+DI133+DM133+DQ133+DU133 -> 0
A134: 121 | B134: GUPTA503001TSBH07082 | C134: DR. GUPTAS ENT NURSING HOME | D134: Dr. VINOD PAWAR GUPTA,OPP.R D O OFFICE, ROAD NO.3, SARSWATHI NAGAR,NIZAMABAD | E134: 6 | F134: 6 | J134: 5 | N134: 5 | O134: 4 | V134: 3 | Z134: 3 | AD134: 2 | AH134: 2 | AL134: 3 | AM134: 3 | AP134: 4 | AQ134: 4 | AT134: 3 | AU134: 3 | AX134: 3 | AY134: 3 | BB134: 3 | BC134: 4 | BF134: 3 | BG134: 4 | BJ134: 3 | BK134: 3 | BN134: 3 | BO134: 4 | BR134: 4 | BS134: 5 | BV134: 3 | BW134: 4 | BZ134: 3 | CA134: 4 | CD134: 3 | CE134: 4 | CH134: 3 | CI134: 4 | CL134: 4 | CM134: 3 | CP134: 3 | CQ134: 3 | CU134: 3 | CX134: 4 | CY134: 4 | DB134: 4 | DC134: 4 | DF134: 3 | DG134: 5 | DJ134: 3 | DK134: 4 | DN134: 3 | DO134: 4 | DS134: 4 | DZ134: 91 | EA134: 87 | EB134: 0 | EC134: 0
A135: 122 | B135: HASIN503001TSBH08450 | C135: HASINI ENT NURSING HOME | D135: Dr. M SRIKANTH REDDY, OPP. BUS STAND LANE, KHALEELWADI, NIZAMABAD | E135: 6 | AH135: 3 | BW135: 4 | CA135: 3 | CE135: 3 | CI135: 3 | CM135: 3 | DZ135: 3 | EA135: 16 | EB135: 0 | EC135: 0
A136: 123 | B136: INDUR503001TSBH09888 | C136: INDUR NEURO PSYCHIATRIC HOSPITAL | D136: Dr. A VISHAL, RAJEEV GANDHI AUDITORIUM LANE, KHALEEL WADI, NIZAMABAD | E136: 6 | DZ136: 0 | EA136: 0 | EB136: 0 | EC136: 0
A137: 124 | C137: PRIMARY HEALTH CENTRE, INDALWAI | D137: INDALWAI VILLAGE, NIZAMABAD | E137: 6 | DZ137: 0 | EA137: 0 | EB137: 0 | EC137: 0
A138: 125 | B138: SRIVE503001TSBH09889 | C138: SRI VENKATESHWARA SPECIALITY HOSPITAL | D138: Dr. RAJKAMAL, PRAGATHI NAGAR, BEHIND PRAGATHI HOSPITAL, NIZAMABAD. | E138: 6 | J138: 5 | V138: 3 | AR138: 2 | CL138: 2 | DZ138: 10 | EA138: 0 | EB138: 2 | EC138: 0
A139: 126 | B139: WISHF503001TSBH08479 | C139: WISH FERTILITY NURSING HOME | D139: DWARAKA NAGAR, NIZAMABAD | E139: 6 | AA139: 3 | AE139: 1 | DZ139: 0 | EA139: 4 | EB139: 0 | EC139: 0
A140: 127 | B140: AYYAP503001TSBH08484 | C140: AYYAPPA DIAGNOSTICS AND EYE HOSPITAL | D140: HNO:5-6-6, POCHAMMA GALLI ,NIZAMABAD | E140: 5 | G140: 4 | J140: 5 | N140: 3 | V140: 4 | Z140: 5 | AA140: 3 | AD140: 3 | AE140: 2 | AL140: 3 | AM140: 3 | AP140: 3 | AQ140: 4 | AU140: 3 | AY140: 3 | BC140: 3 | BG140: 3 | BJ140: 3 | BK140: 4 | BN140: 3 | BO140: 3 | BR140: 3 | BS140: 3 | BV140: 3 | BW140: 4 | BZ140: 3 | CE140: 3 | CI140: 3 | CL140: 3 | CQ140: 3 | CT140: 3 | CX140: 3 | DB140: 3 | DF140: 3 | DJ140: 3 | DN140: 4 | DR140: 3 | DZ140: 66 | EA140: 51 | EB140: 0 | EC140: 0
A141: 128 | B141: DWARA503001TSBH08030 | C141: DWARAKA ENT NURSING HOME | D141: Dr. V NAVEEN,BACKSIDE PRAGATHI HOSPITAL, DWARAKA NAGAR , NIZAMABAD | E141: 5 | V141: 6 | W141: 5 | Z141: 3 | AD141: 3 | AL141: 3 | AP141: 5 | AT141: 2 | AU141: 3 | AX141: 3 | AY141: 3 | BB141: 2 | BC141: 3 | BF141: 2 | BG141: 3 | BJ141: 3 | BK141: 3 | BN141: 3 | BO141: 3 | BR141: 3 | BS141: 3 | BV141: 2 | BW141: 3 | BZ141: 3 | CA141: 4 | CD141: 3 | CE141: 3 | CH141: 3 | CI141: 3 | CL141: 3 | CM141: 4 | CP141: 3 | CQ141: 3 | CT141: 3 | CU141: 3 | CX141: 4 | CY141: 4 | DB141: 3 | DC141: 3 | DF141: 3 | DG141: 7 | DJ141: 3 | DK141: 5 | DN141: 3 | DO141: 3 | DR141: 3 | DS141: 3 | DZ141: 77 | EA141: 74 | EB141: 0 | EC141: 0
A142: 129 | B142: GOPIK503001TSBH08449 | C142: GOPI KRISHNA ENT NURSING HOME | D142: Dr. R VENKATA KRISHNA,SARSWATHI NAGAR, ROAD NO.4, NIZAMABAD | E142: 5 | F142: 4 | J142: 5 | N142: 3 | V142: 4 | Z142: 3 | AD142: 3 | AL142: 3 | AM142: 3 | AP142: 3 | AQ142: 4 | AT142: 3 | AU142: 3 | AX142: 3 | AY142: 3 | BB142: 3 | BC142: 3 | BF142: 3 | BG142: 3 | BK142: 3 | BO142: 3 | BS142: 3 | BW142: 3 | BZ142: 3 | CA142: 3 | CD142: 3 | CE142: 3 | CH142: 3 | CI142: 3 | CL142: 3 | CM142: 4 | CP142: 3 | CQ142: 4 | CT142: 4 | CU142: 4 | CX142: 3 | CY142: 3 | DB142: 3 | DC142: 3 | DF142: 3 | DG142: 3 | DJ142: 3 | DK142: 3 | DN142: 3 | DO142: 3 | DR142: 4 | DS142: 4 | DZ142: 78 | EA142: 71 | EB142: 0 | EC142: 0
A143: 130 | B143: KBRSC503001TSBH07089 | C143: KBRS CHEST HOSPITAL | D143: H.NO. 5-8-5, NEAR VIJAY TALKIES, NISHITHA DEGREE COLLEGE, YELLAMMA GUTTA, NIZAMABAD,Nizamabad,Nizamabad South,NIZAMABAD,503001 | E143: 5 | G143: 6 | K143: 6 | Z143: 3 | AD143: 3 | AH143: 3 | DZ143: 9 | EA143: 12 | EB143: 0 | EC143: 0
A144: 131 | B144: KRITI503001TSBH08536 | C144: KRITI HOSPITAL | D144: Dr. S KRISHNA, OPP: BUS STAND, KHALEELWADI, NIZAMABAD,Nizamabad,Nizamabad South,NIZAMABAD,503001 | E144: 5 | G144: 5 | K144: 5 | DZ144: 0 | EA144: 10 | EB144: 0 | EC144: 0
A145: 132 | B145: MEGHA503001TSBH00921 | C145: MEGHA EYE HOSPITAL | D145: H.NO. 5-6-210, SARASWATHI NAGAR, ROAD NO. 4, NIZAMABAD | E145: 5 | CT145: 4 | CU145: 4 | CX145: 3 | CY145: 3 | DB145: 3 | DC145: 3 | DF145: 3 | DG145: 3 | DJ145: 3 | DK145: 3 | DN145: 3 | DO145: 3 | DR145: 3 | DS145: 3 | DZ145: 22 | EA145: 22 | EB145: 0 | EC145: 0
A146: 133 | B146: SRISA503001TSBH08465 | C146: SRI SAI NARAYANA NETHRALAYA | D146: Dr. K.N. SRINIVAS, OPP. TELANGANA GRAMEENA BANK, KHALEELWADI, NIZAMABAD. | E146: 5 | F146: 5 | J146: 5 | N146: 6 | O146: 3 | V146: 5 | W146: 5 | AL146: 3 | AM146: 4 | AP146: 3 | AQ146: 4 | AT146: 2 | AU146: 3 | AX146: 3 | AY146: 3 | BB146: 3 | BC146: 3 | BF146: 3 | BG146: 3 | BK146: 3 | BO146: 3 | BS146: 3 | BW146: 4 | CA146: 3 | CE146: 3 | CI146: 3 | CM146: 3 | CQ146: 3 | CT146: 3 | CU146: 4 | CX146: 4 | CY146: 5 | DB146: 4 | DC146: 4 | DF146: 3 | DG146: 3 | DJ146: 3 | DK146: 3 | DN146: 3 | DO146: 3 | DS146: 3 | DZ146: 58 | EA146: 81 | EB146: 0 | EC146: 0
A147: 134 | B147: PRIMA503202TSBH06448 | C147: PRIMARY HEALTH CENTRE, YEDAPALLY | D147: YEDAPALLY | E147: 4 | G147: 4 | K147: 4 | O147: 4 | W147: 4 | AA147: 3 | AE147: 3 | AI147: 4 | AN147: 4 | AR147: 4 | AU147: 4 | AZ147: 4 | BD147: 4 | BH147: 2 | BL147: 4 | BP147: 4 | BT147: 4 | BX147: 4 | CF147: 4 | CI147: 2 | CL147: 4 | CP147: 4 | CT147: 4 | DB147: 4 | DS147: 4 | DZ147: 16 | EA147: 36 | EB147: 38 | EC147: 0
A148: 135 | B148: GANGA503001TSBH01185 | C148: GANGA DIAGNOSTIC CENTRE | D148: Dr. K. MADAN MOHAN RAO,KHALEEL WADI , NIZAMABAD | E148: 1 | I148: 3 | J148: 5 | K148: 5 | N148: 6 | O148: 6 | V148: 3 | W148: 3 | Z148: 5 | AD148: 3 | AL148: 3 | AM148: 4 | AP148: 4 | AQ148: 4 | AT148: 3 | AU148: 3 | AX148: 4 | AY148: 4 | BB148: 3 | BC148: 4 | BF148: 3 | BG148: 4 | BJ148: 4 | BK148: 4 | BN148: 4 | BO148: 4 | BR148: 3 | BS148: 4 | BV148: 4 | BW148: 4 | BZ148: 4 | CA148: 4 | CD148: 4 | CE148: 4 | CH148: 4 | CI148: 4 | CL148: 4 | CM148: 4 | CP148: 4 | CQ148: 4 | CT148: 4 | CU148: 4 | CX148: 5 | CY148: 5 | DB148: 4 | DC148: 4 | DF148: 4 | DG148: 4 | DJ148: 3 | DK148: 3 | DN148: 4 | DO148: 4 | DR148: 3 | DS148: 4 | DZ148: 104 | EA148: 101 | EB148: 0 | EC148: 3
A149: 136 | B149: INDUR503002TSBH01060 | C149: INDUR M.D.C.T& MRI CENTRE | D149: HNO:5-7-626,KHALLELWADI,NIZAMABAD | E149: 1 | AA149: 3 | AE149: 3 | AH149: 4 | AI149: 4 | BV149: 3 | BW149: 4 | BZ149: 4 | CA149: 4 | CD149: 4 | CE149: 4 | CH149: 4 | CI149: 4 | CL149: 3 | CM149: 4 | CP149: 3 | CQ149: 3 | CT149: 3 | CU149: 4 | CX149: 4 | CY149: 4 | DB149: 4 | DC149: 4 | DF149: 4 | DG149: 4 | DJ149: 4 | DK149: 5 | DN149: 4 | DO149: 4 | DR149: 5 | DS149: 5 | DZ149: 53 | EA149: 63 | EB149: 0 | EC149: 0
A150: 137 | B150: SRIMU503001TSBH08480 | C150: SRI MUKHI SKIN AND HAIR CLINIC | D150: Dr.N.MADHUKAR, OPP: DR. KARUNAKAR HOSPITAL, SHOP NO. 20 &21 MUNCIPAL COMPLEX, KHALEELWADI, NIZAMABAD | E150: 1 | F150: 5 | J150: 3 | N150: 6 | O150: 5 | V150: 2 | W150: 2 | Z150: 3 | AD150: 3 | AL150: 3 | AP150: 3 | AT150: 3 | AU150: 3 | AX150: 3 | AY150: 3 | BB150: 3 | BC150: 3 | BF150: 3 | BG150: 3 | BK150: 3 | BO150: 3 | BW150: 3 | BZ150: 3 | CD150: 3 | CH150: 3 | CL150: 3 | CP150: 3 | CT150: 3 | CU150: 3 | CX150: 3 | CY150: 3 | DB150: 3 | DC150: 3 | DF150: 3 | DG150: 3 | DJ150: 2 | DK150: 3 | DN150: 3 | DO150: 3 | DR150: 3 | DS150: 3 | DZ150: 75 | EA150: 49 | EB150: 0 | EC150: 0
A151: 138 | B151: ARAVI503001TSCL09890 | C151: ARAVIND NETRALAYA | D151: Dr. SHARAD JOSHI,1ST FLOOR,CARPORATION BANK BUILDING, OPP: MUDHIRAJ SANGAM, KHALEELWADI, NIZAMABAD | E151: 0 | V151: 5 | DZ151: 5 | EA151: 0 | EB151: 0 | EC151: 0
A152: 139 | C152: DISTRICT VETERINARY HOSPITAL(DVH) | D152: BEHIND USHA PRASAD MULTIPLEX, KOTAGALLY, NIZAMABAD | E152: 0 | DZ152: 0 | EA152: 0 | EB152: 0 | EC152: 0
A153: 140 | B153: DR.AN503001TSBH01101 | C153: DR. ANILs DIABETIES CENTRE | D153: Dr. T ANIL KUMAR,OPP. RED CROSS BLOOD BANK,KHALEELWADI, NIZAMABAD | E153: 0 | J153: 10 | N153: 5 | O153: 5 | Z153: 3 | AD153: 3 | AL153: 3 | AM153: 3 | AP153: 3 | AQ153: 4 | AT153: 3 | AU153: 4 | AX153: 3 | AY153: 4 | BB153: 3 | BC153: 4 | BF153: 3 | BG153: 4 | BK153: 3 | BO153: 3 | BS153: 3 | BW153: 3 | CA153: 3 | CD153: 3 | CE153: 3 | CH153: 3 | CI153: 3 | CL153: 3 | CM153: 3 | CP153: 3 | CQ153: 3 | CT153: 4 | CU153: 4 | CX153: 3 | CY153: 3 | DB153: 3 | DC153: 4 | DF153: 3 | DG153: 3 | DJ153: 2 | DK153: 4 | DN153: 3 | DO153: 3 | DR153: 3 | DS153: 3 | DZ153: 72 | EA153: 79 | EB153: 0 | EC153: 0
A154: 141 | B154: ENTSP503001TSCL09892 | C154: ENT SPECIALITY CLINIC | D154: Dr.SANTHOSH KUMAR KONDA, Near Indur Medicals, Pochammagalli, Khaleelwadi, Nizamabad | E154: 0 | V154: 2 | DZ154: 2 | EA154: 0 | EB154: 0 | EC154: 0
A155: 142 | B155: KALAE503001TSBH09893 | C155: KALA EYE HOSPITAL | D155: Dr. G ANIL KUMAR,BESIDE SHEETAL SCANNING CENTER , KHALLEL WADI, NIZAMABAD | E155: 5 | DZ155: 0 | EA155: 0 | EB155: 0 | EC155: 0
A156: 143 | B156: LAXMI503001TSBH08463 | C156: LAXMI ENT NURSING HOME | D156: Dr. K SUBASH,HNO:-5-6-202, KHALEEL WADI, NIZAMABAD | E156: 0 | AA156: 2 | AE156: 2 | BV156: 4 | BW156: 4 | BZ156: 4 | CD156: 4 | CE156: 4 | CH156: 4 | CI156: 4 | CL156: 4 | CM156: 4 | CP156: 4 | CQ156: 4 | DZ156: 24 | EA156: 24 | EB156: 0 | EC156: 0
A157: 144 | B157: LAXMI503001TSBH01040 | C157: LAXMI HOSPITAL | D157: Dr. J BAPU REDDY,D.NO:-5-6-801, KHALEEL WADI , NIZAMABAD | E157: 0 | CU157: 3 | DC157: 4 | DG157: 4 | DK157: 4 | DO157: 4 | DS157: 4 | DZ157: 0 | EA157: 23 | EB157: 0 | EC157: 0
A158: 145 | B158: PAVAN503002TSCL09894 | C158: PAVAN CLINIC | D158: Dr.BHARATH PAWAR, Opp. Rural Police Station, Armoor Road, Vidhyuth Nagar, KANTESHWAR,NIZAMABAD | E158: 0 | DZ158: 0 | EA158: 0 | EB158: 0 | EC158: 0
A159: 146 | B159: PRASH503001TSBH09895 | C159: PRASHANTHI NEURO PSYCHIATRIC HOSPITAL | D159: Dr.RAJENDER SOORINEEDU,KHALEELWADI,NZB | E159: 5 | DZ159: 0 | EA159: 0 | EB159: 0 | EC159: 0
A160: 147 | B160: SKINC503001TSBH07046 | C160: SKINCARE CLINIC | D160: Dr. D. SRINIVAS, MUNCIPAL COMPLEX SHOP NOs:25,26, TILAK GARDEN, KHALEELWADI, NIZAMABAD | E160: 1 | DZ160: 0 | EA160: 0 | EB160: 0 | EC160: 0
A161: 148 | B161: SPARS503001TSCL08533 | C161: SPARSHA NEURO PSYCHIATRIC CENTRE | D161: Dr.ACHAMPET VIKAS,H.No:5-6-70, DWARAKA NAGAR, NIZAMABAD. | E161: 0 | J161: 3 | V161: 5 | DZ161: 8 | EA161: 0 | EB161: 0 | EC161: 0
A162: 149 | B162: SRIAD503002TSBH09896 | C162: SRI ADITYA ORTHOPAEDIC HOSPITAL | D162: Dr. SRINIVASA RAO NAIDU, MARUTHI NAGAR, ARMOOR ROAD, NIZAMABAD | E162: 5 | V162: 5 | DZ162: 5 | EA162: 0 | EB162: 0 | EC162: 0
A163: DENTAL HOSPITALS (HCFs)
A164: 150 | B164: BHAGA503001TSBH09897 | C164: BHAGAVATHI DENTAL HOSPITAL | D164: Dr. Y . PRAVEEN KUMAR,NEAR MODERN PUBLIC SCHOOL, KHALEEL WADI, NIZAMABAD | E164: 5 | W164: 3 | DZ164: 0 | EA164: 3 | EB164: 0 | EC164: 0
A165: 151 | B165: BRITE503001TSBH09898 | C165: BRITE SMILE DENTAL HOSPITAL | D165: Dr. RAHEEMUNNISA,HNO:5-6-9, BESIDE J. J REDDY HOSPITAL, KHALEEL WADI, NIZAMABAD | E165: 5 | V165: 4 | DZ165: 4 | EA165: 0 | EB165: 0 | EC165: 0
A166: 152 | B166: NAVAT503001TSBH00906 | C166: NAVATHA MULTISPECIALITY DENTAL CLINIC | D166: Dr.M.PRATAP KUMAR,SARASWATHI NAGAR,NIZAMABAD | E166: 5 | DZ166: 0 | EA166: 0 | EB166: 0 | EC166: 0
A167: 153 | B167: NIZAM503001TSBH09899 | C167: NIZAMABAD SUPER SPECIALITY DENTAL HOSPITAL | D167: Dr.SEENU NAIK, H.No. 5-6-798, BESIDE VIJAYA LAXMI HOSPITAL, KHALEELWADI, NIZAMABAD | E167: 5 | DZ167: 0 | EA167: 0 | EB167: 0 | EC167: 0
A168: 154 | B168: SHIVA503001TSBH08473 | C168: SHIVA SHREE SUPER SPECIALITY DENTAL CARE CENTER | D168: Dr.POLA SAMBA SHIVA RAO,BELOW CORPORATION BANK,NZB | E168: 5 | F168: 10 | G168: 10 | J168: 5 | N168: 5 | O168: 5 | V168: 3 | W168: 3 | Z168: 5 | AD168: 3 | AL168: 4 | AM168: 4 | AP168: 3 | AQ168: 3 | BK168: 2 | BO168: 3 | BS168: 3 | BW168: 3 | CA168: 3 | CE168: 3 | CI168: 3 | CM168: 3 | CQ168: 3 | CT168: 3 | CU168: 3 | CX168: 3 | CY168: 3 | DB168: 3 | DC168: 3 | DF168: 3 | DG168: 3 | DJ168: 3 | DK168: 3 | DN168: 3 | DO168: 3 | DR168: 3 | DS168: 3 | DZ168: 59 | EA168: 72 | EB168: 0 | EC168: 0
A169: 155 | B169: HITEC503001TSBH09904 | C169: HITECH DENTAL CLINIC | D169: Dr. K. NANDA KUMAR,OPP. RAJEEVE GANDHI AUDITORUM, KHALEELWADI, NIZAMABAD | E169: 4 | DZ169: 0 | EA169: 0 | EB169: 0 | EC169: 0
A170: 156 | B170: MAHAL503001TSBH00920 | C170: MAHALAXMI DENTAL HOSPITAL | D170: Dr.B.GANGA REDDY, HNO;5-6-752/1,KHALEELWADI, NIZAMABAD | E170: 4 | AH170: 5 | AI170: 5 | DZ170: 5 | EA170: 5 | EB170: 0 | EC170: 0
A171: 157 | B171: BAPUJ503001TSBH01091 | C171: BAPUJI SUPER SPECIALITY DENTAL | D171: Dr. J. BALRAM,OPP: INDUR CT SCAN, KHALEELWADI, NIZAMABAD | E171: 3 | G171: 4 | K171: 3 | N171: 3 | DZ171: 3 | EA171: 7 | EB171: 0 | EC171: 0
A172: 158 | B172: DR.KA503001TSBH00953 | C172: Dr. KARTHIK SUPER SPECIALITY DENTAL | D172: Dr. KARTHIK LABHISHETTY,OPP Dr. SRISAILAM, DWARAKANAGAR, KHALEELWADI, | E172: 3 | Z172: 2 | AD172: 2 | AH172: 3 | BV172: 4 | BW172: 4 | BZ172: 3 | CA172: 4 | CD172: 3 | CE172: 3 | CH172: 3 | CI172: 3 | CL172: 3 | CM172: 3 | CP172: 3 | CQ172: 3 | CT172: 3 | CU172: 3 | CX172: 3 | CY172: 3 | DB172: 3 | DC172: 3 | DF172: 3 | DG172: 3 | DJ172: 3 | DK172: 3 | DN172: 4 | DO172: 4 | DR172: 3 | DS172: 3 | DZ172: 48 | EA172: 42 | EB172: 0 | EC172: 0
A173: 159 | B173: S.V.S503001TSBH01078 | C173: SV SMILE 32 DENTAL HOSPITAL | D173: Dr. KONDA AMARNATH, OPP. Dr. SUBASH E.N.T HOSPITAL,KHALEELWADI, NIZAMABAD | E173: 3 | DZ173: 0 | EA173: 0 | EB173: 0 | EC173: 0
A174: 160 | B174: THETO503001TSBH08522 | C174: THE TOOTH CORNER | D174: HNO:5-6-350, ROAD NO. 1,NIZAMABAD | E174: 3 | DZ174: 0 | EA174: 0 | EB174: 0 | EC174: 0
A175: 161 | B175: ANUDE503001TSBH09906 | C175: ANU DENTAL CARE | D175: DR. LAXMAN BOYAPATI, H.NO. 3-31, ROAD NO. 3, SARASWATHI NAGAR, NIZAMABAD | E175: 2 | DZ175: 0 | EA175: 0 | EB175: 0 | EC175: 0
A176: 162 | B176: MANIS503001TSBH10012 | C176: MANISH DENTAL CLINIC | D176: 5-5-242, Road No 2, Opposite Ashirwad Hospital, Saraswathi Nagar, KHALEELWADI, NIZAMABAD | E176: 2 | DZ176: 0 | EA176: 0 | EB176: 0 | EC176: 0
A177: 163 | B177: ORANG503001TSBH10014 | C177: ORANGE DENTAL HOSPITAL | D177: DR. CH SRIKRISHNA, OPP: TELANGANA GRAMEENA BANK MAIN BRANCH, POCHAMMA GALLY, KHALEELWADI, NIZAMABAD | E177: 2 | DZ177: 0 | EA177: 0 | EB177: 0 | EC177: 0
A178: 164 | B178: RSMUL503001TSBH10021 | C178: RS MULTI SPECIALITY DENTAL HOSPITAL | D178: Dr. JYOTHI KOTTUR, SHOP NO:5, MUNICIPAL COMPLEX, KHALEELWADI, NIZAMABAD | E178: 2 | J178: 3 | V178: 3 | DZ178: 6 | EA178: 0 | EB178: 0 | EC178: 0
A179: 165 | B179: SSKMU503001TSBH10027 | C179: SSK DENTAL CLINIC (SRI SAI KRISHNA) | D179: Dr. VINOD PAWAR, OPP: PRAGATHI HOSPITAL, Kapila Complex, Hyderabad Road, Pragathi Nagar, NIZAMABAD | E179: 2 | V179: 5 | DZ179: 5 | EA179: 0 | EB179: 0 | EC179: 0
A180: 166 | B180: SAIPA503001TSBH10031 | C180: SAI PALLAVI MULTI SPECIALITY DENTAL CLINIC, NIZAMABAD | D180: Dr. N. PRASAD, BESIDE BHARATH PATHOLOGICAL LAB, NEAR HAYATT HOSPITAL, KHALEELWADI, NIZAMABAD | E180: 2 | J180: 5 | DZ180: 5 | EA180: 0 | EB180: 0 | EC180: 0
A181: 167 | B181: SHANT503001TSBH02309 | C181: SHANTHA MULTISPECIALITY DENTAL | D181: Dr.BHASKER NAIK,PUNJAB NATIONAL BANK COMPLEX,KHALEEL WADI,NIZAMABAD. | E181: 2 | F181: 6 | J181: 3 | V181: 3 | Z181: 10 | AD181: 5 | AL181: 3 | AM181: 3 | AP181: 2 | AQ181: 2 | AT181: 2 | AU181: 3 | AX181: 2 | AY181: 3 | BB181: 2 | BC181: 3 | BF181: 2 | BG181: 2 | BJ181: 2 | BN181: 3 | BR181: 3 | BV181: 3 | BZ181: 3 | CD181: 2 | CH181: 2 | CL181: 3 | CP181: 3 | CU181: 3 | CY181: 3 | DC181: 3 | DG181: 3 | DK181: 3 | DO181: 3 | DS181: 3 | DZ181: 64 | EA181: 37 | EB181: 0 | EC181: 0
A182: 168 | B182: SPRMU503001TSBH07047 | C182: SPR MULTI SPECIALITY DENTAL CLINIC | D182: NARAYAN REDDY COMPLEX, OPP: MUDHIRAJ BHAVAN, KHALEELWADI, NIZAMABAD | E182: 2 | F182: 6 | J182: 6 | N182: 5 | O182: 5 | V182: 3 | Z182: 3 | AD182: 2 | AU182: 2 | AY182: 3 | BC182: 3 | BG182: 2 | BJ182: 2 | BN182: 3 | BR182: 3 | BV182: 3 | BZ182: 3 | CD182: 3 | CH182: 3 | CL182: 3 | CP182: 3 | CU182: 4 | CY182: 3 | DC182: 3 | DG182: 3 | DK182: 3 | DO182: 3 | DS182: 3 | DZ182: 51 | EA182: 37 | EB182: 0 | EC182: 0
A183: 169 | B183: SRISA503001TSBH10032 | C183: SRI SAI DENTAL CLINIC | D183: DR NAGESH BODHANKAR, HNO:5-7-132, BESIDE ANKAM HOSPITAL, KHALEEL WADI, NIZAMABAD | E183: 2 | DZ183: 0 | EA183: 0 | EB183: 0 | EC183: 0
A184: 170 | B184: SRIAM503001TSBH10033 | C184: SRI AMALA DENTAL CLINIC | D184: Dr. K. SRINIVAS, BESIDE ESHWAR GASTRO & LIVER HOSPITAL, NEAR PUNJAB NATIONAL BANK, KHALEELWADI, NIZAMABAD | E184: 1 | W184: 3 | AA184: 3 | AE184: 2 | AL184: 3 | AM184: 3 | AP184: 3 | AQ184: 3 | AT184: 3 | AU184: 3 | AX184: 4 | AY184: 4 | BB184: 3 | BC184: 3 | BF184: 3 | BG184: 2 | BJ184: 3 | BK184: 3 | BN184: 3 | BO184: 3 | BR184: 3 | BS184: 3 | BV184: 3 | BW184: 4 | BZ184: 3 | CA184: 4 | CD184: 3 | CE184: 3 | CH184: 3 | CI184: 3 | CL184: 3 | CM184: 4 | CP184: 3 | CQ184: 3 | CT184: 3 | CU184: 3 | CX184: 3 | CY184: 3 | DB184: 3 | DC184: 3 | DG184: 3 | DK184: 3 | DN184: 4 | DO184: 4 | DR184: 3 | DS184: 3 | DZ184: 62 | EA184: 78 | EB184: 0 | EC184: 0
A185: 171 | B185: APPLE503001TSBH10034 | C185: APPLE DENTAL SPECIALITIES | D185: Dr. CH SRIKRISHNA & VENKAT, RUDRA SAI HOSPITAL BUILDING, BESIDE ADARSH METERNITY NURSING HOME, NEAR RAJIV GANDHI AUDITORIUM, KHALEELWADI, NIZAMABAD. | E185: 1 | W185: 3 | DZ185: 0 | EA185: 3 | EB185: 0 | EC185: 0
A186: 172 | B186: HAPPY503001TSBH01092 | C186: HAPPY DENTAL HOSPITAL | D186: OPP: RAJIV GANDHI AUDITORIUM, KHALEELWADI, NIZAMABAD,Nizamabad,Nizamabad South,NIZAMABAD,503001 | E186: 1 | AA186: 3 | AE186: 2 | AI186: 10 | BW186: 3 | CA186: 2 | CE186: 3 | CI186: 3 | CM186: 2 | CQ186: 3 | DZ186: 0 | EA186: 31 | EB186: 0 | EC186: 0
A187: 173 | B187: MEGAD503001TSBH10035 | C187: MEGA DENTAL CARE | D187: Dr. MANJUNATH CH, BEHIND PUNJAB NATIONAL BANK, BESIDE VIMALA HOSPITAL & LATHA NURSING HOME, Rd No. 4, Saraswathi Nagar, Khaleelwadi, NIZAMABAD | E187: 1 | DZ187: 0 | EA187: 0 | EB187: 0 | EC187: 0
A188: 174 | B188: RRDEN503001TSBH10036 | C188: RR DENTAL CLINIC | D188: Dr.RAGHU RAVUTLA, SHOP NO.10, KAVITHA COMPLEX, NIZAMABAD | E188: 2 | K188: 3 | V188: 2 | DZ188: 2 | EA188: 3 | EB188: 0 | EC188: 0
A189: 175 | B189: SAIKR503001TSBH01019 | C189: SAI KRISHNA DENTAL CLINIC | D189: OPP.RDO OFFICE,SRASWARTHI NAGAR,NZB | E189: 1 | AL189: 3 | AM189: 3 | AP189: 3 | AQ189: 3 | AT189: 3 | AU189: 3 | AX189: 2 | AY189: 3 | BB189: 2 | BC189: 2 | BF189: 2 | BG189: 2 | BJ189: 2 | BN189: 3 | BR189: 3 | BV189: 3 | BZ189: 3 | CL189: 3 | CP189: 3 | CT189: 3 | CU189: 3 | CX189: 4 | CY189: 4 | DB189: 3 | DC189: 3 | DF189: 4 | DG189: 4 | DJ189: 4 | DK189: 4 | DN189: 3 | DO189: 3 | DR189: 3 | DS189: 3 | DZ189: 59 | EA189: 40 | EB189: 0 | EC189: 0
A190: 176 | B190: SAITI503001TSBH06120 | C190: SAI TIRUMALA MULTISPECIALITY DENTAL CLINIC | D190: SHOP NO. 19, MUNCIPAL COMPLEX, BESIDE SRIMUKHI SKIN CARE HOSPITAL, KHALEELWADI, NIZAMABAD | E190: 1 | F190: 4 | K190: 5 | V190: 3 | Z190: 3 | AD190: 1 | AL190: 3 | AM190: 3 | AP190: 3 | AQ190: 3 | AU190: 3 | AY190: 3 | BC190: 3 | BG190: 2 | BJ190: 3 | BN190: 3 | BR190: 3 | BV190: 3 | BZ190: 3 | CA190: 3 | CD190: 3 | CE190: 3 | CH190: 3 | CI190: 3 | CL190: 3 | CM190: 3 | CP190: 3 | CQ190: 3 | CU190: 3 | CY190: 3 | DC190: 3 | DG190: 3 | DK190: 3 | DO190: 3 | DS190: 3 | DZ190: 44 | EA190: 58 | EB190: 0 | EC190: 0
A191: 177 | B191: SRIBA503001TSBH10037 | C191: SRI BALAJI DENTAL CARE CENTER | D191: Dr. B. SRIKANTH, H.No 1-51/44, Near Axis Bank, BESIDE Dr. KRISHNA MURTHI EYE HOSPITAL, KHALEELWADI, NIZAMABAD | E191: 2 | F191: 1 | J191: 1 | P191: 1 | X191: 1 | AN191: 1 | AV191: 1 | CM191: 1 | DZ191: 2 | EA191: 1 | EB191: 4 | EC191: 0
A192: 178 | B192: SAISR503001TSBH10038 | C192: SAI SRINIVASA MULTI SPECIALITY DENTAL HOSPITAL | D192: Dr. K . CHARAN RAJ, JJ Reddy Circle, near Shivasai Multi Speciality Hospital, NEAR TELANGANA GRAMEENA BANK, Khaleelwadi, Nizamabad | E192: 4 | DZ192: 0 | EA192: 0 | EB192: 0 | EC192: 0
A193: 179 | B193: VENKA503001TSBH01118 | C193: VENKATESHWARA DENTAL CLINIC | D193: Dr. V. Vamshi Krishna, OPP:AXIS BANK, TEJA HOSPITAL LANE, DWARAKA NAGAR, NIZAMABAD | E193: 1 | DZ193: 0 | EA193: 0 | EB193: 0 | EC193: 0
A194: 180 | B194: SRINI503001TSBH00952 | C194: SRINIVAS DENTAL CLINIC & DIAGNOSTIC CENTER | D194: Dr. M. SRINIVAS REDDY,OPP: RED CROSS BLOOD BANK, KHALEEL WADI, NIZAMABAD | E194: 1 | DZ194: 0 | EA194: 0 | EB194: 0 | EC194: 0
A195: 181 | B195: SUPRI503001TSBH10039 | C195: SUPRIYA DENTAL CLINIC | D195: Dr. G.S. SUGUNAKAR RAJU, HNO:5-7-624/3, Beside Bharath Labs, OPP BUS STAND, Tilak Gardens, KHALEELWADI, NIZAMABAD. | E195: 1 | J195: 3 | V195: 3 | DZ195: 6 | EA195: 0 | EB195: 0 | EC195: 0
A196: 182 | B196: TELAN503001TSBH10040 | C196: TELANGANA MULTI SPECIALITY DENTAL HOSPITAL | D196: DR RAJA SHEKAR JAMALPUR, 5-7-204, Tilak Gardens, KHALEELWADI , NIZAMABAD | E196: 2 | DZ196: 0 | EA196: 0 | EB196: 0 | EC196: 0
A197: 183 | B197: SHRIE503001TSBH10042 | C197: SHRI EYE AND DENTAL CARE | D197: Dr. PHANI RAJ KATHURI,HNO; 5-6-218, BESIDE SAI AYUSH CHILDRENS HOSPITAL, SARASWATHI NAGAR, BEHIND ANDHRA BANK, NIZAMABAD. | E197: 3 | W197: 3 | DZ197: =F197+J197+N197+R197+V197+Z197+AD197+AH197+AL197+AP197+AT197+AX197+BB197+BF197+BJ197+BN197+BR197+BV197+BZ197+CD197+CH197+CL197+CP197+CT197+CX197+DB197+DF197+DJ197+DN197+DR197+DV197 -> 0 | EA197: =G197+K197+O197+S197+W197+AA197+AE197+AI197+AM197+AQ197+AU197+AY197+BC197+BG197+BK197+BO197+BS197+BW197+CA197+CE197+CI197+CM197+CQ197+CU197+CY197+DC197+DG197+DK197+DO197+DS197+DW197 -> 3 | EB197: =H197+L197+P197+T197+X197+AB197+AF197+AJ197+AN197+AR197+AV197+AZ197+BD197+BH197+BL197+BP197+BT197+BX197+CB197+CF197+CJ197+CN197+CR197+CV197+CZ197+DD197+DH197+DL197+DP197+DT197 -> 0 | EC197: =I197+M197+Q197+U197+Y197+AC197+AG197+AK197+AO197+AS197+AW197+BA197+BE197+BI197+BM197+BQ197+BU197+BY197+CC197+CG197+CK197+CO197+CS197+CW197+DA197+DE197+DI197+DM197+DQ197+DU197 -> 0
A198: LABORATORIES (HCFs)
A199: 184 | B199: AAYUS503001TSBH00970 | C199: AAYUSH BLOOD BANK | D199: PUNJAB NATIONAL BANK BUILDING, KHALEELWADI, NIZAMABAD | E199: 1 | F199: 10 | J199: 10 | O199: 10 | Z199: 10 | AD199: 6 | AL199: 6 | AM199: 7 | AP199: 4 | AQ199: 6 | AT199: 4 | AX199: 4 | AY199: 5 | BB199: 4 | BC199: 6 | BF199: 4 | BG199: 4 | DZ199: 62 | EA199: 38 | EB199: 0 | EC199: 0
A200: 185 | B200: LIFES503001TSBH01079 | C200: LIFE SCAN CENTRE | D200: DR. HARINATH, OLD JJ REDDY HOSPITAL, 'X' ROAD, KHALEELWADI, NIZAMABAD | E200: 1 | AA200: 5 | AE200: 3 | AI200: 3 | BV200: 4 | BZ200: 4 | CD200: 4 | CH200: 4 | CL200: 4 | CP200: 4 | CT200: 3 | CU200: 4 | CX200: 4 | CY200: 4 | DB200: 4 | DC200: 4 | DF200: 3 | DG200: 4 | DJ200: 3 | DK200: 4 | DN200: 4 | DO200: 4 | DR200: 4 | DS200: 4 | DZ200: 49 | EA200: 39 | EB200: 0 | EC200: 0
... 134 more rows

Sheet Kamareddy
A1: =Nizamabad!A1 -> NOVEMBER MONTH REPORT | F1: =Nizamabad!F1 -> 2021-11-01 | J1: =Nizamabad!J1 -> 2021-11-02 | N1: =Nizamabad!N1 -> 2021-11-03 | R1: =Nizamabad!R1 -> 2021-11-04 | V1: =Nizamabad!V1 -> 2021-11-05 | Z1: =Nizamabad!Z1 -> 2021-11-06 | AD1: =Nizamabad!AD1 -> 2021-11-07 | AH1: =Nizamabad!AH1 -> 2021-11-08 | AL1: =Nizamabad!AL1 -> 2021-11-09 | AP1: =Nizamabad!AP1 -> 2021-11-10 | AT1: =Nizamabad!AT1 -> 2021-11-11 | AX1: =Nizamabad!AX1 -> 2021-11-12 | BB1: =Nizamabad!BB1 -> 2021-11-13 | BF1: =Nizamabad!BF1 -> 2021-11-14 | BJ1: =Nizamabad!BJ1 -> 2021-11-15 | BN1: =Nizamabad!BN1 -> 2021-11-16 | BR1: =Nizamabad!BR1 -> 2021-11-17 | BV1: =Nizamabad!BV1 -> 2021-11-18 | BZ1: =Nizamabad!BZ1 -> 2021-11-19 | CD1: =Nizamabad!CD1 -> 2021-11-20 | CH1: =Nizamabad!CH1 -> 2021-11-21 | CL1: =Nizamabad!CL1 -> 2021-11-22 | CP1: =Nizamabad!CP1 -> 2021-11-23 | CT1: =Nizamabad!CT1 -> 2021-11-24 | CX1: =Nizamabad!CX1 -> 2021-11-25 | DB1: =Nizamabad!DB1 -> 2021-11-26 | DF1: =Nizamabad!DF1 -> 2021-11-27 | DJ1: =Nizamabad!DJ1 -> 2021-11-28 | DN1: =Nizamabad!DN1 -> 2021-11-29 | DR1: =Nizamabad!DR1 -> 2021-11-30 | DV1: =Nizamabad!DV1 -> 2021-12-01 | DZ1: TOTAL
A2: SNO | B2: HCF ID | C2: NAME OF THE HCF | D2: ADDRESS OF THE HCFS | E2: NO.OF BEDS | F2: Yellow | G2: Red | H2: Blue | I2: White | J2: Yellow | K2: Red | L2: Blue | M2: White | N2: Yellow | O2: Red | P2: Blue | Q2: White | R2: Yellow | S2: Red | T2: Blue | U2: White | V2: Yellow | W2: Red | X2: Blue | Y2: White | Z2: Yellow | AA2: Red | AB2: Blue | AC2: White | AD2: Yellow | AE2: Red | AF2: Blue | AG2: White | AH2: Yellow | AI2: Red | AJ2: Blue | AK2: White | AL2: Yellow | AM2: Red | AN2: Blue | AO2: White | AP2: Yellow | AQ2: Red | AR2: Blue | AS2: White | AT2: Yellow | AU2: Red | AV2: Blue | AW2: White | AX2: Yellow | AY2: Red | AZ2: Blue | BA2: White | BB2: Yellow | BC2: Red | BD2: Blue | BE2: White | BF2: Yellow | BG2: Red | BH2: Blue | BI2: White | BJ2: Yellow | BK2: Red | BL2: Blue | BM2: White | BN2: Yellow | BO2: Red | BP2: Blue | BQ2: White | BR2: Yellow | BS2: Red | BT2: Blue | BU2: White | BV2: Yellow | BW2: Red | BX2: Blue | BY2: White | BZ2: Yellow | CA2: Red | CB2: Blue | CC2: White | CD2: Yellow | CE2: Red | CF2: Blue | CG2: White | CH2: Yellow | CI2: Red | CJ2: Blue | CK2: White | CL2: Yellow | CM2: Red | CN2: Blue | CO2: White | CP2: Yellow | CQ2: Red | CR2: Blue | CS2: White | CT2: Yellow | CU2: Red | CV2: Blue | CW2: White | CX2: Yellow | CY2: Red | CZ2: Blue | DA2: White | DB2: Yellow | DC2: Red | DD2: Blue | DE2: White | DF2: Yellow | DG2: Red | DH2: Blue | DI2: White | DJ2: Yellow | DK2: Red | DL2: Blue | DM2: White | DN2: Yellow | DO2: Red | DP2: Blue | DQ2: White | DR2: Yellow | DS2: Red | DT2: Blue | DU2: White | DV2: Yellow | DW2: Red | DX2: Blue | DY2: White | DZ2: Yellow | EA2: Red | EB2: Blue | EC2: White
A3: 100 AND ABOVE BEDS HCFs
A4: 1 | B4: AREAH503111TSBH06149 | C4: AREA HOSPITAL, KAMAREDDY | D4: STATION ROAD, KAMAREDDY | E4: 100 | G4: 5 | K4: 6 | O4: 5 | W4: 5 | AA4: 6 | AE4: 5 | AI4: 5 | AM4: 6 | AU4: 5 | AY4: 5 | BC4: 6 | BG4: 6 | BK4: 6 | BO4: 5 | BS4: 6 | BW4: 6 | CA4: 6 | CE4: 6 | CI4: 5 | CM4: 5 | CQ4: 5 | CU4: 1 | CY4: 1 | DC4: 1 | DG4: 6 | DK4: 5 | DO4: 5 | DR4: 6 | DZ4: =F4+J4+N4+R4+V4+Z4+AD4+AH4+AL4+AP4+AT4+AX4+BB4+BF4+BJ4+BN4+BR4+BV4+BZ4+CD4+CH4+CL4+CP4+CT4+CX4+DB4+DF4+DJ4+DN4+DR4+DV4 -> 6 | EA4: =G4+K4+O4+S4+W4+AA4+AE4+AI4+AM4+AQ4+AU4+AY4+BC4+BG4+BK4+BO4+BS4+BW4+CA4+CE4+CI4+CM4+CQ4+CU4+CY4+DC4+DG4+DK4+DO4+DS4+DW4 -> 134 | EB4: =H4+L4+P4+T4+X4+AB4+AF4+AJ4+AN4+AR4+AV4+AZ4+BD4+BH4+BL4+BP4+BT4+BX4+CB4+CF4+CJ4+CN4+CR4+CV4+CZ4+DD4+DH4+DL4+DP4+DT4 -> 0 | EC4: =I4+M4+Q4+U4+Y4+AC4+AG4+AK4+AO4+AS4+AW4+BA4+BE4+BI4+BM4+BQ4+BU4+BY4+CC4+CG4+CK4+CO4+CS4+CW4+DA4+DE4+DI4+DM4+DQ4+DU4 -> 0
A5: 2 | B5: JEEVA503111TSBH06112 | C5: JEEVADAN HOSPITAL | D5: KAMAREDDY | E5: 100 | G5: 5 | K5: 5 | O5: 5 | W5: 5 | AA5: 5 | AE5: 5 | AI5: 5 | AM5: 5 | AQ5: 6 | AU5: 5 | AY5: 6 | BC5: 6 | BG5: 6 | BK5: 5 | BO5: 5 | BS5: 6 | BW5: 5 | CA5: 5 | CE5: 6 | CI5: 5 | CM5: 5 | CQ5: 5 | CU5: 5 | CY5: 5 | DC5: 6 | DG5: 6 | DK5: 4 | DO5: 5 | DR5: 6 | DZ5: =F5+J5+N5+R5+V5+Z5+AD5+AH5+AL5+AP5+AT5+AX5+BB5+BF5+BJ5+BN5+BR5+BV5+BZ5+CD5+CH5+CL5+CP5+CT5+CX5+DB5+DF5+DJ5+DN5+DR5+DV5 -> 6 | EA5: =G5+K5+O5+S5+W5+AA5+AE5+AI5+AM5+AQ5+AU5+AY5+BC5+BG5+BK5+BO5+BS5+BW5+CA5+CE5+CI5+CM5+CQ5+CU5+CY5+DC5+DG5+DK5+DO5+DS5+DW5 -> 147 | EB5: =H5+L5+P5+T5+X5+AB5+AF5+AJ5+AN5+AR5+AV5+AZ5+BD5+BH5+BL5+BP5+BT5+BX5+CB5+CF5+CJ5+CN5+CR5+CV5+CZ5+DD5+DH5+DL5+DP5+DT5 -> 0 | EC5: =I5+M5+Q5+U5+Y5+AC5+AG5+AK5+AO5+AS5+AW5+BA5+BE5+BI5+BM5+BQ5+BU5+BY5+CC5+CG5+CK5+CO5+CS5+CW5+DA5+DE5+DI5+DM5+DQ5+DU5 -> 0
A6: 3 | B6: AREAH503187TSBH08193 | C6: AREA HOSPITAL, BANSWADA | D6: BESIDE POST OFFFICE, BANSWADA | E6: 100 | G6: 5 | K6: 5 | O6: 5 | W6: 6 | AA6: 6 | AE6: 5 | AI6: 6 | AM6: 5 | AQ6: 5 | AU6: 6 | AY6: 5 | BC6: 6 | BG6: 6 | BK6: 6 | BO6: 5 | BS6: 6 | BW6: 6 | CA6: 6 | CE6: 6 | CI6: 5 | CM6: 6 | CQ6: 6 | CU6: 6 | CY6: 6 | DC6: 6 | DG6: 6 | DK6: 5 | DO6: 5 | DS6: 6 | DZ6: 0 | EA6: 163 | EB6: 0 | EC6: 0
A7: BELOW 100 BEDS HCFs
A8: KAMAREDDY
A9: 1 | B9: LIFEH503111TSBH10120 | C9: LIFE HOSPITAL | D9: OPP: RAJEEV PARK, SIRICILLA ROAD, KAMAREDDY | E9: 50 | BK9: 2 | BO9: 2 | BS9: 2 | BW9: 2 | CA9: 2 | CE9: 2 | CI9: 2 | CM9: 2 | CQ9: 2 | CU9: 2 | CY9: 2 | DC9: 2 | DG9: 2 | DK9: 2 | DO9: 1 | DZ9: 0 | EA9: 29 | EB9: 0 | EC9: 0
A10: 2 | B10: RUSSH503111TSBH09846 | C10: RUSSH MULTI SPECIALITY HOSPITAL | D10: Dr.C. NAVEEN REDDY, HNO: 5-3-69/1, KOUNDINYA BUILDING, OPP: R&B GUEST HOUSE, KAMAREDDY | E10: 50 | AT10: 2 | AU10: 2 | AV10: 2 | AX10: 2 | AY10: 2 | BB10: 2 | BC10: 2 | BD10: 2 | BF10: 2 | BG10: 2 | BH10: 2 | BJ10: 2 | BK10: 2 | BL10: 2 | BN10: 2 | BO10: 2 | BP10: 2 | BR10: 2 | BS10: 2 | BT10: 2 | BV10: 2 | BW10: 2 | BX10: 2 | BZ10: 2 | CA10: 2 | CB10: 2 | CD10: 2 | CE10: 2 | CF10: 2 | CH10: 2 | CI10: 2 | CJ10: 2 | CL10: 2 | CM10: 2 | CN10: 2 | CP10: 2 | CQ10: 2 | CR10: 2 | CT10: 2 | CX10: 2 | DB10: 2 | DD10: 2 | DF10: 2 | DG10: 2 | DH10: 2 | DJ10: 2 | DK10: 3 | DL10: 2 | DN10: 2 | DO10: 2 | DP10: 2 | DS10: 4 | DZ10: 38 | EA10: 37 | EB10: 32 | EC10: 0
A11: 3 | B11: RAJAM503110TSBH01045 | C11: RAJAMPET MULTISPECIALITY HOSPITAL | D11: Dr. E. SIDDIRAMULU,BUS STAND, RAJAMPET, KAMAREDDY | E11: 32 | G11: 2 | K11: 2 | N11: 2 | V11: 2 | Z11: 2 | AD11: 2 | AH11: 2 | AL11: 2 | AP11: 2 | AT11: 2 | AX11: 2 | BB11: 2 | BF11: 2 | BJ11: 2 | BN11: 2 | BV11: 2 | BZ11: 2 | CD11: 2 | CH11: 2 | CL11: 2 | CP11: 2 | CT11: 2 | CX11: 2 | DB11: 2 | DF11: 2 | DJ11: 2 | DN11: 2 | DS11: 2 | DZ11: 50 | EA11: 6 | EB11: 0 | EC11: 0
A12: 4 | B12: JAYAM503111TSBH00986 | C12: JAYA MULTI SPECIALITY HOSPITAL | D12: Dr. D. RAJAMOULI,BESIDE ARYABATTA JUNIOR COLLEGE, KAMAREDDY | E12: 25 | J12: 2 | N12: 2 | V12: 2 | Z12: 2 | AD12: 2 | AH12: 2 | AL12: 2 | AP12: 2 | AT12: 2 | AX12: 2 | BB12: 2 | BF12: 2 | BK12: 2 | BO12: 2 | BS12: 2 | BW12: 2 | CA12: 2 | CE12: 2 | CI12: 2 | CM12: 2 | CQ12: 2 | CT12: 2 | CX12: 2 | DB12: 2 | DO12: 2 | DZ12: 30 | EA12: 20 | EB12: 0 | EC12: 0
A13: 5 | B13: AKHIL503111TSBH09690 | C13: AKHILA HOSPITAL | D13: Dr. PUTTA MALLIKARJUN,N.H.7 ROAD, VIKASNAGAR COLONY, I.B.P. OPP: PETROLE BUNK, KAMAREDDY | E13: 20 | BJ13: 2 | BN13: 2 | BR13: 2 | BV13: 2 | BZ13: 2 | CD13: 2 | CH13: 2 | CL13: 2 | CP13: 2 | CT13: 2 | CX13: 2 | DB13: 2 | DF13: 2 | DJ13: 2 | DN13: 2 | DR13: 2 | DZ13: 32 | EA13: 0 | EB13: 0 | EC13: 0
A14: 6 | B14: SADHA503111TSBH09695 | C14: SADHANA HOSPITAL | D14: Dr. R. VENKAT, M.D.(O.M), HIGH SCHOOL ROAD, KAMAREDDY | E14: 20 | BO14: 1 | BS14: 1 | BW14: 1 | CA14: 1 | CE14: 1 | CI14: 1 | CM14: 1 | CQ14: 1 | CU14: 1 | CY14: 1 | DC14: 1 | DG14: 1 | DK14: 1 | DO14: 1 | DS14: 1 | DZ14: 0 | EA14: 15 | EB14: 0 | EC14: 0
A15: 7 | B15: SREEG503111TSBH00895 | C15: SREE GANESHA MULTI SPECIALITY HOSPITAL | D15: HNO;1-7-73,DAILY MARKET,THILA ROAD KAMAREDDY | E15: 20 | H15: 2 | L15: 2 | N15: 2 | V15: 2 | Z15: 2 | AD15: 2 | AH15: 2 | AL15: 2 | AP15: 2 | AT15: 2 | AX15: 2 | BB15: 2 | BF15: 2 | BJ15: 2 | BN15: 2 | BR15: 2 | BV15: 2 | BZ15: 2 | CD15: 2 | CH15: 2 | CL15: 2 | CP15: 2 | CT15: 2 | CX15: 2 | DB15: 2 | DF15: 2 | DJ15: 2 | DN15: 2 | DR15: 2 | DZ15: 54 | EA15: 0 | EB15: 4 | EC15: 0
A16: 8 | B16: SRIJA503111TSBH06130 | C16: SRI JANANI MOTHER & CHILD HOPSITAL | D16: GOWDOWN ROAD,NEAR POOJA DIAGNOSTICS CENTRE ,KAMAREDDY | E16: 20 | H16: 2 | L16: 2 | N16: 2 | V16: 2 | Z16: 2 | AD16: 2 | AH16: 2 | AL16: 2 | AP16: 2 | AT16: 2 | AX16: 2 | BB16: 2 | BF16: 2 | BJ16: 2 | BN16: 2 | BR16: 2 | BV16: 2 | BZ16: 2 | CD16: 2 | CH16: 2 | CL16: 2 | CP16: 2 | CT16: 2 | CX16: 2 | DB16: 2 | DF16: 2 | DJ16: 2 | DN16: 2 | DS16: 2 | DZ16: 52 | EA16: 2 | EB16: 4 | EC16: 0
A17: 9 | B17: SRISA503111TSBH07063 | C17: SRI SAI SIMHA MULTI SPECIALITY HOME | D17: Dr.D. SREELEELA,OLD BUS STAND, KAMAREDDY | E17: 20 | G17: 2 | K17: 2 | N17: 2 | W17: 2 | AA17: 2 | AE17: 2 | AJ17: 2 | AL17: 2 | AP17: 2 | AT17: 2 | AX17: 2 | BB17: 2 | BF17: 2 | BJ17: 2 | BN17: 2 | BR17: 2 | CD17: 2 | CH17: 2 | CL17: 2 | CP17: 2 | CT17: 2 | CX17: 2 | DB17: 2 | DF17: 2 | DJ17: 2 | DN17: 2 | DS17: 2 | DZ17: 40 | EA17: 12 | EB17: 2 | EC17: 0
A18: 10 | B18: THIRU503111TSBH00893 | C18: THIRUMALA NURSING HOME | D18: Dr. K. JANARDHAN,AHSOK NAGAR COLONY,KAMAREDDY | E18: 20 | G18: 2 | K18: 2 | N18: 2 | V18: 2 | Z18: 2 | AD18: 2 | AH18: 2 | AL18: 2 | AP18: 2 | AT18: 2 | AX18: 2 | BB18: 2 | BF18: 2 | BJ18: 2 | BN18: 2 | BV18: 2 | BZ18: 2 | CD18: 2 | CH18: 2 | CL18: 2 | CP18: 2 | CT18: 2 | CX18: 2 | DB18: 2 | DF18: 2 | DJ18: 2 | DN18: 2 | DS18: 2 | DZ18: 50 | EA18: 6 | EB18: 0 | EC18: 0
A19: 11 | B19: DRBIS503111TSBH00941 | C19: B. ISHWAR DAS HOSPITAL | D19: Dr. V. SHAMSUNDER RAO,HNO: 2-1-2,NEAR RAILWAY BRIDGE,KAMAREDDY | E19: 18 | H19: 1 | L19: 1 | P19: 1 | X19: 1 | AA19: 1 | AE19: 1 | AI19: 1 | AM19: 1 | AQ19: 1 | AU19: 1 | AY19: 1 | BC19: 1 | BG19: 1 | BK19: 1 | BO19: 1 | BS19: 1 | BW19: 1 | CA19: 1 | CE19: 1 | CI19: 1 | CM19: 1 | CQ19: 1 | CU19: 1 | CY19: 1 | DC19: 1 | DG19: 1 | DK19: 1 | DO19: 1 | DR19: 1 | DZ19: 1 | EA19: 24 | EB19: 4 | EC19: 0
A20: 12 | B20: DRKAN503001TSBH00942 | C20: Dr. K ANJAL REDDY MEMORIAL HOSPITAL | D20: Dr. K. ANJAL REDDY,NETHAJI ROAD,KAMAREDDY | E20: 15 | H20: 2 | L20: 2 | P20: 2 | X20: 2 | Z20: 2 | AD20: 2 | AH20: 2 | AL20: 2 | AP20: 2 | AT20: 2 | AX20: 2 | BB20: 2 | BF20: 2 | BJ20: 2 | BN20: 2 | BR20: 2 | BV20: 2 | BZ20: 2 | CD20: 2 | CH20: 2 | CL20: 2 | CP20: 2 | CT20: 2 | CX20: 2 | DB20: 2 | DF20: 2 | DJ20: 2 | DN20: 2 | DS20: 2 | DZ20: 48 | EA20: 2 | EB20: 8 | EC20: 0
A21: 13 | B21: DEVIH503111TSBH08368 | C21: DEVI HOSPITAL | D21: NGO'S COLONY,NEWR ANDHRA BANK,KAMAREDDY. | E21: 15 | H21: 2 | L21: 2 | P21: 2 | X21: 2 | AA21: 2 | AE21: 2 | AI21: 2 | AM21: 2 | AQ21: 2 | AU21: 2 | AY21: 2 | BC21: 2 | BG21: 2 | BK21: 2 | BS21: 2 | BW21: 2 | CA21: 2 | CE21: 2 | CI21: 2 | CM21: 2 | CQ21: 2 | CU21: 2 | CY21: 2 | DC21: 2 | DG21: 2 | DK21: 2 | DO21: 2 | DR21: 2 | DZ21: 2 | EA21: 46 | EB21: 8 | EC21: 0
A22: 14 | B22: DWARA503111TSBH01022 | C22: DWARAKA CHEST & CHILDREN'S | D22: DR K. PRAVEEN KUMAR, & K. RADHIKA, HNO.4-1-10, NEAR AMBEDKAR STATUE, RAILWAY BRIDGE, PEDDA BAZAR, KAMAREDDY | E22: 15 | G22: 1 | K22: 1 | O22: 1 | W22: 1 | AA22: 1 | AE22: 1 | AI22: 1 | AM22: 1 | AQ22: 1 | AU22: 1 | AY22: 1 | BC22: 1 | BG22: 1 | BJ22: 1 | BN22: 1 | BR22: 1 | BV22: 1 | BZ22: 1 | CD22: 1 | CH22: 1 | CL22: 1 | CP22: 1 | CT22: 1 | CX22: 1 | DB22: 1 | DF22: 1 | DJ22: 1 | DN22: 1 | DZ22: 15 | EA22: 13 | EB22: 0 | EC22: 0
A23: 15 | B23: PARVA503111TSBH06129 | C23: PARVATHI CHILDRENS HOSPITAL | D23: Dr.D. MALLIKARJUNA RAO,NEAR OLD BUS STAND,SIRCILLA ROAD,KAMAREDDY | E23: 15 | H23: 1 | L23: 1 | O23: 1 | W23: 1 | AA23: 1 | AE23: 1 | AI23: 1 | AM23: 1 | AQ23: 1 | AU23: 1 | AY23: 1 | BC23: 1 | BG23: 1 | BK23: 1 | BO23: 1 | BS23: 1 | BW23: 1 | CA23: 1 | CE23: 1 | CI23: 1 | CM23: 1 | CQ23: 1 | CU23: 1 | CY23: 1 | DC23: 1 | DG23: 1 | DK23: 1 | DO23: 1 | DR23: 1 | DZ23: 1 | EA23: 26 | EB23: 2 | EC23: 0
A24: 16 | B24: RRHOS503111TSBH02591 | C24: R R HOSPITAL | D24: Dr. RADHA RAMANA,RAMAREDDY ROAD, KAMAREDDY | E24: 15 | H24: 2 | L24: 2 | N24: 2 | V24: 2 | Z24: 2 | AD24: 2 | AH24: 2 | AL24: 2 | AP24: 2 | AT24: 2 | AX24: 2 | BB24: 2 | BF24: 2 | BK24: 2 | BO24: 2 | BR24: 2 | BV24: 2 | BZ24: 2 | CD24: 2 | CH24: 2 | CL24: 4 | CP24: 4 | CT24: 2 | CX24: 2 | DB24: 2 | DF24: 2 | DJ24: 2 | DN24: 2 | DS24: 2 | DZ24: 52 | EA24: 6 | EB24: 4 | EC24: 0
A25: 17 | B25: SIRIC503111TSBH00865 | C25: SIRI CHILDRANS HOSPITAL | D25: NEAR POTTI SRIRAMULU STATUE,KAMAREDDY | E25: 15 | H25: 1 | L25: 1 | O25: 1 | W25: 1 | AA25: 1 | AE25: 1 | AI25: 1 | AM25: 1 | AQ25: 1 | AU25: 1 | AY25: 1 | BC25: 1 | BG25: 1 | BK25: 1 | BO25: 1 | BS25: 1 | BW25: 1 | CA25: 1 | CE25: 1 | CI25: 1 | CM25: 1 | CQ25: 1 | CU25: 1 | CY25: 1 | DC25: 1 | DG25: 1 | DK25: 1 | DO25: 1 | DR25: 1 | DZ25: 1 | EA25: 26 | EB25: 2 | EC25: 0
A26: 18 | B26: SRISA503111TSBH06156 | C26: SRI SAI KRISHNA HOSPITAL | D26: Dr.B. CHANDRASHEKAR REDDY,AHSOK NAGAR COLONY,KAMAREDDY | E26: 15 | H26: 2 | L26: 2 | N26: 2 | V26: 2 | Z26: 2 | AD26: 2 | AL26: 2 | AP26: 2 | AT26: 2 | AX26: 2 | BB26: 2 | BF26: 2 | BJ26: 2 | BR26: 2 | BV26: 2 | BZ26: 2 | CD26: 2 | CH26: 2 | CL26: 2 | CP26: 2 | CT26: 2 | CX26: 2 | DB26: 2 | DF26: 2 | DJ26: 2 | DN26: 2 | DR26: 2 | DZ26: 50 | EA26: 0 | EB26: 4 | EC26: 0
A27: 19 | B27: SRISA503001TSBH08370 | C27: SRI SAI SRINIVASA HOSPITAL | D27: NEAR PRAKASH RAO EYE HOSPITAL, RAMAREDDY ROAD, KAMAREDDY | E27: 15 | BS27: 1 | BW27: 1 | CA27: 1 | CE27: 1 | CI27: 1 | CM27: 1 | CQ27: 1 | CU27: 1 | CY27: 1 | DC27: 1 | DG27: 1 | DK27: 1 | DO27: 1 | DZ27: 0 | EA27: 13 | EB27: 0 | EC27: 0
A28: 20 | B28: SRISH503111TSBH08515 | C28: SRI SHIVAM MULTI SPECIALITY HOSPITAL | D28: H.NO. 1-5-62/4, GODOWN ROAD, KAMAREDDY,Kamareddy ( U ),Kamareddy,KAMAREDDY,503111 | E28: 15 | G28: 1 | K28: 1 | N28: 1 | V28: 2 | Z28: 1 | AD28: 1 | AH28: 1 | DS28: 1 | DZ28: 6 | EA28: 3 | EB28: 0 | EC28: 0
A29: 21 | B29: ADITY503111TSBH09686 | C29: ADITYA HOSPITAL | D29: Dr. AJAY PERALA,BESIDE POTTI SRIRAMULU STATU ,SIRCILLA ROAD,KAMAREDDY | E29: 12 | BK29: 1 | BO29: 1 | BS29: 1 | BW29: 1 | CA29: 1 | CE29: 1 | CI29: 1 | CM29: 1 | CQ29: 1 | CU29: 1 | CY29: 1 | DC29: 1 | DG29: 1 | DK29: 1 | DO29: 1 | DS29: 1 | DZ29: 0 | EA29: 16 | EB29: 0 | EC29: 0
A30: 22 | B30: SRIGA503111TSBH02588 | C30: SRI GANGA CHILDRENS HOSPITAL | D30: Dr. E. VENKATESHWAR GOVD,SIRCILLA ROAD, KAMAREDDY | E30: 12 | H30: 1 | L30: 1 | O30: 1 | W30: 1 | AA30: 1 | AE30: 1 | AI30: 1 | AM30: 1 | AQ30: 1 | AY30: 1 | BC30: 1 | BG30: 1 | BK30: 1 | BO30: 1 | BS30: 1 | BW30: 1 | CA30: 1 | CE30: 1 | CI30: 1 | CM30: 1 | CQ30: 1 | CU30: 1 | CY30: 1 | DC30: 1 | DG30: 1 | DK30: 1 | DO30: 1 | DR30: 1 | DZ30: 1 | EA30: 25 | EB30: 2 | EC30: 0
A31: 23 | B31: ASHWI503111TSBH09939 | C31: ASHWINI CLINIC | D31: DR. VIJAYA KUMAR, GODOWN ROAD, KAMAREDDY | E31: 10 | DZ31: 0 | EA31: 0 | EB31: 0 | EC31: 0
A32: 24 | B32: BALAJ503111TSBH00904 | C32: BALAJI HOSPITAL | D32: Dr. D. SRINIVASA RAO, DOOR NO.1-5-64, GODAM ROAD, KAMAREDDY | E32: 10 | H32: 1 | L32: 1 | P32: 1 | X32: 1 | AA32: 1 | AE32: 1 | AI32: 1 | AM32: 1 | AQ32: 1 | AU32: 1 | AY32: 1 | BC32: 1 | BG32: 1 | BK32: 1 | BO32: 1 | BS32: 1 | BW32: 1 | CA32: 1 | CE32: 1 | CI32: 1 | CM32: 1 | CQ32: 1 | CU32: 1 | CY32: 1 | DC32: 1 | DG32: 1 | DK32: 1 | DO32: 1 | DR32: 1 | DZ32: 1 | EA32: 24 | EB32: 4 | EC32: 0
A33: 25 | B33: DR.PR503111TSBH07038 | C33: Dr. PRAKASH RAO EYE HOSPITAL | D33: HNO.1-5-442/9, RAMAREDDY, KAMAREDDY | E33: 10 | H33: 1 | L33: 1 | X33: 1 | AB33: 1 | AF33: 1 | AJ33: 1 | AM33: 1 | AQ33: 1 | AU33: 1 | AY33: 1 | BC33: 1 | BG33: 1 | BK33: 1 | BO33: 1 | BS33: 1 | BW33: 1 | CA33: 1 | CE33: 1 | CI33: 1 | CM33: 1 | CQ33: 1 | CU33: 1 | CY33: 1 | DC33: 1 | DG33: 1 | DK33: 1 | DO33: 1 | DR33: 1 | DZ33: 1 | EA33: 21 | EB33: 6 | EC33: 0
A34: 26 | B34: DRTBH503111TSBH09938 | C34: DR T BHAIRAIAH MEMORIAL HOSPITAL | D34: Dr.J. BHAIRAIAH,HNO:1-3-89, BESIDE SHRAVANI EYE HOSPITAL, GODOWN ROAD, KAMAREDDY | E34: 6 | BS34: 1 | BW34: 1 | CA34: 1 | CE34: 1 | CI34: 1 | CM34: 1 | CQ34: 1 | CU34: 1 | CY34: 1 | DC34: 1 | DG34: 1 | DK34: 1 | DO34: 1 | DZ34: 0 | EA34: 13 | EB34: 0 | EC34: 0
A35: 27 | B35: GANDH503111TSBH09696 | C35: GANDHI HOSPITAL | D35: Opp: Dharmashala, Sircilla Road, KAMAREDDY | E35: 10 | BK35: 1 | BO35: 1 | BS35: 1 | BW35: 1 | CA35: 1 | CE35: 1 | CI35: 1 | CM35: 1 | CQ35: 1 | CU35: 1 | CY35: 1 | DC35: 1 | DG35: 1 | DK35: 1 | DO35: 1 | DS35: 1 | DZ35: 0 | EA35: 16 | EB35: 0 | EC35: 0
A36: 28 | B36: GEERE503111TSBH06128 | C36: GEEREDDY RAVINDER REDDY NEURO SUPER SPECIALITY HOSPITAL | D36: GOWDOWN ROAD, OPP: JAGRUTHI HOSPIITAL , KAMAREDDY. | E36: 10 | H36: 1 | L36: 1 | O36: 1 | W36: 1 | AA36: 1 | AE36: 1 | AI36: 1 | AM36: 1 | AQ36: 1 | AU36: 1 | AY36: 1 | BC36: 1 | BG36: 1 | BK36: 1 | BO36: 1 | BS36: 1 | BW36: 1 | CA36: 1 | CE36: 1 | CI36: 1 | CM36: 1 | CQ36: 1 | CU36: 1 | CY36: 1 | DC36: 1 | DG36: 1 | DK36: 1 | DO36: 1 | DR36: 1 | DZ36: 1 | EA36: 26 | EB36: 2 | EC36: 0
A37: 29 | B37: KRISH503111TSBH07065 | C37: KRISHNAVENI CHILDRENS & NEONATAL HOSPITAL | D37: NETAJI ROAD,KAMAREDDY | E37: 10 | H37: 1 | L37: 1 | O37: 1 | W37: 1 | AA37: 1 | AE37: 1 | AI37: 1 | AM37: 1 | AQ37: 1 | AU37: 1 | AY37: 1 | BC37: 1 | BG37: 1 | BK37: 1 | BO37: 1 | BS37: 1 | BW37: 1 | CA37: 1 | CE37: 1 | CI37: 1 | CM37: 1 | CQ37: 1 | CU37: 1 | CY37: 1 | DC37: 1 | DG37: 1 | DK37: 1 | DO37: 1 | DR37: 1 | DZ37: 1 | EA37: 26 | EB37: 2 | EC37: 0
A38: 30 | B38: NETRA503111TSBH09940 | C38: NETRA JYOTHI VISION CARE CENTER | D38: Dr. SUMANTH REDDY.P, GODWN ROAD, KAMAREDDY | E38: 10 | BS38: 1 | BW38: 1 | CA38: 1 | CE38: 1 | CI38: 1 | CM38: 1 | CQ38: 1 | CU38: 1 | CY38: 1 | DC38: 1 | DG38: 1 | DK38: 1 | DO38: 1 | DZ38: 0 | EA38: 13 | EB38: 0 | EC38: 0
A39: 31 | B39: RJHOS503111TSBH09781 | C39: R J HOSPITAL | D39: Jamal's RJ Hospital - #1-5-Ra0004, Kamareddy - Ramareddy Road, Kamareddy, Telangana 503111 | E39: 10 | BK39: 1 | BO39: 1 | BS39: 1 | BW39: 1 | CA39: 1 | CE39: 1 | CI39: 1 | CM39: 1 | CQ39: 1 | CU39: 1 | CY39: 1 | DC39: 1 | DG39: 1 | DK39: 1 | DO39: 1 | DS39: 1 | DZ39: 0 | EA39: 16 | EB39: 0 | EC39: 0
A40: 32 | B40: RAJYA503111TSBH02589 | C40: RAJYALAKSHMI NURSING HOME | D40: Dr. V. RAJALAXMI,BESIDE MUNICIPAL OFFICE,KAMAREDDY | E40: 10 | G40: 2 | L40: 2 | N40: 2 | V40: 2 | Z40: 2 | AD40: 2 | AH40: 2 | AL40: 2 | AP40: 2 | AT40: 2 | AX40: 2 | BB40: 2 | BF40: 2 | BJ40: 2 | BN40: 2 | BR40: 2 | BV40: 2 | BZ40: 2 | CD40: 2 | CH40: 2 | CL40: 2 | CP40: 2 | CT40: 2 | CX40: 2 | DB40: 2 | DF40: 2 | DJ40: 2 | DN40: 2 | DS40: 2 | DZ40: 52 | EA40: 4 | EB40: 2 | EC40: 0
A41: 33 | B41: SHRAV503111TSBH09936 | C41: SHRAVANI EYE HOSPITAL | D41: Dr.G. SAMMI REDDY, BESIDE T. BAIRAIAH MEMORIAL HOSPITAL, GODOWN ROAD, KAMAREDDY | E41: 10 | BS41: 2 | BW41: 1 | CA41: 1 | CE41: 2 | CI41: 2 | CM41: 1 | CQ41: 1 | CU41: 2 | CY41: 2 | DC41: 1 | DG41: 2 | DK41: 1 | DO41: 1 | DZ41: 0 | EA41: 19 | EB41: 0 | EC41: 0
A42: 34 | B42: SRIKR503111TSBH09902 | C42: SRI KRISHNA NETHRALAYA EYE CARE HOSPITAL | D42: DR V. SURESH KUMAR, GODOWN ROAD, KAMAREDDY | E42: 10 | BS42: 1 | CM42: 1 | CQ42: 1 | CU42: 1 | CY42: 1 | DC42: 1 | DO42: 1 | DZ42: 0 | EA42: 7 | EB42: 0 | EC42: 0
A43: 35 | B43: SRILA503111TSBH08488 | C43: SRI LAXMI HOSPITAL | D43: OPP: INDRA DIAGNOSTICS, GODOWN ROAD, KAMAREDDY | E43: 10 | H43: 2 | L43: 2 | O43: 2 | W43: 2 | AA43: 2 | AE43: 2 | AI43: 2 | AM43: 2 | AQ43: 2 | AY43: 2 | BC43: 2 | BG43: 2 | BK43: 2 | BO43: 2 | BS43: 2 | BV43: 2 | BZ43: 2 | CD43: 2 | CH43: 2 | CL43: 2 | CP43: 2 | CT43: 2 | CX43: 2 | DB43: 2 | DF43: 2 | DJ43: 2 | DN43: 2 | DR43: 2 | DZ43: 26 | EA43: 26 | EB43: 4 | EC43: 0
A44: 36 | B44: SRIRA503111TSBH06158 | C44: SRI RAMA MULTI SPECIALITY HOSPITAL | D44: Dr S BHANU REKHA, OPP: R&B GUEST HOUSE, N.H.7 ROAD, KAMAREDDY, | E44: 10 | Z44: 1 | AD44: 1 | AH44: 1 | AP44: 1 | BJ44: 2 | BN44: 2 | BR44: 2 | BV44: 2 | BZ44: 2 | CD44: 2 | CH44: 2 | CL44: 2 | CM44: 1 | CP44: 2 | CT44: 2 | CX44: 2 | DB44: 2 | DZ44: 28 | EA44: 1 | EB44: 0 | EC44: 0
A45: 37 | B45: SRIVE503111TSBH06159 | C45: SRI VENKATESHWARA CHILDRENS & NEONATAL HOSPITAL KAMAREDDY | D45: Dr K NARENDER RAO, GODOWN ROAD, KAMAREDDY | E45: 10 | H45: 1 | L45: 1 | O45: 1 | W45: 1 | AA45: 1 | AE45: 1 | AI45: 1 | AM45: 1 | AQ45: 1 | AU45: 1 | AY45: 1 | BC45: 1 | BG45: 1 | BK45: 1 | BO45: 1 | BS45: 1 | BW45: 1 | CA45: 1 | CE45: 1 | CI45: 1 | CM45: 1 | CQ45: 1 | CU45: 1 | CY45: 1 | DC45: 1 | DG45: 1 | DK45: 1 | DO45: 1 | DR45: 1 | DZ45: 1 | EA45: 26 | EB45: 2 | EC45: 0
A46: 38 | B46: SRINI503111TSBH01020 | C46: SRINIVASA CHILDRENS HOSPITAL | D46: Dr. S. SHIVA PRASAD, H.NO. 5-4-125/1, N.H.7 ROAD, NEAR DSP OFFICE, RAMAREDDY ROAD, KAMAREDDY | E46: 10 | H46: 1 | L46: 1 | O46: 1 | W46: 1 | AI46: 1 | AQ46: 1 | AU46: 1 | AY46: 1 | BC46: 1 | BG46: 1 | BK46: 1 | BO46: 1 | BS46: 1 | BW46: 1 | CA46: 1 | CE46: 1 | CI46: 1 | CM46: 1 | CQ46: 1 | CU46: 1 | CY46: 1 | DC46: 1 | DG46: 1 | DK46: 1 | DO46: 1 | DR46: 1 | DZ46: 1 | EA46: 23 | EB46: 2 | EC46: 0
A47: 39 | B47: SUPRE503111TSBH00932 | C47: SUPREETHA HOSPITAL | D47: DR. RAVINDER REDDY, OPP: DR ANJALREDDY HOSPITAL, NETHAJI ROAD,KAMAREDDY | E47: 10 | H47: 1 | L47: 1 | O47: 1 | W47: 1 | AA47: 1 | AE47: 1 | AI47: 1 | AM47: 1 | AQ47: 1 | AU47: 1 | AY47: 2 | BK47: 1 | BO47: 1 | BW47: 1 | CA47: 1 | CE47: 1 | CI47: 1 | CM47: 1 | CQ47: 1 | CU47: 1 | CY47: 1 | DC47: 1 | DG47: 1 | DK47: 1 | DO47: 1 | DR47: 1 | DZ47: 1 | EA47: 24 | EB47: 2 | EC47: 0
A48: 40 | B48: SURYA503111TSBH09941 | C48: SURYA HOSPITAL | D48: Dr.D. CHANDRASHEKAR, NEAR T. BHAIRAIAH HOSPITAL, GODOWN ROAD,KAMAREDDY | E48: 6 | BS48: 1 | BW48: 1 | CA48: 1 | CE48: 1 | CI48: 1 | CM48: 1 | CQ48: 1 | CT48: 1 | CX48: 1 | DB48: 1 | DG48: 1 | DK48: 1 | DO48: 1 | DZ48: 3 | EA48: 10 | EB48: 0 | EC48: 0
A49: 41 | B49: TEJAS503111TSBH09687 | C49: TEJA SREE HOSPITAL | D49: OPP: SBI BANK & R.K. DEGREE COLLEGE, DEVUNIPALLY, NIZAMSAGAR ROAD, KAMAREDDY Kamareddy ( U )(V) Kamareddy(M) KAMAREDDY(D) Telangana-503111 | E49: 10 | BK49: 1 | BO49: 1 | BS49: 1 | BW49: 1 | CA49: 1 | CE49: 1 | CI49: 1 | CM49: 1 | CQ49: 1 | CU49: 1 | CY49: 1 | DC49: 1 | DG49: 1 | DK49: 1 | DO49: 1 | DS49: 1 | DZ49: 0 | EA49: 16 | EB49: 0 | EC49: 0
A50: 42 | B50: VARSH503111TSBH00947 | C50: VARSHA HOSPITAL | D50: DR. VARSHA K | E50: 10 | G50: 2 | K50: 2 | N50: 2 | V50: 2 | Z50: 2 | AD50: 2 | AH50: 2 | AL50: 2 | AP50: 2 | AT50: 2 | AX50: 2 | BB50: 2 | BF50: 2 | BJ50: 2 | BN50: 2 | BV50: 2 | BZ50: 2 | CD50: 2 | CH50: 2 | CL50: 2 | CP50: 2 | CT50: 2 | CX50: 2 | DB50: 2 | DF50: 2 | DJ50: 2 | DN50: 2 | DS50: 2 | DZ50: 50 | EA50: 6 | EB50: 0 | EC50: 0
A51: 43 | B51: VIKRA503111TSBH09698 | C51: VIKRAM LASER EYE CARE | D51: DR. VIKRAM REDDY, H.No.1-6-66, OPP: GAYATRI BANK & INDIAN OIL PETROL PUMP, SIRICILLA ROAD, KAMAREDDY | E51: 10 | BK51: 2 | BO51: 1 | BS51: 1 | BW51: 1 | CA51: 1 | CE51: 1 | CI51: 1 | CM51: 1 | CQ51: 1 | CU51: 1 | CY51: 1 | DC51: 1 | DG51: 1 | DK51: 1 | DO51: 1 | DS51: 1 | DZ51: 0 | EA51: 17 | EB51: 0 | EC51: 0
A52: 44 | B52: KAMAR503111TSBH08454 | C52: KAMAREDDY EYE HOSPITAL | D52: GODOWN ROAD, KAMAREDDY | E52: 9 | H52: 1 | L52: 1 | O52: 1 | W52: 1 | AA52: 1 | AE52: 1 | AI52: 1 | AM52: 1 | AQ52: 1 | BC52: 1 | BG52: 1 | BK52: 1 | BO52: 1 | BS52: 1 | BW52: 1 | CA52: 1 | CE52: 1 | CI52: 1 | CM52: 1 | CQ52: 1 | CU52: 1 | CY52: 1 | DC52: 1 | DG52: 1 | DK52: 1 | DO52: 1 | DR52: 1 | DZ52: 1 | EA52: 24 | EB52: 2 | EC52: 0
A53: 45 | B53: KAMAR503111TSBH09697 | C53: KAMAREDDY NEURO SUPERSPECIALITY HOSPITAL | D53: OPP: SWATHI HOTEL, SIRICILLA ROAD, KAMAREDDY. | E53: 9 | BK53: 1 | BO53: 1 | BS53: 1 | BW53: 1 | CA53: 1 | CE53: 1 | CI53: 1 | CM53: 1 | CQ53: 1 | CU53: 1 | CY53: 1 | DC53: 1 | DG53: 1 | DK53: 1 | DO53: 1 | DS53: 1 | DZ53: 0 | EA53: 16 | EB53: 0 | EC53: 0
A54: 46 | B54: NAKSH503111TSBH09942 | C54: NAKSHATRA HOSPITAL | D54: OPP: SRI SAI KRISHNA HOSPITAL, PARSHI RAMULU FUNCTION HALL ROAD, ASHOK NAGAR COLONY, OPPOSITE LANE OF BUS STAND, KAMAREDDY | E54: 9 | BS54: 2 | BW54: 2 | CA54: 2 | CE54: 2 | CI54: 1 | CM54: 2 | CQ54: 2 | CU54: 2 | CY54: 2 | DC54: 2 | DG54: 2 | DK54: 1 | DO54: 2 | DZ54: 0 | EA54: 24 | EB54: 0 | EC54: 0
A55: 47 | B55: SVRHO503111TSBH09699 | C55: SVR HOSPITAL | D55: BESIDE: GUNJ GATE, SIRICILLA ROAD, KAMAREDDY | E55: 8 | BK55: 2 | BO55: 1 | BS55: 1 | BW55: 1 | CA55: 1 | CE55: 2 | CI55: 1 | CM55: 1 | CQ55: 1 | CU55: 2 | CY55: 2 | DC55: 1 | DG55: 1 | DK55: 1 | DO55: 1 | DS55: 2 | DZ55: 0 | EA55: 21 | EB55: 0 | EC55: 0
A56: 48 | B56: DRPSU503111TSBH07067 | C56: DR. P SUDARSHAN RAJ CLINIC | D56: Dr. P. SUDARSHAN RAJ, H.NO. 1-9-53, MUSHRIF BHAGH, KAMAREDDY | E56: 6 | H56: 1 | L56: 1 | P56: 1 | X56: 1 | AB56: 1 | AF56: 1 | AI56: 1 | AM56: 1 | AQ56: 1 | AU56: 1 | AY56: 1 | BC56: 1 | BG56: 1 | BK56: 1 | BO56: 1 | BS56: 1 | BW56: 1 | CA56: 1 | CE56: 1 | CI56: 1 | CM56: 1 | CQ56: 1 | CU56: 1 | CY56: 1 | DC56: 1 | DR56: 1 | DZ56: 1 | EA56: 19 | EB56: 6 | EC56: 0
A57: 49 | B57: AMRUT503111TSBH07827 | C57: AMRUTHA CHILDRENS HOSPITAL | D57: Dr. K. VEERESH,BESIDE MUNICIPAL OFFICE,KAMAREDDY | E57: 5 | H57: 1 | L57: 1 | P57: 1 | X57: 1 | AA57: 1 | AE57: 1 | AI57: 1 | AM57: 1 | AQ57: 1 | AU57: 1 | AY57: 1 | BC57: 1 | BG57: 1 | BK57: 1 | BO57: 1 | BS57: 2 | BW57: 1 | CA57: 1 | CE57: 1 | CI57: 1 | CM57: 1 | CQ57: 1 | CU57: 1 | CY57: 1 | DC57: 1 | DG57: 1 | DK57: 1 | DO57: 1 | DR57: 1 | DZ57: 1 | EA57: 25 | EB57: 4 | EC57: 0
A58: 50 | B58: JAGRU503111TSBH09903 | C58: JAGRUTHI HOSPITAL | D58: Dr. RAJA MOHAN REDDY, 1-5-98, Tilak Rd, GODOWN ROAD, KAMAREDDY | E58: 5 | BW58: 1 | CA58: 1 | CE58: 1 | CI58: 1 | CQ58: 1 | CU58: 1 | CY58: 1 | DC58: 1 | DG58: 1 | DK58: 1 | DO58: 1 | DS58: 1 | DZ58: 0 | EA58: 12 | EB58: 0 | EC58: 0
A59: 51 | B59: SAIRA503111TSBH08388 | C59: SAIRAM GENERAL & SKIN HOSPITAL | D59: NEAR RAILWAY BRIDGE, BESIDE AMBEDKAR MURTHY, KAMAREDDY | E59: 5 | H59: 1 | L59: 1 | O59: 1 | W59: 1 | AA59: 1 | AE59: 1 | AI59: 1 | AM59: 1 | AQ59: 1 | AU59: 1 | AY59: 1 | BC59: 1 | BG59: 1 | BK59: 1 | BO59: 1 | BS59: 1 | BW59: 1 | CA59: 1 | CE59: 1 | CI59: 1 | CM59: 1 | CQ59: 1 | CU59: 1 | CY59: 1 | DC59: 1 | DG59: 1 | DK59: 1 | DO59: 1 | DR59: 1 | DZ59: 1 | EA59: 26 | EB59: 2 | EC59: 0
A60: 52 | B60: VAISH503111TSBH09700 | C60: VAISHNAVI HOSPITAL | D60: Dr. M. SRIDHAR, H.No.1-5-255/A, RAMAREDDY ROAD, KAMAREDDY | E60: 5 | BJ60: 2 | BN60: 2 | BR60: 2 | BV60: 2 | BZ60: 2 | CD60: 2 | CH60: 2 | CL60: 2 | CP60: 2 | CT60: 2 | CX60: 2 | DB60: 2 | DF60: 2 | DJ60: 2 | DN60: 2 | DR60: 2 | DZ60: 32 | EA60: 0 | EB60: 0 | EC60: 0
A61: 53 | B61: VISHN503111TSBH01099 | C61: VISHNU ENT HOSPITAL | D61: Dr. N. HARISH KUMAR,RAMAREDDY ROAD, KAMAREDDY | E61: 5 | H61: 1 | L61: 1 | O61: 1 | W61: 1 | AA61: 1 | AE61: 1 | AM61: 1 | AQ61: 1 | AU61: 1 | AY61: 1 | BC61: 1 | BG61: 1 | BK61: 1 | BO61: 1 | BW61: 1 | CA61: 1 | CE61: 1 | CI61: 1 | CM61: 1 | CQ61: 1 | CU61: 1 | CY61: 1 | DG61: 1 | DK61: 1 | DO61: 1 | DR61: 1 | DZ61: 1 | EA61: 23 | EB61: 2 | EC61: 0
A62: 54 | B62: DRSHI503111TSBH09943 | C62: DR. SHIVA PRASAD CLINIC | D62: Kovuru Bhoomaiah, Parsi Kamshetty & Co., Ghandhi Gunj, KAMAREDDY | E62: 4 | DZ62: 0 | EA62: 0 | EB62: 0 | EC62: 0
A63: 55 | B63: BASHE503111TSBH01034 | C63: BASHEERUDDIN MEMORIAL HOSPITAL (ZIYAVDDIN) | D63: Dr.MOHD. RIAZZUDDIN, KAMAREDDY | E63: 1 | H63: 1 | L63: 1 | P63: 1 | X63: 1 | AA63: 1 | AE63: 1 | AI63: 1 | AM63: 1 | AQ63: 1 | AU63: 1 | AY63: 1 | BC63: 1 | BG63: 1 | BK63: 1 | BO63: 1 | BS63: 1 | BW63: 1 | CA63: 1 | CE63: 1 | CI63: 1 | CM63: 1 | CQ63: 1 | CU63: 1 | CY63: 1 | DG63: 1 | DK63: 1 | DO63: 1 | DR63: 1 | DZ63: 1 | EA63: 23 | EB63: 4 | EC63: 0
A64: 56 | B64: SRIVE503111TSBH01030 | C64: SRI VENKATA SAI SCAN'S | D64: HNO.1-5-68/A, GODOWN ROAD, KAMAREDDY | E64: 1 | H64: 1 | L64: 1 | O64: 1 | W64: 1 | AA64: 1 | AE64: 1 | AM64: 1 | AQ64: 1 | AU64: 1 | AY64: 1 | BC64: 1 | BG64: 1 | BK64: 1 | BO64: 1 | BS64: 2 | BW64: 2 | CA64: 2 | CE64: 2 | CI64: 2 | CM64: 2 | CQ64: 2 | CU64: 2 | CY64: 2 | DC64: 1 | DG64: 2 | DK64: 1 | DO64: 1 | DR64: 1 | DZ64: 1 | EA64: 35 | EB64: 2 | EC64: 0
A65: 57 | B65: SRINI503111TSBH01044 | C65: SRINIVASA POLY CLINIC | D65: MAIN ROAD, KAMAREDDY | E65: 1 | H65: 1 | L65: 1 | O65: 1 | W65: 1 | AA65: 1 | AE65: 1 | AI65: 1 | AM65: 1 | AQ65: 1 | AU65: 1 | AY65: 1 | BC65: 1 | BG65: 1 | BK65: 1 | BO65: 1 | BS65: 1 | BW65: 1 | CA65: 1 | CM65: 1 | CQ65: 1 | CU65: 1 | CY65: 1 | DG65: 1 | DK65: 1 | DO65: 1 | DR65: 1 | DZ65: 1 | EA65: 23 | EB65: 2 | EC65: 0
A66: 58 | B66: LIONS503111TSBH09978 | C66: LIONS EYE HOSPITAL (V.T. THAKUR MEMORIAL) | D66: BESIDE KAMAREDDY EYE HOSPITAL, BATUKAMMA KUNTA, GODOWN ROAD, KAMAREDDY | E66: 10 | BS66: 2 | BW66: 1 | CA66: 1 | CE66: 2 | CI66: 2 | CM66: 5 | CQ66: 2 | CU66: 1 | CY66: 1 | DC66: 2 | DG66: 2 | DK66: 1 | DO66: 2 | DZ66: 0 | EA66: 24 | EB66: 0 | EC66: 0
A67: 59 | B67: V.T.T503111TSBH01180 | C67: V T THAKUR BLOOD BANK | D67: BESIDE VT THAKUR LIONS EYE HOSPITAL, GODOWN ROAD,KAMAREDDY | E67: 1 | H67: 1 | L67: 1 | O67: 1 | W67: 1 | AA67: 1 | AE67: 1 | AI67: 1 | AM67: 1 | AQ67: 1 | AU67: 1 | AY67: 1 | BC67: 1 | BG67: 1 | BK67: 1 | BO67: 1 | BW67: 1 | CA67: 1 | CE67: 1 | CI67: 1 | CM67: 1 | CQ67: 1 | CU67: 1 | CY67: 1 | DG67: 1 | DK67: 1 | DO67: 1 | DU67: 1 | DZ67: 0 | EA67: 24 | EB67: 2 | EC67: 1
A68: 60 | B68: SRIBA503111TSCL09944 | C68: SRI BALAJI SKIN & ENT HOSPITAL | D68: DR. MURALI KONDA, BESIDE T. BHAIRAIAH HOSPITAL, GODOWN ROAD, KAMAREDDY | E68: 0 | BS68: 1 | BW68: 1 | CA68: 1 | CE68: 1 | CI68: 1 | CQ68: 1 | CU68: 1 | CY68: 1 | DC68: 1 | DG68: 1 | DK68: 1 | DO68: 1 | DZ68: 0 | EA68: 12 | EB68: 0 | EC68: 0
A69: 61 | B69: BHAIR503111TSPL09945 | C69: BHAIRAVA DIAGNOSTIC CENTRE | D69: GODOWN ROAD, BESIDE DR. NARENDER RAO CHILDRENS HOSPITAL, BESIDE INDIRA SCANNING CENTER,KAMAREDDY | E69: 0 | BS69: 1 | BW69: 1 | CA69: 1 | CE69: 1 | CI69: 1 | CM69: 1 | CQ69: 1 | CU69: 1 | CY69: 1 | DC69: 1 | DG69: 1 | DK69: 1 | DO69: 1 | DZ69: =F69+J69+N69+R69+V69+Z69+AD69+AH69+AL69+AP69+AT69+AX69+BB69+BF69+BJ69+BN69+BR69+BV69+BZ69+CD69+CH69+CL69+CP69+CT69+CX69+DB69+DF69+DJ69+DN69+DR69+DV69 -> 0 | EA69: =G69+K69+O69+S69+W69+AA69+AE69+AI69+AM69+AQ69+AU69+AY69+BC69+BG69+BK69+BO69+BS69+BW69+CA69+CE69+CI69+CM69+CQ69+CU69+CY69+DC69+DG69+DK69+DO69+DS69+DW69 -> 13 | EB69: =H69+L69+P69+T69+X69+AB69+AF69+AJ69+AN69+AR69+AV69+AZ69+BD69+BH69+BL69+BP69+BT69+BX69+CB69+CF69+CJ69+CN69+CR69+CV69+CZ69+DD69+DH69+DL69+DP69+DT69 -> 0 | EC69: =I69+M69+Q69+U69+Y69+AC69+AG69+AK69+AO69+AS69+AW69+BA69+BE69+BI69+BM69+BQ69+BU69+BY69+CC69+CG69+CK69+CO69+CS69+CW69+DA69+DE69+DI69+DM69+DQ69+DU69 -> 0
A70: 62 | B70: DRBBA503111TSCL09946 | C70: DR. B BALRAJ CLINIC | D70: Dr. B.BAL RAJ, GOPAL SWAMY ROAD, KAMAREDDY | E70: 0 | DG70: 1 | DK70: 1 | DO70: 1 | DZ70: 0 | EA70: 3 | EB70: 0 | EC70: 0
A71: 63 | B71: DRHAN503111TSCL09947 | C71: HANUMANTHA RAO GOJE CLINIC | D71: Dr.HANUMANTHA RAO GOJE, BESIDE SANDEEPANI JR. COLLEGE, BESIDE BUS DEPOT, MAIN ROAD, KAMAREDDY | E71: 0 | DG71: 1 | DK71: 1 | DO71: 1 | DZ71: 0 | EA71: 3 | EB71: 0 | EC71: 0
A72: 64 | B72: INDHR503111TSBH01035 | C72: INDHRANI DIAGNOSTIC CENTRE | D72: C/O AREA HOSPITAL,KAMAREDDY. | E72: 0 | H72: 1 | L72: 1 | P72: 1 | X72: 1 | DG72: 1 | DK72: 1 | DO72: 1 | DR72: 1 | DZ72: 1 | EA72: 3 | EB72: 4 | EC72: 0
A73: 65 | B73: MEDIC503111TSPL09948 | C73: MEDICARE X-RAY & DIAGNOSTIC CENTRE | D73: OPP: SRI KRISHNA EYE HOSPITAL, GODOWN ROAD, KAMAREDDY | E73: 0 | BS73: 1 | BW73: 1 | CA73: 1 | CE73: 1 | CI73: 1 | CM73: 1 | CQ73: 1 | CU73: 1 | CY73: 1 | DG73: 1 | DK73: 1 | DO73: 1 | DZ73: 0 | EA73: 12 | EB73: 0 | EC73: 0
A74: 66 | B74: POOJA503111TSPL09949 | C74: POOJA DIAGNOSTIC CENTRE | D74: MD PARVEZ, 1-3-17, Madina Masjid Rd, BEHIND GODOWNS, GODOWN ROAD, KAMAREDDY | E74: 0 | BS74: 2 | BW74: 2 | CA74: 2 | CE74: 1 | CI74: 1 | CM74: 2 | CQ74: 2 | CU74: 2 | CY74: 2 | DC74: 2 | DG74: 2 | DK74: 2 | DO74: 2 | DZ74: 0 | EA74: 24 | EB74: 0 | EC74: 0
A75: 67 | B75: SADAS503111TSPL09776 | C75: SADASHIVA DIAGNOSTIC CENTER | D75: OPP: R.K. CHILDREN'S HOSPITAL, NETHAJI ROAD, KAMAREDDY | E75: 0 | BK75: 1 | BO75: 1 | BS75: 1 | BW75: 1 | CA75: 1 | CE75: 1 | CI75: 1 | CM75: 1 | CQ75: 1 | CU75: 1 | CY75: 1 | DC75: 1 | DG75: 1 | DK75: 1 | DO75: 1 | DS75: 1 | DZ75: 0 | EA75: 16 | EB75: 0 | EC75: 0
A76: 68 | B76: SEVAS503111TSBH01043 | C76: SEVASADAN DIAGNOSTIC CENTRE | D76: SRI KALABHAIRAVA COMPLEX, DAILY MARKET ROAD, KAMAREDDY. | E76: 0 | H76: 1 | L76: 1 | O76: 1 | W76: 1 | AA76: 1 | AE76: 1 | AI76: 1 | AM76: 1 | AQ76: 1 | AU76: 1 | AY76: 1 | BC76: 1 | BG76: 1 | BK76: 1 | BO76: 1 | BS76: 1 | BW76: 1 | CA76: 1 | CE76: 1 | CI76: 1 | CM76: 1 | CQ76: 1 | CU76: 1 | CY76: 1 | DC76: 1 | DG76: 1 | DK76: 1 | DO76: 1 | DR76: 1 | DZ76: 1 | EA76: 26 | EB76: 2 | EC76: 0
A77: 69 | B77: SHESH503111TSCL09950 | C77: SHESHADRI SKIN HOSPITAL | D77: OPP: ANDHRA BANK, BESIDE NEW BUS STAND, R.K. LODGE ROAD, NGO'S COLONY, KAMAREDDY | E77: 0 | BS77: 1 | BW77: 1 | CA77: 1 | CE77: 1 | CI77: 1 | CM77: 1 | CQ77: 1 | CU77: 1 | CY77: 1 | DC77: 1 | DG77: 1 | DK77: 1 | DO77: 1 | DZ77: 0 | EA77: 13 | EB77: 0 | EC77: 0
A78: 70 | B78: SPARS503111TSNH09901 | C78: SPARSHA SKIN & ENT HOSPITAL | D78: DR SANDEEP KUMAR RAVIRALA & DR B. SAKETH, 1-5-18, NEAR JAGRUTHI HOSPITAL, TILAK ROAD, GODOWN ROAD, KAMAREDDY. | E78: 0 | BS78: 1 | BW78: 1 | CA78: 1 | CE78: 1 | CI78: 1 | CM78: 1 | CQ78: 1 | CU78: 1 | CY78: 1 | DC78: 1 | DG78: 1 | DK78: 1 | DO78: 1 | DZ78: 0 | EA78: 13 | EB78: 0 | EC78: 0
A79: 71 | B79: SRISA503111TSCL09951 | C79: SRI SAI CLINIC | D79: Dr. B.M. MALLIKARJUN,PEDDA BAZAR, KAMAREDDY | E79: 0 | BS79: 1 | BW79: 1 | CA79: 1 | CM79: 1 | CQ79: 1 | CU79: 1 | CY79: 1 | DC79: 1 | DG79: 1 | DK79: 1 | DO79: 1 | DZ79: 0 | EA79: 11 | EB79: 0 | EC79: 0
A80: 72 | B80: SRISA503111TSPL08474 | C80: SRI SAI DIAGNOSTIC CENTRE | D80: H.NO. 1-4-31, BESIDE LIONS EYE HOSPITAL, BATHUKAMMAKUNTA, GODOWN ROAD, KAMAREDDY | E80: 0 | H80: 1 | L80: 1 | O80: 1 | W80: 1 | AA80: 1 | AE80: 1 | AI80: 1 | AM80: 1 | AQ80: 1 | AU80: 1 | AY80: 1 | BC80: 1 | BG80: 1 | BK80: 1 | BO80: 1 | BS80: 1 | BW80: 1 | CA80: 1 | CE80: 1 | CI80: 1 | CM80: 1 | CQ80: 1 | CU80: 1 | CY80: 1 | DC80: 1 | DG80: 1 | DK80: 1 | DO80: 1 | DR80: 1 | DZ80: 1 | EA80: 26 | EB80: 2 | EC80: 0
A81: 73 | B81: SUNRI503111TSPL08461 | C81: SUNRISE SCANNING & DIAGNOSTIC CENTRE | D81: BESIDE DR. NARENDER RAO CHILDRENS HOSPITAL, GODOWN ROAD, KAMAREDDY,Kamareddy ( U ),Kamareddy,KAMAREDDY,503111 | E81: 0 | H81: 2 | L81: 2 | O81: 2 | W81: 2 | AA81: 2 | AE81: 2 | AI81: 1 | AM81: 1 | AQ81: 2 | AU81: 2 | AY81: 2 | BB81: 2 | BF81: 2 | BK81: 2 | BO81: 2 | BS81: 2 | BW81: 2 | CA81: 2 | CE81: 2 | CI81: 2 | CM81: 2 | CQ81: 2 | CU81: 2 | CY81: 2 | DC81: 2 | DG81: 2 | DK81: 2 | DO81: 2 | DR81: 2 | DZ81: 6 | EA81: 46 | EB81: 4 | EC81: 0
A82: 74 | B82: SREEV503111TSCL09952 | C82: SREE VINAYAKA SKIN CLINIC | D82: Dr.SRINIVAS BABU, BESIDE SANDEEPANI JUNIOR COLLEGE, OPP: NEW BUS STAND, SRI RAM NAGAR COLONY, KAMAREDDY | E82: 0 | BS82: 2 | BW82: 1 | CA82: 1 | CE82: 1 | CI82: 1 | CM82: 1 | CQ82: 1 | CU82: 1 | CY82: 1 | DC82: 1 | DG82: 2 | DK82: 2 | DO82: 1 | DZ82: 0 | EA82: 16 | EB82: 0 | EC82: 0
A83: 75 | B83: VINAY503111TSCL09762 | C83: VINAYAKA SKIN CLINIC, KAMAREDDY | D83: DR. AMIT KOLLI, OPP: NEW BUS STAND, SRI RAM NAGAR COLONY, KAMAREDDY | E83: 0 | BK83: 1 | BO83: 1 | BW83: 1 | CA83: 1 | CE83: 1 | CI83: 1 | CM83: 1 | CQ83: 1 | CU83: 1 | CY83: 1 | DC83: 1 | DK83: 1 | DO83: 1 | DS83: 1 | DZ83: 0 | EA83: 14 | EB83: 0 | EC83: 0
A84: 76 | B84: SHIVA503111TSBH00956 | C84: SHIVA SAI MULTISPECIALITY DENTAL CLINIC | D84: HNO:-1-7-73,THILK ROAD,KAMAREDDY | E84: 5 | H84: 1 | L84: 1 | O84: 1 | W84: 1 | AA84: 1 | AE84: 1 | AI84: 1 | AM84: 1 | AQ84: 1 | AU84: 1 | AY84: 1 | BC84: 1 | BG84: 1 | BK84: 1 | BO84: 1 | BS84: 1 | BW84: 1 | CA84: 1 | CE84: 1 | CI84: 1 | CM84: 1 | CQ84: 1 | CU84: 1 | CY84: 1 | DC84: 1 | DG84: 1 | DK84: 1 | DO84: 1 | DR84: 1 | DZ84: 1 | EA84: 26 | EB84: 2 | EC84: 0
A85: 77 | B85: SRIRA503111TSBH09934 | C85: SRI RAMA MULTI SPECIALITY DENTAL H. | D85: Dr. M. MALLIKARJUN GUPTA COMPLEX, BESIDE MUNICIPAL OFFICE, KAMAREDDY | E85: 5 | H85: 2 | L85: 2 | N85: 2 | V85: 1 | Z85: 2 | AD85: 2 | AH85: 3 | AL85: 2 | AT85: 1 | AX85: 2 | BB85: 2 | BF85: 2 | BS85: 2 | BV85: 2 | BW85: 1 | BZ85: 2 | CA85: 1 | CE85: 2 | CI85: 2 | CQ85: 1 | CU85: 2 | CY85: 2 | DC85: 2 | DF85: 2 | DG85: 1 | DJ85: 2 | DK85: 1 | DN85: 2 | DO85: 1 | DS85: 2 | DZ85: 29 | EA85: 20 | EB85: 4 | EC85: 0
A86: 78 | B86: SRIVE503111TSBH06155 | C86: SRI VENKATESHWARA MULTI SPECIALITY DENTAL & COSMETIC CLINIC | D86: Dr. R. BHARGAVI, HNO:5-3-447, SREE VENKATA NIVAASAM, VIDYA NAGAR COLONY, KAMAREDDY | E86: 5 | H86: 1 | M86: 1 | O86: 1 | W86: 1 | AA86: 1 | AE86: 1 | AI86: 1 | AM86: 1 | AQ86: 1 | AU86: 1 | AY86: 1 | BC86: 1 | BG86: 1 | BK86: 1 | BO86: 1 | BS86: 1 | BW86: 1 | CA86: 1 | CE86: 1 | CI86: 1 | CM86: 1 | CQ86: 1 | CU86: 1 | CY86: 1 | DC86: 1 | DG86: 1 | DK86: 1 | DO86: 1 | DS86: 1 | DZ86: 0 | EA86: 27 | EB86: 1 | EC86: 1
A87: 79 | B87: NIZAM503111TSBH09953 | C87: NIZAMABAD SUPER SPECIALITY DENTAL HOSPITAL | D87: Dr.V. CHANDRA SEKHAR,OPP: MUNICIPAL OFFICE,GOWTHAM MODEL SCHOOL COMPLEX, KAMAREDDY | E87: 2 | BS87: 2 | BW87: 1 | CA87: 1 | CE87: 1 | CI87: 1 | CM87: 1 | CQ87: 1 | CU87: 1 | CY87: 1 | DC87: 1 | DG87: 1 | DK87: 1 | DO87: 1 | DZ87: 0 | EA87: 14 | EB87: 0 | EC87: 0
A88: 80 | B88: SRISA503111TSBH09954 | C88: SRI SAI KRUPA COSMETIC MULTI SPECIALITY & DENTAL CARE | D88: Dr. K. ASHOK KUMAR,NEAR RAILWAY BRIDGE,PEDDA BAZAR, KAMAREDDY | E88: 2 | DZ88: 0 | EA88: 0 | EB88: 0 | EC88: 0
A89: 81 | B89: SUSHE503111TSBH09955 | C89: SUSHEELA DENTAL SPECIALITIES | D89: NEAR RAILWAY BRIDGE, BESIDE AMBEDKAR MURTHY, KAMAREDDY | E89: 2 | BS89: 1 | BW89: 1 | CA89: 1 | CE89: 1 | CI89: 1 | CM89: 1 | CQ89: 1 | CU89: 1 | CY89: 1 | DC89: 1 | DG89: 1 | DK89: 1 | DO89: 1 | DZ89: 0 | EA89: 13 | EB89: 0 | EC89: 0
A90: 82 | B90: SRMUL503111TSBH09956 | C90: SR MULTI SPECIALITY DENTAL HOSPITAL | D90: Dr.MD.IMAMUDDIN, GODWN ROAD, KAMAREDDY | E90: 1 | BS90: 1 | BW90: 1 | CA90: 1 | CE90: 1 | CI90: 1 | CM90: 1 | CQ90: 1 | CU90: 1 | CY90: 1 | DC90: 1 | DG90: 1 | DK90: 1 | DO90: 1 | DZ90: 0 | EA90: 13 | EB90: 0 | EC90: 0
A91: 83 | B91: SMILE503111TSBH09957 | C91: SMILE CARE DENTAL HOSPITAL | D91: Dr. A VINOD KUMAR, BESIDE REYMOND'S SHOP, NEAR SANDEEPANI JUNIOR COLLEGE, PRIYA THEATRE X ROAD, NEW BUS STAND ROAD, KAMAREDDY | E91: 1 | BW91: 1 | CA91: 1 | CE91: 1 | CI91: 1 | CM91: 1 | CQ91: 1 | CU91: 1 | CY91: 1 | DC91: 1 | DG91: 1 | DK91: 1 | DO91: 1 | DZ91: 0 | EA91: 12 | EB91: 0 | EC91: 0
A92: 84 | B92: CARED503111TSDH09778 | C92: CARE DENTAL CLINIC | D92: DR. MD. SAJID, D.NO.1-2-50, SIRICILLA ROAD, KAMAREDDY | E92: 0 | BK92: 1 | BO92: 1 | BS92: 1 | BW92: 1 | CA92: 1 | CE92: 1 | CI92: 1 | CM92: 1 | CQ92: 1 | CU92: 1 | CY92: 1 | DC92: 1 | DG92: 1 | DK92: 1 | DO92: 1 | DS92: 1 | DZ92: 0 | EA92: 16 | EB92: 0 | EC92: 0
A93: 85 | B93: GAYAT503111TSDH09764 | C93: GAYATHRI MULTISPECIALITY DENTAL CLINIC | D93: CSI COMPLEX, BESIDE CSI CHURCH, NEW BUS STAND, KAMAREDDY | E93: 0 | BK93: 1 | BO93: 1 | BS93: 1 | BW93: 1 | CA93: 1 | CE93: 1 | CI93: 1 | CL93: 4 | CM93: 5 | CQ93: 1 | CT93: 1 | CX93: 1 | DC93: 1 | DG93: 1 | DK93: 1 | DO93: 1 | DS93: 1 | DZ93: 6 | EA93: 18 | EB93: 0 | EC93: 0
A94: 86 | B94: TELAN503111TSDH09777 | C94: TELANGANA DENTAL HOSPITAL | D94: DR.MD SAJID, NIZAMSAGAR X ROADS, KAMAREDDY | E94: 0 | BK94: 1 | BO94: 1 | BS94: 1 | BW94: 1 | CA94: 1 | CE94: 1 | CI94: 1 | CM94: 1 | CQ94: 1 | CU94: 1 | CY94: 1 | DC94: 1 | DG94: 1 | DK94: 1 | DO94: 1 | DS94: 1 | DZ94: 0 | EA94: 16 | EB94: 0 | EC94: 0
A95: 87 | B95: VASAV503111TSDH09688 | C95: VASAVI DENTAL CARE | D95: Root Canal & Dental Implant Center, Nizamsagar Road, beside Honey Bakers Chowrasta, Kamareddy | E95: 0 | BK95: 1 | BO95: 1 | BS95: 1 | BW95: 1 | CA95: 1 | CE95: 1 | CI95: 1 | CM95: 1 | CQ95: 1 | CU95: 1 | CY95: 1 | DC95: 1 | DG95: 1 | DK95: 1 | DO95: 1 | DS95: 1 | DZ95: 0 | EA95: 16 | EB95: 0 | EC95: 0
A96: 88 | B96: CBNAA503111TSPL09935 | C96: CBNAAT LAB | D96: PHC, DEVANPALLY, BEHIND GOVT. ARTS & SCIENCE DEGREE COLLEGE, KAMAREDDY | E96: 0 | DF96: 2 | DJ96: 2 | DN96: 2 | DZ96: 6 | EA96: 0 | EB96: 0 | EC96: 0
A97: 89 | B97: MYTHR503111TSBH09937 | C97: MYTHRI MULTI SPECIALITY HOSPITAL | D97: BESIDE BALAJI HOSPITAL, NEAR BHUPUTRAMMA KALYANA MANDAPAM, GODOWN ROAD, KAMAREDDY | E97: 15 | BW97: 1 | CA97: 1 | CE97: 1 | CI97: 1 | CM97: 1 | CQ97: 1 | CU97: 2 | CY97: 2 | DC97: 2 | DG97: 1 | DK97: 1 | DO97: 1 | DZ97: 0 | EA97: 15 | EB97: 0 | EC97: 0
A98: 90 | B98: BHANU503111TSCL09968 | C98: BHANU ORTHOPAEDIC CLINIC | D98: 1-5-47/1, Tilak Rd, opposite Dr Narendar rao children’s hospital, Kamareddy | E98: 0 | BW98: 1 | CA98: 1 | CE98: 1 | CI98: 1 | CM98: 1 | CQ98: 1 | CU98: 1 | CY98: 1 | DC98: 1 | DG98: 2 | DK98: 2 | DO98: 1 | DZ98: 0 | EA98: 14 | EB98: 0 | EC98: 0
A99: 91 | B99: VASAV503111TSBH09970 | C99: VASAVI GASTRO & MULTISPECIALITY HOSPITAL, KAMAREDDY | D99: OPP: SBI BANK, NEAR RAILWAY STATION, SIRICILLA ROAD, KAMAREDDY | E99: 10 | DZ99: 0 | EA99: 0 | EB99: 0 | EC99: 0
A100: 92 | B100: BALAJ503111TSDH09971 | C100: BALAJI FAMILY DENTAL CARE | D100: OPP: ANJALI REDDY HOSPITAL, GODOWN ROAD, KAMAREDDY | E100: 0 | BW100: 1 | CA100: 1 | CM100: 1 | CQ100: 1 | CU100: 1 | CY100: 1 | DC100: 1 | DG100: 1 | DK100: 1 | DO100: 1 | DZ100: 0 | EA100: 10 | EB100: 0 | EC100: 0
A101: 93 | B101: SRIRA503111TSBH09975 | C101: SRI RAMANA MULTISPECIALITY DENTAL CLINIC | D101: DHARMASHALA COMPLEX, CONGRESS OFFICE ROAD, UNIQUE SCHOOL ROAD, GODOWN ROAD, KAMAREDDY | E101: 2 | DZ101: 0 | EA101: 0 | EB101: 0 | EC101: 0
A102: 94 | B102: CITYN503111TSBH09977 | C102: CITY NEURO SUPER SPECIALITY HOSPITAL | D102: NEAR SREE GANESHA MULTI SPECIALITY HOSPITAL, TILAK ROAD, GODOWN ROAD, KAMAREDDY | E102: 7 | BW102: 1 | CA102: 1 | CE102: 1 | CI102: 1 | CM102: 1 | CQ102: 1 | CU102: 1 | CY102: 1 | DC102: 1 | DG102: 1 | DK102: 1 | DO102: 1 | DZ102: 0 | EA102: 12 | EB102: 0 | EC102: 0
A103: 95 | B103: RKHOS503111TSBH09979 | C103: R K HOSPITAL (CHILDREN & DENTAL), KAMAREDDY | D103: BESIDE ANJAL REDDY HOSPITAL, NETHAJI ROAD, KAMAREDDY | E103: 10 | BK103: 1 | BO103: 1 | BS103: 1 | CE103: 1 | CI103: 1 | CM103: 1 | CQ103: 1 | CU103: 1 | CY103: 1 | DC103: 1 | DG103: 1 | DK103: 1 | DO103: 1 | DZ103: 0 | EA103: 13 | EB103: 0 | EC103: 0
A104: 96 | B104: AJAYH503111TSBH09981 | C104: AJAY HOSPITAL (CHILDRENS & NEONATAL) KAMAREDDY | D104: BESIDE SPARSHA SKIN HOSPITAL & SRI LAXMI HOSPITAL, GODOWN ROAD, KAMAREDDY | E104: 9 | L104: 2 | W104: 1 | AM104: 2 | AQ104: 2 | AU104: 2 | AY104: 2 | BC104: 2 | BG104: 2 | BW104: 2 | CA104: 2 | CE104: 2 | CI104: 2 | CM104: 1 | CQ104: 1 | CU104: 1 | CY104: 1 | DC104: 1 | DG104: 2 | DK104: 2 | DO104: 2 | DR104: 2 | DZ104: 2 | EA104: 32 | EB104: 2 | EC104: 0
A105: 97 | B105: WALGO503111TSCL09982 | C105: WALGOT BONES HOSPITAL | D105: BESIDE DHARSHAN TALKIES, KAMAREDDY | E105: 0 | BW105: 2 | CA105: 2 | CE105: 1 | CI105: 1 | CM105: 1 | CQ105: 1 | CU105: 1 | CY105: 1 | DC105: 1 | DG105: 1 | DK105: 1 | DO105: 1 | DZ105: 0 | EA105: 14 | EB105: 0 | EC105: 0
A106: 98 | B106: LIFEC503111TSPL09983 | C106: LIFE CELL DIAGNOSTICS | D106: NEAR DR. T. BHAIRAIAH HOSPITAL, BESIDE PRATHIBHA HIGH SCHOOL, GODOWN ROAD, KAMAREDDY | E106: 0 | BS106: 1 | BW106: 1 | CA106: 1 | CE106: 2 | CI106: 2 | CM106: 1 | CQ106: 2 | CU106: 1 | CY106: 1 | DC106: 2 | DG106: 2 | DK106: 2 | DO106: 2 | DZ106: 0 | EA106: 20 | EB106: 0 | EC106: 0
A107: 99 | B107: SRIKA503111TSDH09985 | C107: SRIKARA DENTAL CARE (MULTI SPECIALITY) HOSPITAL, KAMAREDDY | D107: OPP: GAYATRI BANK, SIRICILLA ROAD, KAMAREDDY | E107: 0 | BW107: 1 | CA107: 1 | CE107: 1 | CI107: 1 | DG107: 1 | DK107: 1 | DZ107: 0 | EA107: 6 | EB107: 0 | EC107: 0
A108: 100 | B108: VEDAS503111TSCL09989 | C108: VEDA SKIN HOSPITAL, KAMAREDDY | D108: 1-5-98, Backside of Sparsha Skin Hospital, Tilak Road, Kamareddy, Telangana 503111 | E108: 0 | BS108: 1 | BW108: 1 | CA108: 1 | CE108: 1 | CI108: 1 | CM108: 1 | CQ108: 1 | CU108: 1 | CY108: 1 | DC108: 1 | DG108: 1 | DK108: 1 | DO108: 1 | DZ108: 0 | EA108: 13 | EB108: 0 | EC108: 0
A109: 101 | B109: NAVAJ503111TSBH09992 | C109: NAVAJEEVAN PHYSIOTHERAPY & MULTI REHABILITATION HOSPITAL, KAMAREDDY | D109: OPP: SRI LAXMI HOSPITAL, NEAR SPARSHA SKIN HOSPITAL, GODOWN ROAD, KAMAREDDY | E109: 5 | DZ109: 0 | EA109: 0 | EB109: 0 | EC109: 0
A110: 102 | B110: SADHG503111TSPL10080 | C110: SADHGURU DIAGNOSTIC CENTER | D110: NEAR DR.NARENDER RAO HOSPITAL, GODOWN ROAD, KAMAREDDY | E110: 0 | DG110: 1 | DK110: 1 | DO110: 1 | DZ110: 0 | EA110: 3 | EB110: 0 | EC110: 0
A111: 103 | B111: KAMAR503111TSDH10082 | C111: KAMAREDDY DENTAL CLINIC | D111: DR K. RAJENDER, GODOWN ROAD, KAMAREDDY | E111: 1 | BS111: 1 | BW111: 1 | CA111: 1 | CE111: 1 | CI111: 1 | CM111: 1 | CQ111: 1 | CU111: 1 | CY111: 1 | DC111: 1 | DG111: 1 | DK111: 1 | DO111: 1 | DZ111: 0 | EA111: 13 | EB111: 0 | EC111: 0
A112: 104 | C112: CHC BICHKUNDA | D112: BICHKUNDA | E112: 30 | DZ112: 0 | EA112: 0 | EB112: 0 | EC112: 0
A113: 105 | B113: COMMU503123TSBH09984 | C113: COMMUNITY HEALTH CENTRE, DOMAKONDA | D113: NEAR BUS STAND, DOMAKONDA , KAMAREDDY DIST. | E113: 30 | DZ113: 0 | EA113: 0 | EB113: 0 | EC113: 0
A114: 106 | C114: CHC GANDHARI | D114: GANDHARI | E114: 30 | DZ114: 0 | EA114: 0 | EB114: 0 | EC114: 0
A115: 107 | C115: CHC MADHNOOR | D115: MADNOOR | E115: 30 | DZ115: 0 | EA115: 0 | EB115: 0 | EC115: 0
A116: 108 | C116: CHC PITLAM | D116: PITLAM | E116: 30 | DZ116: 0 | EA116: 0 | EB116: 0 | EC116: 0
A117: 109 | C117: PHC, ANNARAM | D117: ANNARAM | E117: 6 | DZ117: 0 | EA117: 0 | EB117: 0 | EC117: 0
A118: 110 | C118: PHC, BIBIPET | D118: BIBIPET | E118: 6 | DZ118: 0 | EA118: 0 | EB118: 0 | EC118: 0
A119: 111 | C119: PHC, BIKNOOR | D119: BIKNOOR | E119: 6 | DZ119: 0 | EA119: 0 | EB119: 0 | EC119: 0
A120: 112 | C120: PHC, DEVANPALLY | D120: DEVANPALLY | E120: 6 | DZ120: 0 | EA120: 0 | EB120: 0 | EC120: 0
A121: 113 | C121: PHC, DONGLI | D121: DONGLI | E121: 6 | DZ121: 0 | EA121: 0 | EB121: 0 | EC121: 0
A122: 114 | C122: PHC, HANMAJIPET | D122: HANMAJIPET | E122: 6 | DZ122: 0 | EA122: 0 | EB122: 0 | EC122: 0
A123: 115 | C123: PHC, JUKKAL | D123: JUKKAL | E123: 6 | DZ123: 0 | EA123: 0 | EB123: 0 | EC123: 0
A124: 116 | C124: PHC, LINGAMPET | D124: LINGAMPET | E124: 6 | DZ124: 0 | EA124: 0 | EB124: 0 | EC124: 0
A125: 117 | C125: PHC, MACHAREDDY | D125: MACHAREDDY | E125: 6 | DZ125: 0 | EA125: 0 | EB125: 0 | EC125: 0
A126: 118 | C126: PHC, MATHMAL | D126: MATHMAL | E126: 6 | DZ126: 0 | EA126: 0 | EB126: 0 | EC126: 0
A127: 119 | C127: PHC, NAGIREDDYPET | D127: NAGIREDDYPET | E127: 6 | DZ127: 0 | EA127: 0 | EB127: 0 | EC127: 0
A128: 120 | C128: PHC, NIZAMSAGAR | D128: NIZAMSAGAR | E128: 6 | DZ128: 0 | EA128: 0 | EB128: 0 | EC128: 0
A129: 121 | C129: PHC, PEDDA KODAPGAL | D129: PEDDAKODAPGAL | E129: 6 | DZ129: 0 | EA129: 0 | EB129: 0 | EC129: 0
A130: 122 | C130: PHC, PULKAL | D130: PULKAL | E130: 6 | DZ130: 0 | EA130: 0 | EB130: 0 | EC130: 0
A131: 123 | C131: PHC, RAJAMPET | D131: RAJAMPET | E131: 6 | DZ131: 0 | EA131: 0 | EB131: 0 | EC131: 0
A132: 124 | C132: PHC, RAMAREDDY | D132: RAMAREDDY | E132: 6 | DZ132: 0 | EA132: 0 | EB132: 0 | EC132: 0
A133: 125 | C133: PHC, SADHASHIVNAGAR | D133: SADHASHIVNAGAR | E133: 6 | DZ133: =F133+J133+N133+R133+V133+Z133+AD133+AH133+AL133+AP133+AT133+AX133+BB133+BF133+BJ133+BN133+BR133+BV133+BZ133+CD133+CH133+CL133+CP133+CT133+CX133+DB133+DF133+DJ133+DN133+DR133+DV133 -> 0 | EA133: =G133+K133+O133+S133+W133+AA133+AE133+AI133+AM133+AQ133+AU133+AY133+BC133+BG133+BK133+BO133+BS133+BW133+CA133+CE133+CI133+CM133+CQ133+CU133+CY133+DC133+DG133+DK133+DO133+DS133+DW133 -> 0 | EB133: =H133+L133+P133+T133+X133+AB133+AF133+AJ133+AN133+AR133+AV133+AZ133+BD133+BH133+BL133+BP133+BT133+BX133+CB133+CF133+CJ133+CN133+CR133+CV133+CZ133+DD133+DH133+DL133+DP133+DT133 -> 0 | EC133: =I133+M133+Q133+U133+Y133+AC133+AG133+AK133+AO133+AS133+AW133+BA133+BE133+BI133+BM133+BQ133+BU133+BY133+CC133+CG133+CK133+CO133+CS133+CW133+DA133+DE133+DI133+DM133+DQ133+DU133 -> 0
A134: 126 | C134: PHC, UTHNOOR | D134: UTHNOOR | E134: 6 | DZ134: 0 | EA134: 0 | EB134: 0 | EC134: 0
A135: 127 | C135: PHC, YERRAPAHAD | D135: YERRAPAHAD | E135: 6 | DZ135: 0 | EA135: 0 | EB135: 0 | EC135: 0
A136: 128 | C136: UPHC-RAJEEV NAGAR | D136: RAJEEV NAGAR | E136: 6 | DZ136: 0 | EA136: 0 | EB136: 0 | EC136: 0
A137: BANSWADA
A138: 1 | C138: UPHC-VARNI | D138: VARNI | E138: 30 | DZ138: 0 | EA138: 0 | EB138: 0 | EC138: 0
A139: 2 | B139: LIONS503187TSBH01181 | C139: LIONS EYE HOSPITAL | D139: OPP: GOVT HOSPITAL , MAIN ROAD, BANSWADA : 08466-226666 | E139: 25 | H139: 2 | L139: 2 | P139: 2 | X139: 2 | AB139: 2 | AF139: 2 | AK139: 2 | AO139: 2 | AS139: 2 | AW139: 2 | AY139: 2 | BC139: 2 | BG139: 2 | BK139: 2 | BO139: 2 | BS139: 2 | BW139: 2 | CA139: 2 | CE139: 2 | CI139: 2 | CM139: 2 | CQ139: 2 | CU139: 2 | CY139: 2 | DC139: 2 | DG139: 2 | DK139: 2 | DR139: 2 | DZ139: 2 | EA139: 34 | EB139: 12 | EC139: 8
A140: 3 | B140: MANJE503187TSBH09770 | C140: MANJEERA MULTI SPECIALITY HOSPITAL | D140: H.No.1, ANJIREDDY COMPLEX, BESIDE ANDHRA BANK, OLD BANSWADA ROAD, BANSWADA. | E140: 20 | AX140: 2 | BB140: 2 | BF140: 2 | BJ140: 2 | BN140: 2 | BR140: 2 | BV140: 1 | BZ140: 1 | CD140: 2 | CH140: 2 | CL140: 2 | CP140: 2 | CT140: 2 | CX140: 2 | DB140: 2 | DF140: 2 | DJ140: 2 | DN140: 2 | DR140: 2 | DZ140: 36 | EA140: 0 | EB140: 0 | EC140: 0
A141: 4 | B141: BINDU503187TSBH07084 | C141: BINDUSHREE CHILDRENS HOSPITAL | D141: H.NO. 1-1-11/5/1/B, SUDHA COMPLEX, OPP: BUS STAND, TEACHERS COLONY, BANSWADA | E141: 15 | H141: 1 | L141: 1 | P141: 1 | X141: 1 | AB141: 1 | AF141: 1 | AK141: 1 | AO141: 1 | AS141: 1 | AW141: 1 | BK141: 1 | BO141: 2 | BS141: 1 | BW141: 1 | CA141: 1 | CE141: 1 | CI141: 1 | CM141: 1 | CQ141: 1 | CU141: 1 | CY141: 1 | DC141: 1 | DG141: 1 | DK141: 1 | DO141: 1 | DR141: 1 | DZ141: 1 | EA141: 16 | EB141: 6 | EC141: 4
A142: 5 | B142: GUPTA503187TSBH07083 | C142: GUPTAS E.N.T. NURSING HOME | D142: H.NO. 1-1-11/5/1/B, SUDHA COMPLEX, OPP:BUS STAND, TEACHERS COLONY, BANSWADA, Banswada (CT)(V) Banswada(M) KAMAREDDY(D) Telangana-503187 | E142: 15 | H142: 1 | L142: 1 | P142: 1 | X142: 1 | AB142: 1 | AF142: 1 | AK142: 1 | AO142: 1 | AS142: 1 | AW142: 1 | AY142: 1 | BC142: 1 | BG142: 1 | BK142: 1 | BO142: 1 | BW142: 1 | CA142: 1 | CE142: 1 | CI142: 1 | CM142: 1 | CQ142: 1 | CU142: 1 | CY142: 1 | DC142: 1 | DR142: 1 | DZ142: 1 | EA142: 14 | EB142: 6 | EC142: 4
A143: 6 | B143: SRIBA503187TSBH09779 | C143: SRI BALAJI HOSPITAL | D143: OPP: RAM MANDIR, NEAR ANDHRA BANK, OLD BANSWADA ROAD, BANSWADA | E143: 15 | Z143: 5 | AD143: 3 | AH143: 3 | AX143: 2 | BB143: 1 | BF143: 1 | BJ143: 1 | BN143: 1 | BR143: 2 | BV143: 2 | BZ143: 2 | CD143: 2 | CH143: 2 | CL143: 1 | CP143: 2 | CT143: 2 | CX143: 2 | DB143: 2 | DF143: 1 | DJ143: 1 | DN143: 2 | DR143: 1 | DZ143: 41 | EA143: 0 | EB143: 0 | EC143: 0
A144: 7 | B144: AMRIT504001TSBH00944 | C144: AMRITA HOSPITAL | D144: Dr. P. SUDHA,BESIDE SARASWATHI MANDIR, BANSWADA,NZB | E144: 10 | G144: 2 | K144: 2 | O144: 2 | W144: 2 | AB144: 2 | AF144: 2 | AI144: 2 | AN144: 2 | AR144: 2 | AV144: 2 | AZ144: 2 | BD144: 2 | BH144: 2 | BJ144: 6 | BN144: 6 | BR144: 2 | BV144: 6 | BZ144: 6 | CD144: 6 | CH144: 2 | CL144: 6 | CP144: 6 | CT144: 6 | CX144: 6 | DB144: 6 | DF144: 6 | DJ144: 6 | DN144: 6 | DS144: 2 | DZ144: 82 | EA144: 12 | EB144: 16 | EC144: 0
A145: 8 | B145: BALKA503187TSBH09705 | C145: BALKAMAL CHILDRENS HOSPITAL | D145: Dr. T. KIRAN KUMAR, BODHAN ROAD,BANSWADA,NIZAMABAD, | E145: 10 | AY145: 1 | BC145: 1 | BG145: 1 | BK145: 1 | BO145: 1 | BS145: 1 | BW145: 1 | CA145: 1 | CE145: 2 | CI145: 2 | CM145: 2 | CQ145: 1 | CU145: 1 | CY145: 1 | DC145: 1 | DG145: 1 | DK145: 1 | DO145: 1 | DS145: 1 | DZ145: 0 | EA145: 22 | EB145: 0 | EC145: 0
A146: 9 | B146: SRIDA503187TSBH09707 | C146: SRI DANVANTHRI EYE HOSPITAL | D146: TIRUMALA COMPLEX, BESIDE ANNAPURNA SUPER MARKET, TADKOLE ROAD, BANSWADA | E146: 9 | AY146: 4 | BC146: 4 | BG146: 4 | BK146: 4 | BO146: 8 | BS146: 4 | BW146: 4 | CA146: 4 | CE146: 8 | CI146: 2 | CM146: 8 | CQ146: 8 | CU146: 8 | CY146: 8 | DC146: 4 | DG146: 8 | DK146: 8 | DO146: 4 | DS146: 4 | DZ146: 0 | EA146: 106 | EB146: 0 | EC146: 0
A147: 10 | B147: CHAIT503187TSBH10081 | C147: CHAITANYA METERNITY & NURSING HOME | D147: Dr. E. JEEVAN REDDY,CHAITHANYA COLONY, BANSWADA, KAMAREDDY | E147: 6 | DG147: 1 | DK147: 1 | DO147: 1 | DZ147: 0 | EA147: 3 | EB147: 0 | EC147: 0
A148: 11 | C148: PHC, BIRKUR | D148: BIRKUR | E148: 6 | DZ148: 0 | EA148: 0 | EB148: 0 | EC148: 0
A149: 12 | B149: ANVIT503187TSBH09771 | C149: ANVITHA HOSPITAL | D149: Dr. D. SANTHOSH REDDY,OPP: BUS STAND,BANSWADA, BIZAMABAD | E149: 5 | AY149: 1 | BC149: 2 | BG149: 2 | BK149: 1 | BO149: 1 | BS149: 1 | BW149: 1 | CA149: 1 | CE149: 1 | CI149: 1 | CM149: 1 | CQ149: 1 | CU149: 1 | CY149: 1 | DC149: 1 | DG149: 1 | DK149: 1 | DO149: 1 | DS149: 1 | DZ149: 0 | EA149: 21 | EB149: 0 | EC149: 0
A150: 13 | B150: JAGRU503187TSBH09706 | C150: JAGRUTHI HOSPITAL | D150: D.No.1-1-11/4/1/C, OLD MALATHI MADAM BUILDING, NGO'S COLONY, BANSWADA | E150: 4 | BK150: 1 | BO150: 1 | BS150: 1 | CM150: 1 | CU150: 1 | CY150: 1 | DC150: 1 | DZ150: 0 | EA150: 7 | EB150: 0 | EC150: 0
A151: 14 | B151: GLOBA503187TSBH09766 | C151: GLOBAL MULTI SPECIALITY DENTAL CLINIC MAXILOFACIAL SUGICAL CENTRE | D151: M.B.R COMPLEX, BANSWADA, DIST.KAMREDDY, CELL NO: 9908781338 | E151: 2 | AY151: 1 | BC151: 1 | BG151: 1 | BK151: 1 | BO151: 1 | BS151: 1 | BW151: 1 | CA151: 1 | CE151: 1 | CI151: 1 | CM151: 1 | CQ151: 1 | CU151: 1 | CY151: 1 | DC151: 1 | DG151: 1 | DK151: 1 | DO151: 1 | DS151: 1 | DZ151: 0 | EA151: 19 | EB151: 0 | EC151: 0
A152: 15 | B152: DRGUN503187TSBH09933 | C152: DR GUNDERAO SHINDE | D152: NEAR MUNICIPAL OFFICE, BANSWADA | E152: 2 | DG152: 1 | DK152: 1 | DO152: 1 | DZ152: 0 | EA152: 3 | EB152: 0 | EC152: 0
A153: 16 | B153: SALLA503187TSBH08686 | C153: SALLAWAR POLYCLINIC & DIAGNOSTICS | D153: OLD BUS STAND ROAD, BANSWADA, KAMAREDDY-503187 | E153: 2 | H153: 1 | L153: 1 | O153: 2 | W153: 1 | AA153: 1 | AE153: 1 | AI153: 1 | BO153: 1 | BS153: 1 | BW153: 1 | CA153: 1 | CE153: 1 | CI153: 1 | CM153: 1 | CQ153: 1 | CU153: 1 | CY153: 1 | DC153: 1 | DG153: 1 | DK153: 1 | DO153: 1 | DR153: 1 | DZ153: 1 | EA153: 20 | EB153: 2 | EC153: 0
A154: 17 | B154: RUKMI503187TSDH09932 | C154: RUKMINI MULTISPECIALITY DENTAL CLINIC | D154: Dr. A. JEEVAN,OPP: GOVT. HOSPITAL,BANSWADA,NZB | E154: 1 | DG154: 1 | DK154: 1 | DO154: 1 | DZ154: 0 | EA154: 3 | EB154: 0 | EC154: 0
A155: 18 | B155: SRIGA503187TSPL09701 | C155: SRI GANESH DIAGNOSTIC CENTER | D155: H.NO.5-5-144/42, MAIN (BODHAN) ROAD, CHIATHANYA COLONY, BANSWADA | E155: 1 | AY155: 1 | BC155: 1 | BG155: 1 | BK155: 1 | BO155: 1 | BS155: 1 | BW155: 1 | CA155: 1 | CE155: 1 | CI155: 1 | CM155: 1 | CQ155: 1 | CU155: 1 | CY155: 1 | DC155: 1 | DG155: 1 | DK155: 1 | DO155: 1 | DS155: 1 | DZ155: 0 | EA155: 19 | EB155: 0 | EC155: 0
A156: 19 | B156: SRISR503187TSCL10141 | C156: SRI SRINIVAS CHILDREN CLINIC | D156: BESIDE RAMA KRISHNA THEATRE, MAIN ROAD, BANSWADA, KAMAREDDY | E156: 0 | DZ156: 0 | EA156: 0 | EB156: 0 | EC156: 0
A157: 20 | B157: SWAPN503187TSPL09694 | C157: SWAPNA PATHOLOGICAL LAB, BANSWADA, KAMAREDDY | D157: BESIDE HDFC BANK, OLD BANSWADA ROAD, BANSWADA, KAMAREDDY Banswada (CT)(V) Banswada(M) KAMAREDDY(D) Telangana-503187 | E157: 0 | AY157: 1 | BC157: 1 | BG157: 1 | BK157: 1 | BO157: 1 | BS157: 2 | BW157: 1 | CA157: 1 | CE157: 1 | CI157: 1 | CM157: 1 | CQ157: 1 | CU157: 1 | CY157: 1 | DC157: 1 | DG157: 1 | DK157: 1 | DO157: 1 | DS157: 1 | DZ157: 0 | EA157: 20 | EB157: 0 | EC157: 0
A158: BICHKUNDA
A159: 1 | B159: JWALA503306TSBH08468 | C159: JWALAMUKHI SPECIALITY DENTAL CLINIC | D159: KOLAWAR COMPLEX, NEAR PETROL PUMP, NEW BUS STAND, BICHKUNDA,Bichkunda,Bichkunda,KAMAREDDY,503306 | E159: 3 | H159: 1 | L159: 1 | O159: 1 | W159: 1 | AA159: 1 | AE159: 1 | AI159: 1 | AM159: 1 | AQ159: 1 | BO159: 1 | BS159: 1 | BW159: 1 | CA159: 1 | CE159: 1 | CI159: 1 | CM159: 1 | CQ159: 1 | CU159: 1 | CY159: 1 | DC159: 1 | DG159: 1 | DK159: 1 | DO159: 1 | DR159: 1 | DZ159: 1 | EA159: 21 | EB159: 2 | EC159: 0
A160: 2 | B160: SRITI503306TSBH08467 | C160: SRI TIRUMALA HOSPITAL BICHKUNDA | D160: BESIDE BUS STAND, BICHKUNDA,Bichkunda,Bichkunda,KAMAREDDY,503306 | E160: 9 | H160: 1 | L160: 1 | O160: 1 | W160: 1 | AA160: 1 | AE160: 1 | AI160: 1 | AM160: 1 | AQ160: 1 | AU160: 1 | AY160: 1 | BC160: 1 | BG160: 1 | BK160: 1 | BO160: 1 | BS160: 1 | BW160: 1 | CA160: 1 | CE160: 1 | CI160: 1 | CM160: 1 | CQ160: 1 | CU160: 1 | CY160: 1 | DC160: 1 | DG160: 1 | DK160: 1 | DO160: 1 | DR160: 1 | DZ160: 1 | EA160: 26 | EB160: 2 | EC160: 0
A161: PITLAM
A162: 1 | B162: YSHOD503310TSBH00951 | C162: YSHODHA DEVI HOSPITAL | D162: OPP: POST OFFICE & POLICE STATION, PITLAM,Kamareddy ( U ),Kamareddy,KAMAREDDY,503310 | E162: 20 | H162: 1 | L162: 1 | O162: 1 | W162: 1 | AA162: 1 | AE162: 1 | AI162: 1 | AM162: 1 | AQ162: 1 | AU162: 1 | AY162: 1 | BC162: 1 | BG162: 1 | BK162: 1 | BO162: 1 | BW162: 1 | CA162: 1 | CE162: 1 | CI162: 1 | CM162: 1 | CQ162: 1 | CU162: 1 | CY162: 1 | DC162: 1 | DG162: 1 | DK162: 1 | DO162: 1 | DR162: 1 | DZ162: 1 | EA162: 25 | EB162: 2 | EC162: 0
A163: 2 | B163: SUNDE503310TSBH00957 | C163: SUNDER HOSPITAL | D163: THIMMANAGAR ROAD, PITLAM,Pitlam,Pitlam,KAMAREDDY,503310 | E163: 10 | H163: 1 | L163: 1 | O163: 1 | W163: 1 | AA163: 1 | AE163: 1 | AI163: 1 | AM163: 1 | AQ163: 1 | AU163: 1 | AY163: 1 | BC163: 1 | BG163: 1 | BK163: 1 | BO163: 1 | BS163: 1 | BW163: 1 | CA163: 1 | CE163: 1 | CI163: 1 | CM163: 1 | CQ163: 1 | CU163: 1 | CY163: 1 | DC163: 1 | DG163: 1 | DK163: 1 | DO163: 1 | DR163: 1 | DZ163: 1 | EA163: 26 | EB163: 2 | EC163: 0
A164: 3 | B164: SRITI503110TSBH08466 | C164: SRI TIRUMALA HOSPITAL PITLAM | D164: THIMMANAGAR ROAD, PITLAM,Pitlam,Pitlam,KAMAREDDY,503110 | E164: 9 | H164: 1 | L164: 1 | O164: 1 | W164: 1 | AA164: 1 | AE164: 1 | AI164: 1 | AM164: 1 | AQ164: 1 | AY164: 1 | BC164: 1 | BG164: 1 | BK164: 1 | BO164: 1 | BS164: 2 | BW164: 1 | CA164: 1 | CE164: 1 | CI164: 1 | CM164: 1 | DC164: 1 | DG164: 1 | DK164: 1 | DO164: 1 | DR164: 1 | DZ164: 1 | EA164: 23 | EB164: 2 | EC164: 0
A165: 4 | B165: PRABH503310TSBH00949 | C165: PRABHU PATHOLOGICAL LABORATORY | D165: THIMMANAGAR ROAD, INDIRA CHOWK, PITLAM,Pitlam,Pitlam,KAMAREDDY,503310 | E165: 1 | H165: 1 | L165: 1 | O165: 1 | W165: 1 | AA165: 1 | AE165: 1 | AI165: 1 | AM165: 1 | AQ165: 1 | AU165: 1 | AY165: 1 | BC165: 1 | BG165: 1 | BK165: 1 | BO165: 1 | BS165: 1 | BW165: 1 | CA165: 1 | CE165: 1 | CI165: 1 | CM165: 1 | CQ165: 1 | CU165: 1 | CY165: 1 | DC165: 1 | DG165: 1 | DK165: 1 | DO165: 1 | DR165: 1 | DZ165: 1 | EA165: 26 | EB165: 2 | EC165: 0
A166: YELLAREDDY
A167: 1 | B167: SRIVE503122TSBH00910 | C167: SRI VENKATESHWARA SUPER SPECIALITY HOSPITAL | D167: Dr. B. NAGESHWARA RAO,MAIN ROAD,YELLAREDDY, KAMAREDDY | E167: 80 | G167: 2 | K167: 2 | P167: 2 | W167: 1 | AA167: 2 | AE167: 2 | AI167: 2 | AN167: 2 | AR167: 2 | AV167: 2 | AX167: 2 | BB167: 2 | BF167: 2 | BJ167: 2 | BN167: 2 | BV167: 2 | BZ167: 2 | CD167: 2 | CH167: 2 | CP167: 2 | CT167: 2 | CX167: 2 | DB167: 2 | DF167: 2 | DJ167: 2 | DN167: 2 | DS167: 2 | DZ167: 32 | EA167: 13 | EB167: 8 | EC167: 0
A168: 2 | B168: YELLA503122TSBH00991 | C168: YELLAREDDY SUPER SPECIALITY HOSPITAL | D168: Dr. E. SIDDI RAMULU,MAIN ROAD,YELLAREDDY, KAMAREDDY | E168: 40 | G168: 2 | K168: 2 | N168: 2 | V168: 2 | Z168: 2 | AD168: 2 | AH168: 2 | AM168: 2 | AP168: 2 | AT168: 2 | AU168: 2 | AX168: 2 | BB168: 2 | BF168: 2 | BJ168: 2 | BK168: 2 | BN168: 2 | BO168: 2 | BV168: 2 | BZ168: 2 | CD168: 2 | CH168: 2 | CL168: 2 | CP168: 2 | CT168: 2 | CX168: 2 | DB168: 2 | DF168: 2 | DJ168: 2 | DN168: 2 | DS168: 2 | DZ168: 48 | EA168: 14 | EB168: 0 | EC168: 0
A169: 3 | B169: COMMU503122TSBH09765 | C169: COMMUNITY HEALTH CENTER | D169: OPP.BUS STATION,YELLAREDDY. | E169: 30 | F169: 5 | J169: 5 | N169: 6 | V169: 5 | Z169: 5 | AD169: 5 | AH169: 6 | AL169: 5 | AP169: 5 | AT169: 6 | AX169: 6 | BB169: 6 | BF169: 6 | BJ169: 5 | BN169: 5 | BV169: 5 | BZ169: 5 | CD169: 5 | CH169: 2 | CL169: 5 | CP169: 5 | CT169: 5 | CX169: 5 | DB169: 5 | DF169: 5 | DJ169: 5 | DN169: 5 | DR169: 5 | DZ169: 143 | EA169: 0 | EB169: 0 | EC169: 0
A170: 4 | B170: ARKHO503122TSBH08475 | C170: ARK HOSPITAL | D170: NEAR SBI BANK, YELLAREDDY | E170: 20 | O170: 1 | W170: 1 | AA170: 1 | AE170: 1 | AI170: 1 | AN170: 1 | AQ170: 1 | AR170: 1 | AU170: 1 | AV170: 1 | AY170: 1 | BC170: 1 | BG170: 1 | BK170: 1 | BO170: 1 | BW170: 1 | CA170: 1 | CE170: 1 | CI170: 1 | CM170: 1 | CQ170: 1 | CU170: 1 | CY170: 1 | DC170: 1 | DG170: 1 | DK170: 1 | DO170: 1 | DR170: 1 | DZ170: 1 | EA170: 24 | EB170: 3 | EC170: 0
A171: 5 | B171: AJAYH503124TSBH08366 | C171: AJAY HOSPITAL (LINGAMPET) | D171: AMRUTHA COMPLEX, MAIN ROAD, LINGAMPET | E171: 15 | H171: 2 | L171: 2 | O171: 2 | Z171: 2 | AD171: 2 | AI171: 2 | AN171: 2 | AR171: 2 | AV171: 2 | BK171: 2 | BO171: 2 | CM171: 1 | CQ171: 2 | CU171: 2 | CY171: 2 | DC171: 2 | DG171: 1 | DK171: 1 | DO171: 1 | DR171: 2 | DZ171: 6 | EA171: 20 | EB171: 10 | EC171: 0
A172: 6 | B172: JEEVA503122TSBH09689 | C172: JEEVADAN HOSPITAL | D172: GANDIMASANIPET, MAIN ROAD,YELLAREDDY,KAMAREDDY | E172: 10 | G172: 1 | K172: 1 | AM172: 2 | AQ172: 2 | AU172: 2 | AY172: 2 | BC172: 2 | BG172: 2 | BJ172: 2 | BN172: 2 | BW172: 2 | CA172: 2 | CD172: 2 | CH172: 2 | CL172: 2 | CP172: 2 | CT172: 2 | CX172: 2 | DB172: 2 | DF172: 2 | DJ172: 2 | DN172: 2 | DR172: 2 | DZ172: 26 | EA172: 18 | EB172: 0 | EC172: 0
C173: TOTAL | E173: =SUM(E4:E172) -> 1817 | F173: =SUM(F4:F172) -> 5 | G173: 34 | H173: 56 | I173: 0 | J173: 7 | K173: 33 | L173: 59 | M173: 1 | N173: 31 | O173: 51 | P173: 16 | Q173: 0 | R173: 0 | S173: 0 | T173: 0 | U173: 0 | V173: 28 | W173: 53 | X173: 15 | Y173: 0 | Z173: 38 | AA173: 57 | AB173: 8 | AC173: 0 | AD173: 36 | AE173: 55 | AF173: 8 | AG173: 0 | AH173: 34 | AI173: 57 | AJ173: 3 | AK173: 4 | AL173: 29 | AM173: 57 | AN173: 7 | AO173: 4 | AP173: =SUM(AP4:AP172) -> 30 | AQ173: 53 | AR173: 7 | AS173: 4 | AT173: =SUM(AT4:AT172) -> 33 | AU173: 56 | AV173: 9 | AW173: 4 | AX173: =SUM(AX4:AX172) -> 40 | AY173: =SUM(AY4:AY172) -> 71 | AZ173: 2 | BA173: 0 | BB173: 41 | BC173: 71 | BD173: 4 | BE173: 0 | BF173: 41 | BG173: 71 | BH173: 4 | BI173: 0 | BJ173: 47 | BK173: 95 | BL173: 2 | BM173: 0 | BN173: =SUM(BN4:BN172) -> 45 | BO173: 97 | BP173: 2 | BQ173: 0 | BR173: 29 | BS173: 118 | BT173: 2 | BU173: 0 | BV173: =SUM(BV4:BV172) -> 49 | BW173: 124 | BX173: 2 | BY173: 0 | BZ173: 49 | CA173: 124 | CB173: 2 | CC173: 0 | CD173: =SUM(CD4:CD172) -> 52 | CE173: 129 | CF173: 2 | CG173: 0 | CH173: =SUM(CH4:CH172) -> 45 | CI173: 118 | CJ173: 2 | CK173: 0 | CL173: =SUM(CL4:CL172) -> 55 | CM173: 133 | CN173: 2 | CO173: 0 | CP173: 54 | CQ173: 127 | CR173: 2 | CS173: 0 | CT173: =SUM(CT4:CT172) -> 56 | CU173: 120 | CV173: 0 | CW173: 0 | CX173: 56 | CY173: 120 | CZ173: 0 | DA173: 0 | DB173: 55 | DC173: 113 | DD173: 2 | DE173: 0 | DF173: =SUM(DF4:DF172) -> 53 | DG173: 135 | DH173: 2 | DI173: 0 | DJ173: =SUM(DJ4:DJ172) -> 53 | DK173: =SUM(DK4:DK172) -> 129 | DL173: =SUM(DL4:DL172) -> 2 | DM173: =SUM(DM4:DM172) -> 0 | DN173: =SUM(DN4:DN172) -> 54 | DO173: 124 | DP173: 2 | DQ173: 0 | DR173: =SUM(DR4:DR172) -> 75 | DS173: 61 | DT173: 0 | DU173: 1 | DV173: =SUM(DV4:DV172) -> 0 | DW173: 0 | DX173: 0 | DY173: 0 | DZ173: =F173+J173+N173+R173+V173+Z173+AD173+AH173+AL173+AP173+AT173+AX173+BB173+BF173+BJ173+BN173+BR173+BV173+BZ173+CD173+CH173+CL173+CP173+CT173+CX173+DB173+DF173+DJ173+DN173+DR173+DV173 -> 1220 | EA173: =G173+K173+O173+S173+W173+AA173+AE173+AI173+AM173+AQ173+AU173+AY173+BC173+BG173+BK173+BO173+BS173+BW173+CA173+CE173+CI173+CM173+CQ173+CU173+CY173+DC173+DG173+DK173+DO173+DS173+DW173 -> 2586 | EB173: =H173+L173+P173+T173+X173+AB173+AF173+AJ173+AN173+AR173+AV173+AZ173+BD173+BH173+BL173+BP173+BT173+BX173+CB173+CF173+CJ173+CN173+CR173+CV173+CZ173+DD173+DH173+DL173+DP173+DT173 -> 224 | EC173: =I173+M173+Q173+U173+Y173+AC173+AG173+AK173+AO173+AS173+AW173+BA173+BE173+BI173+BM173+BQ173+BU173+BY173+CC173+CG173+CK173+CO173+CS173+CW173+DA173+DE173+DI173+DM173+DQ173+DU173 -> 18

Sheet Nirmal
A1: =Nizamabad!A1 -> NOVEMBER MONTH REPORT | F1: =Nizamabad!F1 -> 2021-11-01 | J1: =Nizamabad!J1 -> 2021-11-02 | N1: =Nizamabad!N1 -> 2021-11-03 | R1: =Nizamabad!R1 -> 2021-11-04 | V1: =Nizamabad!V1 -> 2021-11-05 | Z1: =Nizamabad!Z1 -> 2021-11-06 | AD1: =Nizamabad!AD1 -> 2021-11-07 | AH1: =Nizamabad!AH1 -> 2021-11-08 | AL1: =Nizamabad!AL1 -> 2021-11-09 | AP1: =Nizamabad!AP1 -> 2021-11-10 | AT1: =Nizamabad!AT1 -> 2021-11-11 | AX1: =Nizamabad!AX1 -> 2021-11-12 | BB1: =Nizamabad!BB1 -> 2021-11-13 | BF1: =Nizamabad!BF1 -> 2021-11-14 | BJ1: =Nizamabad!BJ1 -> 2021-11-15 | BN1: =Nizamabad!BN1 -> 2021-11-16 | BR1: =Nizamabad!BR1 -> 2021-11-17 | BV1: =Nizamabad!BV1 -> 2021-11-18 | BZ1: =Nizamabad!BZ1 -> 2021-11-19 | CD1: =Nizamabad!CD1 -> 2021-11-20 | CH1: =Nizamabad!CH1 -> 2021-11-21 | CL1: =Nizamabad!CL1 -> 2021-11-22 | CP1: =Nizamabad!CP1 -> 2021-11-23 | CT1: =Nizamabad!CT1 -> 2021-11-24 | CX1: =Nizamabad!CX1 -> 2021-11-25 | DB1: =Nizamabad!DB1 -> 2021-11-26 | DF1: =Nizamabad!DF1 -> 2021-11-27 | DJ1: =Nizamabad!DJ1 -> 2021-11-28 | DN1: =Nizamabad!DN1 -> 2021-11-29 | DR1: =Nizamabad!DR1 -> 2021-11-30 | DV1: =Nizamabad!DV1 -> 2021-12-01 | DZ1: TOTAL
A2: SNO | B2: HCF ID | C2: NAME OF THE HCF | D2: ADDRESS OF THE HCFS | E2: NO.OF BEDS | F2: Yellow | G2: Red | H2: Blue | I2: White | J2: Yellow | K2: Red | L2: Blue | M2: White | N2: Yellow | O2: Red | P2: Blue | Q2: White | R2: Yellow | S2: Red | T2: Blue | U2: White | V2: Yellow | W2: Red | X2: Blue | Y2: White | Z2: Yellow | AA2: Red | AB2: Blue | AC2: White | AD2: Yellow | AE2: Red | AF2: Blue | AG2: White | AH2: Yellow | AI2: Red | AJ2: Blue | AK2: White | AL2: Yellow | AM2: Red | AN2: Blue | AO2: White | AP2: Yellow | AQ2: Red | AR2: Blue | AS2: White | AT2: Yellow | AU2: Red | AV2: Blue | AW2: White | AX2: Yellow | AY2: Red | AZ2: Blue | BA2: White | BB2: Yellow | BC2: Red | BD2: Blue | BE2: White | BF2: Yellow | BG2: Red | BH2: Blue | BI2: White | BJ2: Yellow | BK2: Red | BL2: Blue | BM2: White | BN2: Yellow | BO2: Red | BP2: Blue | BQ2: White | BR2: Yellow | BS2: Red | BT2: Blue | BU2: White | BV2: Yellow | BW2: Red | BX2: Blue | BY2: White | BZ2: Yellow | CA2: Red | CB2: Blue | CC2: White | CD2: Yellow | CE2: Red | CF2: Blue | CG2: White | CH2: Yellow | CI2: Red | CJ2: Blue | CK2: White | CL2: Yellow | CM2: Red | CN2: Blue | CO2: White | CP2: Yellow | CQ2: Red | CR2: Blue | CS2: White | CT2: Yellow | CU2: Red | CV2: Blue | CW2: White | CX2: Yellow | CY2: Red | CZ2: Blue | DA2: White | DB2: Yellow | DC2: Red | DD2: Blue | DE2: White | DF2: Yellow | DG2: Red | DH2: Blue | DI2: White | DJ2: Yellow | DK2: Red | DL2: Blue | DM2: White | DN2: Yellow | DO2: Red | DP2: Blue | DQ2: White | DR2: Yellow | DS2: Red | DT2: Blue | DU2: White | DV2: Yellow | DW2: Red | DX2: Blue | DY2: White | DZ2: Yellow | EA2: Red | EB2: Blue | EC2: White
A3: 100 AND ABOVE BEDS HCFs
A4: 1 | B4: DISTR504106TSBH09389 | C4: DISTRICT HOSPITAL | D4: BUS STAND ROAD, NIRMAL | E4: 100 | G4: 1 | K4: 1 | O4: 1 | V4: 2 | Z4: 2 | AD4: 2 | AH4: 2 | AP4: 2 | AT4: 2 | AX4: 2 | BB4: 2 | BF4: 2 | BK4: 1 | BN4: 2 | BS4: 1 | BW4: 1 | CA4: 1 | CE4: 1 | CI4: 1 | CM4: 1 | CQ4: 1 | CU4: 1 | CY4: 1 | DC4: 1 | DF4: 2 | DJ4: 2 | DN4: 2 | DR4: 2 | DZ4: =F4+J4+N4+R4+V4+Z4+AD4+AH4+AL4+AP4+AT4+AX4+BB4+BF4+BJ4+BN4+BR4+BV4+BZ4+CD4+CH4+CL4+CP4+CT4+CX4+DB4+DF4+DJ4+DN4+DR4+DV4 -> 28 | EA4: =G4+K4+O4+S4+W4+AA4+AE4+AI4+AM4+AQ4+AU4+AY4+BC4+BG4+BK4+BO4+BS4+BW4+CA4+CE4+CI4+CM4+CQ4+CU4+CY4+DC4+DG4+DK4+DO4+DS4+DW4 -> 14 | EB4: =H4+L4+P4+T4+X4+AB4+AF4+AJ4+AN4+AR4+AV4+AZ4+BD4+BH4+BL4+BP4+BT4+BX4+CB4+CF4+CJ4+CN4+CR4+CV4+CZ4+DD4+DH4+DL4+DP4+DT4 -> 0 | EC4: =I4+M4+Q4+U4+Y4+AC4+AG4+AK4+AO4+AS4+AW4+BA4+BE4+BI4+BM4+BQ4+BU4+BY4+CC4+CG4+CK4+CO4+CS4+CW4+DA4+DE4+DI4+DM4+DQ4+DU4 -> 0
A5: 2 | B5: GOVER504103TSBH10071 | C5: GOVT AREA HOSPITAL, BHAINSA | D5: MAIN ROAD, BHAINSA. | E5: 100 | BO5: 1 | BS5: 1 | BW5: 1 | CA5: 1 | CE5: 1 | CI5: 1 | CM5: 1 | CQ5: 1 | CU5: 1 | CY5: 1 | DC5: 1 | DF5: 2 | DJ5: 2 | DN5: 2 | DR5: 2 | DZ5: =F5+J5+N5+R5+V5+Z5+AD5+AH5+AL5+AP5+AT5+AX5+BB5+BF5+BJ5+BN5+BR5+BV5+BZ5+CD5+CH5+CL5+CP5+CT5+CX5+DB5+DF5+DJ5+DN5+DR5+DV5 -> 8 | EA5: =G5+K5+O5+S5+W5+AA5+AE5+AI5+AM5+AQ5+AU5+AY5+BC5+BG5+BK5+BO5+BS5+BW5+CA5+CE5+CI5+CM5+CQ5+CU5+CY5+DC5+DG5+DK5+DO5+DS5+DW5 -> 11 | EB5: =H5+L5+P5+T5+X5+AB5+AF5+AJ5+AN5+AR5+AV5+AZ5+BD5+BH5+BL5+BP5+BT5+BX5+CB5+CF5+CJ5+CN5+CR5+CV5+CZ5+DD5+DH5+DL5+DP5+DT5 -> 0 | EC5: =I5+M5+Q5+U5+Y5+AC5+AG5+AK5+AO5+AS5+AW5+BA5+BE5+BI5+BM5+BQ5+BU5+BY5+CC5+CG5+CK5+CO5+CS5+CW5+DA5+DE5+DI5+DM5+DQ5+DU5 -> 0
A6: BELOW 100 BEDS HCFs
A7: NIRMAL
A8: 1 | B8: DEVEN504105TSBH08850 | C8: THIRUMALA SUPER SPECIALITY HOSPITAL, NIZAMABAD | D8: OPP: MAREMMA TEMPLE, KHANAPUR ROAD, NIRMAL | E8: 50 | H8: 1 | L8: 1 | P8: 1 | X8: 1 | AA8: 1 | AE8: 1 | AI8: 1 | AQ8: 1 | AV8: 1 | AZ8: 1 | BD8: 1 | BH8: 1 | BJ8: 2 | BO8: 1 | BS8: 1 | BW8: 1 | CA8: 1 | CE8: 1 | CI8: 1 | CM8: 1 | CQ8: 1 | CU8: 1 | CY8: 1 | DC8: 1 | DG8: 1 | DK8: 1 | DO8: 1 | DS8: 1 | DZ8: 2 | EA8: 19 | EB8: 8 | EC8: 0
A9: 2 | B9: PRASH504106TSBH01038 | C9: PRASHANTH'S G.K HOSPITAL | D9: DR. PRASHANTH, D.NO. 5-7-100/2, DOCTORS LANE, NEAR BUS STAND, NIRMAL | E9: 50 | F9: 2 | J9: 2 | N9: 2 | W9: 1 | AA9: 1 | AE9: 1 | AI9: 1 | AQ9: 1 | AU9: 1 | AY9: 1 | BC9: 1 | BG9: 1 | BJ9: 2 | BO9: 1 | BS9: 1 | BW9: 1 | CA9: 1 | CE9: 1 | CI9: 1 | CM9: 1 | CQ9: 1 | CU9: 1 | CY9: 1 | DC9: 1 | DG9: 1 | DK9: 1 | DO9: 1 | DS9: 1 | DZ9: 8 | EA9: 24 | EB9: 0 | EC9: 0
A10: 3 | B10: SRIAD504106TSBH00924 | C10: SRI ADITYA MULTI SPECIALITY HOSPITAL | D10: Dr. T. PRAMOD CHANDRA REDDY,MANCHIRAL ROAD, SHASTHRI NAGAR, NIRMAL | E10: 50 | G10: 1 | K10: 1 | O10: 1 | V10: 2 | AA10: 1 | AE10: 1 | AH10: 2 | AQ10: 1 | AT10: 2 | AX10: 2 | BB10: 2 | BF10: 2 | BJ10: 2 | BO10: 1 | BS10: 1 | BW10: 1 | CA10: 1 | CE10: 1 | CI10: 1 | CM10: 1 | CQ10: 1 | CU10: 1 | CY10: 1 | DC10: 1 | DG10: 1 | DK10: 1 | DO10: 1 | DS10: 1 | DZ10: 14 | EA10: 21 | EB10: 0 | EC10: 0
A11: 4 | B11: SUJAL504106TSBH00860 | C11: SUJALA NURSING HOME | D11: Dr. SUJALA,SUJALA NAGAR, MINI TANK BUND ROAD, NIRMAL. | E11: 50 | G11: 1 | K11: 1 | O11: 1 | W11: 1 | AA11: 1 | AE11: 1 | AI11: 1 | AQ11: 1 | AU11: 1 | AY11: 1 | BC11: 1 | BG11: 1 | BJ11: 2 | BO11: 1 | BW11: 1 | CA11: 1 | CE11: 1 | CI11: 1 | CM11: 1 | CQ11: 1 | CU11: 1 | CY11: 1 | DC11: 1 | DG11: 1 | DK11: 1 | DO11: 1 | DS11: 1 | DZ11: 2 | EA11: 26 | EB11: 0 | EC11: 0
A12: 5 | B12: SURYA504106TSBH00987 | C12: SURYA MULTI SPECIALITY HOSPITAL | D12: Dr RAMCHANDRA REDDY, H.NO. 1-3-13, PLOT NO.2, MNCL X ROAD, NIRMAL | E12: 50 | G12: 1 | J12: 2 | N12: 2 | V12: 2 | Z12: 2 | AD12: 2 | AH12: 2 | AP12: 2 | AT12: 2 | AX12: 2 | BB12: 2 | BF12: 2 | BK12: 1 | BN12: 2 | BR12: 2 | BV12: 2 | CD12: 2 | CH12: 2 | CL12: 2 | CP12: 2 | CT12: 2 | CX12: 2 | DB12: 2 | DF12: 2 | DJ12: 2 | DN12: 2 | DR12: 2 | DZ12: 50 | EA12: 2 | EB12: 0 | EC12: 0
A13: 6 | B13: TIRUM504106TSBH00945 | C13: TIRUMALA NURSING HOME | D13: DR.M. RAMESH REDDY, DOCTORS LANE,BESIDE THIRUMALA THAKIES, NRMLAL | E13: 50 | G13: 1 | K13: 1 | O13: 1 | V13: 2 | Z13: 2 | AD13: 2 | AH13: 2 | AM13: 1 | AP13: 2 | AT13: 2 | AY13: 1 | BC13: 1 | BG13: 1 | BL13: 1 | BN13: 2 | BR13: 2 | BV13: 2 | BZ13: 2 | CD13: 2 | CH13: 2 | CL13: 2 | CP13: 2 | CT13: 2 | CX13: 2 | DB13: 2 | DF13: 2 | DJ13: 2 | DN13: 2 | DR13: 2 | DZ13: 42 | EA13: 7 | EB13: 1 | EC13: 0
A14: 7 | B14: SWARN504106TSBH10074 | C14: SWARNA HOSPITAL | D14: Dr. A. SUVARNA REDDY, BEHIND CANARA BANK, BHEEM REDDY COMPLEX, N.H. 7 ROAD, NIRMAL. | E14: 30 | DH14: 1 | DL14: 1 | DP14: 1 | DT14: 1 | DZ14: 0 | EA14: 0 | EB14: 4 | EC14: 0
A15: 8 | B15: KAVER504105TSBH00916 | C15: KAVERI CHILDRENS HOSPITAL | D15: DR. CHAKRADHAR, NEAR TIRUMALA THEATRE, OPP: RTO OFFICE,KAVERI NAGAR, NIRMAL504105 | E15: 25 | DZ15: 0 | EA15: 0 | EB15: 0 | EC15: 0
A16: 9 | B16: SRILA504106TSBH09723 | C16: SRI LAXMI CHAITANYA HOSPITAL | D16: Dr. A. CHAITANYA,ANBADI NARSIMLU COMPLEX, DOCTOR'S LANE, NIRMAL. | E16: 24 | F16: 2 | J16: 2 | N16: 2 | W16: 1 | AA16: 1 | AE16: 1 | AI16: 1 | AQ16: 1 | AU16: 1 | AY16: 1 | BC16: 1 | BG16: 1 | BN16: 2 | BR16: 2 | BV16: 2 | BZ16: 2 | CD16: 2 | CH16: 2 | CL16: 2 | CP16: 2 | CT16: 2 | CX16: 2 | DB16: 2 | DG16: 1 | DK16: 1 | DO16: 1 | DS16: 1 | DZ16: 28 | EA16: 13 | EB16: 0 | EC16: 0
A17: 10 | B17: MRMUL504106TSBH08455 | C17: MR MULTI SPECIALITY HOSPITAL | D17: NIRMAL(D) Telangana-504106 | E17: 20 | F17: 2 | J17: 2 | N17: 2 | X17: 1 | AB17: 1 | AF17: 1 | AR17: 1 | AV17: 1 | AZ17: 1 | BD17: 1 | BH17: 1 | BJ17: 2 | BO17: 1 | BS17: 1 | BW17: 1 | CA17: 1 | CD17: 2 | CH17: 2 | CN17: 1 | CQ17: 1 | CU17: 1 | CY17: 1 | DB17: 2 | DG17: 1 | DK17: 1 | DO17: 1 | DS17: 1 | DZ17: 14 | EA17: 11 | EB17: 9 | EC17: 0
A18: 11 | B18: N.B.R504106TSBH09720 | C18: N.B.R MULTI SPECIALITY HOSPITAL | D18: Dr. U. SHOBHA SUBHASH RAO,OPP. BUS DEPOT,NIRMAL | E18: 20 | F18: 2 | J18: 2 | N18: 2 | W18: 1 | AA18: 1 | AE18: 1 | AI18: 1 | AQ18: 1 | AU18: 1 | AY18: 1 | BC18: 1 | BG18: 1 | BJ18: 2 | BN18: 2 | BR18: 2 | BV18: 2 | BZ18: 2 | CD18: 2 | CH18: 2 | CL18: 2 | CP18: 2 | CT18: 2 | CX18: 2 | DB18: 2 | DG18: 1 | DK18: 1 | DO18: 1 | DS18: 1 | DZ18: 30 | EA18: 13 | EB18: 0 | EC18: 0
A19: 12 | B19: RAVIM504106TSBH10075 | C19: RAVI MULTI SPECELITY HOSPITAL | D19: BEHIND PF OFFICE, DOCTORS LANE, OLD NH7 ROAD, NIRMAL | E19: 20 | DG19: 1 | DK19: 1 | DO19: 1 | DS19: 1 | DZ19: 0 | EA19: 4 | EB19: 0 | EC19: 0
A20: 13 | B20: DEVIB504106TSBH10076 | C20: DEVI BAI HOSPITAL | D20: BESIDE SAROJA HOSPITAL, OLD NH7 ROAD, NIRMAL | E20: 15 | CI20: 1 | DG20: 1 | DK20: 1 | DO20: 1 | DS20: 1 | DZ20: 0 | EA20: 5 | EB20: 0 | EC20: 0
A21: 14 | B21: PADMI504106TSBH00886 | C21: PADMINI HOSPITAL | D21: Dr. U. RAMAKRISHNA,OPP.RURAL POLICE STATION, N.H. 7 NIRMAL. | E21: 15 | G21: 1 | K21: 1 | O21: 1 | V21: 2 | Z21: 2 | AD21: 2 | AH21: 2 | AP21: 2 | AT21: 2 | AX21: 2 | BB21: 2 | BF21: 2 | BJ21: 2 | BN21: 2 | BR21: 2 | BV21: 2 | BZ21: 2 | CI21: 1 | CL21: 2 | CP21: 2 | CT21: 2 | CX21: 2 | DB21: 2 | DF21: 2 | DJ21: 2 | DN21: 2 | DR21: 2 | DZ21: 46 | EA21: 4 | EB21: 0 | EC21: 0
A22: 15 | B22: SAIBA504106TSBH00862 | C22: SAI BALAJI HOSPITAL | D22: BESIDE THIRUMALA THEATRE, NIRMAL | E22: 15 | G22: 1 | K22: 1 | O22: 1 | W22: 1 | AA22: 1 | AE22: 1 | AI22: 1 | AQ22: 1 | AU22: 1 | AY22: 1 | BC22: 1 | BG22: 1 | BL22: 1 | BO22: 1 | BS22: 1 | BW22: 1 | CA22: 1 | CE22: 1 | CI22: 1 | CM22: 1 | CQ22: 1 | CU22: 1 | CY22: 1 | DC22: 1 | DF22: 2 | DJ22: 2 | DN22: 2 | DR22: 2 | DZ22: 8 | EA22: 23 | EB22: 1 | EC22: 0
A23: 16 | B23: ANRPR504106TSBH10077 | C23: ANR PRAGATHI HOSPITAL | D23: BESIDE BUS STAND, PRIYADHARSHINI NAGAR, NIRMAL | E23: 15 | DG23: 1 | DK23: 1 | DO23: 1 | DS23: 1 | DZ23: 0 | EA23: 4 | EB23: 0 | EC23: 0
A24: 17 | B24: BALAJ504106TSBH10078 | C24: BALAJI MULTI SPECIALITY HOSPITAL | D24: BESIDE G.K. HOSPITAL, NEAR SRI LAXMI CHAITANYA HOSPITAL, OLD NH7 ROAD, NIRMAL | E24: 15 | DG24: 1 | DK24: 1 | DO24: 1 | DS24: 1 | DZ24: 0 | EA24: 4 | EB24: 0 | EC24: 0
A25: 18 | B25: SRICH504106TSBH10079 | C25: SRI CHANDANA HOSPITAL | D25: Dr. B. MOHAN MURTHI, NEAR NEW BUS STAND, DHARMASAGAR LANE, NIRMAL. | E25: 15 | AQ25: 1 | DG25: 1 | DK25: 1 | DO25: 1 | DS25: 1 | DZ25: 0 | EA25: 5 | EB25: 0 | EC25: 0
A26: 19 | B26: SRIVI504710TSBH00863 | C26: SRI VIDYA HOSPITAL | D26: BESIDE COMMUNIST STUPAM,NIRMAL | E26: 15 | G26: 1 | K26: 1 | O26: 1 | W26: 1 | AA26: 1 | AE26: 1 | AI26: 1 | AQ26: 1 | AU26: 1 | AY26: 1 | BC26: 1 | BG26: 1 | BJ26: 2 | BS26: 1 | CE26: 1 | CI26: 1 | CM26: 1 | DC26: 1 | DG26: 1 | DK26: 1 | DO26: 1 | DS26: 1 | DZ26: 2 | EA26: 21 | EB26: 0 | EC26: 0
A27: 20 | B27: SRILA504106TSBH09719 | C27: SRI LALITHA NURSING HOME | D27: Dr. D. RAJANI, NEAR BUS STAND, PRIYADERSHNI NAGAR, NIRMAL. | E27: 12 | F27: 2 | J27: 2 | N27: 2 | V27: 2 | Z27: 2 | AD27: 2 | AH27: 2 | AP27: 2 | AT27: 2 | AX27: 2 | BB27: 2 | BF27: 2 | BJ27: 2 | BO27: 1 | BS27: 1 | BW27: 1 | CA27: 1 | CE27: 1 | CI27: 1 | CM27: 1 | CQ27: 1 | CU27: 1 | CY27: 1 | DC27: 1 | DG27: 1 | DK27: 1 | DN27: 2 | DR27: 2 | DZ27: 30 | EA27: 13 | EB27: 0 | EC27: 0
A28: 21 | C28: SRI MAHALAXMI HOSPITAL | D28: DOCTORS LANE, NIRMAL | E28: 12 | DZ28: 0 | EA28: 0 | EB28: 0 | EC28: 0
A29: 22 | B29: GKHOS504106TSBH10142 | C29: G K HOSPITAL | D29: Dr. G. KISHAN, # 6-1-1, CHINTAKUNTAWADA, BUDHWARPET ROAD, NEAR S.B.I, NIRMAL-504106. | E29: 11 | DF29: 2 | DJ29: 2 | DN29: 2 | DR29: 2 | DZ29: 8 | EA29: 0 | EB29: 0 | EC29: 0
A30: 23 | B30: CITYN504106TSBH07057 | C30: CITY NURSING HOME | D30: Dr. AYSHA PARVEEN,OLD BUS STAND ROAD, NIRMAL-504106. | E30: 10 | G30: 1 | K30: 1 | O30: 1 | X30: 1 | AB30: 1 | AF30: 1 | AJ30: 1 | AR30: 1 | AV30: 1 | AZ30: 1 | BD30: 1 | BH30: 1 | BK30: 1 | BP30: 1 | BT30: 1 | BW30: 1 | CB30: 1 | CE30: 1 | CI30: 1 | CM30: 1 | CQ30: 1 | CU30: 1 | CY30: 1 | DC30: 1 | DG30: 1 | DK30: 1 | DO30: 1 | DS30: 1 | DZ30: 0 | EA30: 16 | EB30: 12 | EC30: 0
A31: 24 | B31: GAUTH504106TSBH06151 | C31: GAUTHAM NURSING HOME | D31: DR.P.VIJAYA KUMAR REDDY, BESIDE THIRUMALA TALKIES,NIRMAL-504106. | E31: 10 | F31: 2 | J31: 2 | N31: 2 | V31: 2 | Z31: 2 | AD31: 2 | AH31: 2 | AL31: 2 | AP31: 2 | AT31: 2 | AX31: 2 | BB31: 2 | BF31: 2 | BK31: 1 | BN31: 2 | BR31: 2 | BV31: 2 | BZ31: 2 | CD31: 2 | CH31: 1 | CL31: 2 | CP31: 2 | CT31: 2 | CX31: 2 | DB31: 2 | DG31: 1 | DK31: 1 | DO31: 1 | DS31: 1 | DZ31: 47 | EA31: 5 | EB31: 0 | EC31: 0
A32: 25 | B32: KALPA504106TSBH00901 | C32: KALPANA MULTI SPECIALITY HOSPITAL NIRMAL | D32: Dr. R. MUKHESH,DHARMASAGAR LAKE, AMBADI NARSIMLU COMPELX, NIRMAL. | E32: 10 | G32: 1 | K32: 1 | O32: 1 | V32: 2 | Z32: 2 | AD32: 2 | AH32: 2 | AN32: 1 | AP32: 2 | AT32: 2 | AX32: 2 | BB32: 2 | BF32: 2 | BK32: 1 | BN32: 2 | BR32: 2 | BV32: 2 | BZ32: 2 | CD32: 2 | CH32: 1 | CL32: 2 | CP32: 2 | CT32: 2 | CX32: 2 | DB32: 2 | DF32: 2 | DJ32: 2 | DN32: 2 | DR32: 2 | DZ32: 47 | EA32: 4 | EB32: 1 | EC32: 0
A33: 26 | C33: KALYANI HOSPITAL | D33: DOCTORS LANE, NIRMAL | E33: 10 | DZ33: 0 | EA33: 0 | EB33: 0 | EC33: 0
A34: 27 | B34: KANIK504106TSBH00892 | C34: KANIKA KIDNEY CARE CENTRE | D34: H.NO 5-6-7/10, DOCTORS LANE, OPP: THIRUMALA THEATORE, NIRMAL | E34: 10 | F34: 2 | J34: 2 | N34: 2 | V34: 2 | Z34: 2 | AD34: 2 | AH34: 2 | AP34: 2 | AT34: 2 | AX34: 2 | BB34: 2 | BF34: 2 | BK34: 1 | BN34: 2 | BR34: 2 | BV34: 2 | BZ34: 2 | CD34: 2 | CH34: 2 | CL34: 2 | CP34: 2 | CT34: 2 | CX34: 2 | DB34: 2 | DG34: 1 | DK34: 1 | DO34: 1 | DS34: 1 | DZ34: 46 | EA34: 5 | EB34: 0 | EC34: 0
A35: 28 | B35: NIRMA504106TSBH00927 | C35: NIRMAL NURSING HOME | D35: Dr.DAMERA RAMULU OPP.TIRUMALA THEATRE,NIRMAL | E35: 10 | F35: 2 | J35: 2 | N35: 2 | W35: 1 | AA35: 1 | AE35: 1 | AI35: 1 | AQ35: 1 | AU35: 1 | AZ35: 1 | BD35: 1 | BH35: 1 | BK35: 1 | BO35: 1 | BS35: 1 | BW35: 1 | CE35: 1 | CI35: 1 | CL35: 2 | CQ35: 1 | CU35: 1 | CY35: 1 | DC35: 1 | DF35: 2 | DH35: 1 | DJ35: 2 | DL35: 1 | DN35: 2 | DP35: 1 | DR35: 2 | DT35: 1 | DZ35: 16 | EA35: 16 | EB35: 7 | EC35: 0
A36: 29 | C36: NIRMAL SAI NURSING HOME | D36: Dr. J. DHOOM SINGH,DOCTORS LANE, NEAR THIRUMALA TALKIS, NIRMAL. | E36: 10 | DZ36: 0 | EA36: 0 | EB36: 0 | EC36: 0
A37: 30 | C37: SAI RAM NURSING HOME | D37: Dr. P. HANMANTH REDDY,BESIDE THIRUMALA TALKIES, NIRMAL.-504106 | E37: 10 | DZ37: 0 | EA37: 0 | EB37: 0 | EC37: 0
A38: 31 | C38: SANJEEVANI HOSPITAL | D38: Dr. V. SRINIVASA REDDY,OPP. THIRUMALA TALKIES, DOCTORS LANE, N.H. 7 ROAD, NIRMAL. | E38: 10 | DZ38: 0 | EA38: 0 | EB38: 0 | EC38: 0
A39: 32 | B39: SAROJ504106TSBH08458 | C39: SAROJA MATERNITY & TRAUMA CARE CENTRE | D39: Dr. A. RAMANA GOUD,BESIDE TRA OFFICE, N.H.-7 ROAD, NIRMAL. | E39: 10 | G39: 1 | K39: 1 | O39: 1 | W39: 1 | AA39: 1 | AE39: 1 | AI39: 1 | AM39: 1 | AQ39: 1 | AU39: 1 | AY39: 1 | BC39: 1 | BG39: 1 | BJ39: 2 | BO39: 1 | BS39: 1 | BW39: 1 | CA39: 1 | CE39: 1 | CI39: 1 | CM39: 1 | DC39: 1 | DF39: 2 | DJ39: 2 | DN39: 2 | DR39: 2 | DZ39: 10 | EA39: 21 | EB39: 0 | EC39: 0
A40: 33 | B40: SRIVE504106TSBH07087 | C40: SRI VENKATESHWARA HOSPITAL | D40: Dr. M. DAMODAR REDDY,BESIDE THIRUMALA TALKIES, NIRMAL.-504106. | E40: 10 | G40: 1 | K40: 1 | O40: 1 | W40: 1 | AA40: 1 | AE40: 1 | AI40: 1 | AM40: 1 | AQ40: 1 | AU40: 1 | AY40: 1 | BC40: 1 | BG40: 1 | BK40: 1 | BO40: 1 | BS40: 1 | BW40: 1 | CA40: 1 | CE40: 1 | CI40: 1 | CM40: 1 | CQ40: 1 | CU40: 1 | CY40: 1 | DC40: 1 | DG40: 1 | DK40: 1 | DO40: 1 | DS40: 1 | DZ40: 0 | EA40: 29 | EB40: 0 | EC40: 0
A41: 34 | C41: SUSHRUTA CHILDRENS HOSPITAL | D41: Dr. K. MURALIDHAR, DOCTORS LANE, NIRMAL-504106. | E41: 10 | DZ41: 0 | EA41: 0 | EB41: 0 | EC41: 0
A42: 35 | C42: SVR CHILDRENS HOSPITAL | D42: Dr. C. SANTOSH RAJ,GANESH SAMEEL COMPLEX, NEAR THIRUMALA TALKIS, NIRMAL. | E42: 10 | DZ42: 0 | EA42: 0 | EB42: 0 | EC42: 0
A43: 36 | C43: VEDA CHILDREN'S HOSPITAL | D43: DOCTORS LANE, NIRMAL | E43: 10 | DF43: 2 | DJ43: 2 | DN43: 2 | DR43: 2 | DZ43: 8 | EA43: 0 | EB43: 0 | EC43: 0
A44: 37 | B44: VIJAY504106TSBH09721 | C44: VIJAYA HOSPITAL | D44: Dr. K. RAGHUNANDAN REDDY, DOCTORS LANE, BESIDE THIRUMALA THEATRE, NIRMAL.-504106. | E44: 10 | F44: 2 | J44: 2 | N44: 2 | W44: 1 | AA44: 1 | AE44: 1 | AI44: 1 | AQ44: 1 | AY44: 1 | BC44: 1 | BG44: 1 | BL44: 1 | BN44: 2 | BR44: 2 | BV44: 2 | BZ44: 2 | CD44: 2 | CH44: 1 | CL44: 2 | CP44: 2 | CT44: 2 | CX44: 2 | DB44: 2 | DG44: 1 | DK44: 1 | DO44: 1 | DS44: 1 | DZ44: 27 | EA44: 12 | EB44: 1 | EC44: 0
A45: 38 | B45: SRICH504106TSBH08478 | C45: SRI CHANDRA CHILDRENS & NEONATAL HOSPITAL | D45: Dr. G. RAMESH,OPP. TIRUMALA TALKIS , N.H. 7 , NIRMAL | E45: 10 | G45: 1 | K45: 1 | O45: 1 | AA45: 1 | AE45: 1 | AI45: 1 | AU45: 1 | AY45: 1 | BC45: 1 | BG45: 1 | BJ45: 2 | BO45: 1 | BS45: 1 | BW45: 1 | CA45: 1 | CE45: 1 | CI45: 1 | CM45: 1 | CQ45: 1 | CU45: 1 | CY45: 1 | DC45: 1 | DG45: 1 | DK45: 1 | DO45: 1 | DS45: 1 | DZ45: 2 | EA45: 25 | EB45: 0 | EC45: 0
A46: 39 | C46: SRI DSK MULTISPECIALITY & MATERNITY HOSPITAL | D46: NIRMAL | E46: 9 | DZ46: 0 | EA46: 0 | EB46: 0 | EC46: 0
A47: 40 | B47: SRIKA504106TSBH09757 | C47: SRIKANTA HOSPITAL | D47: DR. CH. MOGULESHM H.NO.5-7-10/F-5, DOCTORS LANE, NEAR THIRUMALA TALKIES, OLD NH ROAD, NIRMAL. | E47: 9 | G47: 1 | K47: 1 | O47: 1 | W47: 1 | AI47: 1 | AM47: 1 | AQ47: 1 | AU47: 2 | AY47: 1 | BC47: 1 | BG47: 1 | BL47: 1 | BN47: 2 | BR47: 2 | BV47: 2 | BZ47: 2 | CD47: 2 | CH47: 2 | CL47: 2 | CP47: 2 | CT47: 2 | CX47: 2 | DB47: 2 | DG47: 2 | DK47: 1 | DO47: 2 | DS47: 2 | DZ47: 22 | EA47: 19 | EB47: 1 | EC47: 0
A48: 41 | C48: SURAKSHA HOSPITAL | D48: H.NO. 5-9-68/5/1, DOCTORS LANE, NIRMAL | E48: 9 | DZ48: 0 | EA48: 0 | EB48: 0 | EC48: 0
A49: 42 | C49: TEJA HOSPITAL | D49: DOCTORS LANE, NIRMAL | E49: 9 | DZ49: 0 | EA49: 0 | EB49: 0 | EC49: 0
A50: 43 | B50: SRIKR504106TSBH07079 | C50: SRI KRISHNA NEURO SUPER SPECIALITY HOSPITAL | D50: TIRUMALA THEATOR ROAD,NIRMAL | E50: 8 | F50: 2 | J50: 2 | N50: 2 | V50: 2 | Z50: 2 | AD50: 2 | AH50: 2 | AP50: 2 | AT50: 2 | AX50: 2 | BB50: 2 | BF50: 2 | BK50: 1 | BO50: 1 | BW50: 1 | CA50: 1 | CQ50: 1 | CU50: 1 | CY50: 1 | DC50: 1 | DG50: 1 | DK50: 1 | DO50: 1 | DS50: 1 | DZ50: 24 | EA50: 12 | EB50: 0 | EC50: 0
A51: 44 | B51: PRIMA504404TSBH09758 | C51: PRIMARY HEALTHCARE CENTRE, NARSAPUR | D51: VILLAGE: NARSAPUR, NIRMAL | E51: 6 | G51: 1 | K51: 1 | O51: 1 | W51: 1 | AI51: 1 | AQ51: 1 | AU51: 1 | AY51: 1 | BC51: 1 | BG51: 1 | BK51: 1 | BN51: 2 | BR51: 2 | BV51: 2 | BZ51: 2 | CD51: 2 | CH51: 2 | CL51: 2 | CP51: 2 | CT51: 2 | CX51: 2 | DB51: 2 | DF51: 2 | DJ51: 2 | DN51: 2 | DR51: 2 | DZ51: 30 | EA51: 11 | EB51: 0 | EC51: 0
A52: 45 | B52: PHCSO504105TSBH01028 | C52: PRIMARY HEALTHCARE CENTRE, SOAN | D52: NEAR SOAN POLICE STATION, Soan, NIRMAL,504105 | E52: 6 | BJ52: 2 | BO52: 1 | BS52: 1 | BW52: 1 | CA52: 1 | CE52: 1 | CI52: 1 | CM52: 1 | CQ52: 1 | CU52: 1 | CY52: 1 | DC52: 1 | DG52: 1 | DK52: 1 | DO52: 1 | DS52: 1 | DZ52: 2 | EA52: 15 | EB52: 0 | EC52: 0
A53: 46 | C53: SRI KRISHNA CHILDRENS HOSP | D53: Dr. P. SANTOSH,OPP.AMBDHATAR STATUE,NIRMAL. | E53: 6 | DZ53: 0 | EA53: 0 | EB53: 0 | EC53: 0
A54: 47 | B54: OMSAI504106TSBH08456 | C54: OM SAI ENT HOSPITAL | D54: Dr.DEVDAS,NH-7 ROAD,NIRMAL | E54: 5 | F54: 2 | J54: 2 | N54: 2 | V54: 2 | Z54: 2 | AD54: 2 | AH54: 2 | AP54: 2 | AT54: 2 | AX54: 2 | BB54: 2 | BF54: 2 | BK54: 1 | BN54: 2 | BR54: 2 | BV54: 2 | CD54: 2 | CH54: 2 | CL54: 2 | CP54: 2 | CT54: 2 | CX54: 2 | DB54: 2 | DH54: 1 | DL54: 1 | DP54: 1 | DT54: 1 | DZ54: 44 | EA54: 1 | EB54: 4 | EC54: 0
A55: 48 | B55: SRISA504106TSBH09722 | C55: SRI SAI ENT HOSPITAL | D55: Dr. S. SUNIL, 5-7-10/37/H3, Doctors lane, beside Thirumala Theater, Nirmal, Telangana 504106 | E55: 4 | F55: 2 | J55: 2 | N55: 2 | V55: 2 | Z55: 2 | AD55: 2 | AH55: 2 | AP55: 2 | AT55: 2 | AX55: 2 | BB55: 2 | BF55: 2 | BL55: 1 | BO55: 1 | BS55: 1 | BW55: 1 | CA55: 1 | CD55: 2 | CH55: 2 | CM55: 1 | CQ55: 1 | CU55: 1 | CY55: 1 | DB55: 2 | DG55: 1 | DK55: 1 | DO55: 1 | DS55: 1 | DZ55: 30 | EA55: 12 | EB55: 1 | EC55: 0
A56: 49 | B56: SHIVA504106TSBH00894 | C56: SHIVA SAI MULTI SPECIALIITY DENTAL CLINIC | D56: DOCTORS LANE, NIRMAL | E56: 3 | DZ56: 0 | EA56: 0 | EB56: 0 | EC56: 0
A57: 50 | C57: SRI SAI SUPER SPECIALITY DENTAL | D57: DR. VENKATA RAMANA, DOCTORS LANE, NIRMAL | E57: 3 | DZ57: 0 | EA57: 0 | EB57: 0 | EC57: 0
A58: 51 | C58: PARDHA DENTAL | E58: 2 | DZ58: 0 | EA58: 0 | EB58: 0 | EC58: 0
A59: 52 | C59: MUNWAR DENTAL | D59: Dr.MRS AMENA SHAHWAR,OPP. DCC BANK,NIRMAL | E59: 1 | DZ59: 0 | EA59: 0 | EB59: 0 | EC59: 0
A60: 53 | B60: NARAY504106TSDH09718 | C60: NARAYANA DENTAL CLINIC & IMPLANT CENTER | D60: BESIDE SVR CHILDRENS HOSPITAL, NEAR THIRUMALA THEATRE, VIVEKNAGAR, NIRMAL | E60: 0 | G60: 1 | K60: 1 | O60: 1 | W60: 1 | AA60: 1 | AE60: 1 | AI60: 1 | AQ60: 1 | AU60: 1 | AY60: 1 | BC60: 1 | BG60: 1 | BK60: 1 | BN60: 2 | BR60: 2 | BV60: 1 | BZ60: 2 | CE60: 1 | CI60: 1 | CM60: 1 | CP60: 2 | CT60: 2 | CX60: 2 | DC60: 1 | DF60: 2 | DJ60: 2 | DN60: 2 | DR60: 2 | DZ60: 21 | EA60: 17 | EB60: 0 | EC60: 0
A61: 54 | C61: NARAYANA HEART CARE HOSPITAL | D61: DOCTORS LANE,NEAR THIRUMALA TALKIS,NIRMAL | E61: 0 | DZ61: 0 | EA61: 0 | EB61: 0 | EC61: 0
A62: 55 | C62: NARENDRA NURSING HOME | D62: Dr.NAREDDRA REDDY NIRMAL | E62: 0 | DZ62: 0 | EA62: 0 | EB62: 0 | EC62: 0
A63: 56 | C63: NIRMAL NEURO HOSPITAL | D63: DOCTORS LANE, NIRMAL | E63: 0 | DZ63: 0 | EA63: 0 | EB63: 0 | EC63: 0
A64: 57 | B64: SHREE504106TSPL09725 | C64: SHREE DIAGNOSTICS & POLY CLINIC | D64: VENKATESHWARA COMPLEX,DOCTORS LANE, THIRUMALA THEATRE ROAD, NIRMAL | E64: 0 | F64: 2 | J64: 2 | N64: 2 | W64: 1 | AA64: 1 | AE64: 1 | AI64: 1 | AL64: 2 | AQ64: 1 | AU64: 1 | AY64: 1 | BC64: 1 | BG64: 1 | BK64: 1 | BN64: 2 | BR64: 2 | BV64: 2 | BZ64: 2 | CD64: 2 | CH64: 2 | CL64: 2 | CP64: 2 | CT64: 2 | CX64: 2 | DB64: 2 | DF64: 2 | DG64: 1 | DJ64: 2 | DK64: 1 | DN64: 2 | DO64: 1 | DR64: 2 | DS64: 1 | DZ64: 38 | EA64: 14 | EB64: 0 | EC64: 0
A65: 58 | B65: SRIBA504106TSBH07077 | C65: SRI BALAJI SKIN CARE | D65: Dr. K. RAGHAVENDRA,OPP. ADCC BANK,THIRUMALA TALKIES ROAD,NIRMAL | E65: 0 | DG65: 1 | DK65: 1 | DO65: 1 | DS65: 1 | DZ65: 0 | EA65: 4 | EB65: 0 | EC65: 0
A66: 59 | B66: SRINI504106TSBH00933 | C66: SRINIVASA DIAGNOSTICS & SPECIALITY LAB | D66: APPALA NARSAIAH COMPLEX,NEAR NEW BU STAND NIRMAL Telangana-504106 | E66: 0 | F66: 2 | J66: 2 | N66: 2 | V66: 2 | AH66: 2 | AL66: 2 | AT66: 2 | AX66: 2 | BB66: 2 | BF66: 2 | BJ66: 2 | DZ66: 22 | EA66: 0 | EB66: 0 | EC66: 0
A67: BHAINSA HOSPITALS
A68: 1 | B68: ARADH504103TSBH08518 | C68: ARADHANA NURSING HOME | D68: Dr. G. Raja Reddy, GOKUL NAGAR, BHAINSA. | E68: 50 | F68: 2 | J68: 2 | N68: 2 | X68: 1 | AB68: 1 | AF68: 1 | AJ68: 1 | AR68: 1 | AV68: 1 | AZ68: 1 | BD68: 1 | BH68: 1 | BJ68: 2 | BN68: 2 | BP68: 1 | BR68: 2 | BT68: 1 | BV68: 2 | BX68: 1 | BZ68: 2 | CD68: 2 | CH68: 2 | CL68: 2 | CP68: 2 | CT68: 2 | CX68: 2 | DB68: 2 | DF68: 2 | DJ68: 2 | DN68: 2 | DR68: 2 | DZ68: 38 | EA68: 0 | EB68: 12 | EC68: 0
A69: 2 | B69: KRISH504103TSBH09620 | C69: KRISHNA NURSING HOME | D69: Dr. DEEPA JADHAV,NARSIMHA NAGAR,BHAINSA, NIRMAL | E69: 50 | F69: 2 | J69: 2 | N69: 2 | W69: 1 | AA69: 1 | AE69: 1 | AI69: 1 | AQ69: 1 | AU69: 1 | AY69: 1 | BC69: 1 | BG69: 1 | BK69: 1 | BN69: 2 | BR69: 2 | BW69: 1 | BZ69: 2 | CE69: 1 | CI69: 1 | CM69: 1 | CQ69: 1 | CU69: 1 | CY69: 1 | DC69: 1 | DF69: 2 | DJ69: 2 | DN69: 2 | DR69: 2 | DZ69: =F69+J69+N69+R69+V69+Z69+AD69+AH69+AL69+AP69+AT69+AX69+BB69+BF69+BJ69+BN69+BR69+BV69+BZ69+CD69+CH69+CL69+CP69+CT69+CX69+DB69+DF69+DJ69+DN69+DR69+DV69 -> 20 | EA69: =G69+K69+O69+S69+W69+AA69+AE69+AI69+AM69+AQ69+AU69+AY69+BC69+BG69+BK69+BO69+BS69+BW69+CA69+CE69+CI69+CM69+CQ69+CU69+CY69+DC69+DG69+DK69+DO69+DS69+DW69 -> 18 | EB69: =H69+L69+P69+T69+X69+AB69+AF69+AJ69+AN69+AR69+AV69+AZ69+BD69+BH69+BL69+BP69+BT69+BX69+CB69+CF69+CJ69+CN69+CR69+CV69+CZ69+DD69+DH69+DL69+DP69+DT69 -> 0 | EC69: =I69+M69+Q69+U69+Y69+AC69+AG69+AK69+AO69+AS69+AW69+BA69+BE69+BI69+BM69+BQ69+BU69+BY69+CC69+CG69+CK69+CO69+CS69+CW69+DA69+DE69+DI69+DM69+DQ69+DU69 -> 0
A70: 3 | B70: SAISU504103TSBH01036 | C70: SAI SUPRIYA MULTI SPECIALTY HOSPITAL | D70: DOCTOR'S LANE, NARSIMHA TEMPLE ROAD, BHAINSA,Bhainsa (M),Bhainsa,NIRMAL,504103 | E70: 50 | F70: 2 | J70: 2 | N70: 2 | W70: 1 | AA70: 1 | AE70: 1 | AI70: 1 | AQ70: 1 | AU70: 1 | AY70: 1 | BC70: 1 | BG70: 1 | BJ70: 2 | BN70: 2 | BR70: 2 | BW70: 1 | BZ70: 2 | CE70: 1 | CI70: 1 | CM70: 1 | CP70: 2 | CT70: 2 | CX70: 2 | DC70: 1 | DF70: 2 | DJ70: 2 | DR70: 2 | DZ70: 26 | EA70: 14 | EB70: 0 | EC70: 0
A71: 4 | B71: NEWLI504103TSBH10067 | C71: NEW LIFE HOSPITAL | D71: FISH MARKET LANE, BHAINSA | E71: 8 | H71: 1 | L71: 1 | P71: 1 | W71: 1 | AA71: 1 | AE71: 1 | AI71: 1 | AQ71: 1 | AU71: 1 | AY71: 1 | BC71: 1 | BG71: 1 | BN71: 2 | BR71: 2 | BV71: 2 | BZ71: 2 | CD71: 2 | CH71: 2 | CL71: 2 | CP71: 2 | CT71: 2 | CX71: 2 | DB71: 2 | DG71: 1 | DK71: 1 | DO71: 1 | DS71: 1 | DZ71: 22 | EA71: 13 | EB71: 3 | EC71: 0
A72: 5 | B72: SANJE504103TSBH10064 | C72: SANJEEVANI NURSING HOME | D72: Dr. G. SURENDER, ASAD BABA NAGAR, ROAD NO.3, BESIDE KRUPA GAS COMPANY, BHAINSA, NIRMAL. | E72: 17 | F72: 2 | J72: 2 | N72: 2 | V72: 2 | Z72: 2 | AD72: 2 | AH72: 2 | AP72: 2 | AT72: 2 | AX72: 2 | BB72: 2 | BF72: 2 | BN72: 2 | BR72: 2 | BV72: 2 | BZ72: 2 | CF72: 1 | CJ72: 1 | CR72: 1 | CV72: 1 | CZ72: 1 | DD72: 1 | DF72: 2 | DJ72: 2 | DN72: 2 | DR72: 2 | DZ72: 40 | EA72: 0 | EB72: 6 | EC72: 0
A73: 6 | B73: ADITY504103TSBH10069 | C73: ADITYA NURSING HOME | D73: Dr. U. KASHINATH,GEETA COMPLEX, OPP.SBI BANK, BESIDE GEETA INDUSTRIES, BHAINSA. | E73: 15 | F73: 2 | J73: 2 | N73: 2 | V73: 2 | Z73: 2 | AD73: 2 | AH73: 2 | AP73: 2 | AT73: 2 | AX73: 2 | BB73: 2 | BF73: 2 | BO73: 1 | BS73: 1 | BV73: 2 | CA73: 1 | CE73: 1 | CI73: 1 | CM73: 1 | CQ73: 1 | CU73: 1 | CY73: 1 | DC73: 1 | DF73: 2 | DJ73: 2 | DN73: 2 | DT73: 1 | DZ73: 32 | EA73: 10 | EB73: 1 | EC73: 0
A74: 7 | B74: AKSHA504103TSBH09716 | C74: AKSHARA MULTI SPECIALITY HOSPITAL | D74: Dr. RAMESH RATHOD, OPP: VEDHAM HIGH SCHOOL, DOCTORS LANE, BHAINSA | E74: 15 | H74: 1 | L74: 1 | P74: 1 | W74: 1 | AA74: 1 | AE74: 1 | AI74: 1 | AQ74: 1 | AU74: 1 | AY74: 1 | BC74: 1 | BG74: 1 | BK74: 1 | BN74: 2 | BR74: 2 | BW74: 1 | BZ74: 2 | CD74: 2 | CH74: 2 | CM74: 1 | CP74: 2 | CT74: 2 | CX74: 2 | DC74: 1 | DF74: 2 | DJ74: 2 | DN74: 2 | DR74: 2 | DZ74: 24 | EA74: 13 | EB74: 3 | EC74: 0
A75: 8 | B75: SAKSH504103TSBH09717 | C75: SAKSHI METERNITY HOSPITAL | D75: Dr. PADMAVATHI BHOSLE, DOCTORS LANE, NARSIMHA MAHADEV MANDER ROAD,BHAINSA, NIRMAL. | E75: 13 | H75: 1 | L75: 1 | P75: 1 | V75: 2 | Z75: 2 | AD75: 2 | AH75: 2 | AP75: 2 | AT75: 2 | AX75: 2 | BB75: 2 | BF75: 2 | BK75: 1 | BN75: 2 | BR75: 2 | BV75: 2 | BZ75: 2 | CD75: 2 | CH75: 2 | CL75: 2 | CP75: 2 | CT75: 2 | CX75: 2 | DB75: 2 | DF75: 2 | DJ75: 2 | DN75: 2 | DR75: 2 | DZ75: 48 | EA75: 1 | EB75: 3 | EC75: 0
A76: 9 | B76: SRISA504103TSBH09715 | C76: SRI SAI METERNITY & GBN HOSPITAL | D76: ABOVE UNION BANK, MAIN ROAD, BHAINSA | E76: 12 | F76: 2 | J76: 2 | N76: 2 | V76: 2 | Z76: 2 | AD76: 2 | AH76: 2 | AP76: 2 | AT76: 2 | AX76: 2 | BB76: 2 | BF76: 2 | BK76: 1 | BO76: 1 | BS76: 1 | BW76: 1 | CA76: 1 | CE76: 1 | CI76: 1 | CM76: 1 | CQ76: 1 | CU76: 1 | CY76: 1 | DC76: 1 | DF76: 2 | DJ76: 2 | DN76: 2 | DR76: 2 | DZ76: 32 | EA76: 12 | EB76: 0 | EC76: 0
A77: 10 | C77: ADARSHA HOSPITAL | D77: Dr. K. SHIVAPRASAD REDDY,BESIDE BUS STAND,BHAINSA, NIRMAL | E77: 10 | DZ77: 0 | EA77: 0 | EB77: 0 | EC77: 0
A78: 11 | B78: ANIRU504103TSBH08493 | C78: ANIRUDH CHILDRENS HOSPITAL | D78: BESIDE BUSSTAND, BHAINSA | E78: 10 | H78: 1 | L78: 1 | P78: 1 | V78: 2 | Z78: 1 | AD78: 1 | AH78: 2 | AP78: 2 | AT78: 2 | AX78: 2 | BB78: 2 | BF78: 2 | BK78: 1 | BO78: 1 | BS78: 1 | CA78: 1 | CM78: 1 | CQ78: 1 | CU78: 1 | CY78: 1 | DC78: 1 | DG78: 1 | DK78: 1 | DO78: 1 | DS78: 1 | DZ78: 16 | EA78: 13 | EB78: 3 | EC78: 0
A79: 12 | B79: SRIDA504105TSBH07704 | C79: SRI DATTASAI NURSING HOME & INFERTILITY CLINIC | D79: Dr. VIJAY ANAND JADHAV, H.No.2-3-245/6, HAZARE COMPLEX, NARSIMHA MANDER ROAD, BHAINSA, NIRMAL | E79: 5 | H79: 1 | L79: 1 | P79: 1 | X79: 1 | Z79: 2 | AD79: 2 | AH79: 2 | AP79: 2 | AV79: 1 | AZ79: 1 | BD79: 1 | BH79: 1 | BJ79: 2 | BN79: 2 | BR79: 2 | BV79: 2 | CD79: 2 | CH79: 2 | CL79: 2 | CP79: 2 | CT79: 2 | CX79: 2 | DB79: 2 | DF79: 2 | DJ79: 2 | DN79: 2 | DR79: 2 | DZ79: 38 | EA79: 0 | EB79: 8 | EC79: 0
A80: 13 | B80: SRINA504103TSBH08529 | C80: SRI NARAYANA GURUKRUPA NURSING HOME | D80: DR.C. RAJSHRI, DOCTORS LANE, NARSIMHA MANDIR ROAD, BHAINSA | E80: 7 | H80: 1 | L80: 1 | P80: 1 | V80: 2 | Z80: 2 | AD80: 2 | AH80: 2 | AP80: 2 | AT80: 2 | AX80: 2 | BB80: 2 | BF80: 2 | BK80: 1 | BN80: 2 | BR80: 2 | BX80: 1 | BZ80: 2 | CD80: 2 | CH80: 2 | CN80: 1 | CP80: 2 | CT80: 2 | CX80: 2 | DD80: 1 | DG80: 1 | DK80: 1 | DO80: 1 | DS80: 1 | DZ80: 34 | EA80: 5 | EB80: 6 | EC80: 0
A81: 14 | B81: SHIVA504103TSBH09724 | C81: SHIVA TEJA HOSPITAL | D81: GEETHA COMPLEX, SHIVAJI CHOWK, MAIN ROAD, BHAINSA | E81: 4 | H81: 1 | L81: 1 | P81: 1 | W81: 1 | AA81: 1 | AE81: 1 | AI81: 1 | AQ81: 1 | AU81: 1 | AY81: 1 | BC81: 1 | BG81: 1 | BK81: 1 | BN81: 2 | BR81: 2 | BW81: 1 | BZ81: 2 | CD81: 2 | CH81: 2 | CM81: 1 | CP81: 2 | CT81: 2 | CX81: 2 | DC81: 1 | DF81: 4 | DJ81: 4 | DN81: 2 | DR81: 2 | DZ81: 28 | EA81: 13 | EB81: 3 | EC81: 0
A82: 15 | B82: AROGY504103TSBH10065 | C82: AROGYA HOSPITAL | D82: 4-3-77/1, NEAR KAMALA TALKIES, BESIDE BUS STAND, OPP: LIC OFFICE, BHAINSA | E82: 8 | F82: 2 | J82: 2 | N82: 2 | V82: 2 | Z82: 2 | AD82: 2 | AH82: 2 | AP82: 2 | AT82: 2 | AX82: 2 | BB82: 2 | BF82: 2 | BN82: 2 | BR82: 2 | BZ82: 2 | CD82: 2 | CH82: 2 | CL82: 2 | CP82: 2 | CT82: 2 | CX82: 2 | DB82: 2 | DH82: 1 | DL82: 1 | DP82: 1 | DT82: 1 | DZ82: 44 | EA82: 0 | EB82: 4 | EC82: 0
A83: 16 | B83: BLOOD504103TSBH05545 | C83: BLOOD BANK AREA HOSPITAL BHAINSA | D83: OPP: BUS STAND , BHAINSA | E83: 0 | H83: 1 | L83: 1 | P83: 1 | W83: 1 | AA83: 1 | AE83: 1 | AQ83: 1 | AU83: 1 | AY83: 1 | BC83: 1 | BG83: 1 | BJ83: 2 | BO83: 1 | BS83: 1 | BW83: 1 | CA83: 1 | CE83: 1 | CI83: 1 | CM83: 1 | CQ83: 1 | CU83: 1 | CY83: 1 | DC83: 1 | DG83: 1 | DK83: 1 | DN83: 2 | DR83: 2 | DZ83: 6 | EA83: 21 | EB83: 3 | EC83: 0
A84: 17 | B84: VAISH504103TSCL10072 | C84: VAISHNAVI CLINIC, BHAINSA, NIRMAL | D84: OPP: E.SEVA, ALI GODOWN, BUS STAND, BHAINSA | E84: 0 | H84: 1 | L84: 1 | P84: 1 | W84: 1 | AA84: 1 | AE84: 1 | AI84: 1 | AQ84: 1 | AV84: 1 | AZ84: 1 | BD84: 1 | BH84: 1 | BO84: 1 | BS84: 1 | BW84: 1 | CA84: 1 | CE84: 1 | CI84: 1 | CM84: 1 | CQ84: 1 | CU84: 1 | CY84: 1 | DC84: 1 | DG84: 11 | DK84: 1 | DO84: 1 | DS84: 1 | DZ84: 0 | EA84: 30 | EB84: 7 | EC84: 0
A85: 18 | C85: SAHASRA SKIN HOSPITAL | D85: BHAINSA | E85: 0 | DZ85: 0 | EA85: 0 | EB85: 0 | EC85: 0
A86: 19 | B86: SRRDI504103TSPL10073 | C86: SRR DIAGNOSTIC CENTRE (SRI RAJA RAJESHWARA) | D86: BESIDE POST OFFICE, OPP: SANDESH COMPLEX, BUS STAND ROAD, BHAINSA | E86: 0 | K86: 1 | O86: 1 | X86: 1 | AB86: 1 | AF86: 1 | AJ86: 1 | AR86: 1 | AV86: 1 | AZ86: 1 | BD86: 1 | BH86: 1 | BO86: 1 | BS86: 1 | BW86: 1 | CA86: 1 | CE86: 1 | CI86: 1 | CM86: 1 | CQ86: 1 | CU86: 1 | CY86: 1 | DC86: 1 | DG86: 1 | DK86: 1 | DO86: 1 | DS86: 1 | DZ86: 0 | EA86: 17 | EB86: 9 | EC86: 0
A87: MUDHOL HOSPITALS
A88: 1 | C88: L V PRASAD EYE HOSPITAL, MUDHOL | D88: Dr. D. SANDEEP RAO,BHOSLE GOPAL PATIL EYE CENTRE, MUDHOLE, NIRMAL. | E88: 26 | DZ88: 0 | EA88: 0 | EB88: 0 | EC88: 0
A89: 2 | B89: HYDER504105TSBH07034 | C89: HYDERABAD EYE INSTITUTE | D89: MUDHOLE, BASAR ROAD, NIRMAL | E89: 25 | G89: 1 | K89: 1 | O89: 1 | AA89: 1 | AE89: 1 | AI89: 1 | AQ89: 1 | AU89: 1 | AY89: 1 | BC89: 1 | BG89: 1 | BL89: 1 | BO89: 1 | BS89: 1 | BW89: 1 | CA89: 1 | CE89: 1 | CI89: 1 | CM89: 1 | CQ89: 1 | CU89: 1 | CY89: 1 | DC89: 1 | DF89: 2 | DJ89: 2 | DN89: 2 | DR89: 2 | DZ89: 8 | EA89: 22 | EB89: 1 | EC89: 0
A90: 3 | C90: NEW LIFE HOSPITAL | D90: MUDHOLE,NIRMAL DISTRICT | E90: 10 | DZ90: 0 | EA90: 0 | EB90: 0 | EC90: 0
A91: 4 | B91: SRISA504102TSBH10070 | C91: SRI SAI NURSING HOME, MUDHOL | D91: Dr. S. RAJESHWAR RAO,BESIDE MAHALAXMI TEMPLE, MUDHOLE | E91: 10 | F91: 4 | J91: 4 | N91: 4 | V91: 2 | Z91: 2 | AD91: 2 | AH91: 2 | AP91: 2 | AX91: 2 | BB91: 2 | BF91: 2 | BN91: 2 | BR91: 2 | BX91: 1 | CD91: 2 | CH91: 2 | CN91: 1 | CP91: 2 | CT91: 2 | CX91: 2 | DD91: 1 | DF91: 2 | DJ91: 2 | DN91: 2 | DR91: 2 | DZ91: 50 | EA91: 0 | EB91: 3 | EC91: 0
C92: TOTAL | E92: =SUM(E4:E91) -> 1364 | F92: =SUM(F4:F91) -> 46 | G92: =SUM(G4:G91) -> 17 | H92: 10 | I92: 0 | J92: =SUM(J4:J91) -> 48 | K92: 17 | L92: =SUM(L4:L91) -> 10 | M92: 0 | N92: =SUM(N4:N91) -> 48 | O92: 17 | P92: 10 | Q92: 0 | R92: 0 | S92: 0 | T92: 0 | U92: 0 | V92: 42 | W92: 21 | X92: 6 | Y92: 0 | Z92: 39 | AA92: 23 | AB92: 4 | AC92: 0 | AD92: 39 | AE92: 23 | AF92: 4 | AG92: 0 | AH92: 44 | AI92: 23 | AJ92: 3 | AK92: 0 | AL92: 6 | AM92: 4 | AN92: 1 | AO92: 0 | AP92: 40 | AQ92: 25 | AR92: 4 | AS92: 0 | AT92: 40 | AU92: 22 | AV92: 7 | AW92: 0 | AX92: 40 | AY92: 22 | AZ92: 8 | BA92: 0 | BB92: 40 | BC92: 22 | BD92: 8 | BE92: 0 | BF92: 40 | BG92: 22 | BH92: 8 | BI92: 0 | BJ92: 34 | BK92: 20 | BL92: 6 | BM92: 0 | BN92: =SUM(BN4:BN91) -> 54 | BO92: 22 | BP92: 2 | BQ92: 0 | BR92: =SUM(BR4:BR91) -> 52 | BS92: 22 | BT92: 2 | BU92: 0 | BV92: =SUM(BV4:BV91) -> 39 | BW92: 26 | BX92: 3 | BY92: 0 | BZ92: 44 | CA92: 22 | CB92: 1 | CC92: 0 | CD92: =SUM(CD4:CD91) -> 46 | CE92: 24 | CF92: 1 | CG92: 0 | CH92: =SUM(CH4:CH91) -> 43 | CI92: 26 | CJ92: 1 | CK92: 0 | CL92: =SUM(CL4:CL91) -> 38 | CM92: 27 | CN92: 3 | CO92: 0 | CP92: =SUM(CP4:CP91) -> 48 | CQ92: 24 | CR92: 1 | CS92: 0 | CT92: 48 | CU92: 24 | CV92: 1 | CW92: 0 | CX92: 48 | CY92: 24 | CZ92: 1 | DA92: 0 | DB92: 40 | DC92: 28 | DD92: 3 | DE92: 0 | DF92: 54 | DG92: 43 | DH92: 4 | DI92: 0 | DJ92: 54 | DK92: 32 | DL92: 4 | DM92: 0 | DN92: =SUM(DN4:DN91) -> 54 | DO92: 31 | DP92: 4 | DQ92: 0 | DR92: 54 | DS92: 31 | DT92: 5 | DU92: 0 | DV92: =SUM(DV4:DV91) -> 0 | DW92: =SUM(DW4:DW91) -> 0 | DX92: =SUM(DX4:DX91) -> 0 | DY92: =SUM(DY4:DY91) -> 0 | DZ92: 1262 | EA92: 684 | EB92: 125 | EC92: 0

Sheet Adilabad
A1: =Nizamabad!A1 -> NOVEMBER MONTH REPORT | F1: =Nizamabad!F1 -> 2021-11-01 | J1: =Nizamabad!J1 -> 2021-11-02 | N1: =Nizamabad!N1 -> 2021-11-03 | R1: =Nizamabad!R1 -> 2021-11-04 | V1: =Nizamabad!V1 -> 2021-11-05 | Z1: =Nizamabad!Z1 -> 2021-11-06 | AD1: =Nizamabad!AD1 -> 2021-11-07 | AH1: =Nizamabad!AH1 -> 2021-11-08 | AL1: =Nizamabad!AL1 -> 2021-11-09 | AP1: =Nizamabad!AP1 -> 2021-11-10 | AT1: =Nizamabad!AT1 -> 2021-11-11 | AX1: =Nizamabad!AX1 -> 2021-11-12 | BB1: =Nizamabad!BB1 -> 2021-11-13 | BF1: =Nizamabad!BF1 -> 2021-11-14 | BJ1: =Nizamabad!BJ1 -> 2021-11-15 | BN1: =Nizamabad!BN1 -> 2021-11-16 | BR1: =Nizamabad!BR1 -> 2021-11-17 | BV1: =Nizamabad!BV1 -> 2021-11-18 | BZ1: =Nizamabad!BZ1 -> 2021-11-19 | CD1: =Nizamabad!CD1 -> 2021-11-20 | CH1: =Nizamabad!CH1 -> 2021-11-21 | CL1: =Nizamabad!CL1 -> 2021-11-22 | CP1: =Nizamabad!CP1 -> 2021-11-23 | CT1: =Nizamabad!CT1 -> 2021-11-24 | CX1: =Nizamabad!CX1 -> 2021-11-25 | DB1: =Nizamabad!DB1 -> 2021-11-26 | DF1: =Nizamabad!DF1 -> 2021-11-27 | DJ1: =Nizamabad!DJ1 -> 2021-11-28 | DN1: =Nizamabad!DN1 -> 2021-11-29 | DR1: =Nizamabad!DR1 -> 2021-11-30 | DV1: =Nizamabad!DV1 -> 2021-12-01 | DZ1: TOTAL
A2: SNO | B2: HCF ID | C2: NAME OF THE HCF | D2: ADDRESS OF THE HCFS | E2: NO.OF BEDS | F2: Yellow | G2: Red | H2: Blue | I2: White | J2: Yellow | K2: Red | L2: Blue | M2: White | N2: Yellow | O2: Red | P2: Blue | Q2: White | R2: Yellow | S2: Red | T2: Blue | U2: White | V2: Yellow | W2: Red | X2: Blue | Y2: White | Z2: Yellow | AA2: Red | AB2: Blue | AC2: White | AD2: Yellow | AE2: Red | AF2: Blue | AG2: White | AH2: Yellow | AI2: Red | AJ2: Blue | AK2: White | AL2: Yellow | AM2: Red | AN2: Blue | AO2: White | AP2: Yellow | AQ2: Red | AR2: Blue | AS2: White | AT2: Yellow | AU2: Red | AV2: Blue | AW2: White | AX2: Yellow | AY2: Red | AZ2: Blue | BA2: White | BB2: Yellow | BC2: Red | BD2: Blue | BE2: White | BF2: Yellow | BG2: Red | BH2: Blue | BI2: White | BJ2: Yellow | BK2: Red | BL2: Blue | BM2: White | BN2: Yellow | BO2: Red | BP2: Blue | BQ2: White | BR2: Yellow | BS2: Red | BT2: Blue | BU2: White | BV2: Yellow | BW2: Red | BX2: Blue | BY2: White | BZ2: Yellow | CA2: Red | CB2: Blue | CC2: White | CD2: Yellow | CE2: Red | CF2: Blue | CG2: White | CH2: Yellow | CI2: Red | CJ2: Blue | CK2: White | CL2: Yellow | CM2: Red | CN2: Blue | CO2: White | CP2: Yellow | CQ2: Red | CR2: Blue | CS2: White | CT2: Yellow | CU2: Red | CV2: Blue | CW2: White | CX2: Yellow | CY2: Red | CZ2: Blue | DA2: White | DB2: Yellow | DC2: Red | DD2: Blue | DE2: White | DF2: Yellow | DG2: Red | DH2: Blue | DI2: White | DJ2: Yellow | DK2: Red | DL2: Blue | DM2: White | DN2: Yellow | DO2: Red | DP2: Blue | DQ2: White | DR2: Yellow | DS2: Red | DT2: Blue | DU2: White | DV2: Yellow | DW2: Red | DX2: Blue | DY2: White | DZ2: Yellow | EA2: Red | EB2: Blue | EC2: White
A3: 100 AND ABOVE BEDS HCFs
A4: 1 | B4: RIMSH504001TSBH09958 RIMS(504001TSBH10171 | C4: RIMS (RAJIV GANDHI INSTITUTE OF MEDICAL SCIENCES) | D4: RIKSHAW COLONY, BUS STATION ROAD, ADILABAD | E4: 500 | BB4: 2 | BF4: 2 | CA4: 1 | CP4: 5 | CT4: 5 | CX4: 5 | DB4: 5 | DF4: 3 | DJ4: 2 | DN4: 3 | DR4: 2 | DZ4: =F4+J4+N4+R4+V4+Z4+AD4+AH4+AL4+AP4+AT4+AX4+BB4+BF4+BJ4+BN4+BR4+BV4+BZ4+CD4+CH4+CL4+CP4+CT4+CX4+DB4+DF4+DJ4+DN4+DR4+DV4 -> 34 | EA4: =G4+K4+O4+S4+W4+AA4+AE4+AI4+AM4+AQ4+AU4+AY4+BC4+BG4+BK4+BO4+BS4+BW4+CA4+CE4+CI4+CM4+CQ4+CU4+CY4+DC4+DG4+DK4+DO4+DS4+DW4 -> 1 | EB4: =H4+L4+P4+T4+X4+AB4+AF4+AJ4+AN4+AR4+AV4+AZ4+BD4+BH4+BL4+BP4+BT4+BX4+CB4+CF4+CJ4+CN4+CR4+CV4+CZ4+DD4+DH4+DL4+DP4+DT4 -> 0 | EC4: =I4+M4+Q4+U4+Y4+AC4+AG4+AK4+AO4+AS4+AW4+BA4+BE4+BI4+BM4+BQ4+BU4+BY4+CC4+CG4+CK4+CO4+CS4+CW4+DA4+DE4+DI4+DM4+DQ4+DU4 -> 0
B5: BELOW 100 BEDS HCFs
A6: 1 | C6: AAYUSHMAN HOSPITAL | D6: RAMPUR N.H. 44, ROAD, ADILABAD | E6: 50 | DZ6: =F6+J6+N6+R6+V6+Z6+AD6+AH6+AL6+AP6+AT6+AX6+BB6+BF6+BJ6+BN6+BR6+BV6+BZ6+CD6+CH6+CL6+CP6+CT6+CX6+DB6+DF6+DJ6+DN6+DR6+DV6 -> 0 | EA6: =G6+K6+O6+S6+W6+AA6+AE6+AI6+AM6+AQ6+AU6+AY6+BC6+BG6+BK6+BO6+BS6+BW6+CA6+CE6+CI6+CM6+CQ6+CU6+CY6+DC6+DG6+DK6+DO6+DS6+DW6 -> 0 | EB6: =H6+L6+P6+T6+X6+AB6+AF6+AJ6+AN6+AR6+AV6+AZ6+BD6+BH6+BL6+BP6+BT6+BX6+CB6+CF6+CJ6+CN6+CR6+CV6+CZ6+DD6+DH6+DL6+DP6+DT6 -> 0 | EC6: =I6+M6+Q6+U6+Y6+AC6+AG6+AK6+AO6+AS6+AW6+BA6+BE6+BI6+BM6+BQ6+BU6+BY6+CC6+CG6+CK6+CO6+CS6+CW6+DA6+DE6+DI6+DM6+DQ6+DU6 -> 0
A7: 2 | B7: CHROM504001TSBH09734 | C7: CHROME SUPER SPECIALITY HOSPITAL | D7: D.NO.4-5-29/5, BHUKTHAPUR, BESIDE TAMSI, BUS STAND, ADILABAD | E7: 50 | G7: 1 | K7: 1 | O7: 1 | V7: 2 | Z7: 2 | AD7: 2 | AH7: 2 | AM7: 1 | AT7: 2 | AX7: 2 | BB7: 2 | BF7: 2 | BJ7: 2 | BN7: 2 | BR7: 2 | BV7: 2 | BZ7: 2 | CD7: 2 | CH7: 2 | CL7: 2 | CP7: 2 | CT7: 2 | CX7: 2 | DB7: 2 | DF7: 2 | DJ7: 2 | DN7: 2 | DR7: 2 | DZ7: 48 | EA7: 4 | EB7: 0 | EC7: 0
A8: 3 | B8: SRISE504311TSBH00926 | C8: THIRUMALA SUPER SPECIALITY HOSPITAL, NIZAMABAD | D8: SRI SEVALAL MAHARAJ HOSPITAL,UTNOOR,I.B CHOWRASTA,Utnoor,Utnoor,ADILABAD,504311 | E8: 50 | DZ8: 0 | EA8: 0 | EB8: 0 | EC8: 0
A9: 4 | B9: HYDER504001TSBH09727 | C9: HYDERABAD EYE INSTITUTE (LV PRASAD) | D9: SESHANNA CHENNAWAR EYE CENTER, NARESH RAO (Administrator), NEAR CHAVARA SCHOOL, MAVALA VILLAGE, NH 7, ADILIBAD | E9: 22 | G9: 1 | K9: 1 | O9: 1 | V9: 2 | Z9: 2 | AD9: 2 | AH9: 2 | AM9: 1 | AP9: 2 | AT9: 2 | AX9: 2 | BB9: 2 | BF9: 2 | BK9: 1 | BN9: 2 | BS9: 1 | BW9: 1 | BZ9: 2 | CE9: 1 | CI9: 1 | CQ9: 1 | CU9: 1 | CY9: 1 | DC9: 1 | DF9: 2 | DJ9: 2 | DN9: 2 | DR9: 2 | DZ9: 30 | EA9: 13 | EB9: 0 | EC9: 0
A10: 5 | B10: CHRIS504001TSBH08494 | C10: CHRISTIAN HOSPITAL | D10: DOOR NO:2-143, OLD NATIONAL HIGHWAY ROAD,ADILABAD | E10: 20 | G10: 1 | K10: 1 | O10: 1 | W10: 1 | AA10: 1 | AE10: 1 | AI10: 1 | AM10: 1 | AQ10: 1 | AU10: 1 | AY10: 1 | BC10: 1 | BG10: 1 | BJ10: 2 | BO10: 1 | BS10: 1 | BW10: 1 | CA10: 1 | CE10: 1 | CI10: 1 | CM10: 1 | CQ10: 1 | CU10: 1 | CY10: 1 | DC10: 1 | DG10: 1 | DK10: 1 | DO10: 1 | DS10: 1 | DZ10: 2 | EA10: 28 | EB10: 0 | EC10: 0
A11: 6 | B11: SACHI504001TSBH06153 | C11: SACHI NURSING HOME | D11: OPP. NATRAJ THEATRE, BHUKTAPUR, ADILABAD. | E11: 20 | G11: 1 | K11: 1 | O11: 1 | W11: 1 | AA11: 1 | AE11: 1 | AI11: 1 | AM11: 1 | AQ11: 1 | AU11: 1 | AY11: 1 | BC11: 1 | BG11: 1 | BJ11: 2 | BO11: 1 | BS11: 1 | BW11: 1 | CA11: 1 | CE11: 1 | CI11: 1 | CM11: 1 | CQ11: 1 | CU11: 1 | CY11: 1 | DC11: 1 | DG11: 1 | DK11: 1 | DO11: 1 | DS11: 1 | DZ11: 2 | EA11: 28 | EB11: 0 | EC11: 0
A12: 7 | B12: SNEHA504001TSBH08482 | C12: SNEHA NURSING HOME, ADILABAD | D12: Dr. SANJAY L. GUJRATHI,NEAR DWARAKANAGAR HANUMAN TEMPLE, ADILABAD | E12: 20 | F12: 2 | J12: 2 | N12: 2 | V12: 2 | Z12: 2 | AD12: 2 | AH12: 2 | AP12: 2 | AT12: 2 | AX12: 2 | BB12: 2 | BF12: 2 | BL12: 1 | BP12: 1 | BT12: 1 | BX12: 1 | CB12: 1 | CF12: 1 | CI12: 1 | CN12: 1 | CR12: 1 | CV12: 1 | CZ12: 1 | DD12: 1 | DF12: 2 | DJ12: 2 | DN12: 2 | DZ12: 30 | EA12: 1 | EB12: 11 | EC12: 0
A13: 8 | B13: ADITY504001TSBH09747 | C13: ADITYA HOSPITAL, GENERAL & CTIRICAL CARE CENTRE | D13: NETHAJI CHOWK, TNGO'S ROAD, CINEMA ROAD, BESIDE: ANIL CHIDRALA HOSPITAL, ADILABAD | E13: 15 | G13: 1 | K13: 1 | O13: 1 | W13: 1 | AA13: 1 | AE13: 1 | AJ13: 1 | AM13: 1 | AR13: 1 | AV13: 1 | AZ13: 1 | BD13: 1 | BH13: 1 | BK13: 1 | BN13: 2 | BR13: 2 | BV13: 2 | BZ13: 2 | CD13: 2 | CH13: 2 | CN13: 1 | CP13: 2 | CT13: 2 | CX13: 2 | DD13: 1 | DF13: 2 | DJ13: 2 | DN13: 2 | DR13: 2 | DZ13: 26 | EA13: 8 | EB13: 8 | EC13: 0
A14: 9 | B14: AMMAH504001TSBH08481 | C14: AMMA HOSPITALS | D14: NEAR RIMS HOSPITAL,ADILABAD | E14: 15 | F14: 2 | J14: 2 | N14: 2 | V14: 2 | Z14: 2 | AD14: 2 | AH14: 2 | AL14: 2 | AP14: 2 | AT14: 2 | AX14: 2 | BB14: 2 | BF14: 2 | BK14: 1 | BN14: 2 | BR14: 2 | BV14: 2 | BZ14: 2 | CD14: 2 | CH14: 2 | CL14: 2 | CP14: 2 | CT14: 2 | CX14: 2 | DB14: 2 | DF14: 2 | DJ14: 2 | DN14: 2 | DS14: 1 | DZ14: 54 | EA14: 2 | EB14: 0 | EC14: 0
A15: 10 | B15: JEEVA504001TSBH00978 | C15: JEEVANA JYOTHI HOSPITAL | D15: Dr. CHANDRA SHEKHAR REDDY,BESIDE BUS STAND, ADILABAD. 504001 | E15: 15 | G15: 1 | K15: 1 | O15: 1 | V15: 2 | AA15: 1 | AE15: 1 | AI15: 1 | AM15: 1 | AP15: 2 | AT15: 2 | AX15: 2 | BB15: 2 | BF15: 2 | BK15: 1 | BN15: 2 | BR15: 2 | BV15: 2 | BZ15: 2 | CD15: 2 | CH15: 2 | CL15: 2 | CP15: 2 | CT15: 2 | CX15: 2 | DB15: 2 | DF15: 2 | DJ15: 2 | DN15: 2 | DR15: 2 | DZ15: 42 | EA15: 8 | EB15: 0 | EC15: 0
A16: 11 | C16: SHAMALA SATHYANARAYANA HOSPITAL | D16: Dr.P.SATHYA NARAYANA,NETHAJI CHOWK,ADILABAD | E16: 15 | DZ16: 0 | EA16: 0 | EB16: 0 | EC16: 0
A17: 12 | C17: SHEKATH MATERNITY NURSING HOME | D17: Dr.MANOHAR,NTR CHOWK,ADILABAD | E17: 15 | DZ17: 0 | EA17: 0 | EB17: 0 | EC17: 0
A18: 13 | B18: SRAVY504001TSBH00979 | C18: SRAVYA NURSING HOME | D18: OPP:REGISTRATION OFFICE,VIDYANAGAR COLONY, BUS STAND ROAD NH-7, ADILABAD,504001 | E18: 15 | F18: 2 | J18: 2 | N18: 2 | Z18: 2 | AD18: 2 | AH18: 2 | AL18: 2 | AP18: 2 | AT18: 2 | AX18: 2 | BB18: 2 | BF18: 2 | BJ18: 2 | BN18: 2 | BR18: 2 | BV18: 2 | BZ18: 2 | CD18: 2 | CH18: 2 | CL18: 2 | CP18: 2 | CT18: 2 | CX18: 2 | DB18: 2 | DG18: 1 | DK18: 1 | DO18: 1 | DS18: 1 | DZ18: 48 | EA18: 4 | EB18: 0 | EC18: 0
A19: 14 | B19: SRIBA504001TSBH00931 | C19: SRI BALAJI HOSPITAL | D19: Dr. A. AMIT SUNDER RAO,STATION ROAD, SHIVAJI CHOWK, ADILABAD. | E19: 14 | F19: 4 | J19: 2 | N19: 2 | V19: 4 | Z19: 4 | AD19: 4 | AL19: 4 | AP19: 4 | AT19: 4 | AX19: 2 | BB19: 2 | BF19: 2 | BJ19: 2 | BK19: 1 | BN19: 4 | BR19: 4 | BV19: 2 | BW19: 1 | BZ19: 2 | CA19: 1 | CD19: 2 | CE19: 1 | CH19: 2 | CI19: 1 | CL19: 2 | CM19: 1 | CP19: 2 | CQ19: 1 | CT19: 2 | CU19: 1 | CX19: 2 | CY19: 1 | DB19: 2 | DF19: 2 | DG19: 1 | DJ19: 2 | DK19: 1 | DN19: 2 | DO19: 1 | DR19: 2 | DS19: 1 | DZ19: 74 | EA19: 13 | EB19: 0 | EC19: 0
A20: 15 | B20: AYYAP504001TSBH01032 | C20: AYYAPPA ORTHOPAEDIC & CHILDREN HOSPITAL | D20: Dr. ANIL KUMAR CHINDRALA,BEHIND NETHAJI CHOWK, T.N.G.O. ROAD, ADILABAD. | E20: 12 | F20: 2 | J20: 2 | N20: 2 | V20: 2 | Z20: 2 | AD20: 2 | AH20: 2 | AL20: 2 | AP20: 2 | AT20: 2 | AX20: 2 | BB20: 2 | BF20: 2 | BK20: 1 | BN20: 2 | BR20: 2 | BV20: 2 | BZ20: 2 | CD20: 2 | CH20: 2 | CL20: 2 | CP20: 2 | CT20: 2 | CX20: 2 | DB20: 2 | DF20: 2 | DJ20: 2 | DN20: 2 | DS20: 1 | DZ20: 54 | EA20: 2 | EB20: 0 | EC20: 0
A21: 16 | C21: NEW LIFE PEOPLES NURSING HOME | D21: Dr.I.SUNDERAIAH,ADARSHA NAGAR,ADILABAD | E21: 12 | DZ21: 0 | EA21: 0 | EB21: 0 | EC21: 0
A22: 17 | B22: AARAD504001TSBH07805 | C22: AARADHYA DIGNOSTIC & CLINIC | D22: H.NO. 4-3-60/10 & 11, HOTEL LAXMI RESIDENCY BUILDING, BESIDE V.B. ELECTRONICS, BHUKTAPUR, ADILABAD 504001 | E22: 11 | F22: 2 | J22: 2 | N22: 2 | V22: 2 | Z22: 2 | AD22: 2 | AH22: 2 | AL22: 2 | AP22: 2 | AT22: 2 | AX22: 2 | BB22: 2 | BF22: 2 | BL22: 1 | BN22: 2 | BR22: 2 | BV22: 2 | BZ22: 2 | CD22: 2 | CH22: 2 | CL22: 2 | CQ22: 1 | CU22: 1 | CY22: 1 | DB22: 2 | DF22: 2 | DJ22: 2 | DN22: 2 | DR22: 2 | DZ22: 50 | EA22: 3 | EB22: 1 | EC22: 0
A23: 18 | C23: A D B HOSPITAL | D23: ADILABAD | E23: 10 | DZ23: 0 | EA23: 0 | EB23: 0 | EC23: 0
A24: 19 | B24: AKBAN504001TSBH07693 | C24: AKBANI EYE CARE LASER CENTRE & DIAGNOSTICS | D24: Dr. MOHD IDRIS AKBANI, H.No. 7-7-17/9/1, OPP. ELECTICITY OFFICE, BJUKTAPUR, ADILABAD. | E24: 10 | F24: 2 | J24: 2 | N24: 2 | V24: 2 | Z24: 2 | AD24: 2 | AH24: 2 | AM24: 1 | AP24: 2 | AT24: 2 | AX24: 2 | BB24: 2 | BF24: 2 | BK24: 1 | BN24: 2 | BR24: 2 | BV24: 2 | BZ24: 2 | CD24: 2 | CH24: 2 | CL24: 2 | CP24: 2 | CT24: 2 | CX24: 2 | DB24: 2 | DF24: 2 | DJ24: 2 | DR24: 2 | DZ24: 52 | EA24: 2 | EB24: 0 | EC24: 0
A25: 20 | B25: AKHIL504001TSBH01031 | C25: AKHIL ORTHOPAEDIC HOSPITAL | D25: DR.TIPPE SWAMY, BESIDE RANI SATJI AGENCY, NEAR BUS STAND, ADILABAD | E25: 10 | G25: 1 | K25: 1 | O25: 1 | W25: 1 | AA25: 1 | AE25: 1 | AI25: 1 | AM25: 1 | AQ25: 1 | AU25: 1 | AY25: 1 | BC25: 1 | BG25: 1 | BL25: 1 | BO25: 1 | BS25: 1 | BW25: 1 | CA25: 1 | CE25: 1 | CI25: 1 | CM25: 1 | CQ25: 1 | CU25: 1 | CY25: 1 | DC25: 1 | DG25: 1 | DK25: 1 | DO25: 1 | DR25: 2 | DZ25: 2 | EA25: 27 | EB25: 1 | EC25: 0
A26: 21 | B26: DR.AG504001TSBH07806 | C26: DR. AGARWAL HOSPITAL & TRAUMA CARE CENTRE | D26: Dr.AGARWAL,DrPRAVEEN KUMAR ADILABAD. | E26: 10 | F26: 2 | J26: 2 | N26: 2 | V26: 2 | Z26: 2 | AD26: 2 | AH26: 2 | AL26: 2 | AP26: 2 | AT26: 2 | AX26: 2 | BB26: 2 | BF26: 2 | BK26: 1 | BN26: 2 | BR26: 2 | BV26: 2 | BZ26: 2 | CD26: 2 | CH26: 2 | CL26: 2 | CP26: 2 | CT26: 2 | CX26: 2 | DB26: 2 | DG26: 1 | DK26: 1 | DO26: 1 | DS26: 1 | DZ26: 48 | EA26: 5 | EB26: 0 | EC26: 0
A27: 22 | B27: JANAN504001TSBH07695 | C27: JANANI MATERNITY HOSPITAL | D27: NTR CHOWK,NEAR G.N RAO PETROL PUMP,ADILABAD TOWN. | E27: 10 | F27: 2 | J27: 2 | N27: 2 | W27: 2 | AA27: 1 | AE27: 1 | AI27: 1 | AL27: 2 | AQ27: 1 | AU27: 1 | AY27: 1 | BC27: 1 | BG27: 1 | BJ27: 2 | BO27: 1 | BR27: 2 | CA27: 1 | CE27: 1 | CI27: 1 | CM27: 1 | CP27: 2 | CT27: 2 | CX27: 2 | DC27: 1 | DG27: 1 | DK27: 1 | DO27: 1 | DS27: 1 | DZ27: 18 | EA27: 20 | EB27: 0 | EC27: 0
A28: 23 | B28: MADHA504001TSBH07799 | C28: MADHAVA HOSPITAL | D28: BESIDE HANUMAN CHOWK, BHUKTAPUR, ADILABAD | E28: 10 | F28: 2 | J28: 2 | N28: 2 | V28: 2 | Z28: 2 | AD28: 2 | AH28: 2 | AM28: 1 | AP28: 2 | AT28: 2 | AX28: 2 | BB28: 2 | BF28: 2 | BK28: 1 | BN28: 2 | BR28: 2 | BV28: 2 | BZ28: 2 | CD28: 2 | CH28: 2 | CL28: 2 | CP28: 2 | CT28: 2 | CX28: 2 | DB28: 2 | DF28: 2 | DJ28: 2 | DN28: 2 | DR28: 2 | DZ28: 54 | EA28: 2 | EB28: 0 | EC28: 0
A29: 24 | B29: NAKSH504001TSBH07039 | C29: NAKSHATRA HOSPITAL | D29: Dr.SHILPA SANDEEP AITWAR, ABOVE APPOLLO PHARMACY, HAVELLS ELECTRICALS, SHIVAJI CHOWK, STATION ROAD, ADILABAD | E29: 10 | G29: 1 | K29: 1 | O29: 1 | W29: 1 | AA29: 1 | AE29: 1 | AI29: 1 | AQ29: 1 | AU29: 1 | AY29: 1 | BC29: 1 | BG29: 1 | BJ29: 2 | BO29: 1 | BW29: 1 | CA29: 1 | CE29: 1 | CI29: 1 | CM29: 1 | CQ29: 1 | CU29: 1 | CY29: 1 | DC29: 1 | DG29: 1 | DK29: 1 | DO29: 1 | DS29: 1 | DZ29: 2 | EA29: 26 | EB29: 0 | EC29: 0
A30: 25 | B30: SAISA504001TSBH08487 | C30: SAI SAMRAKSHA HOSPITAL | D30: AMBEDKAR CHOWK, ADILABAD URBAN. | E30: 10 | F30: 2 | J30: 2 | N30: 2 | V30: 2 | Z30: 2 | AD30: 2 | AH30: 2 | AL30: 2 | AT30: 2 | AX30: 2 | BB30: 2 | BF30: 2 | BN30: 2 | BR30: 2 | BV30: 2 | BZ30: 2 | CD30: 2 | CH30: 2 | CL30: 2 | CP30: 2 | CT30: 2 | CX30: 2 | DB30: 2 | DF30: 2 | DJ30: 2 | DN30: 2 | DS30: 1 | DZ30: 52 | EA30: 1 | EB30: 0 | EC30: 0
A31: 26 | B31: SHARA504001TSBH00968 | C31: SHARADA NURSING HOME | D31: Dr. D. N. SWAMY, H.NO. 7-1-13,OPP: NEW BUS STAND, ADILABAD | E31: 10 | F31: 2 | J31: 2 | N31: 2 | W31: 1 | AA31: 1 | AE31: 1 | AI31: 1 | AL31: 2 | AQ31: 1 | AU31: 1 | AY31: 1 | BC31: 1 | BG31: 1 | BJ31: 2 | BP31: 1 | BT31: 1 | BX31: 1 | CB31: 1 | CF31: 1 | CJ31: 1 | CN31: 1 | CR31: 1 | CV31: 1 | CZ31: 1 | DD31: 1 | DF31: 2 | DJ31: 2 | DN31: 2 | DR31: 2 | DZ31: 18 | EA31: 9 | EB31: 11 | EC31: 0
A32: 27 | B32: SHIVA504001TSBH01027 | C32: SHIVAPRIYA NURSING HOME | D32: SHIVAJI CHOWK, STATION ROAD, ADILABAD | E32: 10 | H32: 1 | L32: 1 | P32: 1 | W32: 1 | AA32: 1 | AE32: 1 | AI32: 1 | AN32: 1 | AQ32: 1 | AU32: 1 | AY32: 1 | BC32: 1 | BG32: 1 | BJ32: 2 | BO32: 1 | BS32: 1 | BW32: 1 | CA32: 1 | CE32: 1 | CI32: 1 | CM32: 1 | CQ32: 1 | CU32: 1 | CY32: 1 | DC32: 1 | DF32: 2 | DJ32: 2 | DN32: 2 | DR32: 2 | DZ32: 10 | EA32: 20 | EB32: 4 | EC32: 0
A33: 28 | B33: SHREE504001TSBH07701 | C33: SHREE CRITICAL CARE HOSPITAL | D33: D.NO: 4-3-1, BEHIND CENTRAL LIBRARY, ADILABAD | E33: 10 | G33: 1 | K33: 1 | O33: 1 | W33: 1 | AA33: 1 | AE33: 1 | AI33: 1 | AM33: 1 | AQ33: 1 | AU33: 1 | AY33: 1 | BC33: 1 | BG33: 1 | BL33: 1 | BO33: 1 | BS33: 1 | CA33: 1 | CD33: 2 | CH33: 2 | CL33: 2 | CP33: 2 | CT33: 2 | CX33: 2 | DB33: 2 | DF33: 2 | DJ33: 2 | DN33: 2 | DR33: 2 | DZ33: 22 | EA33: 16 | EB33: 1 | EC33: 0
A34: 29 | B34: SHRIG504001TSBH01024 | C34: SHRI GAJANAN METERNITY & NURSING HOME | D34: Dr. ANUPAMA R. KASAWAR, OPP. NATRAJ TALKIES, ADILABAD-504001 | E34: 10 | G34: 1 | K34: 1 | O34: 1 | W34: 1 | AA34: 1 | AE34: 1 | AI34: 1 | AM34: 1 | AQ34: 1 | AU34: 1 | AY34: 1 | BC34: 1 | BG34: 1 | BJ34: 2 | BS34: 1 | BW34: 1 | CA34: 1 | CE34: 1 | CI34: 1 | CM34: 1 | CQ34: 1 | CU34: 1 | CY34: 1 | DC34: 1 | DG34: 1 | DK34: 1 | DO34: 1 | DS34: 1 | DZ34: 2 | EA34: 27 | EB34: 0 | EC34: 0
A35: 30 | B35: SRIRA504001TSBH00975 | C35: SRI RAMA METERNITY & SURGICAL NURSING HOME | D35: Dr. G. PRAKASH,NEAR RAILWAY GATE, GUNJ ROAD, ADILIBAD. | E35: 10 | BK35: 1 | DG35: 1 | DK35: 1 | DO35: 1 | DS35: 1 | DZ35: 0 | EA35: 5 | EB35: 0 | EC35: 0
A36: 31 | C36: SRI RAGHAVENDRA NURSING HOME, ADB | D36: Dr. G. SHANTI SATYANARAYANA,OPP. SHAMA URDU SCHOOL,NEAR POWER HOUSE,N.H. 7, ADILABAD | E36: 10 | DZ36: 0 | EA36: 0 | EB36: 0 | EC36: 0
A37: 32 | B37: SRIVE504001TSBH09726 | C37: SRI VENKATESHWARA CHILDRENS HOSPITAL | D37: Dr.M.PRAMOD KUMAR REDDY, NTR CHOWK, OPP: BIRYANI HOUSE, RAVINDRA NAGAR COLONY, STATION ROAD, ADILABAD. | E37: 10 | G37: 1 | K37: 1 | O37: 1 | W37: 1 | AA37: 1 | AE37: 1 | AI37: 1 | AM37: 1 | AQ37: 1 | AU37: 1 | AY37: 1 | BC37: 1 | BG37: 1 | BL37: 1 | BN37: 2 | BR37: 2 | BW37: 1 | BZ37: 2 | CE37: 1 | CI37: 1 | CL37: 2 | CP37: 2 | CT37: 2 | CX37: 2 | DC37: 1 | DF37: 2 | DJ37: 2 | DN37: 2 | DR37: 2 | DZ37: 22 | EA37: 17 | EB37: 1 | EC37: 0
A38: 33 | B38: SRIVI504001TSBH00961 | C38: SRI VIGNESHWARA ORTHOPAEDIC HOSPITAL | D38: Dr. V. RAVIKANTH RAO,NEAR NATRAJ THEATRE, ADILABAD | E38: 10 | F38: 2 | J38: 2 | N38: 2 | V38: 2 | Z38: 2 | AD38: 2 | AI38: 1 | AM38: 1 | AP38: 2 | AT38: 2 | AX38: 2 | BB38: 2 | BF38: 2 | BK38: 1 | BN38: 2 | BR38: 2 | BV38: 2 | BZ38: 2 | CD38: 2 | CH38: 2 | CL38: 2 | CP38: 2 | CT38: 2 | CX38: 2 | DB38: 2 | DF38: 2 | DJ38: 2 | DN38: 2 | DR38: 2 | DZ38: 52 | EA38: 3 | EB38: 0 | EC38: 0
A39: 34 | B39: SRINI504001TSBH00976 | C39: SRINIVASA METERNITY & SURGICAL NURSING HOME ADILABAD | D39: Dr. K. RAMA ASHOK,NETAJI CHOWK, TNGO'S ROAD, ADILABAD | E39: 10 | G39: 1 | K39: 1 | O39: 1 | V39: 2 | Z39: 2 | AD39: 2 | AH39: 2 | AM39: 1 | AQ39: 1 | AU39: 1 | AY39: 1 | BC39: 1 | BG39: 1 | BJ39: 2 | BO39: 1 | BS39: 1 | BW39: 1 | CA39: 1 | CE39: 1 | CI39: 1 | CM39: 1 | CQ39: 1 | CU39: 1 | CY39: 1 | DC39: 1 | DG39: 1 | DK39: 1 | DO39: 1 | DS39: 1 | DZ39: 10 | EA39: 24 | EB39: 0 | EC39: 0
A40: 35 | B40: SUJAT504001TSBH00980 | C40: SUJATHA MATERNITY & SURGICAL NURSING HOME | D40: DR.L.MAHA BALESHWAR, OPP:SHAMA URDU SCHOOL, ADILABAD | E40: 10 | F40: 2 | J40: 2 | N40: 2 | V40: 2 | Z40: 2 | AD40: 2 | AH40: 2 | AM40: 1 | AP40: 2 | AT40: 2 | AX40: 2 | BB40: 2 | BF40: 2 | BK40: 1 | BN40: 2 | BR40: 2 | BV40: 2 | BZ40: 2 | CD40: 2 | CH40: 2 | CL40: 2 | CP40: 2 | CT40: 2 | CX40: 2 | DB40: 2 | DF40: 2 | DJ40: 2 | DN40: 2 | DR40: 2 | DZ40: 54 | EA40: 2 | EB40: 0 | EC40: 0
A41: 36 | B41: UPEND504001TSBH07058 | C41: UPENDRA GENERAL SPECILITY HOSPITAL | D41: OLD LAYOLA COLLEGE LINE,ADILABAD | E41: 10 | F41: 2 | J41: 2 | N41: 2 | V41: 2 | Z41: 2 | AD41: 2 | AH41: 2 | AL41: 2 | AP41: 2 | AT41: 2 | AX41: 2 | BB41: 2 | BF41: 2 | BK41: 1 | BN41: 2 | BR41: 2 | BV41: 2 | BZ41: 2 | CD41: 2 | CH41: 2 | CL41: 2 | CP41: 2 | CT41: 2 | CX41: 2 | DB41: 2 | DF41: 2 | DJ41: 2 | DN41: 2 | DR41: 2 | DZ41: 56 | EA41: 1 | EB41: 0 | EC41: 0
A42: 37 | B42: VAIBH504001TSBH07080 | C42: VAIBHAVI HOSPITAL | D42: Dr. T.SATISH KUMAR,BESIDE RTC BUS STAND, ADILABAD | E42: 10 | H42: 1 | L42: 1 | P42: 1 | X42: 1 | AA42: 1 | AE42: 1 | AI42: 1 | AN42: 1 | AQ42: 1 | AV42: 1 | AZ42: 1 | BD42: 1 | BH42: 1 | BK42: 1 | BN42: 2 | BR42: 2 | BV42: 2 | BZ42: 2 | CD42: 2 | CH42: 2 | CL42: 2 | CP42: 2 | CT42: 2 | CX42: 2 | DB42: 2 | DF42: 2 | DJ42: 2 | DN42: 2 | DR42: 2 | DZ42: 30 | EA42: 5 | EB42: 9 | EC42: 0
A43: 38 | B43: VIJAY504001TSBH09749 | C43: VIJAYA NURSING HOME | D43: Near Central Bank, Opp: Adilabad Neuro Super Speciality Hospital, Dwaraka Nagar, Ravindra Nagar Colony, Adilabad(U), Telangana 504001 | E43: 10 | J43: 2 | N43: 2 | V43: 2 | Z43: 2 | AD43: 2 | AH43: 2 | AL43: 2 | AP43: 2 | AT43: 2 | AX43: 2 | BB43: 2 | BF43: 2 | BK43: 1 | BP43: 1 | BT43: 1 | BX43: 1 | CB43: 1 | CF43: 1 | CJ43: 1 | CN43: 1 | CR43: 1 | CV43: 1 | CZ43: 1 | DD43: 1 | DF43: 2 | DJ43: 2 | DN43: 2 | DS43: 1 | DZ43: 30 | EA43: 2 | EB43: 11 | EC43: 0
A44: 39 | C44: ELITE HOSPITAL | D44: ADILABAD | E44: 9 | DZ44: 0 | EA44: 0 | EB44: 0 | EC44: 0
A45: 40 | B45: KIRAN504001TSBH08511 | C45: KIRAN LASER EYE HOSPITAL | D45: HOTEL DWARAKA,BHIKTAPUR,ADILABAD, ADILABAD. | E45: 9 | G45: 1 | K45: 1 | O45: 1 | V45: 2 | Z45: 2 | AD45: 2 | AI45: 1 | AM45: 1 | AP45: 2 | AT45: 2 | AX45: 2 | BB45: 2 | BF45: 2 | BL45: 1 | BN45: 2 | BR45: 2 | BV45: 2 | BZ45: 2 | CD45: 2 | CH45: 2 | CL45: 2 | CP45: 2 | CT45: 2 | CX45: 2 | DB45: 2 | DF45: 2 | DJ45: 2 | DN45: 2 | DR45: 2 | DZ45: 46 | EA45: 5 | EB45: 1 | EC45: 0
A46: 41 | B46: SANSA504001TSBH09750 | C46: SANSA GASTRO LIVER & SKIN HOSPITAL | D46: # 4-3-1/6B, NEAR BY ARUN ICE CREAM, PATEL MARG, BHUKTHAPUR, ADILABAD | E46: 9 | G46: 1 | K46: 1 | O46: 1 | W46: 1 | AB46: 1 | AF46: 1 | AI46: 1 | AQ46: 1 | AV46: 2 | AY46: 1 | BC46: 1 | BG46: 1 | BK46: 1 | BP46: 1 | BT46: 1 | BX46: 1 | CB46: 1 | CF46: 1 | CJ46: 1 | CL46: 2 | CR46: 1 | CV46: 1 | CZ46: 1 | DD46: 1 | DF46: 2 | DJ46: 2 | DN46: 2 | DR46: 2 | DZ46: 10 | EA46: 10 | EB46: 14 | EC46: 0
A47: 42 | B47: SHIVA504001TSBH09753 | C47: SHIVAJI HOSPITAL | D47: SHIVAJI CHOWK, STATION ROAD, ADILABAD | E47: 8 | DZ47: 0 | EA47: 0 | EB47: 0 | EC47: 0
A48: 43 | B48: SURAK504001TSBH00958 | C48: SURAKSHA CHILDREN'S HOSPITAL | D48: DR. K. SHIVA, 1ST FLOOR, BANK OF BARODA COMPLEX, JYOTHI BAPULE CHOWK, ADILABAD | E48: 8 | F48: 2 | J48: 2 | N48: 2 | V48: 2 | Z48: 2 | AD48: 2 | AH48: 2 | AP48: 2 | AT48: 2 | AX48: 2 | BB48: 2 | BF48: 2 | BK48: 1 | BN48: 2 | BR48: 2 | BV48: 2 | BZ48: 2 | CD48: 2 | CH48: 2 | CL48: 2 | CP48: 2 | CT48: 2 | CX48: 2 | DB48: 2 | DF48: 2 | DJ48: 2 | DN48: 2 | DR48: 2 | DZ48: 54 | EA48: 1 | EB48: 0 | EC48: 0
A49: 44 | B49: PRIME504001TSBH09756 | C49: PRIME NEURO GENERAL HOSPITAL | D49: 3rd Floor, Above Bank of Baroda, Faiz Tower, Bhuktapur, Telangana 504001 | E49: 7 | G49: 1 | K49: 1 | O49: 1 | W49: 1 | AA49: 1 | AE49: 1 | AI49: 1 | AM49: 1 | AQ49: 1 | AU49: 1 | AY49: 1 | BC49: 1 | BG49: 1 | BL49: 1 | BN49: 2 | BR49: 2 | BW49: 1 | CE49: 1 | CI49: 1 | CL49: 2 | CP49: 2 | CT49: 2 | CX49: 2 | DC49: 1 | DF49: 2 | DJ49: 2 | DN49: 2 | DR49: 2 | DZ49: 20 | EA49: 17 | EB49: 1 | EC49: 0
A50: 45 | B50: SHREE504001TSBH00985 | C50: SHREE GAJANAN HOSPITAL | D50: Dr. ABHIJIT NUGURWAR,STATION ROAD, SHIVAJI CHOWK, ADILABAD. | E50: 6 | F50: 2 | J50: 2 | N50: 2 | V50: 1 | Z50: 2 | AD50: 2 | AH50: 2 | AM50: 1 | AP50: 2 | AT50: 2 | AX50: 2 | BB50: 2 | BF50: 2 | BK50: 1 | BN50: 2 | BR50: 2 | BV50: 2 | BZ50: 2 | CD50: 2 | CH50: 2 | CL50: 2 | CP50: 2 | CT50: 2 | CX50: 2 | DB50: 2 | DF50: 2 | DJ50: 2 | DN50: 2 | DR50: 2 | DZ50: 53 | EA50: 2 | EB50: 0 | EC50: 0
A51: 46 | B51: ADILA504001TSBH08490 | C51: ADILABAD NEURO SUPER SPECIALITY HOSPITAL | D51: NEAR CENTRAL BANK OF INDIA, BESIDE TNGO' ROAD, DWARAKA NAGAR, ADILABAD Adilabad(V) Adilabad (Urban)(M) ADILABAD(D) Telangana-504001 | E51: 5 | BJ51: 2 | DG51: 1 | DK51: 1 | DO51: 1 | DS51: 1 | DZ51: 2 | EA51: 4 | EB51: 0 | EC51: 0
A52: 47 | B52: SEVAH504001TSBH01046 | C52: SEVA HOSPITAL & KIDNEY CENTRE | D52: NEAR THAKUR HOTEL, SHIVAJI CHOWK, ADILABAD | E52: 5 | BJ52: 2 | DZ52: 2 | EA52: 0 | EB52: 0 | EC52: 0
A53: 48 | B53: TIRUM504001TSBH07800 | C53: TIRUMALA HOSPITAL | D53: OPP: NEW BUS STAND, BESIDE HDFC ATM & DR. SWAMY CHILDREN HOSPITAL, ADILABAD | E53: 5 | F53: 2 | J53: 2 | N53: 2 | V53: 2 | Z53: 2 | AD53: 2 | AH53: 2 | AL53: 2 | AP53: 2 | AT53: 2 | AX53: 2 | BB53: 2 | BF53: 2 | BK53: 1 | BN53: 2 | BR53: 2 | BV53: 2 | BZ53: 2 | CD53: 2 | CH53: 2 | CL53: 2 | CP53: 2 | CT53: 2 | CX53: 2 | DB53: 2 | DF53: 2 | DJ53: 2 | DN53: 2 | DR53: 2 | DZ53: 56 | EA53: 1 | EB53: 0 | EC53: 0
A54: 49 | B54: ARUND504111TSBH06111 | C54: ARUN DENTAL CLINIC | D54: DR. ARUN KUMAR BADAVATH, SHIVAJI CHOWK LANE, ADILABAD. | E54: 3 | F54: 2 | J54: 2 | N54: 2 | V54: 2 | Z54: 2 | AD54: 2 | AH54: 2 | AL54: 2 | AP54: 2 | AT54: 2 | AX54: 2 | BB54: 2 | BF54: 2 | BK54: 1 | BN54: 2 | BR54: 2 | BV54: 2 | BZ54: 2 | CD54: 2 | CH54: 2 | CL54: 2 | CP54: 2 | CT54: 2 | CX54: 2 | DB54: 2 | DF54: 2 | DJ54: 2 | DN54: 2 | DT54: 1 | DZ54: 54 | EA54: 1 | EB54: 1 | EC54: 0
A55: 50 | B55: MANAS504001TSBH01033 | C55: MANASVI CHILDRENS HOSPITAL | D55: Dr. N. SHARAD REDDY,BESIDE MAHESHWARI TALKIES, ADILABAD. 504001 | E55: 3 | F55: 2 | J55: 2 | N55: 2 | V55: 2 | Z55: 2 | AD55: 2 | AH55: 2 | AL55: 2 | AP55: 2 | AT55: 2 | AX55: 2 | BB55: 2 | BF55: 2 | BK55: 1 | BN55: 2 | BR55: 2 | BV55: 2 | BZ55: 2 | CD55: 2 | CH55: 2 | CO55: 1 | CP55: 2 | CT55: 2 | CX55: 2 | DB55: 2 | DG55: 1 | DK55: 1 | DO55: 1 | DS55: 1 | DZ55: 46 | EA55: 5 | EB55: 0 | EC55: 1
A56: 51 | B56: SRISA504001TSBH00909 | C56: SRI SAIRAM MULTISPECIALITY DENTAL CARE | D56: Dr.SAI RAM ,NETAJI CHOWK, ADILABAD | E56: 3 | G56: 1 | K56: 1 | O56: 1 | W56: 1 | AA56: 1 | AE56: 1 | AI56: 1 | AM56: 1 | AQ56: 1 | AU56: 1 | AY56: 1 | BC56: 1 | BG56: 1 | BJ56: 2 | BN56: 2 | BR56: 2 | BW56: 1 | CA56: 1 | CE56: 1 | CI56: 1 | CM56: 1 | CQ56: 1 | CU56: 1 | CY56: 1 | DC56: 1 | DG56: 1 | DK56: 1 | DO56: 1 | DS56: 1 | DZ56: 6 | EA56: 26 | EB56: 0 | EC56: 0
A57: 52 | B57: VRUND504001TSBH09754 | C57: VRUNDAVAN HOSPITAL | D57: 4-3-74/56/1, Dwaraka Nagar, Ravindra Nagar Colony, Adilabad(U), Telangana 504001 | E57: 3 | W57: 1 | AA57: 1 | AE57: 1 | AI57: 1 | AQ57: 1 | AU57: 1 | AY57: 1 | BC57: 1 | BG57: 1 | BK57: 1 | BN57: 2 | BR57: 2 | BV57: 2 | BZ57: 2 | CD57: 2 | CH57: 2 | CL57: 2 | CP57: 2 | CT57: 2 | CX57: 2 | DB57: 2 | DF57: 2 | DJ57: 2 | DN57: 2 | DR57: 2 | DZ57: 30 | EA57: 10 | EB57: 0 | EC57: 0
A58: 53 | B58: CAREH504001TSBH09737 | C58: CARE HOSPITAL | D58: DR. M. HEMANTH RAO, Mahalaxmiwada, Adilabad(U), Telangana 504001 | E58: 2 | G58: 1 | K58: 1 | O58: 1 | W58: 1 | AA58: 1 | AE58: 1 | AI58: 1 | AM58: 1 | AQ58: 1 | AU58: 1 | AY58: 1 | BC58: 1 | BG58: 1 | BK58: 1 | BP58: 1 | BT58: 1 | BX58: 1 | CB58: 1 | CF58: 1 | CJ58: 1 | CN58: 1 | CR58: 1 | CV58: 1 | CZ58: 1 | DD58: 1 | DG58: 1 | DK58: 1 | DO58: 1 | DS58: 1 | DZ58: 0 | EA58: 18 | EB58: 11 | EC58: 0
A59: 54 | B59: DISTR504001TSBH08539 | C59: DISTRICT VETERINARY HOSPITAL | D59: DISTRICT VETERINARY AND ANIMAL HUSBANDRY OFFICE, BHUKTHAPUR, ADILABAD,Adilabad,Adilabad (Urban),ADILABAD,504001 | E59: 2 | DZ59: 0 | EA59: 0 | EB59: 0 | EC59: 0
A60: 55 | B60: GURUK504001TSBH09738 | C60: GURUKRUPA SUPERSPECIALITY DENTAL CLINIC & IMPLANT CENTER | D60: DR. SWAPNIL VAIVASARE, OPP: HDFC BANK, NEAR MAHESHWARI THEATER, MAHALAXMIWADA, ADILABAD. | E60: 2 | DZ60: 0 | EA60: 0 | EB60: 0 | EC60: 0
A61: 56 | B61: MANAS504001TSBH09735 | C61: MANASA CLINIC | D61: Dr. C. S. BISWAS,MASOOD CHOWK, SATHNALA ROAD, ADILABAD. | E61: 2 | G61: 1 | K61: 1 | O61: 1 | W61: 1 | AB61: 1 | AF61: 1 | AI61: 1 | AM61: 1 | AQ61: 1 | AV61: 1 | AZ61: 1 | BD61: 1 | BH61: 1 | BK61: 1 | BP61: 1 | BT61: 1 | BX61: 1 | CB61: 1 | CF61: 1 | CJ61: 1 | CL61: 2 | CR61: 1 | CV61: 1 | CZ61: 1 | DD61: 1 | DF61: 2 | DJ61: 2 | DN61: 2 | DR61: 2 | DZ61: 10 | EA61: 8 | EB61: 16 | EC61: 0
A62: 57 | B62: DRSAN504001TSBH07698 | C62: DR SANDEEP PAWAR CLINIC | D62: Dr.SANDEEP POWAR,ADILABAD | E62: 1 | F62: 2 | J62: 2 | N62: 2 | V62: 2 | Z62: 2 | AD62: 2 | AH62: 2 | AL62: 2 | AP62: 2 | AT62: 2 | AX62: 2 | BB62: 2 | BF62: 2 | BK62: 1 | BN62: 2 | BR62: 2 | BV62: 2 | BZ62: 2 | CD62: 2 | CH62: 2 | CL62: 2 | DB62: 2 | DZ62: 42 | EA62: 1 | EB62: 0 | EC62: 0
A63: 58 | B63: GANAP504001TSBH00984 | C63: GANAPATI DIAGNOSTIC CENTRE | D63: Dr. RAJU RAMEKAR, BESIDE UNION BANK, CINEM ROAD, ADILIBAD. | E63: 1 | F63: 2 | J63: 2 | N63: 2 | V63: 2 | Z63: 2 | AD63: 2 | AH63: 2 | AM63: 1 | AP63: 2 | AT63: 2 | AX63: 2 | BB63: 2 | BF63: 2 | BK63: 1 | BN63: 2 | BR63: 2 | BV63: 2 | BZ63: 2 | CD63: 2 | CH63: 2 | CL63: 2 | CP63: 2 | CT63: 2 | CX63: 2 | DB63: 2 | DF63: 2 | DJ63: 2 | DN63: 2 | DT63: 1 | DZ63: 52 | EA63: 2 | EB63: 1 | EC63: 0
A64: 59 | B64: JAGAD504001TSBH01023 | C64: JAGADAMBA DIAGNOSTIC CENTRE, ADB | D64: Dr.NILESH K.AGARWAL,ADILABAD | E64: 1 | F64: 2 | J64: 2 | N64: 2 | V64: 2 | Z64: 2 | AD64: 2 | AH64: 2 | AL64: 2 | AP64: 2 | AT64: 2 | AX64: 2 | BB64: 2 | BF64: 2 | BK64: 1 | BN64: 2 | BR64: 2 | BV64: 2 | BZ64: 2 | CD64: 2 | CH64: 2 | CL64: 2 | CP64: 2 | CT64: 2 | CX64: 2 | DB64: 2 | DG64: 1 | DK64: 1 | DO64: 1 | DS64: 1 | DZ64: 48 | EA64: 5 | EB64: 0 | EC64: 0
A65: 60 | B65: SRIVE504001TSBH00890 | C65: SRI VENKATESHWARA DENTAL CLINIC, ADB | D65: Dr. L. PRAMOD REDDY,H.NO. 7-7-49/7/11, ABDUL KALAM ROAD,VIDYA NAGAR,ADB | E65: 1 | G65: 1 | K65: 1 | O65: 1 | V65: 2 | Z65: 2 | AD65: 2 | AH65: 2 | AM65: 1 | AQ65: 1 | AU65: 1 | AY65: 1 | BC65: 1 | BG65: 1 | BK65: 1 | BN65: 2 | BR65: 2 | BV65: 2 | BZ65: 2 | CD65: 2 | CH65: 2 | CL65: 2 | CP65: 2 | CT65: 2 | CX65: 2 | DB65: 2 | DF65: 2 | DJ65: 2 | DN65: 2 | DR65: 2 | DZ65: 38 | EA65: 10 | EB65: 0 | EC65: 0
A66: 61 | B66: ADILA504001TSPL09755 | C66: ADILABAD DIAGNOSTIC CENTRE | D66: OPP: ANDHRA BANK, MAHESHWARI THEATRE ROAD, BESIDE SRI LAXMI MEDICAL HALL TNGOS HOME ROAD,ADILABAD | E66: 0 | G66: 1 | K66: 1 | O66: 1 | W66: 1 | Z66: 2 | AD66: 2 | AI66: 1 | AM66: 1 | AP66: 2 | AU66: 1 | AY66: 1 | BC66: 1 | BG66: 1 | BK66: 1 | BN66: 2 | BR66: 2 | BV66: 2 | BZ66: 2 | CD66: 2 | CH66: 2 | CL66: 2 | CP66: 2 | CT66: 2 | CX66: 2 | DB66: 2 | DH66: 1 | DL66: 1 | DP66: 1 | DT66: 1 | DZ66: 28 | EA66: 11 | EB66: 4 | EC66: 0
A67: 62 | B67: AREAV504304TSBH08540 | C67: AREA VETERINARY HOSPITAL BOATH | D67: "O/o Area Veterinary Hospital Boath village, Boath Mandal, Adilabad District",Boath (K),Boath,ADILABAD,504304 | E67: 0 | DZ67: 0 | EA67: 0 | EB67: 0 | EC67: 0
A68: 63 | C68: BALAJI HOSPITAL | D68: BESIDE NEW BUS STAND, ADILABAD. | E68: 0 | DZ68: 0 | EA68: 0 | EB68: 0 | EC68: 0
A69: 64 | B69: BLOOD504311TSBH06114 | C69: BLOOD BANK CHC UTNOOR | D69: BOYAWADA , NEAR OLD BUS STAND, UTNOOR, ADILABAD,504311 | E69: 0 | DZ69: =F69+J69+N69+R69+V69+Z69+AD69+AH69+AL69+AP69+AT69+AX69+BB69+BF69+BJ69+BN69+BR69+BV69+BZ69+CD69+CH69+CL69+CP69+CT69+CX69+DB69+DF69+DJ69+DN69+DR69+DV69 -> 0 | EA69: =G69+K69+O69+S69+W69+AA69+AE69+AI69+AM69+AQ69+AU69+AY69+BC69+BG69+BK69+BO69+BS69+BW69+CA69+CE69+CI69+CM69+CQ69+CU69+CY69+DC69+DG69+DK69+DO69+DS69+DW69 -> 0 | EB69: =H69+L69+P69+T69+X69+AB69+AF69+AJ69+AN69+AR69+AV69+AZ69+BD69+BH69+BL69+BP69+BT69+BX69+CB69+CF69+CJ69+CN69+CR69+CV69+CZ69+DD69+DH69+DL69+DP69+DT69 -> 0 | EC69: =I69+M69+Q69+U69+Y69+AC69+AG69+AK69+AO69+AS69+AW69+BA69+BE69+BI69+BM69+BQ69+BU69+BY69+CC69+CG69+CK69+CO69+CS69+CW69+DA69+DE69+DI69+DM69+DQ69+DU69 -> 0
A70: 65 | B70: DHARA504001TSNH09752 | C70: DHARAMCHAND CLINIC | D70: DR. DHARAMCHAND CHOUDHARI, D.NO.4-2-140/1, NEAR RAM SITA MANDIR, GANDHI CHOWK, ADILABAD | E70: 0 | G70: 1 | K70: 1 | O70: 1 | W70: 1 | AA70: 1 | AE70: 1 | AI70: 1 | AM70: 1 | AQ70: 1 | AU70: 1 | AY70: 1 | BC70: 1 | BG70: 1 | BL70: 1 | BN70: 2 | BR70: 2 | BW70: 1 | BZ70: 2 | CE70: 1 | CI70: 1 | CL70: 2 | CP70: 2 | CT70: 2 | CX70: 2 | DC70: 1 | DF70: 2 | DJ70: 2 | DN70: 2 | DR70: 2 | DZ70: 22 | EA70: 17 | EB70: 1 | EC70: 0
A71: 66 | C71: DR. SUSHMA BHOOS REDDY HOSPITAL | D71: Dr.SUSHMA BHOOS REDDY,ADILABAD | E71: 0 | DZ71: 0 | EA71: 0 | EB71: 0 | EC71: 0
A72: 67 | C72: DR.D R CHOUDHARI | D72: DrD.R.CHOUDHARI,ADILABAD | E72: 0 | DZ72: 0 | EA72: 0 | EB72: 0 | EC72: 0
A73: 68 | B73: HARSH504001TSBH08532 | C73: HARSHA SKIN & GENERAL HOSPITAL | D73: BESIDE AXIS BANK,ADILABAD | E73: 0 | F73: 2 | J73: 2 | N73: 2 | V73: 2 | Z73: 2 | AD73: 2 | AH73: 2 | AL73: 2 | AP73: 2 | AT73: 2 | AX73: 2 | BB73: 2 | BF73: 2 | BK73: 1 | BN73: 2 | BR73: 2 | BV73: 2 | BZ73: 2 | CG73: 1 | CK73: 1 | CL73: 2 | CP73: 2 | CT73: 2 | CX73: 2 | DB73: 2 | DH73: 1 | DL73: 1 | DP73: 1 | DT73: 1 | DZ73: 44 | EA73: 1 | EB73: 4 | EC73: 2
A74: 69 | B74: KALLE503001TSBH07069 | C74: KALLEM BHOOMAREDDY ENT CARE | D74: Dr.YELMA BHOOMA REDDY,OPP.MAHESHWARI THEATRE,ADILABAD. | E74: 0 | DZ74: 0 | EA74: 0 | EB74: 0 | EC74: 0
A75: 70 | B75: KARTI504001TSBH07807 | C75: KARTIKEYA HOSPITAL | D75: NEAR CENTRAL BANK OF INDIA. ADILABAD | E75: 0 | F75: 2 | J75: 2 | N75: 2 | V75: 2 | Z75: 2 | AD75: 2 | AH75: 2 | AL75: 2 | AP75: 2 | AT75: 2 | AX75: 2 | BB75: 2 | BF75: 2 | BK75: 1 | BN75: 2 | BR75: 2 | BV75: 2 | BZ75: 2 | CD75: 2 | CH75: 2 | CL75: 2 | CP75: 2 | CT75: 2 | CX75: 2 | DC75: 1 | DG75: 1 | DK75: 1 | DO75: 1 | DS75: 1 | DZ75: 46 | EA75: 6 | EB75: 0 | EC75: 0
A76: 71 | C76: SIDDI VINAYAKA ORTHO | D76: Dr. DEEPAK PUSHKAR,1st FLOOR, BESIDE KARUR VYSYA BANK,STATION ROAD,ADILIBAD | E76: 0 | DZ76: 0 | EA76: 0 | EB76: 0 | EC76: 0
A77: 72 | B77: SINDH504001TSDH09733 | C77: SINDHU DENTAL CLINIC | D77: Dr. ANIL TATE, 3-7-29/c,shivaji chowk,chincharawada Station, road, Mahalaxmiwada, Adilabad(U), Telangana 504001 | E77: 0 | G77: 1 | K77: 1 | O77: 1 | V77: 2 | Z77: 2 | AD77: 2 | AI77: 1 | AM77: 1 | AP77: 2 | AT77: 2 | AY77: 1 | BC77: 1 | BG77: 1 | BK77: 1 | BP77: 1 | BT77: 1 | BX77: 1 | CB77: 1 | CF77: 1 | CJ77: 1 | CN77: 1 | CR77: 1 | CV77: 1 | CZ77: 1 | DD77: 1 | DF77: 2 | DJ77: 2 | DP77: 1 | DR77: 2 | DZ77: 16 | EA77: 9 | EB77: 12 | EC77: 0
A78: 73 | C78: SOUMYA DIAGNOSTICS CENTRE | D78: ADILABAD | E78: 0 | DZ78: 0 | EA78: 0 | EB78: 0 | EC78: 0
A79: 74 | B79: SRIVI504001TSDH09732 | C79: SRI VIJAYA SAI DENTAL CLINIC | D79: DR. AAREWAR CHANDRAKANTH, Station road shivaji chowk. Opp. Sai bar and Restaurant, Station road, near takur hotel, Adilabad(U), Telangana 504001 | E79: 0 | G79: 1 | K79: 1 | O79: 1 | W79: 1 | AA79: 1 | AE79: 1 | AI79: 1 | AM79: 1 | AU79: 1 | AY79: 1 | BC79: 1 | BG79: 1 | BK79: 1 | BO79: 1 | BS79: 1 | BW79: 1 | CA79: 1 | CE79: 1 | CI79: 1 | CL79: 2 | CR79: 1 | CV79: 1 | CZ79: 1 | DC79: 1 | DF79: 2 | DJ79: 2 | DN79: 2 | DR79: 2 | DZ79: 10 | EA79: 20 | EB79: 3 | EC79: 0
A80: 75 | C80: SUHAS HOSPITAL ADB | D80: Dr. P. KRANTHI,OPP. BUS STAND, BESIDE ARYABHATTA SCHOOL,ADB | E80: 0 | DZ80: 0 | EA80: 0 | EB80: 0 | EC80: 0
A81: 76 | B81: THYRO504001TSPL09751 | C81: THYROCARE SAMPLE COLLECTION CENTRE | D81: Door No - 7-1-55, Muncipal Colony, near Sandeep Pawar Hospital, Dwaraka Nagar, Adilabad | E81: 0 | G81: 1 | K81: 1 | O81: 1 | W81: 1 | AB81: 1 | AF81: 1 | AI81: 1 | AM81: 1 | AQ81: 1 | AV81: 1 | AY81: 1 | BC81: 1 | BG81: 1 | BK81: 1 | BP81: 1 | BT81: 1 | BX81: 1 | CB81: 1 | CF81: 1 | CJ81: 1 | CN81: 1 | CP81: 2 | CT81: 2 | CX81: 2 | DD81: 1 | DF81: 2 | DJ81: 2 | DR81: 2 | DZ81: 12 | EA81: 11 | EB81: 11 | EC81: 0
A82: 77 | B82: TRINE504001TSBH06190 | C82: TRINETRAA DIAGNOSTICS CENTRE | D82: MKA ASSOCIATES ,STREET NO. 3, DWARAKANAGAR, ADILABAD | E82: 0 | V82: 2 | Z82: 2 | AD82: 2 | AH82: 2 | AL82: 2 | AP82: 2 | AT82: 2 | AX82: 2 | BB82: 2 | BF82: 2 | BK82: 1 | BN82: 2 | BR82: 2 | BV82: 2 | BZ82: 2 | CD82: 2 | CH82: 2 | CL82: 2 | CP82: 2 | CT82: 2 | CX82: 2 | DB82: 2 | DF82: 2 | DJ82: 2 | DN82: 2 | DR82: 2 | DZ82: 50 | EA82: 1 | EB82: 0 | EC82: 0
A83: 78 | B83: VAZED504001TSPL09736 | C83: VAZE DIAGNOSTICS | D83: Dr. PRAFULL H. VAZE,4-2-1, Old Bus Stand Rd, Kumarpet, Mahalaxmiwada, Adilabad(U), Telangana 504001 | E83: 0 | G83: 1 | K83: 1 | O83: 1 | W83: 1 | AA83: 1 | AE83: 1 | AI83: 1 | AM83: 1 | AQ83: 1 | AU83: 1 | AY83: 1 | BC83: 1 | BG83: 1 | BK83: 1 | BO83: 1 | BS83: 1 | BW83: 1 | CA83: 1 | CE83: 1 | CI83: 1 | CL83: 2 | CR83: 1 | CV83: 1 | CZ83: 1 | DC83: 1 | DF83: 2 | DJ83: 2 | DN83: 2 | DR83: 2 | DZ83: 10 | EA83: 21 | EB83: 3 | EC83: 0
A84: 79 | C84: VIGNESHWARA HOSPITAL | D84: Dr. V.RAVIKANTH RAO,NEAR NATRAJ THEATRE, ADILABAD. | E84: 0 | DZ84: 0 | EA84: 0 | EB84: 0 | EC84: 0
A85: 80 | C85: KALAVATHI VOLUNTARY BLOOD BANK ( A UNIT OF KALAVATHI WELFARE SOCIETY ) | D85: ADILABAD | E85: 0 | DZ85: 0 | EA85: 0 | EB85: 0 | EC85: 0
A86: 81 | B86: NAROT504001TSCL10113 | C86: NAROTHAM REDDY CHILDREN'S CLINIC | D86: NEAR CENTRAL LIBRARY, BESIDE SRI CRITICAL CARE HOSPITAL, NETHAJI CHOWK, ADILABAD | E86: 0 | DH86: 1 | DL86: 1 | DP86: 1 | DT86: 1 | DZ86: 0 | EA86: 0 | EB86: 4 | EC86: 0
C87: TOTAL | E87: =SUM(E4:E85) -> 1176 | F87: =SUM(F4:F85) -> 52 | G87: 25 | H87: 2 | I87: =SUM(I4:I85) -> 0 | J87: =SUM(J4:J85) -> 52 | K87: 25 | L87: 2 | M87: =SUM(M4:M85) -> 0 | N87: =SUM(N4:N85) -> 52 | O87: 25 | P87: 2 | Q87: =SUM(Q4:Q85) -> 0 | R87: =SUM(R4:R85) -> 0 | S87: 0 | T87: 0 | U87: =SUM(U4:U85) -> 0 | V87: =SUM(V4:V85) -> 63 | W87: 23 | X87: 1 | Y87: =SUM(Y4:Y85) -> 0 | Z87: =SUM(Z4:Z85) -> 66 | AA87: 20 | AB87: 3 | AC87: =SUM(AC4:AC85) -> 0 | AD87: =SUM(AD4:AD85) -> 66 | AE87: 20 | AF87: 3 | AG87: =SUM(AG4:AG85) -> 0 | AH87: =SUM(AH4:AH85) -> 54 | AI87: 26 | AJ87: 1 | AK87: =SUM(AK4:AK85) -> 0 | AL87: =SUM(AL4:AL85) -> 40 | AM87: 29 | AN87: 2 | AO87: =SUM(AO4:AO85) -> 0 | AP87: =SUM(AP4:AP85) -> 60 | AQ87: 22 | AR87: 1 | AS87: =SUM(AS4:AS85) -> 0 | AT87: =SUM(AT4:AT85) -> 62 | AU87: 20 | AV87: 6 | AW87: 0 | AX87: =SUM(AX4:AX85) -> 58 | AY87: =SUM(AY4:AY85) -> 23 | AZ87: 3 | BA87: 0 | BB87: =SUM(BB4:BB85) -> 60 | BC87: 23 | BD87: 3 | BE87: =SUM(BE4:BE85) -> 0 | BF87: =SUM(BF4:BF85) -> 60 | BG87: 23 | BH87: 3 | BI87: =SUM(BI4:BI85) -> 0 | BJ87: =SUM(BJ4:BJ85) -> 28 | BK87: 36 | BL87: 8 | BM87: =SUM(BM4:BM85) -> 0 | BN87: =SUM(BN4:BN85) -> 74 | BO87: 10 | BP87: 8 | BQ87: =SUM(BQ4:BQ85) -> 0 | BR87: =SUM(BR4:BR85) -> 74 | BS87: 10 | BT87: 8 | BU87: =SUM(BU4:BU85) -> 0 | BV87: =SUM(BV4:BV85) -> 62 | BW87: 15 | BX87: 8 | BY87: =SUM(BY4:BY85) -> 0 | BZ87: =SUM(BZ4:BZ85) -> 68 | CA87: 14 | CB87: 8 | CC87: =SUM(CC4:CC85) -> 0 | CD87: =SUM(CD4:CD85) -> 62 | CE87: 16 | CF87: 8 | CG87: =SUM(CG4:CG85) -> 1 | CH87: =SUM(CH4:CH85) -> 62 | CI87: 17 | CJ87: 7 | CK87: =SUM(CK4:CK85) -> 1 | CL87: =SUM(CL4:CL85) -> 74 | CM87: =SUM(CM4:CM86) -> 10 | CN87: 7 | CO87: =SUM(CO4:CO85) -> 1 | CP87: =SUM(CP4:CP85) -> 75 | CQ87: =SUM(CQ4:CQ86) -> 11 | CR87: 9 | CS87: =SUM(CS4:CS85) -> 0 | CT87: =SUM(CT4:CT85) -> 75 | CU87: =SUM(CU4:CU86) -> 11 | CV87: 9 | CW87: =SUM(CW4:CW85) -> 0 | CX87: =SUM(CX4:CX85) -> 75 | CY87: =SUM(CY4:CY86) -> 11 | CZ87: 9 | DA87: =SUM(DA4:DA85) -> 0 | DB87: =SUM(DB4:DB85) -> 65 | DC87: =SUM(DC4:DC86) -> 16 | DD87: 9 | DE87: =SUM(DE4:DE85) -> 0 | DF87: =SUM(DF4:DF85) -> 79 | DG87: =SUM(DG4:DG86) -> 17 | DH87: 2 | DI87: =SUM(DI4:DI85) -> 0 | DJ87: =SUM(DJ4:DJ85) -> 78 | DK87: =SUM(DK4:DK86) -> 17 | DL87: 2 | DM87: =SUM(DM4:DM85) -> 0 | DN87: =SUM(DN4:DN85) -> 73 | DO87: =SUM(DO4:DO86) -> 17 | DP87: 3 | DQ87: =SUM(DQ4:DQ85) -> 0 | DR87: =SUM(DR4:DR85) -> 66 | DS87: =SUM(DS4:DS86) -> 20 | DT87: 4 | DU87: =SUM(DU4:DU85) -> 0 | DV87: =SUM(DV4:DV85) -> 0 | DW87: =SUM(DW4:DW86) -> 0 | DX87: 0 | DY87: =SUM(DY4:DY85) -> 0 | DZ87: 1835 | EA87: 552 | EB87: 141 | EC87: 3
DZ89: =F89+J89+N89+R89+V89+Z89+AD89+AH89+AL89+AP89+AT89+AX89+BB89+BF89+BJ89+BN89+BR89+BV89+BZ89+CD89+CH89+CL89+CP89+CT89+CX89+DB89+DF89+DJ89+DN89+DR89+DV89 -> 0 | EA89: =G89+K89+O89+S89+W89+AA89+AE89+AI89+AM89+AQ89+AU89+AY89+BC89+BG89+BK89+BO89+BS89+BW89+CA89+CE89+CI89+CM89+CQ89+CU89+CY89+DC89+DG89+DK89+DO89+DS89+DW89 -> 0 | EB89: =H89+L89+P89+T89+X89+AB89+AF89+AJ89+AN89+AR89+AV89+AZ89+BD89+BH89+BL89+BP89+BT89+BX89+CB89+CF89+CJ89+CN89+CR89+CV89+CZ89+DD89+DH89+DL89+DP89+DT89+DX89 -> 0 | EC89: =I89+M89+Q89+U89+Y89+AC89+AG89+AK89+AO89+AS89+AW89+BA89+BE89+BI89+BM89+BQ89+BU89+BY89+CC89+CG89+CK89+CO89+CS89+CW89+DA89+DE89+DI89+DM89+DQ89+DU89+DY89 -> 0
DZ90: 0 | EA90: 0 | EB90: 0 | EC90: 0
DZ91: 0 | EA91: 0 | EB91: 0 | EC91: 0
DZ92: 0 | EA92: 0 | EB92: 0 | EC92: 0
DZ93: 0 | EA93: 0 | EB93: 0 | EC93: 0
DZ94: 0 | EA94: 0 | EB94: 0 | EC94: 0
DZ95: 0 | EA95: 0 | EB95: 0 | EC95: 0
DZ96: 0 | EA96: 0 | EB96: 0 | EC96: 0
DZ97: 0 | EA97: 0 | EB97: 0 | EC97: 0
DZ98: 0 | EA98: 0 | EB98: 0 | EC98: 0
DZ99: 0 | EA99: 0 | EB99: 0 | EC99: 0
DZ100: 0 | EA100: 0 | EB100: 0 | EC100: 0
DZ101: 0 | EA101: 0 | EB101: 0 | EC101: 0
DZ102: 0 | EA102: 0 | EB102: 0 | EC102: 0
DZ103: 0 | EA103: 0 | EB103: 0 | EC103: 0
DZ104: 0 | EA104: 0 | EB104: 0 | EC104: 0
DZ105: 0 | EA105: 0 | EB105: 0 | EC105: 0
DZ106: 0 | EA106: 0 | EB106: 0 | EC106: 0
DZ107: 0 | EA107: 0 | EB107: 0 | EC107: 0
DZ108: 0 | EA108: 0 | EB108: 0 | EC108: 0
DZ109: 0 | EA109: 0 | EB109: 0 | EC109: 0
DZ110: 0 | EA110: 0 | EB110: 0 | EC110: 0
DZ111: 0 | EA111: 0 | EB111: 0 | EC111: 0
DZ112: 0 | EA112: 0 | EB112: 0 | EC112: 0
DZ113: 0 | EA113: 0 | EB113: 0 | EC113: 0
DZ114: 0 | EA114: 0 | EB114: 0 | EC114: 0
DZ115: 0 | EA115: 0 | EB115: 0 | EC115: 0
DZ116: 0 | EA116: 0 | EB116: 0 | EC116: 0
DZ117: 0 | EA117: 0 | EB117: 0 | EC117: 0
DZ118: 0 | EA118: 0 | EB118: 0 | EC118: 0
DZ119: 0 | EA119: 0 | EB119: 0 | EC119: 0
DZ120: 0 | EA120: 0 | EB120: 0 | EC120: 0
DZ121: 0 | EA121: 0 | EB121: 0 | EC121: 0
DZ122: 0 | EA122: 0 | EB122: 0 | EC122: 0
DZ123: 0 | EA123: 0 | EB123: 0 | EC123: 0
DZ124: 0 | EA124: 0 | EB124: 0 | EC124: 0
DZ125: 0 | EA125: 0 | EB125: 0 | EC125: 0
DZ126: 0 | EA126: 0 | EB126: 0 | EC126: 0
DZ127: 0 | EA127: 0 | EB127: 0 | EC127: 0
DZ128: 0 | EA128: 0 | EB128: 0 | EC128: 0
DZ129: 0 | EA129: 0 | EB129: 0 | EC129: 0
DZ130: 0 | EA130: 0 | EB130: 0 | EC130: 0
DZ131: 0 | EA131: 0 | EB131: 0 | EC131: 0
DZ132: 0 | EA132: 0 | EB132: 0 | EC132: 0
DZ133: 0 | EA133: 0 | EB133: 0 | EC133: 0
DZ134: =F134+J134+N134+R134+V134+Z134+AD134+AH134+AL134+AP134+AT134+AX134+BB134+BF134+BJ134+BN134+BR134+BV134+BZ134+CD134+CH134+CL134+CP134+CT134+CX134+DB134+DF134+DJ134+DN134+DR134+DV134 -> 0 | EA134: =G134+K134+O134+S134+W134+AA134+AE134+AI134+AM134+AQ134+AU134+AY134+BC134+BG134+BK134+BO134+BS134+BW134+CA134+CE134+CI134+CM134+CQ134+CU134+CY134+DC134+DG134+DK134+DO134+DS134+DW134 -> 0 | EB134: =H134+L134+P134+T134+X134+AB134+AF134+AJ134+AN134+AR134+AV134+AZ134+BD134+BH134+BL134+BP134+BT134+BX134+CB134+CF134+CJ134+CN134+CR134+CV134+CZ134+DD134+DH134+DL134+DP134+DT134+DX134 -> 0 | EC134: =I134+M134+Q134+U134+Y134+AC134+AG134+AK134+AO134+AS134+AW134+BA134+BE134+BI134+BM134+BQ134+BU134+BY134+CC134+CG134+CK134+CO134+CS134+CW134+DA134+DE134+DI134+DM134+DQ134+DU134+DY134 -> 0
DZ135: 0 | EA135: 0 | EB135: 0 | EC135: 0
DZ136: 0 | EA136: 0 | EB136: 0 | EC136: 0
DZ137: 0 | EA137: 0 | EB137: 0 | EC137: 0
DZ138: 0 | EA138: 0 | EB138: 0 | EC138: 0
DZ139: 0 | EA139: 0 | EB139: 0 | EC139: 0
DZ140: 0 | EA140: 0 | EB140: 0 | EC140: 0
DZ141: 0 | EA141: 0 | EB141: 0 | EC141: 0
DZ142: 0 | EA142: 0 | EB142: 0 | EC142: 0
DZ143: 0 | EA143: 0 | EB143: 0 | EC143: 0
DZ144: 0 | EA144: 0 | EB144: 0 | EC144: 0
DZ145: 0 | EA145: 0 | EB145: 0 | EC145: 0
DZ146: 0 | EA146: 0 | EB146: 0 | EC146: 0
DZ147: 0 | EA147: 0 | EB147: 0 | EC147: 0
DZ148: 0 | EA148: 0 | EB148: 0 | EC148: 0
DZ149: 0 | EA149: 0 | EB149: 0 | EC149: 0
DZ150: 0 | EA150: 0 | EB150: 0 | EC150: 0
DZ151: 0 | EA151: 0 | EB151: 0 | EC151: 0
DZ152: 0 | EA152: 0 | EB152: 0 | EC152: 0
DZ153: 0 | EA153: 0 | EB153: 0 | EC153: 0
DZ154: 0 | EA154: 0 | EB154: 0 | EC154: 0
DZ155: 0 | EA155: 0 | EB155: 0 | EC155: 0
DZ156: 0 | EA156: 0 | EB156: 0 | EC156: 0
DZ157: 0 | EA157: 0 | EB157: 0 | EC157: 0
DZ158: 0 | EA158: 0 | EB158: 0 | EC158: 0
DZ159: 0 | EA159: 0 | EB159: 0 | EC159: 0
DZ160: 0 | EA160: 0 | EB160: 0 | EC160: 0
DZ161: 0 | EA161: 0 | EB161: 0 | EC161: 0
DZ162: 0 | EA162: 0 | EB162: 0 | EC162: 0
DZ163: 0 | EA163: 0 | EB163: 0 | EC163: 0
DZ164: 0 | EA164: 0 | EB164: 0 | EC164: 0
DZ165: 0 | EA165: 0 | EB165: 0 | EC165: 0
DZ166: 0 | EA166: 0 | EB166: 0 | EC166: 0
DZ167: 0 | EA167: 0 | EB167: 0 | EC167: 0
DZ168: 0 | EA168: 0 | EB168: 0 | EC168: 0
DZ169: 0 | EA169: 0 | EB169: 0 | EC169: 0
DZ170: 0 | EA170: 0 | EB170: 0 | EC170: 0
DZ171: 0 | EA171: 0 | EB171: 0 | EC171: 0
DZ172: 0 | EA172: 0 | EB172: 0 | EC172: 0
DZ173: 0 | EA173: 0 | EB173: 0 | EC173: 0
DZ174: 0 | EA174: 0 | EB174: 0 | EC174: 0
DZ175: 0 | EA175: 0 | EB175: 0 | EC175: 0
DZ176: 0 | EA176: 0 | EB176: 0 | EC176: 0
DZ177: 0 | EA177: 0 | EB177: 0 | EC177: 0
DZ178: 0 | EA178: 0 | EB178: 0 | EC178: 0
DZ179: 0 | EA179: 0 | EB179: 0 | EC179: 0
DZ180: 0 | EA180: 0 | EB180: 0 | EC180: 0
DZ181: 0 | EA181: 0 | EB181: 0 | EC181: 0
DZ182: 0 | EA182: 0 | EB182: 0 | EC182: 0
DZ183: 0 | EA183: 0 | EB183: 0 | EC183: 0
DZ184: 0 | EA184: 0 | EB184: 0 | EC184: 0
DZ185: 0 | EA185: 0 | EB185: 0 | EC185: 0
DZ186: 0 | EA186: 0 | EB186: 0 | EC186: 0
DZ187: 0 | EA187: 0 | EB187: 0 | EC187: 0
DZ188: 0 | EA188: 0 | EB188: 0 | EC188: 0
DZ189: 0 | EA189: 0 | EB189: 0 | EC189: 0
DZ190: 0 | EA190: 0 | EB190: 0 | EC190: 0
DZ191: 0 | EA191: 0 | EB191: 0 | EC191: 0
DZ192: 0 | EA192: 0 | EB192: 0 | EC192: 0
DZ193: 0 | EA193: 0 | EB193: 0 | EC193: 0
DZ194: 0 | EA194: 0 | EB194: 0 | EC194: 0
DZ195: 0 | EA195: 0 | EB195: 0 | EC195: 0
DZ196: 0 | EA196: 0 | EB196: 0 | EC196: 0
DZ197: 0 | EA197: 0 | EB197: 0 | EC197: 0
DZ198: =F198+J198+N198+R198+V198+Z198+AD198+AH198+AL198+AP198+AT198+AX198+BB198+BF198+BJ198+BN198+BR198+BV198+BZ198+CD198+CH198+CL198+CP198+CT198+CX198+DB198+DF198+DJ198+DN198+DR198+DV198 -> 0 | EA198: =G198+K198+O198+S198+W198+AA198+AE198+AI198+AM198+AQ198+AU198+AY198+BC198+BG198+BK198+BO198+BS198+BW198+CA198+CE198+CI198+CM198+CQ198+CU198+CY198+DC198+DG198+DK198+DO198+DS198+DW198 -> 0 | EB198: =H198+L198+P198+T198+X198+AB198+AF198+AJ198+AN198+AR198+AV198+AZ198+BD198+BH198+BL198+BP198+BT198+BX198+CB198+CF198+CJ198+CN198+CR198+CV198+CZ198+DD198+DH198+DL198+DP198+DT198+DX198 -> 0 | EC198: =I198+M198+Q198+U198+Y198+AC198+AG198+AK198+AO198+AS198+AW198+BA198+BE198+BI198+BM198+BQ198+BU198+BY198+CC198+CG198+CK198+CO198+CS198+CW198+DA198+DE198+DI198+DM198+DQ198+DU198+DY198 -> 0
DZ199: 0 | EA199: 0 | EB199: 0 | EC199: 0
DZ200: 0 | EA200: 0 | EB200: 0 | EC200: 0
DZ201: 0 | EA201: 0 | EB201: 0 | EC201: 0
... 433 more rows

Sheet Asifabad
A1: =Nizamabad!A1 -> NOVEMBER MONTH REPORT | F1: =Nizamabad!F1 -> 2021-11-01 | J1: =Nizamabad!J1 -> 2021-11-02 | N1: =Nizamabad!N1 -> 2021-11-03 | R1: =Nizamabad!R1 -> 2021-11-04 | V1: =Nizamabad!V1 -> 2021-11-05 | Z1: =Nizamabad!Z1 -> 2021-11-06 | AD1: =Nizamabad!AD1 -> 2021-11-07 | AH1: =Nizamabad!AH1 -> 2021-11-08 | AL1: =Nizamabad!AL1 -> 2021-11-09 | AP1: =Nizamabad!AP1 -> 2021-11-10 | AT1: =Nizamabad!AT1 -> 2021-11-11 | AX1: =Nizamabad!AX1 -> 2021-11-12 | BB1: =Nizamabad!BB1 -> 2021-11-13 | BF1: =Nizamabad!BF1 -> 2021-11-14 | BJ1: =Nizamabad!BJ1 -> 2021-11-15 | BN1: =Nizamabad!BN1 -> 2021-11-16 | BR1: =Nizamabad!BR1 -> 2021-11-17 | BV1: =Nizamabad!BV1 -> 2021-11-18 | BZ1: =Nizamabad!BZ1 -> 2021-11-19 | CD1: =Nizamabad!CD1 -> 2021-11-20 | CH1: =Nizamabad!CH1 -> 2021-11-21 | CL1: =Nizamabad!CL1 -> 2021-11-22 | CP1: =Nizamabad!CP1 -> 2021-11-23 | CT1: =Nizamabad!CT1 -> 2021-11-24 | CX1: =Nizamabad!CX1 -> 2021-11-25 | DB1: =Nizamabad!DB1 -> 2021-11-26 | DF1: =Nizamabad!DF1 -> 2021-11-27 | DJ1: =Nizamabad!DJ1 -> 2021-11-28 | DN1: =Nizamabad!DN1 -> 2021-11-29 | DR1: =Nizamabad!DR1 -> 2021-11-30 | DV1: =Nizamabad!DV1 -> 2021-12-01 | DZ1: TOTAL
A2: SNO | B2: HCF ID | C2: NAME OF THE HCF | D2: ADDRESS OF THE HCFS | E2: NO.OF BEDS | F2: Yellow | G2: Red | H2: Blue | I2: White | J2: Yellow | K2: Red | L2: Blue | M2: White | N2: Yellow | O2: Red | P2: Blue | Q2: White | R2: Yellow | S2: Red | T2: Blue | U2: White | V2: Yellow | W2: Red | X2: Blue | Y2: White | Z2: Yellow | AA2: Red | AB2: Blue | AC2: White | AD2: Yellow | AE2: Red | AF2: Blue | AG2: White | AH2: Yellow | AI2: Red | AJ2: Blue | AK2: White | AL2: Yellow | AM2: Red | AN2: Blue | AO2: White | AP2: Yellow | AQ2: Red | AR2: Blue | AS2: White | AT2: Yellow | AU2: Red | AV2: Blue | AW2: White | AX2: Yellow | AY2: Red | AZ2: Blue | BA2: White | BB2: Yellow | BC2: Red | BD2: Blue | BE2: White | BF2: Yellow | BG2: Red | BH2: Blue | BI2: White | BJ2: Yellow | BK2: Red | BL2: Blue | BM2: White | BN2: Yellow | BO2: Red | BP2: Blue | BQ2: White | BR2: Yellow | BS2: Red | BT2: Blue | BU2: White | BV2: Yellow | BW2: Red | BX2: Blue | BY2: White | BZ2: Yellow | CA2: Red | CB2: Blue | CC2: White | CD2: Yellow | CE2: Red | CF2: Blue | CG2: White | CH2: Yellow | CI2: Red | CJ2: Blue | CK2: White | CL2: Yellow | CM2: Red | CN2: Blue | CO2: White | CP2: Yellow | CQ2: Red | CR2: Blue | CS2: White | CT2: Yellow | CU2: Red | CV2: Blue | CW2: White | CX2: Yellow | CY2: Red | CZ2: Blue | DA2: White | DB2: Yellow | DC2: Red | DD2: Blue | DE2: White | DF2: Yellow | DG2: Red | DH2: Blue | DI2: White | DJ2: Yellow | DK2: Red | DL2: Blue | DM2: White | DN2: Yellow | DO2: Red | DP2: Blue | DQ2: White | DR2: Yellow | DS2: Red | DT2: Blue | DU2: White | DV2: Yellow | DW2: Red | DX2: Blue | DY2: White | DZ2: Yellow | EA2: Red | EB2: Blue | EC2: White
A3: BELOW 100 BEDS HCFs
A4: 1 | B4: DISTR504293TSBH06110 | C4: GOVT. HOSPITAL ASIFABAD | D4: NEAR BUS STATION, ASIFABAD | E4: 60 | F4: 1 | G4: 2 | J4: 1 | K4: 2 | N4: 1 | O4: 2 | V4: 1 | W4: 2 | Z4: 1 | AA4: 2 | AD4: 1 | AE4: 2 | AH4: 1 | AI4: 2 | AL4: 1 | AM4: 2 | AP4: 1 | AQ4: 2 | AT4: 1 | AU4: 2 | AX4: 1 | AY4: 2 | BB4: 1 | BC4: 2 | BF4: 1 | BG4: 2 | BJ4: 1 | BK4: 2 | BN4: 1 | BO4: 2 | BR4: 1 | BS4: 2 | BV4: 1 | BW4: 2 | BZ4: 1 | CA4: 2 | CD4: 1 | CE4: 2 | CH4: 1 | CI4: 2 | CL4: 1 | CM4: 2 | CP4: 1 | CQ4: 2 | CT4: 1 | CU4: 2 | CX4: 1 | CY4: 2 | DB4: 1 | DC4: 2 | DF4: 1 | DG4: 1 | DJ4: 1 | DK4: 1 | DN4: 1 | DO4: 1 | DR4: 1 | DS4: 1 | DZ4: =F4+J4+N4+R4+V4+Z4+AD4+AH4+AL4+AP4+AT4+AX4+BB4+BF4+BJ4+BN4+BR4+BV4+BZ4+CD4+CH4+CL4+CP4+CT4+CX4+DB4+DF4+DJ4+DN4+DR4+DV4 -> 29 | EA4: =G4+K4+O4+S4+W4+AA4+AE4+AI4+AM4+AQ4+AU4+AY4+BC4+BG4+BK4+BO4+BS4+BW4+CA4+CE4+CI4+CM4+CQ4+CU4+CY4+DC4+DG4+DK4+DO4+DS4+DW4 -> 54 | EB4: =H4+L4+P4+T4+X4+AB4+AF4+AJ4+AN4+AR4+AV4+AZ4+BD4+BH4+BL4+BP4+BT4+BX4+CB4+CF4+CJ4+CN4+CR4+CV4+CZ4+DD4+DH4+DL4+DP4+DT4+DX4 -> 0 | EC4: =I4+M4+Q4+U4+Y4+AC4+AG4+AK4+AO4+AS4+AW4+BA4+BE4+BI4+BM4+BQ4+BU4+BY4+CC4+CG4+CK4+CO4+CS4+CW4+DA4+DE4+DI4+DM4+DQ4+DU4+DY4 -> 0
A5: 2 | B5: COMMU504293TSBH09923 | C5: COMMUNITY HEALTH CENTER, ASIFABAD | D5: H.NO.3-108, NAR BUS STAND, BAPUNAGAR, ASIFABAD | E5: 50 | DF5: 2 | DG5: 1 | DJ5: 2 | DK5: 1 | DN5: 2 | DO5: 1 | DR5: 2 | DS5: 1 | DZ5: =F5+J5+N5+R5+V5+Z5+AD5+AH5+AL5+AP5+AT5+AX5+BB5+BF5+BJ5+BN5+BR5+BV5+BZ5+CD5+CH5+CL5+CP5+CT5+CX5+DB5+DF5+DJ5+DN5+DR5+DV5 -> 8 | EA5: =G5+K5+O5+S5+W5+AA5+AE5+AI5+AM5+AQ5+AU5+AY5+BC5+BG5+BK5+BO5+BS5+BW5+CA5+CE5+CI5+CM5+CQ5+CU5+CY5+DC5+DG5+DK5+DO5+DS5+DW5 -> 4 | EB5: =H5+L5+P5+T5+X5+AB5+AF5+AJ5+AN5+AR5+AV5+AZ5+BD5+BH5+BL5+BP5+BT5+BX5+CB5+CF5+CJ5+CN5+CR5+CV5+CZ5+DD5+DH5+DL5+DP5+DT5+DX5 -> 0 | EC5: =I5+M5+Q5+U5+Y5+AC5+AG5+AK5+AO5+AS5+AW5+BA5+BE5+BI5+BM5+BQ5+BU5+BY5+CC5+CG5+CK5+CO5+CS5+CW5+DA5+DE5+DI5+DM5+DQ5+DU5+DY5 -> 0
A6: 3 | B6: KIMSH504296TSBH09900 | C6: K I M S HOSPITAL (KOTTAPALLI INSTITUTE OF MEDICAL SCIENCES) | D6: #1-16-553/3, OPP: MUNICIPAL OFFICE, BEHIND VENKATARAMANA THEATRE, KAGAZNAGAR, DIST. KUMARAMBHEEM ASIFABAD. | E6: 50 | G6: 1 | K6: 1 | O6: 1 | W6: 1 | AA6: 1 | AE6: 1 | AI6: 1 | AM6: 1 | AQ6: 1 | AU6: 1 | AY6: 1 | BC6: 1 | BG6: 1 | BK6: 1 | BO6: 1 | BS6: 1 | BW6: 1 | CA6: 1 | CE6: 1 | CI6: 1 | CM6: 1 | CQ6: 1 | CU6: 1 | CY6: 1 | DC6: 1 | DG6: 1 | DK6: 1 | DO6: 1 | DS6: 1 | DZ6: 0 | EA6: 29 | EB6: 0 | EC6: 0
A7: 4 | B7: PRAJA504296TSBH09921 | C7: PRAJA LIFE CARE HOSPITAL | D7: OPP; H.P. PETROL PUMP, SIRPUR KAGHAZNAGAR-504296. #7893956532 | E7: 50 | F7: 1 | J7: 1 | N7: 1 | V7: 1 | Z7: 1 | AD7: 1 | AH7: 1 | AL7: 1 | AP7: 1 | AT7: 1 | AX7: 1 | BB7: 1 | BF7: 1 | BJ7: 1 | BN7: 1 | BR7: 1 | BV7: 1 | BZ7: 1 | CD7: 1 | CH7: 1 | CL7: 1 | CP7: 1 | CT7: 1 | CX7: 1 | DB7: 1 | DF7: 1 | DJ7: 1 | DN7: 1 | DR7: 1 | DZ7: 29 | EA7: 0 | EB7: 0 | EC7: 0
A8: 5 | B8: COMMU504299TSBH09924 | C8: THIRUMALA SUPER SPECIALITY HOSPITAL, NIZAMABAD | D8: H.No.4-92, NEAR POST OFFICE, ARAB MOHALLA, SIRPUR(T),ASIFABAD -504299 | E8: 30 | G8: 1 | K8: 1 | O8: 1 | W8: 1 | AA8: 1 | AE8: 1 | AI8: 1 | AM8: 1 | AQ8: 1 | AU8: 1 | AY8: 1 | BC8: 1 | BG8: 1 | BK8: 1 | BO8: 1 | BS8: 1 | BW8: 1 | CA8: 1 | CE8: 1 | CI8: 1 | CM8: 1 | CQ8: 1 | CU8: 1 | CY8: 1 | DC8: 1 | DG8: 1 | DK8: 1 | DO8: 1 | DS8: 1 | DZ8: 0 | EA8: 29 | EB8: 0 | EC8: 0
A9: 6 | B9: VIJET504296TSBH09908 | C9: VIJETHA HOSPITAL | D9: OPP ANDHRA BANK ATM, THIRANDAS TALKIES ROAD, SIRPUR-KAGHAZNAGAR-504296 | E9: 30 | F9: 1 | J9: 1 | N9: 1 | V9: 1 | Z9: 1 | AD9: 1 | AH9: 1 | AL9: 1 | AP9: 1 | AT9: 1 | AX9: 1 | BB9: 1 | BF9: 1 | BJ9: 1 | BN9: 1 | BR9: 1 | BV9: 1 | BZ9: 1 | CD9: 1 | CH9: 1 | CL9: 1 | CP9: 1 | CT9: 1 | CX9: 1 | DB9: 1 | DF9: 1 | DJ9: 1 | DN9: 1 | DR9: 1 | DZ9: 29 | EA9: 0 | EB9: 0 | EC9: 0
A10: 7 | B10: HOLYT504346TSBH09922 | C10: HOLY TRINITY HOSPITAL | D10: H.No.63/2017, INDERVELLY, ADILABAD | E10: 25 | F10: 1 | J10: 1 | N10: 1 | V10: 1 | Z10: 1 | AD10: 1 | AH10: 1 | AL10: 1 | AP10: 1 | AT10: 1 | AX10: 1 | BB10: 1 | BF10: 1 | BJ10: 1 | BN10: 1 | BR10: 1 | BV10: 1 | BZ10: 1 | CD10: 1 | CH10: 1 | CL10: 1 | CP10: 1 | CT10: 1 | CX10: 1 | DB10: 1 | DF10: 1 | DJ10: 1 | DN10: 1 | DR10: 1 | DZ10: 29 | EA10: 0 | EB10: 0 | EC10: 0
A11: 8 | B11: VIMAL504299TSBH09926 | C11: VIMALA LIFE CARE HOSPITAL | D11: D.No.3-298/1, BESIDE SBI, THALODI X ROAD, KOUTHULA, ASIFABAD | E11: 25 | DF11: 1 | DJ11: 1 | DN11: 1 | DR11: 1 | DZ11: 4 | EA11: 0 | EB11: 0 | EC11: 0
A12: 9 | B12: VIJAY504296TSBH09925 | C12: VIJAYA HOSPITAL | D12: D.No.1-3-9, M.G. ROAD, OLD MADHU HOSPITAL BUILDING, SIRPUR-KAGHAZNAGAR- 504296 | E12: 24 | G12: 1 | K12: 1 | O12: 1 | W12: 1 | AA12: 1 | AE12: 1 | AI12: 1 | AM12: 1 | AQ12: 1 | AU12: 1 | AY12: 1 | BC12: 1 | BG12: 1 | BK12: 1 | BO12: 1 | BS12: 1 | BW12: 1 | CA12: 1 | CE12: 1 | CI12: 1 | CM12: 1 | CQ12: 1 | CU12: 1 | CY12: 1 | DC12: 1 | DG12: 1 | DK12: 1 | DO12: 1 | DS12: 1 | DZ12: 0 | EA12: 29 | EB12: 0 | EC12: 0
A13: 10 | B13: ADITY504296TSBH09927 | C13: ADITYA NURSING HOME | D13: Dr.RAOJI RATNAM, D.No.1-14-378/3, YELLAGOUD THOTA,NEAR ESEVA, NEAR MUNICIPAL WATER TANK,SIRPUR KAGHAZNAGAR | E13: 20 | G13: 1 | K13: 1 | O13: 1 | W13: 1 | AA13: 1 | AE13: 1 | AI13: 1 | AM13: 1 | AQ13: 1 | AU13: 1 | AY13: 1 | BC13: 1 | BG13: 1 | BK13: 1 | BO13: 1 | BS13: 1 | BW13: 1 | CA13: 1 | CE13: 1 | CI13: 1 | CM13: 1 | CQ13: 1 | CU13: 1 | CY13: 1 | DC13: 1 | DG13: 1 | DK13: 1 | DO13: 1 | DS13: 1 | DZ13: 0 | EA13: 29 | EB13: 0 | EC13: 0
A14: 11 | B14: JYOTH504296TSBH09915 | C14: JYOTHI HOSPITAL | D14: # 2-3-48, BESIDE STATE BANK, RAJEEV CHOWK,SIRPUR-KAGHAZNAGAR-504296 | E14: 20 | F14: 1 | J14: 1 | N14: 1 | V14: 1 | Z14: 1 | AD14: 1 | AH14: 1 | AL14: 1 | AP14: 1 | AT14: 1 | AX14: 1 | BB14: 1 | BF14: 1 | BJ14: 1 | BN14: 1 | BR14: 1 | BV14: 1 | BZ14: 1 | CD14: 1 | CH14: 1 | CL14: 1 | CP14: 1 | CT14: 1 | CX14: 1 | DB14: 1 | DF14: 1 | DJ14: 1 | DN14: 1 | DR14: 1 | DZ14: 29 | EA14: 0 | EB14: 0 | EC14: 0
A15: 12 | B15: MADHU504296TSBH09929 | C15: MADHURA HOSPITAL | D15: D.No.1-69/2/2, BESIDE HP PETROL BUNK, SIRPUR-KAGHAZNAGAR-504296 | E15: 20 | G15: 1 | K15: 1 | O15: 1 | W15: 1 | AA15: 1 | AE15: 1 | AI15: 1 | AM15: 1 | AQ15: 1 | AU15: 1 | AY15: 1 | BC15: 1 | BG15: 1 | BK15: 1 | BO15: 1 | BS15: 1 | BW15: 1 | CA15: 1 | CE15: 1 | CI15: 1 | CM15: 1 | CQ15: 1 | CU15: 1 | CY15: 1 | DC15: 1 | DG15: 1 | DK15: 1 | DO15: 1 | DS15: 1 | DZ15: 0 | EA15: 29 | EB15: 0 | EC15: 0
A16: 13 | B16: NAZAR504299TSBH09909 | C16: NAZARETH MISSION HOSPITAL | D16: 2-155/1, KOYAGUDA, VIJAYANAGAR ROAD, KOUTALA, KUMARAMBHEEM ASIFABAD | E16: 20 | DF16: 1 | DJ16: 1 | DN16: 1 | DR16: 1 | DZ16: 4 | EA16: 0 | EB16: 0 | EC16: 0
A17: 14 | B17: SRILA504296TSBH09917 | C17: SRI LAXMI CHILDREN'S HOSPITAL | D17: Dr. ANITHA, H.No.1-16-273/6, OPP: INDIAN OIL PETROLPUMP, SIRPUR-KAGHAZNAGAR | E17: 20 | G17: 1 | K17: 1 | O17: 1 | W17: 1 | AA17: 1 | AE17: 1 | AI17: 1 | AM17: 1 | AQ17: 1 | AU17: 1 | AY17: 1 | BC17: 1 | BG17: 1 | BK17: 1 | BO17: 1 | BS17: 1 | BW17: 1 | CA17: 1 | CE17: 1 | CI17: 1 | CM17: 1 | CQ17: 1 | CU17: 1 | CY17: 1 | DC17: 1 | DG17: 1 | DK17: 1 | DO17: 1 | DS17: 1 | DZ17: 0 | EA17: 29 | EB17: 0 | EC17: 0
A18: 15 | B18: USHAH504293TSBH09910 | C18: USHA HOSPITAL | D18: COURT CHOURASTHA, DANAPUR ROAD, ASIFABAD | E18: 20 | DF18: 1 | DJ18: 1 | DN18: 1 | DR18: 1 | DZ18: 4 | EA18: 0 | EB18: 0 | EC18: 0
A19: 16 | B19: SRINI504293TSBH09912 | C19: SRINIVASA HOSPITAL | D19: D.NO.2-161/8, OPP: REGISTRATION OFFICE, NH-7 KUMARAMBHEEM CHOWK, ASIFABAD | E19: 15 | G19: 1 | K19: 1 | O19: 1 | W19: 1 | AA19: 1 | AE19: 1 | AI19: 1 | AM19: 1 | AQ19: 1 | AU19: 1 | AY19: 1 | BC19: 1 | BG19: 1 | BK19: 1 | BO19: 1 | BS19: 1 | BW19: 1 | CA19: 1 | CE19: 1 | CI19: 1 | CM19: 1 | CQ19: 1 | CU19: 1 | CY19: 1 | DC19: 1 | DG19: 1 | DZ19: 0 | EA19: 26 | EB19: 0 | EC19: 0
A20: 17 | B20: RAMAC504296TSBH09928 | C20: RAMA CHILDREN'S HOSPITAL | D20: 1-4-165, SUBASH ROAD, KAGAZNAGAR | E20: 6 | DG20: 1 | DK20: 1 | DO20: 1 | DS20: 1 | DZ20: 0 | EA20: 4 | EB20: 0 | EC20: 0 | ED20: =SUM(ED3:ED19) -> 0 | EE20: 0 | EF20: 0 | EG20: 0 | EH20: 0 | EI20: 0 | EJ20: 0 | EK20: 0 | EL20: 0 | EM20: 0 | EN20: 0 | EO20: 0 | EP20: 0 | EQ20: 0 | ER20: 0 | ES20: 0 | ET20: 0 | EU20: 0 | EV20: 0 | EW20: 0 | EX20: 0 | EY20: 0 | EZ20: 0 | FA20: 0 | FB20: 0 | FC20: 0 | FD20: 0 | FE20: 0 | FF20: 0 | FG20: 0 | FH20: 0 | FI20: 0 | FJ20: 0 | FK20: 0 | FL20: 0 | FM20: 0 | FN20: 0 | FO20: 0 | FP20: 0 | FQ20: 0 | FR20: 0 | FS20: 0 | FT20: 0 | FU20: 0 | FV20: 0 | FW20: 0 | FX20: 0 | FY20: 0 | FZ20: 0 | GA20: 0 | GB20: 0 | GC20: 0 | GD20: 0 | GE20: 0 | GF20: 0 | GG20: 0 | GH20: 0 | GI20: 0 | GJ20: 0 | GK20: 0 | GL20: 0 | GM20: 0 | GN20: 0 | GO20: =SUM(GO3:GO19) -> 0 | GP20: 0 | GQ20: 0 | GR20: 0 | GS20: 0 | GT20: 0 | GU20: 0 | GV20: 0 | GW20: 0 | GX20: 0 | GY20: 0 | GZ20: 0 | HA20: 0 | HB20: 0 | HC20: 0 | HD20: 0 | HE20: 0 | HF20: 0 | HG20: 0 | HH20: 0 | HI20: 0 | HJ20: 0 | HK20: 0 | HL20: 0 | HM20: 0 | HN20: 0 | HO20: 0 | HP20: 0 | HQ20: 0 | HR20: 0 | HS20: 0 | HT20: 0 | HU20: 0 | HV20: 0 | HW20: 0 | HX20: 0 | HY20: 0 | HZ20: 0 | IA20: 0 | IB20: 0 | IC20: 0 | ID20: 0 | IE20: 0 | IF20: 0 | IG20: 0 | IH20: 0 | II20: 0 | IJ20: 0 | IK20: 0 | IL20: 0 | IM20: 0 | IN20: 0 | IO20: 0 | IP20: 0 | IQ20: 0 | IR20: 0 | IS20: 0 | IT20: 0 | IU20: 0 | IV20: 0 | IW20: 0
A21: 18 | B21: AYANC504296TSBH09914 | C21: AYAN CHILDREN'S HOSPITAL | D21: H.NO, 1-3-280, HAQ COMPLEX, Indira Market, Sriram Nagar, Kagaznagar (M), Telangana 504296 | E21: 5 | DG21: 1 | DK21: 1 | DO21: 1 | DS21: 1 | DZ21: 0 | EA21: 4 | EB21: 0 | EC21: 0
A22: 19 | B22: SHAIL504296TSBH09918 | C22: SHAILAJA HOSPITAL | D22: D.NO.1-16-319, BESIDE TELANGANA GRAMEENA BANK, PETROL PUMP AREA,SIRPUR-KAGHAZNAGAR-504296 | E22: 5 | F22: 1 | J22: 1 | N22: 1 | V22: 1 | Z22: 1 | AD22: 1 | AH22: 1 | AL22: 1 | AP22: 1 | AT22: 1 | AX22: 1 | BB22: 1 | BF22: 1 | BJ22: 1 | BN22: 1 | BR22: 1 | BV22: 1 | BZ22: 1 | CD22: 1 | CH22: 1 | CL22: 1 | CP22: 1 | CT22: 1 | CX22: 1 | DB22: 1 | DF22: 1 | DZ22: 26 | EA22: 0 | EB22: 0 | EC22: 0
A23: 20 | B23: SRIVE504296TSBH09931 | C23: SRI VENKATESHWARA X RAY & CLINIC, SIRPUR KAGAZNAGAR, ASIFABAD | D23: DR GIRIDHARILAL MUNDADA, 1-2-57, NEAR AMBEDKAR CHOWK, Maulana Azad Rd, Nizamuddin Colony, Kagaznagar | E23: 5 | F23: 1 | J23: 1 | N23: 1 | V23: 1 | Z23: 1 | AD23: 1 | AH23: 1 | AL23: 1 | AP23: 1 | AT23: 1 | AX23: 1 | BB23: 1 | BF23: 1 | BJ23: 1 | BN23: 1 | BR23: 1 | BV23: 1 | BZ23: 1 | CD23: 1 | CH23: 1 | CL23: 1 | CP23: 1 | CT23: 1 | CX23: 1 | DB23: 1 | DF23: 1 | DJ23: 1 | DN23: 1 | DR23: 1 | DZ23: 29 | EA23: 0 | EB23: 0 | EC23: 0
A24: 21 | B24: DRSMI504293TSBH09930 | C24: DR SMILE MULTISPECIALITY DENTAL HOSPITAL | D24: H.No.6-57/1/6, BESIDE ROSE GARDEN, MAIN ROAD, ASIFABAD | E24: 2 | F24: 1 | J24: 1 | N24: 1 | V24: 1 | Z24: 1 | AD24: 1 | AH24: 1 | AL24: 1 | AP24: 1 | AT24: 1 | AX24: 1 | BB24: 1 | BF24: 1 | BJ24: 1 | BN24: 1 | BR24: 1 | BV24: 1 | BZ24: 1 | CD24: 1 | CH24: 1 | CL24: 1 | CP24: 1 | CT24: 1 | CX24: 1 | DB24: 1 | DF24: 1 | DJ24: 1 | DN24: 1 | DR24: 1 | DZ24: 29 | EA24: 0 | EB24: 0 | EC24: 0
A25: 22 | B25: BLOOD504293TSBH06115 | C25: BLOOD BANK, DIST. HOSPITAL | D25: NEAR BUS STATION, ASIFABAD | E25: 0 | F25: 1 | J25: 1 | N25: 1 | V25: 1 | Z25: 1 | AD25: 1 | AH25: 1 | AL25: 1 | AP25: 1 | AT25: 1 | AX25: 1 | BB25: 1 | BF25: 1 | BJ25: 1 | BN25: 1 | BR25: 1 | BV25: 1 | BZ25: 1 | CD25: 1 | CH25: 1 | CL25: 1 | CP25: 1 | CT25: 1 | CX25: 1 | DB25: 1 | DF25: 1 | DZ25: 26 | EA25: 0 | EB25: 0 | EC25: 0
A26: 23 | B26: DR.KR504296TSCL09913 | C26: DR KRISHNA RAO CLINIC | D26: 1-2-310, M.G. ROAD, SIRPUR KAGHAZNAGAR | E26: 0 | DF26: 1 | DJ26: 1 | DN26: 1 | DR26: 1 | DZ26: 4 | EA26: 0 | EB26: 0 | EC26: 0
A27: 24 | B27: VASIS504293TSPL07801 | C27: VASISHTA DIAGNOSTIC CENTRE | D27: #1-16-333/5, OPP: PRAJA LIFE CARE HOSPITAL, KAGAZNAGAR | E27: 0 | F27: 1 | J27: 1 | N27: 1 | V27: 1 | Z27: 1 | AD27: 1 | AH27: 1 | AL27: 1 | AP27: 1 | AT27: 1 | AX27: 1 | BB27: 1 | BF27: 1 | BJ27: 1 | BN27: 1 | BR27: 1 | BV27: 1 | BZ27: 1 | CD27: 1 | CH27: 1 | CL27: 1 | CP27: 1 | CT27: 1 | CX27: 1 | DB27: 1 | DF27: 1 | DJ27: 1 | DN27: 1 | DR27: 1 | DZ27: 29 | EA27: 0 | EB27: 0 | EC27: 0
A28: 25 | B28: MMSDE504293TSBH09965 | C28: MMS DENTAL HOSPITAL | D28: 1st Floor, above Grocery 4U Supermarket, Kumrambheem Chowk, Asifabad (CT), Telangana 504293 | E28: 3 | DG28: 1 | DK28: 1 | DO28: 1 | DS28: 1 | DZ28: 0 | EA28: 4 | EB28: 0 | EC28: 0
A29: 26 | B29: SSANS504293TSBH10063 | C29: SS ANSARI HOSPITAL | D29: 5-168/1, K.B. CHOWK, ASIFABAD | E29: 20 | DF29: 1 | DJ29: 1 | DN29: 1 | DR29: 1 | DZ29: 4 | EA29: 0 | EB29: 0 | EC29: 0
C30: TOTAL | E30: =SUM(E4:E29) -> 525 | F30: =SUM(F4:F29) -> 10 | G30: 9 | H30: 0 | I30: 0 | J30: =SUM(J4:J29) -> 10 | K30: =SUM(K4:K29) -> 9 | L30: =SUM(L4:L29) -> 0 | M30: =SUM(M4:M29) -> 0 | N30: =SUM(N4:N29) -> 10 | O30: =SUM(O4:O29) -> 9 | P30: 0 | Q30: 0 | R30: =SUM(R4:R29) -> 0 | S30: 0 | T30: 0 | U30: 0 | V30: 10 | W30: 9 | X30: 0 | Y30: 0 | Z30: 10 | AA30: 9 | AB30: 0 | AC30: 0 | AD30: 10 | AE30: 9 | AF30: 0 | AG30: 0 | AH30: 10 | AI30: 9 | AJ30: 0 | AK30: 0 | AL30: 10 | AM30: 9 | AN30: 0 | AO30: 0 | AP30: 10 | AQ30: 9 | AR30: 0 | AS30: 0 | AT30: 10 | AU30: 9 | AV30: 0 | AW30: 0 | AX30: 10 | AY30: =SUM(AY4:AY29) -> 9 | AZ30: 0 | BA30: 0 | BB30: =SUM(BB4:BB29) -> 10 | BC30: 9 | BD30: 0 | BE30: 0 | BF30: 10 | BG30: 9 | BH30: 0 | BI30: 0 | BJ30: 10 | BK30: 9 | BL30: 0 | BM30: 0 | BN30: =SUM(BN4:BN29) -> 10 | BO30: 9 | BP30: 0 | BQ30: 0 | BR30: 10 | BS30: 9 | BT30: 0 | BU30: 0 | BV30: 10 | BW30: 9 | BX30: 0 | BY30: 0 | BZ30: 10 | CA30: 9 | CB30: 0 | CC30: 0 | CD30: 10 | CE30: 9 | CF30: 0 | CG30: 0 | CH30: 10 | CI30: 9 | CJ30: 0 | CK30: 0 | CL30: 10 | CM30: 9 | CN30: 0 | CO30: 0 | CP30: =SUM(CP4:CP29) -> 10 | CQ30: 9 | CR30: 0 | CS30: 0 | CT30: 10 | CU30: 9 | CV30: 0 | CW30: 0 | CX30: 10 | CY30: 9 | CZ30: 0 | DA30: 0 | DB30: 10 | DC30: 9 | DD30: 0 | DE30: 0 | DF30: 17 | DG30: 12 | DH30: 0 | DI30: 0 | DJ30: 15 | DK30: 11 | DL30: 0 | DM30: 0 | DN30: 15 | DO30: 11 | DP30: 0 | DQ30: 0 | DR30: =SUM(DR4:DR29) -> 15 | DS30: 11 | DT30: 0 | DU30: 0 | DV30: 0 | DW30: 0 | DX30: 0 | DY30: 0 | DZ30: 312 | EA30: 270 | EB30: 0 | EC30: 0
